Workbook

Sheet Instructions
B2: Version : Profit2021_1
B10: Extension Ag Economics
B11: Master Marketer
B12: Farm Assistance
B13: Market Outlook
B14: Futures Charts and Prices
B15: Introduction
A16: This tool requires Microsoft Excel. Budget cost estimates are not meant to represent any specific farm. They are averages, and serve as a starting point in your analysis. Due to differences in soil types and other resources that vary from farm to farm, it is important that you enter individualized crop cost estimates to achieve realistic results. To make long run decisions and determine farm business sustainability in future years, you will need to estimate fixed costs as well.
A22: Andrew Wright 806-723-8429
B27: From Sheet to Sheet
A28: Each crop budget (Irr Alfalfa, Irr Corn, etc) and analysis section (Prices, Break-Even, Comparative) is displayed on a separate tab/sheet. However, summary tables in the analyses portion of this spreadsheet are tied to the budgets by equations, and will immediately update as you make changes to the individual budgets.
A32: The Menu sheet provides direct access to all crop budgets and summary pages from one location. It also allows the user to select the crops and scenarios they wish to see in the analyses tabs. To return to the Menu or navigate to the Prices, Break-even, or Comparative sections, use the colored navigation bar at the top of each sheet.
A36: Click on the crop budget name at the bottom of the screen to move from tab to tab. To scroll left or right and get access to budgets not listed on the screen, use the four small triangles in the bottom left corner of the worksheet. Clicking on one of the triangles with a vertical line will take you to the first sheet or the last sheet. Clicking on one of the triangles in the center will move over one sheet either left or right.
B41: Entering Your Numbers
A42: To enter personalized data in a budget, click on the number in BLUE that you wish to change, type in the new entry and press the Enter key, or just use the mouse to click on the next number that needs changing. GREEN entries can only be altered in the Universal Input Prices sheet. If the meaning of a certain budget number is unclear, many have a red triangle beside the entry. Moving your mouse over the triangle will provide a more detailed explanation.
B47: Printing
A48: If visible, click on the printer icon above the screen. It is usually found on the second row from the top. This should print a copy of the worksheet currently being viewed. For multiple sheets, select the ones you wish to see by holding down the control key while left-clicking on each sheet/tab. Then, selecting the printer icon will print all chosen sheets. If the icon is not visible, choose the File menu and then Print from the upper left corner, then follow the same procedures as above.
B53: Saving Your Work
A54: If you want to keep the numbers entered for future sessions, all files must be saved. To do this, just click on the Save icon (disk) to replace the original information with your new data. If the Save icon is not visible, you can also select the File menu and then Save As and give the file a new name.

Sheet Menu
B3: Menu: Customize Your Analysis
B4: Crop (Links to Budget Pages) | C4: Include in Analysis? | E4: Instructions
B5: ='Irr Alfalfa'!$A$3 -> Irrigated Alfalfa | C5: Yes | E5: Step | F5: Status
B6: ='Irr Blackeyes'!$A$3 -> Irrigated Blackeyed Peas | C6: Yes | E6: 1. Identify the crops you wish to consider in your analysis; mark each crop as either 'Yes' or 'No'.
B7: ='Irr Corn'!$A$3 -> Irrigated Corn | C7: Yes | E7: Note: you can use the buttons provided to quickly update all entries in each section.
B8: ='Irr Corn Silage'!$A$3 -> Irrigated Corn Silage | C8: Yes
B9: ='Irr Cotton Drip'!$A$3 -> Irrigated Cotton - Drip | C9: Yes | E9: 2. Indicate whether or not to include a Tenant and/or Landlord in the analysis.
B10: ='Irr Cotton Pivot'!$A$3 -> Irrigated Cotton - Pivot | C10: Yes
B11: Irrigated Guar | C11: Yes | E11: 3. Select the 'Update Workbook' button. This will update the workbook so that only the content
B12: ='Irr Peanuts'!$A$3 -> Irrigated Peanuts | C12: Yes | E12: you are interested in will be displayed.
B13: ='Irr Sesame'!$A$3 -> Irrigated Sesame | C13: Yes
B14: ='Irr Sorghum'!$A$3 -> Irrigated Sorghum | C14: Yes
B15: ='Irr Sorghum Silage'!$A$3 -> Irrigated Sorghum Silage | C15: Yes
B16: ='Organic Peanuts'!$A$3 -> Irrigated Peanuts-Organic | C16: Yes
B17: ='Irr Sunflowers-Confection'!$A$3 -> Irrigated Sunflowers-Confectionary | C17: Yes
B18: ='Irr Sunflowers-Oilseed'!$A$3 -> Irrigated Sunflowers-Oilseed | C18: Yes
B19: ='Irr Wheat'!$A$3 -> Irrigated Wheat | C19: Yes
E20: **IF THE MENU BOTTONS DON'T WORK, CLOSE THE FILE AND FIND IT IN THE APPROPRIATE FOLDER. NEXT, RIGHT CLICK THE FILE AND SELECT PROPERTIES, THEN CHECK THE BOX THAT SAYS UNBLOCK. FINALLY, OPEN THE FILE BACK UP AND CHOOSE TO ENABLE MACROS IF NEEDED**
B21: ='Dry Cotton Organic'!$A$3 -> Dryland Cotton - Organic | C21: Yes
B22: ='Dry Cotton HT'!$A$3 -> Dryland Cotton - Herbicide Tolerant | C22: Yes
B23: Dryland Guar | C23: Yes
B24: ='Dry Sesame'!$A$3 -> Dryland Sesame | C24: Yes
B25: ='Dry Sorghum'!$A$3 -> Dryland Sorghum | C25: Yes
B26: ='Dry Sunflowers-Oilseed'!$A$3 -> Dryland Sunflowers-Oilseed | C26: Yes
B27: ='Dry Wheat'!$A$3 -> Dryland Wheat | C27: Yes
B29: Scenario | C29: Include in Analysis?
B30: Total | C30: Yes
B31: Operator | C31: Yes
B32: Owner | C32: Yes

Sheet Universal Input Prices
B2: Basic Universal Input Prices
B3: Commodity | C3: Price | D3: Unit | E3: Verified
B4: Alfalfa | C4: 240 | D4: /ton | E4: x
B5: Blackeyed Peas | C5: 0.34 | D5: /lb | E5: x
B6: Corn | C6: 5 | D6: /bu | E6: x
B7: Corn Silage | C7: 50 | D7: /ton | E7: x
B8: Cotton | C8: 0.72 | D8: /lb | E8: x
B9: Cottonseed | C9: 225 | D9: /ton | E9: x
B10: Guar | C10: 0.6 | D10: /lb
B11: Peanuts-Organic | C11: 1200 | D11: /ton
B12: Peanuts | C12: 600 | D12: /ton | E12: x
B13: Sesame - Irrigated | C13: 0.32 | D13: /lb | E13: x
B14: Sesame - Non-irrigated | C14: 0.28 | D14: /lb | E14: x
B15: Sorghum | C15: 8.6 | D15: /cwt | E15: x
B16: Sorghum Seed | C16: 20.63 | D16: /cwt | E16: x
B17: Sorghum Silage | C17: 48 | D17: /ton | E17: x
B18: Soybeans | C18: 10.8 | D18: /bu | E18: x
B19: Sunflower - Conf. (large) | C19: 0.32 | D19: /lb | E19: x
B20: Sunflower - Conf. (small) | C20: 0.26 | D20: /lb | E20: x
B21: Sunflower - Oil | C21: 0.2 | D21: /lb | E21: x
B22: Wheat | C22: 8.5 | D22: /bu | E22: x
B23: Cottonseed-Organic | C23: 500 | D23: /ton
B24: Cotton-Organic | C24: 2 | D24: /lb
B25: Grazing | C25: 0.5 | D25: /lb of gain
B27: Input Item | C27: Price | D27: Unit | F27: Fertilizer Worksheet
B28: Fertilizer | K28: Cost per ton
B29: fert (N) - dry | C29: =K29/J29/2000 -> 0.5760869565 | D29: /lb of N | F29: % N in Primary Nitrogen Fertilizer - dry | J29: 0.46 | K29: 530
B30: fert (N) - liquid | C30: 0.6109375 | D30: /lb of N | F30: % N in Primary Nitrogen Fertilizer - liquid | J30: 0.32 | K30: 391
B31: fert (N) - NH3 | C31: =K31/J31/2000 -> 0.4695121951 | D31: /lb of N | F31: % N in Primary Nitrogen Fertilizer - NH3 | J31: 0.82 | K31: 770
B32: fert (P) - dry | C32: =K32/J32/2000 -> 0.4903846154 | D32: /lb of P | F32: % P in Primary Phosphate Fertilizer - dry | J32: 0.52 | K32: 510
B33: fert (P) - liquid | C33: =K33/J33/2000 -> 0.8838235294 | D33: /lb of P | F33: % P in Primary Phosphate Fertilizer - liquid | J33: 0.34 | K33: 601
B34: Compost/Manure | C34: 35 | D34: /ton
B35: Labor | C35: 12 | D35: /hour
B36: Diesel Fuel - Tractors | C36: 2.999 | D36: /gallon
B37: Gasoline - Pickup | C37: 2.539 | D37: /gallon
B38: Irrigation Fuel | C38: 10 | D38: /acre-inch
B39: Interest-operating capital | C39: 0.09 | D39: APR
B40: Cotton
B41: Stripping & module | C41: 0.09 | D41: /lb. cotton lint
B42: Ginning | C42: 3.1 | D42: /cwt seed cotton
B43: Seed Turnout | C43: 710 | D43: lbs/500 lb bale

Sheet Irr Alfalfa
A2: Estimated Costs and Returns per Acre
A3: Irrigated Alfalfa
A4: Projected for 2024
H5: Rental Agreement | I5: Share
A6: Item | B6: Quantity | C6: Unit | D6: Price | E6: Owner | H6: Share | I6: Cash
E7: Share | F7: Total | G7: Operator | H7: Owner
A8: Income
A9: alfalfa hay | B9: 6 | C9: tons | D9: =Alfalfa_Price -> 240 | E9: 0 | F9: =D9*B9 -> 1440 | G9: =F9*(1-E9) -> 1440 | H9: =IF(H6="Cash", D56,F9*E9) -> 0
A11: Total Income | F11: =SUM(F8:F10) -> 1440 | G11: =SUM(G8:G10) -> 1440 | H11: =SUM(H8:H10) -> 0
A13: Variable Costs
A14: Seed | B14: 25 | C14: lbs | D14: 4.25 | E14: 0 | F14: =D14*B14 -> 106.25 | G14: =F14*(1-E14) -> 106.25 | H14: =F14*E14 -> 0
A15: Fertilizer
A16: fert (P) - liquid | B16: 65 | C16: lbs | D16: =IF(A16="",0,VLOOKUP(A16,'Universal Input Prices'!$B$29:$C$33, 2)) -> 0.8838235294 | E16: 0 | F16: =D16*B16 -> 57.44852941 | G16: =F16*(1-E16) -> 57.44852941 | H16: =F16*E16 -> 0
A17: fert (N) - liquid | B17: 30 | C17: lbs | D17: =IF(A17="",0,VLOOKUP(A17,'Universal Input Prices'!$B$29:$C$33, 2)) -> 0.6109375 | E17: 0 | F17: =D17*B17 -> 18.328125 | G17: =F17*(1-E17) -> 18.328125 | H17: =F17*E17 -> 0
B18: 0 | C18: lbs | D18: =IF(A18="",0,VLOOKUP(A18,'Universal Input Prices'!$B$29:$C$33, 2)) -> 0 | E18: 0 | F18: 0 | G18: =F18*(1-E18) -> 0 | H18: =F18*E18 -> 0
A19: sulfur | B19: 12 | C19: lbs | D19: 0.12 | E19: 0 | F19: 1.44 | G19: =F19*(1-E19) -> 1.44 | H19: =F19*E19 -> 0
A20: Field Operations
A21: herbicide & application | B21: 1 | C21: acre | D21: 22 | E21: 0 | F21: =(D21*B21) -> 22 | G21: =F21*(1-E21) -> 22 | H21: =F21*E21 -> 0
A22: fertilizer application | B22: 1 | C22: acre | D22: 3.5 | E22: 0 | F22: =(D22*B22) -> 3.5 | G22: =F22*(1-E22) -> 3.5 | H22: =F22*E22 -> 0
A23: insecticide & application | B23: 1 | C23: acre | D23: 25.9 | E23: 0 | F23: 25.9 | G23: =F23*(1-E23) -> 25.9 | H23: =F23*E23 -> 0
A24: custom baling | B24: =$B$9 -> 6 | C24: tons | D24: 50 | E24: 0 | F24: 300 | G24: =F24*(1-E24) -> 300 | H24: =F24*E24 -> 0
A25: crop consultant | B25: 1 | C25: acre | D25: 6 | E25: 0 | F25: 6 | G25: =F25*(1-E25) -> 6 | H25: =F25*E25 -> 0
A26: scouting | B26: 1 | C26: acre | D26: 0 | E26: 0 | F26: 0 | G26: 0 | H26: 0
A27: other | B27: 1 | C27: acre | D27: 0 | E27: 0 | F27: 0 | G27: 0 | H27: 0
A28: other | B28: 1 | C28: acre | D28: 0 | E28: 0 | F28: 0 | G28: 0 | H28: 0
A29: other | B29: 1 | C29: acre | D29: 0 | E29: 0 | F29: 0 | G29: 0 | H29: 0
A30: Crop Insurance | B30: 1 | C30: acre | D30: 2.5 | E30: 0 | F30: 2.5 | G30: 2.5 | H30: 0
A31: Operator Labor & Hand Labor | B31: 1 | C31: hour | D31: ='Universal Input Prices'!$C$35 -> 12 | E31: 0 | F31: 12 | G31: 12 | H31: 0
A32: Irrigation Labor | B32: 1.25 | C32: hours | D32: ='Universal Input Prices'!$C$35 -> 12 | E32: 0 | F32: 15 | G32: 15 | H32: 0
A33: Diesel Fuel - Tractors | B33: 2 | C33: gallons | D33: ='Universal Input Prices'!$C$36 -> 2.999 | E33: 0 | F33: 5.998 | G33: 5.998 | H33: 0
A34: Gasoline - Pickup | B34: 2 | C34: gallons | D34: ='Universal Input Prices'!$C$37 -> 2.539 | E34: 0 | F34: 5.078 | G34: 5.078 | H34: 0
A35: Irrigation Fuel | B35: 24 | C35: ac-in | D35: ='Universal Input Prices'!$C$38 -> 10 | E35: 0 | F35: 240 | G35: =F35*(1-E35) -> 240 | H35: =F35*E35 -> 0
A36: Pumping Days | B36: 56.57
A37: Calculated GPM capacity per acre needed | B37: =B35*18.85694/B36 -> 8.000115963
A38: Repair & Maintenance
A39: Implements | B39: 1 | C39: acre | D39: 3 | E39: 0 | F39: =(D39*B39) -> 3 | G39: =F39*(1-E39) -> 3 | H39: =F39*E39 -> 0
A40: Tractors | B40: 1 | C40: acre | D40: 6 | E40: 0 | F40: =(D40*B40) -> 6 | G40: =F40*(1-E40) -> 6 | H40: =F40*E40 -> 0
A41: Irrigation-Above Ground | B41: =B35 -> 24 | C41: ac-in | D41: 1 | E41: 0 | F41: 24 | G41: =F41*(1-E41) -> 24 | H41: =F41*E41 -> 0
A42: Irrigation-Below Ground | B42: 1 | C42: acre | D42: 18 | E42: 0 | F42: 18 | G42: =F42*(1-E42) -> 18 | H42: =F42*E42 -> 0
A43: Pickup | B43: 1 | C43: acre | D43: 0.5 | E43: 0 | F43: 0.5 | G43: =F43*(1-E43) -> 0.5 | H43: =F43*E43 -> 0
A44: Interest-operating capital | B44: ='Universal Input Prices'!$C$39 -> 0.09 | F44: =(SUM(F14:F23,F25:F43))*$B44/2 -> 25.78241945 | G44: =(SUM(G14:G23,G25:G43))*$B44/2 -> 25.78241945 | H44: 0
A46: Total Variable Costs | F46: =SUM(F14:F45) -> 898.7250739 | G46: =SUM(G14:G44) -> 898.7250739 | H46: =SUM(H14:H44) -> 0
A47: Returns Above Variable Costs | F47: =F11-F46 -> 541.2749261 | G47: =G11-G46 -> 541.2749261 | H47: =H11-H46 -> 0
A49: Fixed Costs
A50: Implements | B50: 1 | C50: acre | D50: 10 | E50: 0 | F50: =(D50*B50) -> 10 | G50: =F50*(1-E50) -> 10 | H50: =F50*E50 -> 0
A51: Tractors | B51: 1 | C51: acre | D51: 12 | E51: 0 | F51: =(D51*B51)-E51*(D51*B51) -> 12 | G51: 12 | H51: 0
A52: Irrigation-Above Ground | B52: 1 | C52: acre | D52: 40 | E52: 0 | F52: 40 | G52: 40 | H52: 0
A53: Irrigation-Below Ground | B53: 1 | C53: acre | D53: 15 | E53: 0 | F53: 15 | G53: 15 | H53: 0
A54: Pickup | B54: 1 | C54: acre | D54: 1.25 | E54: 0 | F54: 1.25 | G54: 1.25 | H54: 0
A55: Management | B55: 1 | C55: acre | D55: 25 | E55: 0 | F55: 25 | G55: 25 | H55: 0
A56: Whole Farm Insurance | B56: 1 | C56: acre | D56: 2 | E56: 0 | F56: 2 | G56: 2 | H56: 0
A57: Land | B57: 1 | C57: acre | D57: 75 | E57: 0 | F57: 75 | G57: =IF($H$6="Cash",D57,F57*(1-E57)) -> 75 | H57: =IF($H$6="Cash",0,F57*E57) -> 0
A58: Property Tax | B58: 1 | C58: acre | D58: 0 | E58: 0 | F58: 0 | G58: 0 | H58: 0
A59: Perenial Crop Establishment | B59: 1 | C59: acre | D59: 100 | E59: 0 | F59: 100 | G59: =F59*(1-E59) -> 100 | H59: =F59*E59 -> 0
A60: Total Fixed Costs | F60: =SUM(F50:F59) -> 280.25 | G60: =SUM(G50:G59) -> 280.25 | H60: =SUM(H50:H59) -> 0
A61: Total Specified Costs | F61: =F46+F60 -> 1178.975074 | G61: =G46+G60 -> 1178.975074 | H61: =H46+H60 -> 0
A62: Returns Above Total Specified Costs | F62: =F11-F61 -> 261.0249261 | G62: =G11-G61 -> 261.0249261 | H62: =H11-H61 -> 0
A64: If you have questions, contact Andrew Wright at 806-746-6101
A67: Supported by a grant from the
A68: Texas Cotton State Support Committee

Sheet Irr Blackeyes
A2: Estimated Costs and Returns per Acre
A3: Irrigated Blackeyed Peas
A4: Projected for 2024
H5: Rental Agreement
A6: Item | B6: Quantity | C6: Unit | D6: Price | E6: Owner | H6: Share | I6: Cash
E7: Share | F7: Total | G7: Operator | H7: Owner
A8: Income
A9: blackeyed peas | B9: 1850 | C9: lbs | D9: =Blackeye_Price -> 0.34 | E9: 0 | F9: =(D9*B9) -> 629 | G9: =F9*(1-E9) -> 629 | H9: =IF(H6="Cash", D57,F9*E9) -> 0
A11: Total Income | F11: =SUM(F9:F10) -> 629 | G11: =SUM(G9:G10) -> 629 | H11: =SUM(H9:H10) -> 0
A13: Direct Costs
A14: Seed | B14: 50 | C14: lbs | D14: 0.45 | E14: 0 | F14: =(D14*B14) -> 22.5 | G14: =F14*(1-E14) -> 22.5 | H14: =F14*E14 -> 0
A15: Fertilizer
A16: fert (N) - liquid | B16: 40 | C16: lbs | D16: =IF(A16="",0,VLOOKUP(A16,'Universal Input Prices'!$B$29:$C$33, 2)) -> 0.6109375 | E16: 0 | F16: =(D16*B16) -> 24.4375 | G16: =F16*(1-E16) -> 24.4375 | H16: =F16*E16 -> 0
B17: 0 | C17: lbs | D17: =IF(A17="",0,VLOOKUP(A17,'Universal Input Prices'!$B$29:$C$33, 2)) -> 0 | E17: 0 | F17: =(D17*B17) -> 0 | G17: =F17*(1-E17) -> 0 | H17: =F17*E17 -> 0
B18: 0 | C18: lbs | D18: =IF(A18="",0,VLOOKUP(A18,'Universal Input Prices'!$B$29:$C$33, 2)) -> 0 | E18: 0 | F18: 0 | G18: =F18*(1-E18) -> 0 | H18: =F18*E18 -> 0
A19: Field Operations
A20: herbicide | B20: 1 | C20: acre | D20: 10 | E20: 0 | F20: =(D20*B20) -> 10 | G20: =F20*(1-E20) -> 10 | H20: =F20*E20 -> 0
A21: fert application | B21: 0 | C21: acre | D21: 0 | E21: 0 | F21: =(D21*B21) -> 0 | G21: 0 | H21: 0
A22: insecticide | B22: 0 | C22: acre | D22: 0 | E22: 0 | F22: 0 | G22: 0 | H22: 0
A23: custom harvest & haul | B23: =B9/100 -> 18.5 | C23: cwt | D23: 0.2 | E23: 0 | F23: 3.7 | G23: 3.7 | H23: 0
A24: custom harvest & haul | B24: 1 | C24: acre | D24: 30 | E24: 0 | F24: 30 | G24: 30 | H24: 0
A25: hoeing | B25: 1 | C25: acre | D25: 15 | E25: 0 | F25: 15 | G25: 15 | H25: 0
A26: scouting | B26: 1 | C26: acre | D26: 0 | E26: 0 | F26: 0 | G26: 0 | H26: 0
A27: fungicide | B27: 1 | C27: acre | D27: 12 | E27: 0 | F27: 12 | G27: 12 | H27: 0
A28: other | B28: 1 | C28: acre | D28: 0 | E28: 0 | F28: 0 | G28: 0 | H28: 0
A29: other | B29: 1 | C29: acre | D29: 0 | E29: 0 | F29: 0 | G29: 0 | H29: 0
A30: Crop Insurance | B30: 1 | C30: acre | D30: 24 | E30: 0 | F30: 24 | G30: 24 | H30: 0
A31: Operator Labor | B31: 1 | C31: hours | D31: ='Universal Input Prices'!$C$35 -> 12 | E31: 0 | F31: 12 | G31: 12 | H31: 0
A32: Irrigation Labor | B32: 0.75 | C32: hours | D32: ='Universal Input Prices'!$C$35 -> 12 | E32: 0 | F32: 9 | G32: 9 | H32: 0
A33: Diesel Fuel - Tractors | B33: 2.4 | C33: gallons | D33: ='Universal Input Prices'!$C$36 -> 2.999 | E33: 0 | F33: 7.1976 | G33: 7.1976 | H33: 0
A34: Gasoline - Pickup | B34: 2 | C34: gallons | D34: ='Universal Input Prices'!$C$37 -> 2.539 | E34: 0 | F34: 5.078 | G34: 5.078 | H34: 0
A35: Irrigation Fuel | B35: 8 | C35: ac-in | D35: ='Universal Input Prices'!$C$38 -> 10 | E35: 0 | F35: 80 | G35: 80 | H35: 0
A36: Pumping Days | B36: 60.4
A37: Calculated GPM capacity per acre needed | B37: =B35*18.85694/B36 -> 2.497607947
A38: Repair & Maintenance
A39: Implements | B39: 1 | C39: acre | D39: 3 | E39: 0 | F39: =(D39*B39) -> 3 | G39: =F39*(1-E39) -> 3 | H39: =F39*E39 -> 0
A40: Tractors | B40: 1 | C40: acre | D40: 6 | E40: 0 | F40: =(D40*B40) -> 6 | G40: =F40*(1-E40) -> 6 | H40: =F40*E40 -> 0
A41: Irrigation-Above Ground | B41: 1 | C41: acre | D41: 8 | E41: 0 | F41: 8 | G41: =F41*(1-E41) -> 8 | H41: =F41*E41 -> 0
A42: Irrigation-Below Ground | B42: 1 | C42: acre | D42: 6 | E42: 0 | F42: 6 | G42: =F42*(1-E42) -> 6 | H42: =F42*E42 -> 0
A43: Pickup | B43: 1 | C43: acre | D43: 0.5 | E43: 0 | F43: 0.5 | G43: =F43*(1-E43) -> 0.5 | H43: =F43*E43 -> 0
A44: Interest-operating capital | B44: ='Universal Input Prices'!$C$39 -> 0.09 | F44: =(SUM(F14:F22,F25:F43))*$B44/2 -> 11.0120895 | G44: =(SUM(G14:G22,G25:G43))*$B44/2 -> 11.0120895 | H44: =(SUM(H14:H22,H25:H43))*$B44/2 -> 0
A46: Total Direct Costs | F46: =SUM(F14:F44) -> 289.4251895 | G46: =SUM(G14:G44) -> 289.4251895 | H46: =SUM(H14:H44) -> 0
A47: Returns Above Direct Costs | F47: =F11-F46 -> 339.5748105 | G47: =G11-G46 -> 339.5748105 | H47: =H11-H46 -> 0
A49: Fixed Costs
A50: Implements | B50: 1 | C50: acre | D50: 10 | E50: 0 | F50: =(D50*B50) -> 10 | G50: =F50*(1-E50) -> 10 | H50: =F50*E50 -> 0
A51: Tractors | B51: 1 | C51: acre | D51: 12 | E51: 0 | F51: =(D51*B51) -> 12 | G51: 12 | H51: 0
A52: Irrigation-Above Ground | B52: 1 | C52: acre | D52: 40 | E52: 0 | F52: 40 | G52: 40 | H52: 0
A53: Irrigation-Below Ground | B53: 1 | C53: acre | D53: 15 | E53: 0 | F53: 15 | G53: 15 | H53: 0
A54: Pickup | B54: 1 | C54: acre | D54: 1.25 | E54: 0 | F54: 1.25 | G54: 1.25 | H54: 0
A55: Management | B55: 1 | C55: acre | D55: 25 | E55: 0 | F55: 25 | G55: 25 | H55: 0
A56: Whole Farm Insurance | B56: 1 | C56: acre | D56: 2 | E56: 0 | F56: 2 | G56: 2 | H56: 0
A57: Land | B57: 1 | C57: acre | D57: 75 | E57: 0 | F57: 75 | G57: =IF($H$6="Cash",D57,F57*(1-E57)) -> 75 | H57: =IF($H$6="Cash",0,F57*E57) -> 0
A58: Property Tax | B58: 1 | C58: acre | D58: 0 | E58: 0 | F58: 0 | G58: =F58*(1-E58) -> 0 | H58: =F58*E58 -> 0
A59: Total Fixed Expenses | F59: =SUM(F50:F58) -> 180.25 | G59: =SUM(G50:G58) -> 180.25 | H59: =SUM(H50:H58) -> 0
A60: Total Specified Expenses | F60: =F46+F59 -> 469.6751895 | G60: =G46+G59 -> 469.6751895 | H60: =H46+H59 -> 0
A61: Returns Above Total Specified Expenses | F61: =F11-F60 -> 159.3248105 | G61: =G11-G60 -> 159.3248105 | H61: =H11-H60 -> 0
A63: If you have questions, contact Andrew Wright at 806-746-6101
A66: Supported by a grant from the
A67: Texas Cotton State Support Committee

Sheet Irr Corn
A2: Estimated Costs and Returns per Acre
A3: Irrigated Corn
A4: Projected for 2024
H5: Rental Agreement | I5: Share
A6: Item | B6: Quantity | C6: Unit | D6: Price | E6: Owner | H6: Share | I6: Cash
E7: Share | F7: Total | G7: Operator | H7: Owner
A8: Income
A9: corn grain | B9: 210 | C9: bu | D9: ='Universal Input Prices'!$C$6 -> 5 | E9: 0 | F9: =(D9*B9) -> 1050 | G9: =F9*(1-E9) -> 1050 | H9: =IF(H6="Cash", D56,F9*E9) -> 0
A11: Total Income | F11: =F9 -> 1050 | G11: =G9 -> 1050 | H11: =H9 -> 0
A13: Variable Costs
A14: Seed | B14: 0.4375 | C14: bags | D14: 272 | E14: 0 | F14: =(D14*B14) -> 119 | G14: =F14*(1-E14) -> 119 | H14: =F14*E14 -> 0
A15: Fertilizer
A16: fert (N) - liquid | B16: 85 | C16: lbs | D16: =IF(A16="",0,VLOOKUP(A16,'Universal Input Prices'!$B$29:$C$33, 2)) -> 0.6109375 | E16: 0 | F16: =(D16*B16) -> 51.9296875 | G16: =F16*(1-E16) -> 51.9296875 | H16: =F16*E16 -> 0
A17: fert (P) - dry | B17: 90 | C17: lbs | D17: =IF(A17="",0,VLOOKUP(A17,'Universal Input Prices'!$B$29:$C$33, 2)) -> 0.4903846154 | E17: 0 | F17: =(D17*B17) -> 44.13461538 | G17: 44.13461538 | H17: 0
A18: fert (N) - NH3 | B18: 140 | C18: lbs | D18: =IF(A18="",0,VLOOKUP(A18,'Universal Input Prices'!$B$29:$C$33, 2)) -> 0.4695121951 | E18: 0 | F18: 65.73170732 | G18: =F18*(1-E18) -> 65.73170732 | H18: =F18*E18 -> 0
A19: Field Operations
A20: herbicide & application | B20: 1 | C20: acre | D20: 45 | E20: 0 | F20: =(D20*B20) -> 45 | G20: =F20*(1-E20) -> 45 | H20: =F20*E20 -> 0
A21: fertilizer application | B21: 1 | C21: acre | D21: 12 | E21: 0 | F21: =(D21*B21) -> 12 | G21: 12 | H21: 0
A22: insecticide & application | B22: 1 | C22: acre | D22: 25 | E22: 0 | F22: 25 | G22: 25 | H22: 0
A23: custom harvest & haul | B23: =$B$9 -> 210 | C23: bu | D23: 0.35 | E23: 0 | F23: 73.5 | G23: 73.5 | H23: 0
A24: crop consultant | B24: 1 | C24: acre | D24: 6 | E24: 0 | F24: 6 | G24: 6 | H24: 0
A25: scouting | B25: 1 | C25: acre | D25: 0 | E25: 0 | F25: 0 | G25: =F25*(1-E25) -> 0 | H25: =F25*E25 -> 0
A26: other | B26: 1 | C26: 20 | D26: 0 | E26: 0 | F26: 0 | G26: 0 | H26: 0
A27: other | B27: 1 | C27: acre | D27: 0 | E27: 0 | F27: 0 | G27: 0 | H27: 0
A28: other | B28: 1 | C28: acre | D28: 0 | E28: 0 | F28: 0 | G28: 0 | H28: 0
A29: Crop Insurance | B29: 1 | C29: acre | D29: 15.5 | E29: 0 | F29: 15.5 | G29: 15.5 | H29: 0
A30: Operator Labor & Hand Labor | B30: 1 | C30: hour | D30: ='Universal Input Prices'!$C$35 -> 12 | E30: 0 | F30: 12 | G30: 12 | H30: 0
A31: Irrigation Labor | B31: 1.25 | C31: hours | D31: ='Universal Input Prices'!$C$35 -> 12 | E31: 0 | F31: 15 | G31: 15 | H31: 0
A32: Diesel Fuel - Tractors | B32: 2.4 | C32: gallons | D32: ='Universal Input Prices'!$C$36 -> 2.999 | E32: 0 | F32: 7.1976 | G32: 7.1976 | H32: 0
A33: Gasoline - Pickup | B33: 2 | C33: gallons | D33: ='Universal Input Prices'!$C$37 -> 2.539 | E33: 0 | F33: 5.078 | G33: 5.078 | H33: 0
A34: Irrigation Fuel | B34: 15 | C34: ac-in | D34: ='Universal Input Prices'!$C$38 -> 10 | E34: 0 | F34: 150 | G34: 150 | H34: 0
A35: Pumping Days | B35: 75.4
A36: Calculated GPM capacity per acre needed | B36: =B34*18.85694/B35 -> 3.751380637
A37: Repair & Maintenance
A38: Implements | B38: 1 | C38: acre | D38: 3 | E38: 0 | F38: =(D38*B38) -> 3 | G38: 3 | H38: 0
A39: Tractors | B39: 1 | C39: acre | D39: 6 | E39: 0 | F39: =(D39*B39) -> 6 | G39: 6 | H39: 0
A40: Irrigation-Above Ground | B40: =Corn_Inches -> 15 | C40: ac-in | D40: 1 | E40: 0 | F40: 15 | G40: 15 | H40: 0
A41: Irrigation-Below Ground | B41: 1 | C41: acre | D41: 18 | E41: 0 | F41: 18 | G41: 18 | H41: 0
A42: Pickup | B42: 1 | C42: acre | D42: 0.5 | E42: 0 | F42: 0.5 | G42: 0.5 | H42: 0
A43: Interest-operating capital | B43: ='Universal Input Prices'!$C$39 -> 0.09 | F43: =(SUM(F14:F22,F24:F42))*$B43/2 -> 27.72322246 | G43: =(SUM(G14:G22,G24:G42))*$B43/2 -> 27.72322246 | H43: 0
A45: Total Variable Costs | F45: =SUM(F14:F43) -> 717.2948327 | G45: =SUM(G14:G43) -> 717.2948327 | H45: =SUM(H14:H43) -> 0
A46: Returns Above Variable Costs | F46: =F11-F45 -> 332.7051673 | G46: =G11-G45 -> 332.7051673 | H46: =H11-H45 -> 0
A48: Fixed Costs
A49: Implements | B49: 1 | C49: acre | D49: 10 | E49: 0 | F49: =(D49*B49) -> 10 | G49: =F49*(1-E49) -> 10 | H49: =F49*E49 -> 0
A50: Tractors | B50: 1 | C50: acre | D50: 12 | E50: 0 | F50: =(D50*B50) -> 12 | G50: 12 | H50: 0
A51: Irrigation-Above Ground | B51: 1 | C51: acre | D51: 40 | E51: 0 | F51: 40 | G51: 40 | H51: 0
A52: Irrigation-Below Ground | B52: 1 | C52: acre | D52: 15 | E52: 0 | F52: 15 | G52: 15 | H52: 0
A53: Pickup | B53: 1 | C53: acre | D53: 1.25 | E53: 0 | F53: 1.25 | G53: 1.25 | H53: 0
A54: Management | B54: 1 | C54: acre | D54: 25 | E54: 0 | F54: 25 | G54: 25 | H54: 0
A55: Whole Farm Insurance | B55: 1 | C55: acre | D55: 2 | E55: 0 | F55: 2 | G55: 2 | H55: 0
A56: Land | B56: 1 | C56: acre | D56: 130 | E56: 0 | F56: 130 | G56: =IF($H$6="Cash",D56,F56*(1-E56)) -> 130 | H56: =IF($H$6="Cash",0,F56*E56) -> 0
A57: Property Tax | B57: 1 | C57: acre | D57: 0 | E57: 0 | F57: 0 | G57: 0 | H57: 0
A58: Total Fixed Expenses | F58: =SUM(F49:F57) -> 235.25 | G58: =SUM(G49:G57) -> 235.25 | H58: =SUM(H49:H57) -> 0
A59: Total Specified Expenses | F59: =F45+F58 -> 952.5448327 | G59: =G45+G58 -> 952.5448327 | H59: =H45+H58 -> 0
A60: Returns Above Total Specified Expenses | F60: =F11-F59 -> 97.45516734 | G60: =G11-G59 -> 97.45516734 | H60: =H11-H59 -> 0
A62: If you have questions, contact Andrew Wright at 806-746-6101
A65: Supported by a grant from the
A66: Texas Cotton State Support Committee

Sheet Irr Corn Silage
A2: Estimated Costs and Returns per Acre
A3: Irrigated Corn Silage
A4: Projected for 2024
H5: Rental Agreement | I5: Share
A6: Item | B6: Quantity | C6: Unit | D6: Price | E6: Owner | H6: Share | I6: Cash
E7: Share | F7: Total | G7: Operator | H7: Owner
A8: Income
A9: corn silage | B9: 27 | C9: tons | D9: ='Universal Input Prices'!$C$7 -> 50 | E9: 0 | F9: =(D9*B9) -> 1350 | G9: =F9*(1-E9) -> 1350 | H9: =IF(H6="Cash", D56,F9*E9) -> 0
A11: Total Income | F11: =F9 -> 1350 | G11: =G9 -> 1350 | H11: =H9 -> 0
A13: Variable Costs
A14: Seed | B14: 0.5 | C14: bags | D14: 272 | E14: 0 | F14: =(D14*B14) -> 136 | G14: =F14*(1-E14) -> 136 | H14: =F14*E14 -> 0
A15: Fertilizer
A16: fert (N) - liquid | B16: 175 | C16: lbs | D16: =IF(A16="",0,VLOOKUP(A16,'Universal Input Prices'!$B$29:$C$33, 2)) -> 0.6109375 | E16: 0 | F16: =(D16*B16) -> 106.9140625 | G16: =F16*(1-E16) -> 106.9140625 | H16: =F16*E16 -> 0
A17: fert (P) - dry | B17: 110 | C17: lbs | D17: =IF(A17="",0,VLOOKUP(A17,'Universal Input Prices'!$B$29:$C$33, 2)) -> 0.4903846154 | E17: 0 | F17: =(D17*B17) -> 53.94230769 | G17: =F17*(1-E17) -> 53.94230769 | H17: =F17*E17 -> 0
A18: fert (N) - NH3 | B18: 150 | C18: lbs | D18: =IF(A18="",0,VLOOKUP(A18,'Universal Input Prices'!$B$29:$C$33, 2)) -> 0.4695121951 | E18: 0 | F18: 70.42682927 | G18: =F18*(1-E18) -> 70.42682927 | H18: =F18*E18 -> 0
A19: Field Operations
A20: herbicide & application | B20: 1 | C20: acre | D20: 21.12 | E20: 0 | F20: =(D20*B20) -> 21.12 | G20: =F20*(1-E20) -> 21.12 | H20: =F20*E20 -> 0
A21: fertilizer application | B21: 1 | C21: acre | D21: 11.75 | E21: 0 | F21: =(D21*B21) -> 11.75 | G21: 11.75 | H21: 0
A22: insecticide & application | B22: 1 | C22: appl | D22: 22.73 | E22: 0 | F22: 22.73 | G22: 22.73 | H22: 0
A23: custom harvest & haul | B23: =$B$9 -> 27 | C23: tons | D23: 7 | E23: 0 | F23: 189 | G23: 189 | H23: 0
A24: crop consultant | B24: 1 | C24: acre | D24: 0 | E24: 0 | F24: 0 | G24: 0 | H24: 0
A25: scouting | B25: 1 | C25: acre | D25: 0 | E25: 0 | F25: 0 | G25: =F25*(1-E25) -> 0 | H25: =F25*E25 -> 0
A26: other | B26: 1 | C26: acre | D26: 0 | E26: 0 | F26: 0 | G26: 0 | H26: 0
A27: other | B27: 1 | C27: acre | D27: 0 | E27: 0 | F27: 0 | G27: 0 | H27: 0
A28: other | B28: 1 | C28: acre | D28: 0 | E28: 0 | F28: 0 | G28: 0 | H28: 0
A29: Crop Insurance | B29: 1 | C29: acre | D29: 15.5 | E29: 0 | F29: 15.5 | G29: 15.5 | H29: 0
A30: Operator Labor & Hand Labor | B30: 1 | C30: hour | D30: ='Universal Input Prices'!$C$35 -> 12 | E30: 0 | F30: 12 | G30: 12 | H30: 0
A31: Irrigation Labor | B31: 1.25 | C31: hours | D31: ='Universal Input Prices'!$C$35 -> 12 | E31: 0 | F31: 15 | G31: 15 | H31: 0
A32: Diesel Fuel - Tractors | B32: 2.4 | C32: gallons | D32: ='Universal Input Prices'!$C$36 -> 2.999 | E32: 0 | F32: 7.1976 | G32: 7.1976 | H32: 0
A33: Gasoline - Pickup | B33: 2 | C33: gallons | D33: ='Universal Input Prices'!$C$37 -> 2.539 | E33: 0 | F33: 5.078 | G33: 5.078 | H33: 0
A34: Irrigation Fuel | B34: 15 | C34: ac-in | D34: ='Universal Input Prices'!$C$38 -> 10 | E34: 0 | F34: 150 | G34: 150 | H34: 0
A35: Pumping Days | B35: 75.4
A36: Calculated GPM capacity per acre needed | B36: =B34*18.85694/B35 -> 3.751380637
A37: Repair & Maintenance
A38: Implements | B38: 1 | C38: acre | D38: 3 | E38: 0 | F38: =(D38*B38) -> 3 | G38: 3 | H38: 0
A39: Tractors | B39: 1 | C39: acre | D39: 6 | E39: 0 | F39: =(D39*B39) -> 6 | G39: 6 | H39: 0
A40: Irrigation-Above Ground | B40: =B34 -> 15 | C40: ac-in | D40: 1 | E40: 0 | F40: 15 | G40: 15 | H40: 0
A41: Irrigation-Below Ground | B41: 1 | C41: acre | D41: 18 | E41: 0 | F41: 18 | G41: 18 | H41: 0
A42: Pickup | B42: 1 | C42: acre | D42: 0.5 | E42: 0 | F42: 0.5 | G42: 0.5 | H42: 0
A43: Interest-operating capital | B43: ='Universal Input Prices'!$C$39 -> 0.09 | F43: =(SUM(F14:F22,F24:F42))*$B43/2 -> 30.15714598 | G43: =(SUM(G14:G22,G24:G42))*$B43/2 -> 30.15714598 | H43: 0
A45: Total Variable Costs | F45: =SUM(F14:F43) -> 889.3159454 | G45: =SUM(G14:G43) -> 889.3159454 | H45: =SUM(H14:H43) -> 0
A46: Returns Above Variable Costs | F46: =F11-F45 -> 460.6840546 | G46: =G11-G45 -> 460.6840546 | H46: =H11-H45 -> 0
A48: Fixed Costs
A49: Implements | B49: 1 | C49: acre | D49: 10 | E49: 0 | F49: =(D49*B49) -> 10 | G49: =F49*(1-E49) -> 10 | H49: =F49*E49 -> 0
A50: Tractors | B50: 1 | C50: acre | D50: 12 | E50: 0 | F50: =(D50*B50) -> 12 | G50: 12 | H50: 0
A51: Irrigation-Above Ground | B51: 1 | C51: acre | D51: 40 | E51: 0 | F51: 40 | G51: 40 | H51: 0
A52: Irrigation-Below Ground | B52: 1 | C52: acre | D52: 15 | E52: 0 | F52: 15 | G52: 15 | H52: 0
A53: Pickup | B53: 1 | C53: acre | D53: 1.25 | E53: 0 | F53: 1.25 | G53: 1.25 | H53: 0
A54: Management | B54: 1 | C54: acre | D54: 25 | E54: 0 | F54: 25 | G54: 25 | H54: 0
A55: Whole Farm Insurance | B55: 1 | C55: acre | D55: 2 | E55: 0 | F55: 2 | G55: 2 | H55: 0
A56: Land | B56: 1 | C56: acre | D56: 100 | E56: 0 | F56: 100 | G56: =IF($H$6="Cash",D56,F56*(1-E56)) -> 100 | H56: =IF($H$6="Cash",0,F56*E56) -> 0
A57: Property Tax | B57: 1 | C57: acre | D57: 0 | E57: 0 | F57: 0 | G57: 0 | H57: 0
A58: Total Fixed Expenses | F58: =SUM(F49:F57) -> 205.25 | G58: =SUM(G49:G57) -> 205.25 | H58: =SUM(H49:H57) -> 0
A59: Total Specified Expenses | F59: =F45+F58 -> 1094.565945 | G59: =G45+G58 -> 1094.565945 | H59: =H45+H58 -> 0
A60: Returns Above Total Specified Expenses | F60: =F11-F59 -> 255.4340546 | G60: =G11-G59 -> 255.4340546 | H60: =H11-H59 -> 0
A62: If you have questions, contact Andrew Wright at 806-746-6101
A65: Supported by a grant from the
A66: Texas Cotton State Support Committee

Sheet Irr Cotton Drip
A2: Estimated Costs and Returns per Acre
A3: Irrigated Cotton - Drip
A4: Projected for 2024
B5: * Post emerge herbicides specific to variety trait of seed | H5: Rental Agreement | I5: Share
A6: Item | B6: Quantity | C6: Unit | D6: Price | E6: Owner | H6: Share | I6: Cash
E7: Share | F7: Total | G7: Operator | H7: Owner
A8: Income
A9: cotton lint | B9: 1500 | C9: lbs | D9: ='Universal Input Prices'!$C$8 -> 0.72 | E9: 0 | F9: =(D9*B9) -> 1080 | G9: =F9*(1-E9) -> 1080 | H9: =IF(H6="Cash", D63,F9*E9) -> 0
A10: cotton seed | B10: =B9/500*'Universal Input Prices'!C43/2000 -> 1.065 | C10: tons | D10: ='Universal Input Prices'!$C$9 -> 225 | E10: 0 | F10: =(D10*B10) -> 239.625 | G10: =F10*(1-E10) -> 239.625 | H10: =IF(H6="Cash", 0,F10*E10) -> 0
A11: Expected Turnout | B11: 0.32
A12: Total Income | F12: =F9+F10 -> 1319.625 | G12: =G9+G10 -> 1319.625 | H12: =H9+H10 -> 0
A14: Variable Costs
A15: Seed | B15: 40 | C15: thousand | D15: 1.72 | E15: 0 | F15: =(D15*B15) -> 68.8 | G15: =F15*(1-E15) -> 68.8 | H15: =+F15*E15 -> 0
A16: Boll Weevil Assess.-Irr | B16: =Irr_Cooton_Drip_Yield/500 -> 3 | C16: Bales | D16: 1 | E16: 0 | F16: =(D16*B16) -> 3 | G16: =F16*(1-E16) -> 3 | H16: =+F16*E16 -> 0
A17: Fertilizer
A18: fert (N) - liquid | B18: 175 | C18: lbs | D18: =IF(A18="",0,VLOOKUP(A18,'Universal Input Prices'!$B$29:$C$33, 2)) -> 0.6109375 | E18: 0 | F18: =(D18*B18) -> 106.9140625 | G18: =F18*(1-E18) -> 106.9140625 | H18: =+F18*E18 -> 0
A19: fert (P) - liquid | B19: 70 | C19: lbs | D19: =IF(A19="",0,VLOOKUP(A19,'Universal Input Prices'!$B$29:$C$33, 2)) -> 0.8838235294 | E19: 0 | F19: =(D19*B19) -> 61.86764706 | G19: =F19*(1-E19) -> 61.86764706 | H19: =+F19*E19 -> 0
B20: 0 | C20: lbs | D20: =IF(A20="",0,VLOOKUP(A20,'Universal Input Prices'!$B$29:$C$33, 2)) -> 0 | E20: 0 | F20: 0 | G20: =F20*(1-E20) -> 0 | H20: =F20*E20 -> 0
A21: acid | B21: 0 | C21: lbs | D21: 0.5 | E21: 0 | F21: 0 | G21: =F21*(1-E21) -> 0 | H21: =+F21*E21 -> 0
A22: Field Operations
A23: preplant herb, application & incorp. | B23: 1 | C23: acre | D23: 10 | E23: 0 | F23: =(D23*B23) -> 10 | G23: =F23*(1-E23) -> 10 | H23: =+F23*E23 -> 0
A24: at-plant pre-emerge herbicide | B24: 1 | C24: acre | D24: 12 | E24: 0 | F24: =(D24*B24) -> 12 | G24: =F24*(1-E24) -> 12 | H24: =+F24*E24 -> 0
A25: 2 post emerge herbicide & app* | B25: 1 | C25: acre | D25: 52 | E25: 0 | F25: 52 | G25: 52 | H25: 0
A26: fertilizer application | B26: 1 | C26: acre | D26: 4.75 | E26: 0 | F26: 4.75 | G26: 4.75 | H26: 0
A27: insecticide & application | B27: 1 | C27: acre | D27: 12 | E27: 0 | F27: 12 | G27: 12 | H27: 0
A28: harvest aids | B28: 1 | C28: acre | D28: 30 | E28: 0 | F28: 30 | G28: 30 | H28: 0
A29: strip & module | B29: =B9 -> 1500 | C29: lb. | D29: ='Universal Input Prices'!$C$41 -> 0.09 | E29: 0 | F29: 135 | G29: 135 | H29: 0
A30: ginning | B30: =Irr_Cooton_Drip_Yield/B11/100 -> 46.875 | C30: cwt. | D30: ='Universal Input Prices'!$C$42 -> 3.1 | E30: 0 | F30: 145.3125 | G30: 145.3125 | H30: 0
A31: hoeing | B31: 0.2 | C31: acre | D31: 15 | E31: 0 | F31: 3 | G31: 3 | H31: 0
A32: scouting | B32: 1 | C32: acre | D32: 9 | E32: 0 | F32: 9 | G32: =F32*(1-E32) -> 9 | H32: =+F32*E32 -> 0
A33: crop hail | B33: 4 | C33: $100/ac | D33: 2.25 | E33: 0 | F33: 9 | G33: 9 | H33: 0
A34: spot spraying | B34: 0.2 | C34: acre | D34: 15 | E34: 0 | F34: 3 | G34: 3 | H34: 0
A35: other | B35: 1 | C35: acre | D35: 0 | E35: 0 | F35: 0 | G35: 0 | H35: 0
A36: Crop Insurance | B36: 1 | C36: acre | D36: 56 | E36: 0 | F36: 56 | G36: 56 | H36: 0
A37: Operator Labor & Hand Labor | B37: 1.6 | C37: hours | D37: ='Universal Input Prices'!$C$35 -> 12 | E37: 0 | F37: 19.2 | G37: 19.2 | H37: 0
A38: Irrigation Labor | B38: 1.25 | C38: hours | D38: ='Universal Input Prices'!$C$35 -> 12 | E38: 0 | F38: 15 | G38: 15 | H38: 0
A39: Diesel Fuel - Tractors | B39: 4 | C39: gallons | D39: ='Universal Input Prices'!$C$36 -> 2.999 | E39: 0 | F39: 11.996 | G39: 11.996 | H39: 0
A40: Gasoline - Pickup | B40: 2 | C40: gallons | D40: ='Universal Input Prices'!$C$37 -> 2.539 | E40: 0 | F40: 5.078 | G40: 5.078 | H40: 0
A41: Irrigation Fuel | B41: 14 | C41: ac-in | D41: ='Universal Input Prices'!$C$38 -> 10 | E41: 0 | F41: 140 | G41: 140 | H41: 0
A42: Pumping Days | B42: 84.8 | E42: 0 | F42: =(D42*B42)-E42*(D42*B42) -> 0
A43: Calculated GPM capacity per acre needed | B43: =B41*18.85694/B42 -> 3.113174057 | F43: 0
A44: Repair & Maintenance
A45: Implements | B45: 1 | C45: acre | D45: 3 | E45: 0 | F45: =(D45*B45) -> 3 | G45: =F45*(1-E45) -> 3 | H45: =+F45*E45 -> 0
A46: Tractors | B46: 1 | C46: acre | D46: 6 | E46: 0 | F46: =(D46*B46) -> 6 | G46: =F46*(1-E46) -> 6 | H46: =+F46*E46 -> 0
A47: Irrigation-Drip System | B47: =Cotton_Inches -> 10 | C47: ac-in | D47: 1.5 | E47: 0 | F47: 15 | G47: =F47*(1-E47) -> 15 | H47: =+F47*E47 -> 0
A48: Irrigation-Wells | B48: 1 | C48: acre | D48: 13.5 | E48: 0 | F48: 13.5 | G48: =F48*(1-E48) -> 13.5 | H48: =+F48*E48 -> 0
A49: Pickup | B49: 1 | C49: acre | D49: 0.5 | E49: 0 | F49: 0.5 | G49: =F49*(1-E49) -> 0.5 | H49: =+F49*E49 -> 0
A50: Interest-operating capital | B50: ='Universal Input Prices'!$C$39 -> 0.09 | F50: =(SUM(F15:F27,F31:F49))*$B50/2 -> 28.82725693 | G50: =(SUM(G15:G27,G31:G49))*$B50/2 -> 28.82725693 | H50: =(SUM(H15:H27,H31:H49))*$B50/2 -> 0
A52: Total Variable Costs | F52: =SUM(F15:F50) -> 979.7454665 | G52: =SUM(G15:G50) -> 979.7454665 | H52: =SUM(H15:H50) -> 0
A53: Returns Above Variable Costs | F53: =F12-F52 -> 339.8795335 | G53: =G12-G52 -> 339.8795335 | H53: =H12-H52 -> 0
A55: Fixed Costs
A56: Implements | B56: 1 | C56: acre | D56: 10 | E56: 0 | F56: =(D56*B56) -> 10 | G56: =F56*(1-E56) -> 10 | H56: =+F56*E56 -> 0
A57: Tractors | B57: 1 | C57: acre | D57: 12 | E57: 0 | F57: =(D57*B57) -> 12 | G57: 12 | H57: 0
A58: Irrigation-Drip System | B58: 1 | C58: acre | D58: 60 | E58: 0 | F58: 60 | G58: 60 | H58: 0
A59: Irrigation-Wells | B59: 1 | C59: acre | D59: 15 | E59: 0 | F59: 15 | G59: 15 | H59: 0
A60: Pickup | B60: 1 | C60: acre | D60: 1.25 | E60: 0 | F60: 1.25 | G60: 1.25 | H60: 0
A61: Management | B61: 1 | C61: acre | D61: 25 | E61: 0 | F61: 25 | G61: 25 | H61: 0
A62: Whole Farm Insurance | B62: 1 | C62: acre | D62: 0 | E62: 0 | F62: 0 | G62: 0 | H62: 0
A63: Land | B63: 1 | C63: acre | D63: 125 | E63: 0 | F63: 125 | G63: =IF($H$6="Cash",D63,F63*(1-E63)) -> 125 | H63: =IF($H$6="Cash",0,F63*E63) -> 0
A64: Property Tax | B64: 1 | C64: acre | D64: 0 | E64: 0 | F64: 0 | G64: 0 | H64: 0
A65: Total Fixed Expenses | F65: =SUM(F56:F64) -> 248.25 | G65: =SUM(G56:G64) -> 248.25 | H65: =SUM(H56:H64) -> 0
A66: Total Specified Expenses | F66: =F52+F65 -> 1227.995466 | G66: =G52+G65 -> 1227.995466 | H66: =H52+H65 -> 0
A67: Returns Above Total Specified Expenses | F67: =F12-F66 -> 91.62953351 | G67: =G12-G66 -> 91.62953351 | H67: =H12-H66 -> 0
A68: Share may be higher until drip paid for.
A69: If you have questions, contact Andrew Wright at 806-746-6101
A72: Supported by a grant from the
A73: Texas Cotton State Support Committee

Sheet Irr Cotton Pivot
A2: Estimated Costs and Returns per Acre
A3: Irrigated Cotton - Pivot
A4: Projected for 2024
B5: * Post emerge herbicides specific to variety trait of seed | H5: Rental Agreement | I5: Share
A6: Item | B6: Quantity | C6: Unit | D6: Price | E6: Owner | H6: Share | I6: Cash
E7: Share | F7: Total | G7: Operator | H7: Owner
A8: Income
A9: cotton lint | B9: 1000 | C9: lbs | D9: ='Universal Input Prices'!$C$8 -> 0.72 | E9: 0 | F9: =D9*B9 -> 720 | G9: =F9*(1-E9) -> 720 | H9: =IF(H6="Cash", D62,F9*E9) -> 0
A10: cotton seed | B10: =B9/500*'Universal Input Prices'!C43/2000 -> 0.71 | C10: tons | D10: ='Universal Input Prices'!$C$9 -> 225 | E10: 0 | F10: =D10*B10 -> 159.75 | G10: =F10*(1-E10) -> 159.75 | H10: =IF(H6="Cash", 0,F10*E10) -> 0
A11: Expected Turnout | B11: 0.32
A12: Total Income | F12: =F9+F10 -> 879.75 | G12: =G9+G10 -> 879.75 | H12: =H9+H10 -> 0
A14: Variable Costs
A15: Seed | B15: 40 | C15: thousand | D15: 1.72 | E15: 0 | F15: =D15*B15 -> 68.8 | G15: =F15*(1-E15) -> 68.8 | H15: =+F15*E15 -> 0
A16: Boll Weevil Assess.-Irr | B16: =Irr_Cotton_Pivot_Yield/500 -> 2 | C16: bales | D16: 2 | E16: 0 | F16: =D16*B16 -> 4 | G16: =F16*(1-E16) -> 4 | H16: =+F16*E16 -> 0
A17: Fertilizer
A18: fert (N) - liquid | B18: 80 | C18: lbs | D18: =IF(A18="",0,VLOOKUP(A18,'Universal Input Prices'!$B$29:$C$33, 2)) -> 0.6109375 | E18: 0 | F18: =D18*B18 -> 48.875 | G18: =F18*(1-E18) -> 48.875 | H18: =+F18*E18 -> 0
A19: fert (P) - liquid | B19: 25 | C19: lbs | D19: =IF(A19="",0,VLOOKUP(A19,'Universal Input Prices'!$B$29:$C$33, 2)) -> 0.8838235294 | E19: 0 | F19: =D19*B19 -> 22.09558824 | G19: =F19*(1-E19) -> 22.09558824 | H19: =+F19*E19 -> 0
B20: 0 | C20: lbs | D20: =IF(A20="",0,VLOOKUP(A20,'Universal Input Prices'!$B$29:$C$33, 2)) -> 0 | E20: 0 | F20: 0 | G20: =F20*(1-E20) -> 0 | H20: =F20*E20 -> 0
A21: Field Operations
A22: preplant herb, application & incorp. | B22: 1 | C22: acre | D22: 10 | E22: 0 | F22: =D22*B22 -> 10 | G22: =F22*(1-E22) -> 10 | H22: =+F22*E22 -> 0
A23: at-plant pre-emerge herbicide | B23: 1 | C23: acre | D23: 12 | E23: 0 | F23: =D23*B23 -> 12 | G23: 12 | H23: 0
A24: 2 post emerge herbicide & app* | B24: 1 | C24: acre | D24: 52 | E24: 0 | F24: 52 | G24: 52 | H24: 0
A25: fertilizer application | B25: 1 | C25: acre | D25: 4.75 | E25: 0 | F25: 4.75 | G25: 4.75 | H25: 0
A26: insecticide & application | B26: 1 | C26: acre | D26: 10 | E26: 0 | F26: 10 | G26: 10 | H26: 0
A27: harvest aids | B27: 1 | C27: acre | D27: 25 | E27: 0 | F27: 25 | G27: 25 | H27: 0
A28: strip & module | B28: =B9 -> 1000 | C28: lb. | D28: ='Universal Input Prices'!$C$41 -> 0.09 | E28: 0 | F28: 90 | G28: 90 | H28: 0
A29: ginning | B29: =Irr_Cotton_Pivot_Yield/B11/100 -> 31.25 | C29: cwt. | D29: ='Universal Input Prices'!$C$42 -> 3.1 | E29: 0 | F29: 96.875 | G29: 96.875 | H29: 0
A30: hoeing | B30: 0.2 | C30: acre | D30: 0 | E30: 0 | F30: 0 | G30: 0 | H30: 0
A31: scouting | B31: 1 | C31: acre | D31: 0 | E31: 0 | F31: 0 | G31: =F31*(1-E31) -> 0 | H31: =+F31*E31 -> 0
A32: spot spraying | B32: 0.2 | C32: acre | D32: 0 | E32: 0 | F32: 0 | G32: 0 | H32: 0
A33: other | B33: 1 | C33: acre | D33: 0 | E33: 0 | F33: 0 | G33: 0 | H33: 0
A34: other | B34: 1 | C34: acre | D34: 0 | E34: 0 | F34: 0 | G34: 0 | H34: 0
A35: Crop Insurance | B35: 1 | C35: acre | D35: 40 | E35: 0 | F35: 40 | G35: 40 | H35: 0
A36: Operator Labor & Hand Labor | B36: 1 | C36: hours | D36: ='Universal Input Prices'!$C$35 -> 12 | E36: 0 | F36: 12 | G36: 12 | H36: 0
A37: Irrigation Labor | B37: 1 | C37: hours | D37: ='Universal Input Prices'!$C$35 -> 12 | E37: 0 | F37: 12 | G37: 12 | H37: 0
A38: Diesel Fuel - Tractors | B38: 4 | C38: gallons | D38: ='Universal Input Prices'!$C$36 -> 2.999 | E38: 0 | F38: 11.996 | G38: 11.996 | H38: 0
A39: Gasoline - Pickup | B39: 1 | C39: gallons | D39: ='Universal Input Prices'!$C$37 -> 2.539 | E39: 0 | F39: 2.539 | G39: 2.539 | H39: 0
A40: Irrigation Fuel | B40: 10 | C40: ac-in | D40: ='Universal Input Prices'!$C$38 -> 10 | E40: 0 | F40: 100 | G40: 100 | H40: 0
A41: Pumping Days | B41: 75.43
A42: Calculated GPM capacity per acre needed | B42: =B40*18.85694/B41 -> 2.499925759
A43: Repair & Maintenance
A44: Implements | B44: 1 | C44: acre | D44: 3 | E44: 0 | F44: =D44*B44 -> 3 | G44: =F44*(1-E44) -> 3 | H44: =+F44*E44 -> 0
A45: Tractors | B45: 1 | C45: acre | D45: 6 | E45: 0 | F45: =D45*B45 -> 6 | G45: =F45*(1-E45) -> 6 | H45: =+F45*E45 -> 0
A46: Irrigation-Above Ground | B46: =Cotton_Inches -> 10 | C46: ac-in | D46: 1 | E46: 0 | F46: 10 | G46: =F46*(1-E46) -> 10 | H46: =+F46*E46 -> 0
A47: Irrigation-Below Ground | B47: 1 | C47: acre | D47: 5 | E47: 0 | F47: 5 | G47: =F47*(1-E47) -> 5 | H47: =+F47*E47 -> 0
A48: Pickup | B48: 1 | C48: acre | D48: 0.5 | E48: 0 | F48: 0.5 | G48: =F48*(1-E48) -> 0.5 | H48: =+F48*E48 -> 0
A49: Interest-operating capital | B49: =Int_Rate -> 0.09 | F49: =(SUM(F15:F26,F30:F48))*$B49/2 -> 19.60000147 | G49: =(SUM(G15:G26,G30:G48))*$B49/2 -> 19.60000147 | H49: =(SUM(H15:H26,H30:H48))*$B49/2 -> 0
A51: Total Variable Costs | F51: =SUM(F15:F49) -> 667.0305897 | G51: =SUM(G15:G49) -> 667.0305897 | H51: =SUM(H15:H49) -> 0
A52: Returns Above Variable Costs | F52: =F12-F51 -> 212.7194103 | G52: =G12-G51 -> 212.7194103 | H52: =H12-H51 -> 0
A54: Fixed Costs
A55: Implements | B55: 1 | C55: acre | D55: 10 | E55: 0 | F55: =D55*B55 -> 10 | G55: =F55*(1-E55) -> 10 | H55: =+F55*E55 -> 0
A56: Tractors | B56: 1 | C56: acre | D56: 12 | E56: 0 | F56: =D56*B56 -> 12 | G56: 12 | H56: 0
A57: Irrigation-Above Ground | B57: 1 | C57: acre | D57: 40 | E57: 0 | F57: 40 | G57: 40 | H57: 0
A58: Irrigation-Below Ground | B58: 1 | C58: acre | D58: 15 | E58: 0 | F58: 15 | G58: 15 | H58: 0
A59: Pickup | B59: 1 | C59: acre | D59: 1.25 | E59: 0 | F59: 1.25 | G59: 1.25 | H59: 0
A60: Management | B60: 1 | C60: acre | D60: 25 | E60: 0 | F60: 25 | G60: 25 | H60: 0
A61: Whole Farm Insurance | B61: 1 | C61: acre | D61: 0 | E61: 0 | F61: 0 | G61: 0 | H61: 0
A62: Land | B62: 1 | C62: acre | D62: 100 | E62: 0 | F62: 100 | G62: =IF($H$6="Cash",D62,F62*(1-E62)) -> 100 | H62: =IF($H$6="Cash",0,F62*E62) -> 0
A63: Property Tax | B63: 1 | C63: acre | D63: 0 | E63: 0 | F63: 0 | G63: 0 | H63: 0
A64: Total Fixed Expenses | F64: =SUM(F55:F63) -> 203.25 | G64: =SUM(G55:G63) -> 203.25 | H64: =SUM(H55:H63) -> 0
A65: Total Specified Expenses | F65: =F51+F64 -> 870.2805897 | G65: =G51+G64 -> 870.2805897 | H65: =H51+H64 -> 0
A66: Returns Above Total Specified Expenses | F66: =F12-F65 -> 9.469410294 | G66: =G12-G65 -> 9.469410294 | H66: =H12-H65 -> 0
A68: If you have questions, contact Andrew Wright at 806-746-6101
A71: Supported by a grant from the
A72: Texas Cotton State Support Committee

Sheet Irr Guar
A2: Estimated Costs and Returns per Acre
A3: Irrigated Guar
A4: Projected for 2024
H5: Rental Agreement | I5: Share
A6: Item | B6: Quantity | C6: Unit | D6: Price | E6: Owner | H6: Share | I6: Cash
E7: Share | F7: Total | G7: Operator | H7: Owner
A8: Income
A9: guar | B9: 1200 | C9: lb | D9: ='Universal Input Prices'!$C$10 -> 0.6 | E9: 0 | F9: =(D9*B9) -> 720 | G9: =F9*(1-E9) -> 720 | H9: =IF(H6="Cash", D58,F9*E9) -> 0
A11: Total Income | F11: =F9 -> 720 | G11: =G9 -> 720 | H11: =H9 -> 0
A13: Variable Costs
A14: Seed | B14: 10 | C14: lbs | D14: 1.5 | E14: 0 | F14: =(D14*B14) -> 15 | G14: =F14*(1-E14) -> 15 | H14: =F14*E14 -> 0
A15: Innoculant | B15: 2 | C15: lbs | D15: 3 | E15: 0 | F15: =(D15*B15) -> 6 | G15: =F15*(1-E15) -> 6 | H15: =F15*E15 -> 0
A16: Fertilizer
A17: fert (P) - dry | B17: 40 | C17: lbs | D17: =IF(A17="",0,VLOOKUP(A17,'Universal Input Prices'!$B$29:$C$33, 2)) -> 0.4903846154 | E17: 0 | F17: =(D17*B17) -> 19.61538462 | G17: =F17*(1-E17) -> 19.61538462 | H17: =F17*E17 -> 0
C18: lbs | D18: =IF(A18="",0,VLOOKUP(A18,'Universal Input Prices'!$B$29:$C$33, 2)) -> 0 | E18: 0 | F18: =(D18*B18) -> 0 | G18: 0 | H18: 0
C19: lbs | D19: =IF(A19="",0,VLOOKUP(A19,'Universal Input Prices'!$B$29:$C$33, 2)) -> 0 | E19: 0 | F19: 0 | G19: =F19*(1-E19) -> 0 | H19: =F19*E19 -> 0
A20: Field Operations
A21: herbicide & application | B21: 1 | C21: acre | D21: 4 | E21: 0 | F21: =(D21*B21) -> 4 | G21: =F21*(1-E21) -> 4 | H21: =F21*E21 -> 0
A22: fertilizer application | B22: 1 | C22: acre | D22: 4 | E22: 0 | F22: =(D22*B22) -> 4 | G22: 4 | H22: 0
A23: insecticide & application | B23: 0 | C23: acre | D23: 0 | E23: 0 | F23: 0 | G23: 0 | H23: 0
A24: custom harvest & haul | B24: 1 | C24: acre | D24: 30 | E24: 0 | F24: 30 | G24: =F24*(1-E24) -> 30 | H24: =F24*E24 -> 0
A25: custom harvest & haul | B25: =Irr_Guar_Yield/100 -> 12 | C25: cwt | D25: 0.2 | E25: 0 | F25: 2.4 | G25: 2.4 | H25: 0
A26: crop consultant | B26: 0 | C26: acre | D26: 0 | E26: 0 | F26: 0 | G26: 0 | H26: 0
A27: scouting | B27: 0 | C27: acre | D27: 0 | E27: 0 | F27: 0 | G27: =F27*(1-E27) -> 0 | H27: =F27*E27 -> 0
A28: other | B28: 0 | C28: acre | D28: 0 | E28: 0 | F28: 0 | G28: 0 | H28: 0
A29: other | B29: 0 | C29: acre | D29: 0 | E29: 0 | F29: 0 | G29: 0 | H29: 0
A30: other | B30: 0 | C30: acre | D30: 0 | E30: 0 | F30: 0 | G30: 0 | H30: 0
A31: Crop Insurance | B31: 1 | C31: acre | D31: 2.5 | E31: 0 | F31: 2.5 | G31: 2.5 | H31: 0
A32: Operator Labor & Hand Labor | B32: 1 | C32: hour | D32: ='Universal Input Prices'!$C$35 -> 12 | E32: 0 | F32: 12 | G32: 12 | H32: 0
A33: Irrigation Labor | B33: 0.75 | C33: hours | D33: ='Universal Input Prices'!$C$35 -> 12 | E33: 0 | F33: 9 | G33: 9 | H33: 0
A34: Diesel Fuel - Tractors | B34: 2.4 | C34: gallons | D34: ='Universal Input Prices'!$C$36 -> 2.999 | E34: 0 | F34: 7.1976 | G34: 7.1976 | H34: 0
A35: Gasoline - Pickup | B35: 2 | C35: gallons | D35: ='Universal Input Prices'!$C$37 -> 2.539 | E35: 0 | F35: 5.078 | G35: 5.078 | H35: 0
A36: Irrigation Fuel | B36: 4 | C36: ac-in | D36: ='Universal Input Prices'!$C$38 -> 10 | E36: 0 | F36: 40 | G36: 40 | H36: 0
A37: Pumping Days | B37: 75.4
A38: Calculated GPM capacity per acre needed | B38: =B36*18.85694/B37 -> 1.00036817
A39: Repair & Maintenance
A40: Implements | B40: 1 | C40: acre | D40: 3 | E40: 0 | F40: =(D40*B40) -> 3 | G40: 3 | H40: 0
A41: Tractors | B41: 1 | C41: acre | D41: 6 | E41: 0 | F41: =(D41*B41) -> 6 | G41: 6 | H41: 0
A42: Irrigation-Above Ground | B42: =B36 -> 4 | C42: ac-in | D42: 1 | E42: 0 | F42: 4 | G42: 4 | H42: 0
A43: Irrigation-Below Ground | B43: 1 | C43: acre | D43: 18 | E43: 0 | F43: 18 | G43: 18 | H43: 0
A44: Pickup | B44: 1 | C44: acre | D44: 0.5 | E44: 0 | F44: 0.5 | G44: 0.5 | H44: 0
A45: Interest-operating capital | B45: ='Universal Input Prices'!$C$39 -> 0.09 | F45: =(SUM(F14:F23,F26:F44))*$B45/2 -> 7.015094308 | G45: =(SUM(G14:G23,G26:G44))*$B45/2 -> 7.015094308 | H45: 0
A47: Total Variable Costs | F47: =SUM(F14:F45) -> 195.3060789 | G47: =SUM(G14:G45) -> 195.3060789 | H47: =SUM(H14:H45) -> 0
A48: Returns Above Variable Costs | F48: =F11-F47 -> 524.6939211 | G48: =G11-G47 -> 524.6939211 | H48: =H11-H47 -> 0
A50: Fixed Costs
A51: Implements | B51: 1 | C51: acre | D51: 10 | E51: 0 | F51: =(D51*B51) -> 10 | G51: =F51*(1-E51) -> 10 | H51: =F51*E51 -> 0
A52: Tractors | B52: 1 | C52: acre | D52: 12 | E52: 0 | F52: =(D52*B52) -> 12 | G52: 12 | H52: 0
A53: Irrigation-Above Ground | B53: 1 | C53: acre | D53: 40 | E53: 0 | F53: 40 | G53: 40 | H53: 0
A54: Irrigation-Below Ground | B54: 1 | C54: acre | D54: 15 | E54: 0 | F54: 15 | G54: 15 | H54: 0
A55: Pickup | B55: 1 | C55: acre | D55: 1.25 | E55: 0 | F55: 1.25 | G55: 1.25 | H55: 0
A56: Management | B56: 1 | C56: acre | D56: 25 | E56: 0 | F56: 25 | G56: 25 | H56: 0
A57: Whole Farm Insurance | B57: 1 | C57: acre | D57: 2 | E57: 0 | F57: 2 | G57: 2 | H57: 0
A58: Land | B58: 1 | C58: acre | D58: 75 | E58: 0 | F58: 75 | G58: =IF($H$6="Cash",D58,F58*(1-E58)) -> 75 | H58: =IF($H$6="Cash",0,F58*E58) -> 0
A59: Property Tax | B59: 1 | C59: acre | D59: 0 | E59: 0 | F59: 0 | G59: 0 | H59: 0
A60: Total Fixed Expenses | F60: =SUM(F51:F59) -> 180.25 | G60: =SUM(G51:G59) -> 180.25 | H60: =SUM(H51:H59) -> 0
A61: Total Specified Expenses | F61: =F47+F60 -> 375.5560789 | G61: =G47+G60 -> 375.5560789 | H61: =H47+H60 -> 0
A62: Returns Above Total Specified Expenses | F62: =F11-F61 -> 344.4439211 | G62: =G11-G61 -> 344.4439211 | H62: =H11-H61 -> 0
A64: If you have questions, contact Andrew Wright at 806-746-6101
A67: Supported by a grant from the
A68: Texas Cotton State Support Committee

Sheet Irr Peanuts
A2: Estimated Costs and Returns per Acre
A3: Irrigated Peanuts
A4: Projected for 2024
H5: Rental Agreement | I5: Share
A6: Item | B6: Quantity | C6: Unit | D6: Price | E6: Owner | H6: Share | I6: Cash
E7: Share | F7: Total | G7: Operator | H7: Owner
A8: Income
A9: peanuts | B9: 1.75 | C9: tons | D9: ='Universal Input Prices'!$C$12 -> 600 | E9: 0 | F9: =(D9*B9) -> 1050 | G9: =F9*(1-E9) -> 1050 | H9: =IF(H6="Cash", D61,F9*E9) -> 0
A11: Total Income | F11: =F9 -> 1050 | G11: =G9 -> 1050 | H11: =H9 -> 0
A13: Variable Costs
A14: Seed
A15: peanut seed | B15: 120 | C15: lbs | D15: 0.75 | E15: 0 | F15: =(D15*B15) -> 90 | G15: =F15*(1-E15) -> 90 | H15: =F15*E15 -> 0
A16: innoculant | B16: 1 | C16: acre | D16: 7 | E16: 0 | F16: =(D16*B16) -> 7 | G16: =F16*(1-E16) -> 7 | H16: =F16*E16 -> 0
A17: Fertilizer
A18: fert (N) - liquid | B18: 80 | C18: lbs | D18: =IF(A18="",0,VLOOKUP(A18,'Universal Input Prices'!$B$29:$C$33, 2)) -> 0.6109375 | E18: 0 | F18: =(D18*B18) -> 48.875 | G18: =F18*(1-E18) -> 48.875 | H18: =F18*E18 -> 0
A19: fert (P) - liquid | B19: 50 | C19: lbs | D19: =IF(A19="",0,VLOOKUP(A19,'Universal Input Prices'!$B$29:$C$33, 2)) -> 0.8838235294 | E19: 0 | F19: =(D19*B19) -> 44.19117647 | G19: =F19*(1-E19) -> 44.19117647 | H19: =F19*E19 -> 0
B20: 0 | C20: lbs | D20: =IF(A20="",0,VLOOKUP(A20,'Universal Input Prices'!$B$29:$C$33, 2)) -> 0 | E20: 0 | F20: 0 | G20: =F20*(1-E20) -> 0 | H20: =F20*E20 -> 0
A21: Field Operations
A22: herbicide & application | B22: 1 | C22: acre | D22: 20 | E22: 0 | F22: =(D22*B22) -> 20 | G22: =F22*(1-E22) -> 20 | H22: =F22*E22 -> 0
A23: fertilizer application | B23: 1 | C23: acre | D23: 4.75 | E23: 0 | F23: =(D23*B23) -> 4.75 | G23: 4.75 | H23: 0
A24: fungicide & application | B24: 1 | C24: appl | D24: 35 | E24: 0 | F24: 35 | G24: 35 | H24: 0
A25: digging | B25: 1 | C25: acre | D25: 25 | E25: 0 | F25: 25 | G25: 25 | H25: 0
A26: custom harvest & haul | B26: =$B$9 -> 1.75 | C26: tons | D26: 60 | E26: 0 | F26: 105 | G26: 105 | H26: 0
A27: drying | B27: =$B$9 -> 1.75 | C27: tons | D27: 30 | E27: 0 | F27: 52.5 | G27: 52.5 | H27: 0
A28: insecticide & application | B28: 1 | C28: appl | D28: 12 | E28: 0 | F28: 12 | G28: 12 | H28: 0
A29: hoeing | B29: 1 | C29: acre | D29: 15 | E29: 0 | F29: 15 | G29: 15 | H29: 0
A30: scouting | B30: 1 | C30: acre | D30: 10 | E30: 0 | F30: 10 | G30: 10 | H30: 0
A31: other | B31: 1 | C31: acre | D31: 0 | E31: 0 | F31: 0 | G31: 0 | H31: =+F31*E31 -> 0
A32: other | B32: 1 | C32: acre | D32: 0 | E32: 0 | F32: 0 | G32: 0 | H32: =+F32*E32 -> 0
A33: other | B33: 1 | C33: acre | D33: 0 | E33: 0 | F33: 0 | G33: 0 | H33: =+F33*E33 -> 0
A34: Crop Insurance | B34: 1 | C34: acre | D34: 27 | E34: 0 | F34: 27 | G34: 27 | H34: 0
A35: Operator Labor & Hand Labor | B35: 3 | C35: hour | D35: ='Universal Input Prices'!$C$35 -> 12 | E35: 0 | F35: 36 | G35: 36 | H35: 0
A36: Irrigation Labor | B36: 1.25 | C36: hours | D36: ='Universal Input Prices'!$C$35 -> 12 | E36: 0 | F36: 15 | G36: 15 | H36: 0
A37: Diesel Fuel - Tractors | B37: 7.6 | C37: gallons | D37: ='Universal Input Prices'!$C$36 -> 2.999 | E37: 0 | F37: 22.7924 | G37: 22.7924 | H37: 0
A38: Gasoline - Pickup | B38: 2 | C38: gallons | D38: ='Universal Input Prices'!$C$37 -> 2.539 | E38: 0 | F38: 5.078 | G38: 5.078 | H38: 0
A39: Irrigation Fuel | B39: 22 | C39: ac-in | D39: ='Universal Input Prices'!$C$38 -> 10 | E39: 0 | F39: 220 | G39: 220 | H39: 0
A40: Pumping Days | B40: 75.4
A41: Calculated GPM capacity per acre needed | B41: =B39*18.85694/B40 -> 5.502024934
A42: Repair & Maintenance | G42: 0 | H42: 0
A43: Implements | B43: 1 | C43: acre | D43: 3 | E43: 0 | F43: =(D43*B43) -> 3 | G43: 3 | H43: 0
A44: Tractors | B44: 1 | C44: acre | D44: 6 | E44: 0 | F44: =(D44*B44) -> 6 | G44: 6 | H44: 0
A45: Irrigation-Above Ground | B45: =B39 -> 22 | C45: ac-in | D45: 1 | E45: 0 | F45: 22 | G45: 22 | H45: 0
A46: Irrigation-Below Ground | B46: 1 | C46: acre | D46: 18 | E46: 0 | F46: 18 | G46: 18 | H46: 0
A47: Pickup | B47: 1 | C47: acre | D47: 0.5 | E47: 0 | F47: 0.5 | G47: 0.5 | H47: 0
A48: Interest-operating capital | B48: ='Universal Input Prices'!$C$39 -> 0.09 | F48: =(SUM(F15:F24,F28:F47))*$B48/2 -> 29.79839594 | G48: =(SUM(G15:G24,G28:G47))*$B48/2 -> 29.79839594 | H48: 0
A50: Total Variable Costs | F50: =SUM(F15:F48) -> 874.4849724 | G50: =SUM(G15:G48) -> 874.4849724 | H50: =SUM(H15:H48) -> 0
A51: Returns Above Variable Costs | F51: =F11-F50 -> 175.5150276 | G51: =G11-G50 -> 175.5150276 | H51: =H11-H50 -> 0
A53: Fixed Costs
A54: Implements | B54: 1 | C54: acre | D54: 10 | E54: 0 | F54: =(D54*B54) -> 10 | G54: =F54*(1-E54) -> 10 | H54: =F54*E54 -> 0
A55: Tractors | B55: 1 | C55: acre | D55: 12 | E55: 0 | F55: =(D55*B55) -> 12 | G55: 12 | H55: 0
A56: Irrigation-Above Ground | B56: 1 | C56: acre | D56: 40 | E56: 0 | F56: 40 | G56: 40 | H56: 0
A57: Irrigation-Below Ground | B57: 1 | C57: acre | D57: 15 | E57: 0 | F57: 15 | G57: 15 | H57: 0
A58: Pickup | B58: 1 | C58: acre | D58: 1.25 | E58: 0 | F58: 1.25 | G58: 1.25 | H58: 0
A59: Management | B59: 1 | C59: acre | D59: 25 | E59: 0 | F59: 25 | G59: 25 | H59: 0
A60: Whole Farm Insurance | B60: 1 | C60: acre | D60: 2 | E60: 0 | F60: 2 | G60: 2 | H60: 0
A61: Land | B61: 1 | C61: acre | D61: 100 | E61: 0 | F61: 100 | G61: =IF($H$6="Cash",D61,F61*(1-E61)) -> 100 | H61: =IF($H$6="Cash",0,F61*E61) -> 0
A62: Property Tax | B62: 1 | C62: acre | D62: 0 | E62: 0 | F62: 0 | G62: 0 | H62: 0
A63: Total Fixed Expenses | F63: =SUM(F54:F62) -> 205.25 | G63: =SUM(G54:G62) -> 205.25 | H63: =SUM(H54:H62) -> 0
A64: Total Specified Expenses | F64: =F50+F63 -> 1079.734972 | G64: =G50+G63 -> 1079.734972 | H64: =H50+H63 -> 0
A65: Returns Above Total Specified Expenses | F65: =F11-F64 -> -29.73497241 | G65: =G11-G64 -> -29.73497241 | H65: =H11-H64 -> 0
A67: If you have questions, contact Andrew Wright at 806-746-6101
A70: Supported by a grant from the
A71: Texas Cotton State Support Committee

Sheet Irr Sesame
A2: Estimated Costs and Returns per Acre
A3: Irrigated Sesame
A4: Projected for 2024
H5: Rental Agreement | I5: Share
A6: Item | B6: Quantity | C6: Unit | D6: Price | E6: Owner | H6: Share | I6: Cash
E7: Share | F7: Total | G7: Operator | H7: Owner
A8: Income
A9: sesame | B9: 1200 | C9: lbs | D9: =Sesame_Price+IF(B9<B10,0,D10) -> 0.32 | E9: 0 | F9: =(D9*B9) -> 384 | G9: =F9*(1-E9) -> 384 | H9: =IF(H6="Cash", D58,F9*E9) -> 0
A10: bonus paid for production over: | B10: 0 | C10: lbs | D10: 0
A12: Total Income | F12: =SUM(F9:F11) -> 384 | G12: =SUM(G9:G11) -> 384 | H12: =SUM(H9:H11) -> 0
A14: Variable Costs
A15: Seed | B15: 2.5 | C15: lbs | D15: 4 | E15: 0 | F15: =(D15*B15) -> 10 | G15: =F15*(1-E15) -> 10 | H15: =F15*E15 -> 0
A16: Fertilizer
A17: fert (N) - liquid | B17: 75 | C17: lbs | D17: =IF(A17="",0,VLOOKUP(A17,'Universal Input Prices'!$B$29:$C$33, 2)) -> 0.6109375 | E17: 0 | F17: =(D17*B17) -> 45.8203125 | G17: =F17*(1-E17) -> 45.8203125 | H17: =F17*E17 -> 0
A18: fert (P) - liquid | B18: 30 | C18: lbs | D18: =IF(A18="",0,VLOOKUP(A18,'Universal Input Prices'!$B$29:$C$33, 2)) -> 0.8838235294 | E18: 0 | F18: =(D18*B18) -> 26.51470588 | G18: =F18*(1-E18) -> 26.51470588 | H18: =F18*E18 -> 0
B19: 0 | C19: lbs | D19: =IF(A19="",0,VLOOKUP(A19,'Universal Input Prices'!$B$29:$C$33, 2)) -> 0 | E19: 0 | F19: 0 | G19: =F19*(1-E19) -> 0 | H19: =F19*E19 -> 0
A20: Field Operations
A21: herbicide | B21: 1 | C21: acre | D21: 21.75 | E21: 0 | F21: =(D21*B21) -> 21.75 | G21: =F21*(1-E21) -> 21.75 | H21: =F21*E21 -> 0
A22: fert application | B22: 1 | C22: acre | D22: 4.75 | E22: 0 | F22: =(D22*B22) -> 4.75 | G22: 4.75 | H22: 0
A23: insecticide | B23: 0 | C23: acre | D23: 0 | E23: 0 | F23: 0 | G23: 0 | H23: 0
A24: custom harvest & haul | B24: =B9/100 -> 12 | C24: cwt | D24: 0.12 | E24: 0 | F24: 1.44 | G24: 1.44 | H24: 0
A25: custom harvest & haul | B25: 1 | C25: acre | D25: 25 | E25: 0 | F25: 25 | G25: 25 | H25: 0
A26: hoeing | B26: 1 | C26: acre | D26: 15 | E26: 0 | F26: 15 | G26: 15 | H26: 0
A27: scouting | B27: 1 | C27: acre | D27: 0 | E27: 0 | F27: 0 | G27: 0 | H27: 0
A28: other | B28: 1 | C28: acre | D28: 0 | E28: 0 | F28: 0 | G28: 0 | H28: 0
A29: other | B29: 1 | C29: acre | D29: 0 | E29: 0 | F29: 0 | G29: 0 | H29: 0
A30: other | B30: 1 | C30: acre | D30: 0 | E30: 0 | F30: 0 | G30: 0 | H30: 0
A31: Crop Insurance | B31: 1 | C31: acre | D31: 12.5 | E31: 0 | F31: 12.5 | G31: 12.5 | H31: 0
A32: Operator Labor | B32: 1 | C32: hours | D32: ='Universal Input Prices'!$C$35 -> 12 | E32: 0 | F32: 12 | G32: 12 | H32: 0
A33: Irrigation Labor | B33: 1 | C33: hours | D33: ='Universal Input Prices'!$C$35 -> 12 | E33: 0 | F33: 12 | G33: 12 | H33: 0
A34: Diesel Fuel - Tractors | B34: 2.4 | C34: gallons | D34: ='Universal Input Prices'!$C$36 -> 2.999 | E34: 0 | F34: 7.1976 | G34: 7.1976 | H34: 0
A35: Gasoline - Pickup | B35: 2 | C35: gallons | D35: ='Universal Input Prices'!$C$37 -> 2.539 | E35: 0 | F35: 5.078 | G35: 5.078 | H35: 0
A36: Irrigation Fuel | B36: 11 | C36: ac-in | D36: ='Universal Input Prices'!$C$38 -> 10 | E36: 0 | F36: 110 | G36: 110 | H36: 0
A37: Pumping Days | B37: 69.2
A38: Calculated GPM capacity per acre needed | B38: =B36*18.85694/B37 -> 2.997490462
A39: Repair & Maintenance
A40: Implements | B40: 1 | C40: acre | D40: 3 | E40: 0 | F40: =(D40*B40) -> 3 | G40: =F40*(1-E40) -> 3 | H40: =F40*E40 -> 0
A41: Tractors | B41: 1 | C41: acre | D41: 6 | E41: 0 | F41: =(D41*B41) -> 6 | G41: =F41*(1-E41) -> 6 | H41: =F41*E41 -> 0
A42: Irrigation-Above Ground | B42: 1 | C42: acre | D42: 11 | E42: 0 | F42: 11 | G42: =F42*(1-E42) -> 11 | H42: =F42*E42 -> 0
A43: Irrigation-Below Ground | B43: 1 | C43: acre | D43: 8.25 | E43: 0 | F43: 8.25 | G43: =F43*(1-E43) -> 8.25 | H43: =F43*E43 -> 0
A44: Pickup | B44: 1 | C44: acre | D44: 0.5 | E44: 0 | F44: 0.5 | G44: =F44*(1-E44) -> 0.5 | H44: =F44*E44 -> 0
A45: Interest-operating capital | B45: ='Universal Input Prices'!$C$39 -> 0.09 | F45: =(SUM(F15:F44)-SUM(F24:F25))*$B45/2 -> 14.01122783 | G45: =(SUM(G15:G44)-SUM(G24:G25))*$B45/2 -> 14.01122783 | H45: =(SUM(H15:H44)-SUM(H24:H25))*$B45/2 -> 0
A47: Total Variable Costs | F47: =SUM(F15:F45) -> 351.8118462 | G47: =SUM(G15:G45) -> 351.8118462 | H47: =SUM(H15:H45) -> 0
A48: Returns Above Direct Expenses | F48: =F12-F47 -> 32.18815379 | G48: =G12-G47 -> 32.18815379 | H48: =H12-H47 -> 0
A50: Fixed Costs
A51: Implements | B51: 1 | C51: acre | D51: 10 | E51: 0 | F51: =(D51*B51) -> 10 | G51: =F51*(1-E51) -> 10 | H51: =F51*E51 -> 0
A52: Tractors | B52: 1 | C52: acre | D52: 12 | E52: 0 | F52: =(D52*B52) -> 12 | G52: 12 | H52: 0
A53: Irrigation-Above Ground | B53: 1 | C53: acre | D53: 40 | E53: 0 | F53: 40 | G53: 40 | H53: 0
A54: Irrigation-Below Ground | B54: 1 | C54: acre | D54: 15 | E54: 0 | F54: 15 | G54: 15 | H54: 0
A55: Pickup | B55: 1 | C55: acre | D55: 1.25 | E55: 0 | F55: 1.25 | G55: 1.25 | H55: 0
A56: Management | B56: 1 | C56: acre | D56: 25 | E56: 0 | F56: 25 | G56: 25 | H56: 0
A57: Whole Farm Insurance | B57: 1 | C57: acre | D57: 2 | E57: 0 | F57: 2 | G57: 2 | H57: 0
A58: Land | B58: 1 | C58: acre | D58: 100 | E58: 0 | F58: 100 | G58: =IF($H$6="Cash",D58,F58*(1-E58)) -> 100 | H58: =IF($H$6="Cash",0,F58*E58) -> 0
A59: Property Tax | B59: 1 | C59: acre | D59: 0 | E59: 0 | F59: 0 | G59: =F59*(1-E59) -> 0 | H59: =F59*E59 -> 0
A60: Total Fixed Expenses | F60: =SUM(F51:F59) -> 205.25 | G60: =SUM(G51:G59) -> 205.25 | H60: =SUM(H51:H59) -> 0
A61: Total Specified Expenses | F61: =F47+F60 -> 557.0618462 | G61: =G47+G60 -> 557.0618462 | H61: =H47+H60 -> 0
A62: Returns Above Total Specified Expenses | F62: =F12-F61 -> -173.0618462 | G62: =G12-G61 -> -173.0618462 | H62: =H12-H61 -> 0
A64: If you have questions, contact Andrew Wright at 806-746-6101
A67: Supported by a grant from the
A68: Texas Cotton State Support Committee

Sheet Irr Sorghum
A2: Estimated Costs and Returns per Acre
A3: Irrigated Sorghum
A4: Projected for 2024
H5: Rental Agreement | I5: Share
A6: Item | B6: Quantity | C6: Unit | D6: Price | E6: Owner | H6: Share | I6: Cash
E7: Share | F7: Total | G7: Operator | H7: Owner
A8: Income
A9: sorghum grain | B9: 45 | C9: cwt | D9: ='Universal Input Prices'!$C$15 -> 8.6 | E9: 0 | F9: =(D9*B9) -> 387 | G9: =F9*(1-E9) -> 387 | H9: =IF(H6="Cash", D57,F9*E9) -> 0
A10: grazing stalks | B10: 1 | C10: acre | D10: 0 | E10: 0 | F10: =(D10*B10) -> 0 | G10: =F10*(1-E10) -> 0 | H10: =IF(H6="Cash", 0,F10*E10) -> 0
A12: Total Income | F12: =F9+F10 -> 387 | G12: =G9+G10 -> 387 | H12: =H9+H10 -> 0
A14: Variable Costs
A15: Seed | B15: 4.5 | C15: lbs | D15: 2.4 | E15: 0 | F15: =(D15*B15) -> 10.8 | G15: =F15*(1-E15) -> 10.8 | H15: =F15*E15 -> 0
A16: Fertilizer
A17: fert (N) - liquid | B17: 90 | C17: lbs | D17: =IF(A17="",0,VLOOKUP(A17,'Universal Input Prices'!$B$29:$C$33, 2)) -> 0.6109375 | E17: 0 | F17: =(D17*B17) -> 54.984375 | G17: =F17*(1-E17) -> 54.984375 | H17: =F17*E17 -> 0
A18: fert (P) - liquid | B18: 40 | C18: lbs | D18: =IF(A18="",0,VLOOKUP(A18,'Universal Input Prices'!$B$29:$C$33, 2)) -> 0.8838235294 | E18: 0 | F18: =(D18*B18) -> 35.35294118 | G18: =F18*(1-E18) -> 35.35294118 | H18: =F18*E18 -> 0
A19: fert (N) - NH3 | B19: 0 | C19: lbs | D19: =IF(A19="",0,VLOOKUP(A19,'Universal Input Prices'!$B$29:$C$33, 2)) -> 0.4695121951 | E19: 0 | F19: 0 | G19: =F19*(1-E19) -> 0 | H19: =F19*E19 -> 0
A20: Field Operations
A21: herbicide & application | B21: 1 | C21: acre | D21: 21.12 | E21: 0 | F21: =(D21*B21) -> 21.12 | G21: =F21*(1-E21) -> 21.12 | H21: =F21*E21 -> 0
A22: fertilizer application | B22: 1 | C22: acre | D22: 11.75 | E22: 0 | F22: =(D22*B22) -> 11.75 | G22: 11.75 | H22: 0
A23: insecticide & application | B23: 1 | C23: acre | D23: 25 | E23: 0 | F23: 25 | G23: 25 | H23: 0
A24: custom harvest & haul | B24: =B9 -> 45 | C24: cwt | D24: 0.6 | E24: 0 | F24: 27 | G24: 27 | H24: 0
A25: hoeing | B25: 1 | C25: acre | D25: 0 | E25: 0 | F25: 0 | G25: 0 | H25: 0
A26: scouting | B26: 1 | C26: acre | D26: 0 | E26: 0 | F26: 0 | G26: =F26*(1-E26) -> 0 | H26: =F26*E26 -> 0
A27: other | B27: 1 | C27: acre | D27: 0 | E27: 0 | F27: 0 | G27: 0 | H27: 0
A28: other | B28: 1 | C28: acre | D28: 0 | E28: 0 | F28: 0 | G28: 0 | H28: 0
A29: other | B29: 1 | C29: acre | D29: 0 | E29: 0 | F29: 0 | G29: 0 | H29: 0
A30: Crop Insurance | B30: 1 | C30: acre | D30: 29 | E30: 0 | F30: 29 | G30: 29 | H30: 0
A31: Operator Labor & Hand Labor | B31: 1.3 | C31: hours | D31: ='Universal Input Prices'!$C$35 -> 12 | E31: 0 | F31: 15.6 | G31: 15.6 | H31: 0
A32: Irrigation Labor | B32: 0.75 | C32: hours | D32: ='Universal Input Prices'!$C$35 -> 12 | E32: 0 | F32: 9 | G32: 9 | H32: 0
A33: Diesel Fuel - Tractors | B33: 3.2 | C33: gallons | D33: ='Universal Input Prices'!$C$36 -> 2.999 | E33: 0 | F33: 9.5968 | G33: 9.5968 | H33: 0
A34: Gasoline - Pickup | B34: 2 | C34: gallons | D34: ='Universal Input Prices'!$C$37 -> 2.539 | E34: 0 | F34: 5.078 | G34: 5.078 | H34: 0
A35: Irrigation Fuel | B35: 9 | C35: ac-in | D35: ='Universal Input Prices'!$C$38 -> 10 | E35: 0 | F35: 90 | G35: 90 | H35: 0
A36: Pumping Days | B36: 68
A37: Calculated GPM capacity per acre needed | B37: =B35*18.85694/B36 -> 2.495771471
A38: Repair & Maintenance
A39: Implements | B39: 1 | C39: acre | D39: 3 | E39: 0 | F39: =(D39*B39) -> 3 | G39: =F39*(1-E39) -> 3 | H39: =F39*E39 -> 0
A40: Tractors | B40: 1 | C40: acre | D40: 6 | E40: 0 | F40: =(D40*B40) -> 6 | G40: =F40*(1-E40) -> 6 | H40: =F40*E40 -> 0
A41: Irrigation-Above Ground | B41: =Sorghum_Inches -> 9 | C41: ac-in | D41: 1 | E41: 0 | F41: 9 | G41: =F41*(1-E41) -> 9 | H41: =F41*E41 -> 0
A42: Irrigation-Below Ground | B42: 1 | C42: acre | D42: 6.75 | E42: 0 | F42: 6.75 | G42: =F42*(1-E42) -> 6.75 | H42: =F42*E42 -> 0
A43: Pickup | B43: 1 | C43: acre | D43: 0.5 | E43: 0 | F43: 0.5 | G43: =F43*(1-E43) -> 0.5 | H43: =F43*E43 -> 0
A44: Interest-operating capital | B44: ='Universal Input Prices'!$C$39 -> 0.09 | F44: =(SUM(F15:F23,F25:F43))*$B44/2 -> 15.41394523 | G44: =(SUM(G15:G23,G25:G43))*$B44/2 -> 15.41394523 | H44: 0
A46: Total Variable Costs | F46: =SUM(F15:F44) -> 384.9460614 | G46: =SUM(G15:G44) -> 384.9460614 | H46: =SUM(H15:H44) -> 0
A47: Returns Above Variable Costs | F47: =F12-F46 -> 2.053938596 | G47: =G12-G46 -> 2.053938596 | H47: =H12-H46 -> 0
A49: Fixed Costs
A50: Implements | B50: 1 | C50: acre | D50: 10 | E50: 0 | F50: =(D50*B50) -> 10 | G50: =F50*(1-E50) -> 10 | H50: =F50*E50 -> 0
A51: Tractors | B51: 1 | C51: acre | D51: 12 | E51: 0 | F51: =(D51*B51) -> 12 | G51: 12 | H51: 0
A52: Irrigation-Above Ground | B52: 1 | C52: acre | D52: 40 | E52: 0 | F52: 40 | G52: 40 | H52: 0
A53: Irrigation-Below Ground | B53: 1 | C53: acre | D53: 15 | E53: 0 | F53: 15 | G53: 15 | H53: 0
A54: Pickup | B54: 1 | C54: acre | D54: 1.25 | E54: 0 | F54: 1.25 | G54: 1.25 | H54: 0
A55: Management | B55: 1 | C55: acre | D55: 25 | E55: 0 | F55: 25 | G55: 25 | H55: 0
A56: Whole Farm Insurance | B56: 1 | C56: acre | D56: 2 | E56: 0 | F56: 2 | G56: 2 | H56: 0
A57: Land | B57: 1 | C57: acre | D57: 100 | E57: 0 | F57: 100 | G57: =IF($H$6="Cash",D57,F57*(1-E57)) -> 100 | H57: =IF($H$6="Cash",0,F57*E57) -> 0
A58: Property Tax | B58: 1 | C58: acre | D58: 0 | E58: 0 | F58: 0 | G58: 0 | H58: 0
A59: Total Fixed Expenses | F59: =SUM(F50:F58) -> 205.25 | G59: =SUM(G50:G58) -> 205.25 | H59: =SUM(H50:H58) -> 0
A60: Total Specified Expenses | F60: =F46+F59 -> 590.1960614 | G60: =G46+G59 -> 590.1960614 | H60: =H46+H59 -> 0
A61: Returns Above Total Specified Expenses | F61: =F12-F60 -> -203.1960614 | G61: =G12-G60 -> -203.1960614 | H61: =H12-H60 -> 0
A63: If you have questions, contact Andrew Wright at 806-746-6101
A66: Supported by a grant from the
A67: Texas Cotton State Support Committee

Sheet Irr Sorghum Silage
A2: Estimated Costs and Returns per Acre
A3: Irrigated Sorghum Silage
A4: Projected for 2024
H5: Rental Agreement | I5: Share
A6: Item | B6: Quantity | C6: Unit | D6: Price | E6: Owner | H6: Share | I6: Cash
E7: Share | F7: Total | G7: Operator | H7: Owner
A8: Income
A9: sorghum silage | B9: 24 | C9: tons | D9: ='Universal Input Prices'!$C$17 -> 48 | E9: 0 | F9: =(D9*B9) -> 1152 | G9: =F9*(1-E9) -> 1152 | H9: =IF(H6="Cash", D56,F9*E9) -> 0
A11: Total Income | F11: =F9 -> 1152 | G11: =G9 -> 1152 | H11: =H9 -> 0
A13: Variable Costs
A14: Seed | B14: 7 | C14: lbs | D14: 2.4 | E14: 0 | F14: =(D14*B14) -> 16.8 | G14: =F14*(1-E14) -> 16.8 | H14: =F14*E14 -> 0
A15: Fertilizer
A16: fert (N) - liquid | B16: 70 | C16: lbs | D16: =IF(A16="",0,VLOOKUP(A16,'Universal Input Prices'!$B$29:$C$33, 2)) -> 0.6109375 | E16: 0 | F16: =(D16*B16) -> 42.765625 | G16: =F16*(1-E16) -> 42.765625 | H16: =F16*E16 -> 0
A17: fert (P) - liquid | B17: 88 | C17: lbs | D17: =IF(A17="",0,VLOOKUP(A17,'Universal Input Prices'!$B$29:$C$33, 2)) -> 0.8838235294 | E17: 0 | F17: =(D17*B17) -> 77.77647059 | G17: =F17*(1-E17) -> 77.77647059 | H17: =F17*E17 -> 0
A18: fert (N) - NH3 | B18: 150 | C18: lbs | D18: =IF(A18="",0,VLOOKUP(A18,'Universal Input Prices'!$B$29:$C$33, 2)) -> 0.4695121951 | E18: 0 | F18: 70.42682927 | G18: =F18*(1-E18) -> 70.42682927 | H18: =F18*E18 -> 0
A19: Field Operations
A20: herbicide & application | B20: 1 | C20: acre | D20: 10.5 | E20: 0 | F20: =(D20*B20) -> 10.5 | G20: =F20*(1-E20) -> 10.5 | H20: =F20*E20 -> 0
A21: fertilizer application | B21: 1 | C21: acre | D21: 11.75 | E21: 0 | F21: =(D21*B21) -> 11.75 | G21: 11.75 | H21: 0
A22: insecticide & application | B22: 1 | C22: acre | D22: 4.29 | E22: 0 | F22: 4.29 | G22: 4.29 | H22: 0
A23: custom harvest & haul | B23: =$B$9 -> 24 | C23: tons | D23: 7 | E23: 0 | F23: 168 | G23: 168 | H23: 0
A24: crop consultant | B24: 1 | C24: acre | D24: 0 | E24: 0 | F24: 0 | G24: 0 | H24: 0
A25: scouting | B25: 1 | C25: acre | D25: 0 | E25: 0 | F25: 0 | G25: =F25*(1-E25) -> 0 | H25: =F25*E25 -> 0
A26: other | B26: 1 | C26: acre | D26: 0 | E26: 0 | F26: 0 | G26: 0 | H26: 0
A27: other | B27: 1 | C27: acre | D27: 0 | E27: 0 | F27: 0 | G27: 0 | H27: 0
A28: other | B28: 1 | C28: acre | D28: 0 | E28: 0 | F28: 0 | G28: 0 | H28: 0
A29: Crop Insurance | B29: 1 | C29: acre | D29: 23 | E29: 0 | F29: 23 | G29: 23 | H29: 0
A30: Operator Labor & Hand Labor | B30: 1.3 | C30: hour | D30: ='Universal Input Prices'!$C$35 -> 12 | E30: 0 | F30: 15.6 | G30: 15.6 | H30: 0
A31: Irrigation Labor | B31: 1 | C31: hours | D31: ='Universal Input Prices'!$C$35 -> 12 | E31: 0 | F31: 12 | G31: 12 | H31: 0
A32: Diesel Fuel - Tractors | B32: 3.2 | C32: gallons | D32: ='Universal Input Prices'!$C$36 -> 2.999 | E32: 0 | F32: 9.5968 | G32: 9.5968 | H32: 0
A33: Gasoline - Pickup | B33: 2 | C33: gallons | D33: ='Universal Input Prices'!$C$37 -> 2.539 | E33: 0 | F33: 5.078 | G33: 5.078 | H33: 0
A34: Irrigation Fuel | B34: 16 | C34: ac-in | D34: ='Universal Input Prices'!$C$38 -> 10 | E34: 0 | F34: 160 | G34: 160 | H34: 0
A35: Pumping Days | B35: 70.7
A36: Calculated GPM capacity per acre needed | B36: =B34*18.85694/B35 -> 4.267482885
A37: Repair & Maintenance | G37: 0 | H37: 0
A38: Implements | B38: 1 | C38: acre | D38: 3 | E38: 0 | F38: =(D38*B38) -> 3 | G38: 3 | H38: 0
A39: Tractors | B39: 1 | C39: acre | D39: 6 | E39: 0 | F39: =(D39*B39) -> 6 | G39: 6 | H39: 0
A40: Irrigation-Above Ground | B40: =B34 -> 16 | C40: ac-in | D40: 1 | E40: 0 | F40: 16 | G40: 16 | H40: 0
A41: Irrigation-Below Ground | B41: 1 | C41: acre | D41: 11.25 | E41: 0 | F41: 11.25 | G41: 11.25 | H41: 0
A42: Pickup | B42: 1 | C42: acre | D42: 0.5 | E42: 0 | F42: 0.5 | G42: 0.5 | H42: 0
A43: Interest-operating capital | B43: ='Universal Input Prices'!$C$39 -> 0.09 | F43: =(SUM(F14:F22,F24:F42))*$B43/2 -> 22.33501762 | G43: =(SUM(G14:G22,G24:G42))*$B43/2 -> 22.33501762 | H43: 0
A45: Total Variable Costs | F45: =SUM(F14:F43) -> 686.6687425 | G45: =SUM(G14:G43) -> 686.6687425 | H45: =SUM(H14:H43) -> 0
A46: Returns Above Variable Costs | F46: =F11-F45 -> 465.3312575 | G46: =G11-G45 -> 465.3312575 | H46: =H11-H45 -> 0
A48: Fixed Costs
A49: Implements | B49: 1 | C49: acre | D49: 10 | E49: 0 | F49: =(D49*B49) -> 10 | G49: =F49*(1-E49) -> 10 | H49: =F49*E49 -> 0
A50: Tractors | B50: 1 | C50: acre | D50: 12 | E50: 0 | F50: =(D50*B50) -> 12 | G50: 12 | H50: 0
A51: Irrigation-Above Ground | B51: 1 | C51: acre | D51: 40 | E51: 0 | F51: 40 | G51: 40 | H51: 0
A52: Irrigation-Below Ground | B52: 1 | C52: acre | D52: 15 | E52: 0 | F52: 15 | G52: 15 | H52: 0
A53: Pickup | B53: 1 | C53: acre | D53: 1.25 | E53: 0 | F53: 1.25 | G53: 1.25 | H53: 0
A54: Management | B54: 1 | C54: acre | D54: 25 | E54: 0 | F54: 25 | G54: 25 | H54: 0
A55: Whole Farm Insurance | B55: 1 | C55: acre | D55: 2 | E55: 0 | F55: 2 | G55: 2 | H55: 0
A56: Land | B56: 1 | C56: acre | D56: 100 | E56: 0 | F56: 100 | G56: =IF($H$6="Cash",D56,F56*(1-E56)) -> 100 | H56: =IF($H$6="Cash",0,F56*E56) -> 0
A57: Property Tax | B57: 1 | C57: acre | D57: 0 | E57: 0 | F57: 0 | G57: 0 | H57: 0
A58: Total Fixed Expenses | F58: =SUM(F49:F57) -> 205.25 | G58: =SUM(G49:G57) -> 205.25 | H58: =SUM(H49:H57) -> 0
A59: Total Specified Expenses | F59: =F45+F58 -> 891.9187425 | G59: =G45+G58 -> 891.9187425 | H59: =H45+H58 -> 0
A60: Returns Above Total Specified Expenses | F60: =F11-F59 -> 260.0812575 | G60: =G11-G59 -> 260.0812575 | H60: =H11-H59 -> 0
A62: If you have questions, contact Andrew Wright at 806-746-6101
A65: Supported by a grant from the
A66: Texas Cotton State Support Committee

Sheet Organic Peanuts
A2: Estimated Costs and Returns per Acre
A3: Irrigated Peanuts-Organic
A4: Projected for 2024
H5: Rental Agreement | I5: Share
A6: Item | B6: Quantity | C6: Unit | D6: Price | E6: Owner | H6: Share | I6: Cash
E7: Share | F7: Total | G7: Operator | H7: Owner
A8: Income
A9: Organic Peanuts | B9: 1.5 | C9: ton | D9: ='Universal Input Prices'!$C$11 -> 1200 | E9: 0 | F9: =(D9*B9) -> 1800 | G9: =F9*(1-E9) -> 1800 | H9: =IF(H6="Cash", D58,F9*E9) -> 0
A11: Total Income | F11: =F9 -> 1800 | G11: =G9 -> 1800 | H11: =H9 -> 0
A13: Variable Costs
A14: Seed
A15: peanut seed | B15: 200 | C15: lbs | D15: 0.75 | E15: 0 | F15: =(D15*B15) -> 150 | G15: =F15*(1-E15) -> 150 | H15: =F15*E15 -> 0
A16: innoculant | B16: 0 | C16: acre | D16: 7 | E16: 0 | F16: =(D16*B16) -> 0 | G16: =F16*(1-E16) -> 0 | H16: =F16*E16 -> 0
A17: Fertilizer
A18: fert (P) - liquid | B18: 0 | C18: lbs | D18: =IF(A18="",0,VLOOKUP(A18,'Universal Input Prices'!$B$29:$C$33, 2)) -> 0.8838235294 | E18: 0 | F18: =(D18*B18) -> 0 | G18: =F18*(1-E18) -> 0 | H18: =F18*E18 -> 0
B19: 0 | C19: lbs | D19: =IF(A19="",0,VLOOKUP(A19,'Universal Input Prices'!$B$29:$C$33, 2)) -> 0 | E19: 0 | F19: =(D19*B19) -> 0 | G19: =F19*(1-E19) -> 0 | H19: =F19*E19 -> 0
B20: 0 | C20: lbs | D20: =IF(A20="",0,VLOOKUP(A20,'Universal Input Prices'!$B$29:$C$33, 2)) -> 0 | E20: 0 | F20: 0 | G20: =F20*(1-E20) -> 0 | H20: =F20*E20 -> 0
A21: Field Operations
A22: herbicide & application | B22: 0 | C22: acre | D22: 0 | E22: 0 | F22: =(D22*B22) -> 0 | G22: =F22*(1-E22) -> 0 | H22: =F22*E22 -> 0
A23: fertilizer application | B23: 0 | C23: acre | D23: 0 | E23: 0 | F23: =(D23*B23) -> 0 | G23: 0 | H23: 0
A24: Dig and Shake | B24: 1 | C24: acre | D24: 25 | E24: 0 | F24: 25 | G24: 25 | H24: 0
A25: custom harvest & haul | B25: =$B$9 -> 1.5 | C25: bu | D25: 60 | E25: 0 | F25: 90 | G25: 90 | H25: 0
A26: Drying | B26: 1.5 | C26: ton | D26: 30 | E26: 0 | F26: 45 | G26: 45 | H26: 0
A27: scouting | B27: 1 | C27: acre | D27: 10 | E27: 0 | F27: 10 | G27: =F27*(1-E27) -> 10 | H27: =F27*E27 -> 0
A28: Hoeing | B28: 4 | C28: acre | D28: 15 | E28: 0 | F28: 60 | G28: 60 | H28: 0
A29: other | B29: 1 | C29: acre | D29: 0 | E29: 0 | F29: 0 | G29: 0 | H29: 0
A30: other | B30: 1 | C30: acre | D30: 0 | E30: 0 | F30: 0 | G30: 0 | H30: 0
A31: Crop Insurance | B31: 1 | C31: acre | D31: 54 | E31: 0 | F31: 54 | G31: 54 | H31: 0
A32: Operator Labor & Hand Labor | B32: 3.18 | C32: hour | D32: ='Universal Input Prices'!$C$35 -> 12 | E32: 0 | F32: 38.16 | G32: 38.16 | H32: 0
A33: Irrigation Labor | B33: 2.69 | C33: hours | D33: ='Universal Input Prices'!$C$35 -> 12 | E33: 0 | F33: 32.28 | G33: 32.28 | H33: 0
A34: Diesel Fuel - Tractors | B34: 14.68 | C34: gallons | D34: ='Universal Input Prices'!$C$36 -> 2.999 | E34: 0 | F34: 44.02532 | G34: 44.02532 | H34: 0
A35: Gasoline - Pickup | B35: 2.04 | C35: gallons | D35: ='Universal Input Prices'!$C$37 -> 2.539 | E35: 0 | F35: 5.17956 | G35: 5.17956 | H35: 0
A36: Irrigation Fuel | B36: 22 | C36: ac-in | D36: ='Universal Input Prices'!$C$38 -> 10 | E36: 0 | F36: 220 | G36: 220 | H36: 0
A37: Pumping Days | B37: 94.2
A38: Calculated GPM capacity per acre needed | B38: =B36*18.85694/B37 -> 4.403956263
A39: Repair & Maintenance | G39: 0 | H39: 0
A40: Implements | B40: 1 | C40: acre | D40: 9 | E40: 0 | F40: =(D40*B40) -> 9 | G40: 9 | H40: 0
A41: Tractors | B41: 1 | C41: acre | D41: 18 | E41: 0 | F41: =(D41*B41) -> 18 | G41: 18 | H41: 0
A42: Irrigation-Above Ground | B42: =B36 -> 22 | C42: ac-in | D42: 1 | E42: 0 | F42: 22 | G42: 22 | H42: 0
A43: Irrigation-Below Ground | B43: 1 | C43: acre | D43: 25 | E43: 0 | F43: 25 | G43: 25 | H43: 0
A44: Pickup | B44: 1 | C44: acre | D44: 0.5 | E44: 0 | F44: 0.5 | G44: 0.5 | H44: 0
A45: Interest-operating capital | B45: ='Universal Input Prices'!$C$39 -> 0.09 | F45: =(SUM(F15:F24,F26:F44))*$B45/2 -> 34.1165196 | G45: =(SUM(G15:G24,G26:G44))*$B45/2 -> 34.1165196 | H45: =(SUM(H15:H24,H26:H44))*$B45/2 -> 0
A47: Total Variable Costs | F47: =SUM(F15:F45) -> 882.2613996 | G47: =SUM(G15:G45) -> 882.2613996 | H47: =SUM(H15:H45) -> 0
A48: Returns Above Variable Costs | F48: =F11-F47 -> 917.7386004 | G48: =G11-G47 -> 917.7386004 | H48: =H11-H47 -> 0
A50: Fixed Costs
A51: Implements | B51: 1 | C51: acre | D51: 10 | E51: 0 | F51: =(D51*B51) -> 10 | G51: =F51*(1-E51) -> 10 | H51: =F51*E51 -> 0
A52: Tractors | B52: 1 | C52: acre | D52: 12 | E52: 0 | F52: =(D52*B52) -> 12 | G52: 12 | H52: 0
A53: Irrigation-Above Ground | B53: 1 | C53: acre | D53: 40 | E53: 0 | F53: 40 | G53: 40 | H53: 0
A54: Irrigation-Below Ground | B54: 1 | C54: acre | D54: 15 | E54: 0 | F54: 15 | G54: 15 | H54: 0
A55: Pickup | B55: 1 | C55: acre | D55: 1.25 | E55: 0 | F55: 1.25 | G55: 1.25 | H55: 0
A56: Management | B56: 1 | C56: acre | D56: 25 | E56: 0 | F56: 25 | G56: 25 | H56: 0
A57: Whole Farm Insurance | B57: 1 | C57: acre | D57: 2 | E57: 0 | F57: 2 | G57: 2 | H57: 0
A58: Land | B58: 1 | C58: acre | D58: 100 | E58: 0 | F58: 100 | G58: =IF($H$6="Cash",D58,F58*(1-E58)) -> 100 | H58: =IF($H$6="Cash",0,F58*E58) -> 0
A59: Property Tax | B59: 1 | C59: acre | D59: 0 | E59: 0 | F59: 0 | G59: 0 | H59: 0
A60: Total Fixed Expenses | F60: =SUM(F51:F59) -> 205.25 | G60: =SUM(G51:G59) -> 205.25 | H60: =SUM(H51:H59) -> 0
A61: Total Specified Expenses | F61: =F47+F60 -> 1087.5114 | G61: =G47+G60 -> 1087.5114 | H61: =H47+H60 -> 0
A62: Returns Above Total Specified Expenses | F62: =F11-F61 -> 712.4886004 | G62: =G11-G61 -> 712.4886004 | H62: =H11-H61 -> 0
A64: If you have questions, contact Andrew Wright at 806-746-6101
A67: Supported by a grant from the
A68: Texas Cotton State Support Committee

Sheet Irr Sunflowers-Confection
A2: Estimated Costs and Returns per Acre
A3: Irrigated Sunflowers-Confectionary
A4: Projected for 2024
H5: Rental Agreement | I5: Share
A6: Item | B6: Quantity | C6: Unit | D6: Price | E6: Owner | H6: Share | I6: Cash
E7: Share | F7: Total | G7: Operator | H7: Owner
A8: Income
A9: Confectionary sunflower | B9: 2000 | C9: lbs | D9: =Sunflower_Conf_Price*$B$10+Sunflower_Conf_S_Price*(1-$B$10) -> 0.30002 | E9: 0 | F9: =(D9*B9) -> 600.04 | G9: =F9*(1-E9) -> 600.04 | H9: =IF(H6="Cash", D58,F9*E9) -> 0
A10: Expected % Large | B10: 0.667
A12: Total Income | F12: =SUM(F8:F11) -> 600.04 | G12: =SUM(G8:G11) -> 600.04 | H12: =SUM(H8:H11) -> 0
A14: Variable Costs
A15: Seed | B15: 1 | C15: acre | D15: 21 | E15: 0 | F15: =(D15*B15) -> 21 | G15: =F15*(1-E15) -> 21 | H15: =F15*E15 -> 0
A16: Fertilizer
A17: fert (P) - liquid | B17: 24 | C17: lbs | D17: =IF(A17="",0,VLOOKUP(A17,'Universal Input Prices'!$B$29:$C$33, 2)) -> 0.8838235294 | E17: 0 | F17: =(D17*B17) -> 21.21176471 | G17: =F17*(1-E17) -> 21.21176471 | H17: =F17*E17 -> 0
A18: fert (N) - liquid | B18: 70 | C18: lbs | D18: =IF(A18="",0,VLOOKUP(A18,'Universal Input Prices'!$B$29:$C$33, 2)) -> 0.6109375 | E18: 0 | F18: =(D18*B18) -> 42.765625 | G18: =F18*(1-E18) -> 42.765625 | H18: =F18*E18 -> 0
B19: 0 | C19: lbs | D19: =IF(A19="",0,VLOOKUP(A19,'Universal Input Prices'!$B$29:$C$33, 2)) -> 0 | E19: 0 | F19: 0 | G19: =F19*(1-E19) -> 0 | H19: =F19*E19 -> 0
A20: Field Operations
A21: herbicide & application | B21: 1 | C21: acre | D21: 35 | E21: 0 | F21: =(D21*B21) -> 35 | G21: =F21*(1-E21) -> 35 | H21: =F21*E21 -> 0
A22: insecticide & application | B22: 1 | C22: acre | D22: 25 | E22: 0 | F22: =(D22*B22) -> 25 | G22: 25 | H22: 0
A23: custom harvest & haul | B23: 1 | C23: acre | D23: 20 | E23: 0 | F23: 20 | G23: 20 | H23: 0
A24: custom harvest & haul | B24: =B9/100 -> 20 | C24: cwt | D24: 0.3 | E24: 0 | F24: 6 | G24: 6 | H24: 0
A25: other | B25: 1 | C25: acre | D25: 0 | E25: 0 | F25: 0 | G25: 0 | H25: 0
A26: other | B26: 1 | C26: acre | D26: 0 | E26: 0 | F26: 0 | G26: 0 | H26: 0
A27: other | B27: 1 | C27: acre | D27: 0 | E27: 0 | F27: 0 | G27: 0 | H27: 0
A28: other | B28: 1 | C28: acre | D28: 0 | E28: 0 | F28: 0 | G28: 0 | H28: 0
A29: other | B29: 1 | C29: acre | D29: 0 | E29: 0 | F29: 0 | G29: 0 | H29: 0
A30: other | B30: 1 | C30: acre | D30: 0 | E30: 0 | F30: 0 | G30: 0 | H30: 0
A31: Crop Insurance | B31: 1 | C31: acre | D31: 17 | E31: 0 | F31: 17 | G31: 17 | H31: 0
A32: Operator Labor & Hand Labor | B32: 1.5 | C32: hours | D32: ='Universal Input Prices'!$C$35 -> 12 | E32: 0 | F32: 18 | G32: 18 | H32: 0
A33: Irrigation Labor | B33: 0.75 | C33: hours | D33: ='Universal Input Prices'!$C$35 -> 12 | E33: 0 | F33: 9 | G33: 9 | H33: 0
A34: Diesel Fuel - Tractors | B34: 3.8 | C34: gallons | D34: ='Universal Input Prices'!$C$36 -> 2.999 | E34: 0 | F34: 11.3962 | G34: 11.3962 | H34: 0
A35: Gasoline - Pickup | B35: 2 | C35: gallons | D35: ='Universal Input Prices'!$C$37 -> 2.539 | E35: 0 | F35: 5.078 | G35: 5.078 | H35: 0
A36: Irrigation Fuel | B36: 8 | C36: ac-in | D36: ='Universal Input Prices'!$C$38 -> 10 | E36: 0 | F36: 80 | G36: 80 | H36: 0
A37: Pumping Days | B37: 60.3
A38: Calculated GPM capacity per acre needed | B38: =B36*18.85694/B37 -> 2.501749917
A39: Repair & Maintenance
A40: Implements | B40: 1 | C40: acre | D40: 3 | E40: 0 | F40: =(D40*B40) -> 3 | G40: =F40*(1-E40) -> 3 | H40: =F40*E40 -> 0
A41: Tractors | B41: 1 | C41: acre | D41: 6 | E41: 0 | F41: =(D41*B41) -> 6 | G41: =F41*(1-E41) -> 6 | H41: =F41*E41 -> 0
A42: Irrigation-Above Ground | B42: =B36 -> 8 | C42: ac-in | D42: 1 | E42: 0 | F42: 8 | G42: =F42*(1-E42) -> 8 | H42: =F42*E42 -> 0
A43: Irrigation-Below Ground | B43: 1 | C43: acre | D43: 6 | E43: 0 | F43: 6 | G43: =F43*(1-E43) -> 6 | H43: =F43*E43 -> 0
A44: Pickup | B44: 1 | C44: acre | D44: 0.5 | E44: 0 | F44: 0.5 | G44: =F44*(1-E44) -> 0.5 | H44: =F44*E44 -> 0
A45: Interest-operating capital | B45: ='Universal Input Prices'!$C$39 -> 0.09 | F45: =(SUM(F15:F22,F25:F44))*$B45/2 -> 13.90282154 | G45: =(SUM(G15:G22,G25:G44))*$B45/2 -> 13.90282154 | H45: =(SUM(H15:H22,H25:H44))*$B45/2 -> 0
A47: Total Variable Costs | F47: =SUM(F15:F45) -> 348.8544112 | G47: =SUM(G15:G45) -> 348.8544112 | H47: =SUM(H15:H45) -> 0
A48: Returns Above Variable Costs | F48: =F12-F47 -> 251.1855888 | G48: =G12-G47 -> 251.1855888 | H48: =H12-H47 -> 0
A50: Fixed Costs
A51: Implements | B51: 1 | C51: acre | D51: 10 | E51: 0 | F51: =(D51*B51) -> 10 | G51: =F51*(1-E51) -> 10 | H51: =F51*E51 -> 0
A52: Tractors | B52: 1 | C52: acre | D52: 12 | E52: 0 | F52: =(D52*B52) -> 12 | G52: 12 | H52: 0
A53: Irrigation-Above Ground | B53: 1 | C53: acre | D53: 40 | E53: 0 | F53: 40 | G53: 40 | H53: 0
A54: Irrigation-Below Ground | B54: 1 | C54: acre | D54: 15 | E54: 0 | F54: 15 | G54: 15 | H54: 0
A55: Pickup | B55: 1 | C55: acre | D55: 1.25 | E55: 0 | F55: 1.25 | G55: 1.25 | H55: 0
A56: Management | B56: 1 | C56: acre | D56: 25 | E56: 0 | F56: 25 | G56: 25 | H56: 0
A57: Whole Farm Insurance | B57: 1 | C57: acre | D57: 2 | E57: 0 | F57: 2 | G57: 2 | H57: 0
A58: Land | B58: 1 | C58: acre | D58: 100 | E58: 0 | F58: 100 | G58: =IF($H$6="Cash",D58,F58*(1-E58)) -> 100 | H58: =IF($H$6="Cash",0,F58*E58) -> 0
A59: Property Tax | B59: 1 | C59: acre | D59: 0 | E59: 0 | F59: 0 | G59: 0 | H59: 0
A60: Total Fixed Expenses | F60: =SUM(F51:F59) -> 205.25 | G60: =SUM(G51:G59) -> 205.25 | H60: =SUM(H51:H59) -> 0
A61: Total Specified Expenses | F61: =F47+F60 -> 554.1044112 | G61: =G47+G60 -> 554.1044112 | H61: =H47+H60 -> 0
A62: Returns Above Total Specified Expenses | F62: =F12-F61 -> 45.93558876 | G62: =G12-G61 -> 45.93558876 | H62: =H12-H61 -> 0
A64: If you have questions, contact Andrew Wright at 806-746-6101
A67: Supported by a grant from the
A68: Texas Cotton State Support Committee

Sheet Irr Sunflowers-Oilseed
A2: Estimated Costs and Returns per Acre
A3: Irrigated Sunflowers-Oilseed
A4: Projected for 2024
H5: Rental Agreement | I5: Share
A6: Item | B6: Quantity | C6: Unit | D6: Price | E6: Owner | H6: Share | I6: Cash
E7: Share | F7: Total | G7: Operator | H7: Owner
A8: Income
A9: oilseed sunflower | B9: 2000 | C9: lbs | D9: ='Universal Input Prices'!$C$21 -> 0.2 | E9: 0 | F9: =(D9*B9) -> 400 | G9: =F9*(1-E9) -> 400 | H9: =IF(H6="Cash", D57,F9*E9) -> 0
A11: Total Income | F11: =SUM(F8:F10) -> 400 | G11: =SUM(G8:G10) -> 400 | H11: =SUM(H8:H10) -> 0
A13: Variable Costs
A14: Seed | B14: 1 | C14: acre | D14: 21 | E14: 0 | F14: =(D14*B14) -> 21 | G14: =F14*(1-E14) -> 21 | H14: =F14*E14 -> 0
A15: Fertilizer
A16: fert (P) - liquid | B16: 24 | C16: lbs | D16: =IF(A16="",0,VLOOKUP(A16,'Universal Input Prices'!$B$29:$C$33, 2)) -> 0.8838235294 | E16: 0 | F16: =(D16*B16) -> 21.21176471 | G16: =F16*(1-E16) -> 21.21176471 | H16: =F16*E16 -> 0
A17: fert (N) - liquid | B17: 70 | C17: lbs | D17: =IF(A17="",0,VLOOKUP(A17,'Universal Input Prices'!$B$29:$C$33, 2)) -> 0.6109375 | E17: 0 | F17: =(D17*B17) -> 42.765625 | G17: =F17*(1-E17) -> 42.765625 | H17: =F17*E17 -> 0
B18: 0 | C18: lbs | D18: =IF(A18="",0,VLOOKUP(A18,'Universal Input Prices'!$B$29:$C$33, 2)) -> 0 | E18: 0 | F18: 0 | G18: =F18*(1-E18) -> 0 | H18: =F18*E18 -> 0
A19: Field Operations
A20: herbicide & application | B20: 1 | C20: acre | D20: 34.75 | E20: 0 | F20: =(D20*B20) -> 34.75 | G20: =F20*(1-E20) -> 34.75 | H20: =F20*E20 -> 0
A21: seed insecticide & application | B21: 1 | C21: acre | D21: 12.63 | E21: 0 | F21: =(D21*B21) -> 12.63 | G21: 12.63 | H21: 0
A22: custom harvest & haul | B22: 1 | C22: acre | D22: 20 | E22: 0 | F22: 20 | G22: 20 | H22: 0
A23: custom harvest & haul | B23: =B9/100 -> 20 | C23: cwt | D23: 0.3 | E23: 0 | F23: 6 | G23: 6 | H23: 0
A24: other | B24: 1 | C24: acre | D24: 0 | E24: 0 | F24: 0 | G24: =F24*(1-E24) -> 0 | H24: =F24*E24 -> 0
A25: other | B25: 1 | C25: acre | D25: 0 | E25: 0 | F25: 0 | G25: =F25*(1-E25) -> 0 | H25: =F25*E25 -> 0
A26: other | B26: 1 | C26: acre | D26: 0 | E26: 0 | F26: 0 | G26: =F26*(1-E26) -> 0 | H26: =F26*E26 -> 0
A27: other | B27: 1 | C27: acre | D27: 0 | E27: 0 | F27: 0 | G27: 0 | H27: 0
A28: other | B28: 1 | C28: acre | D28: 0 | E28: 0 | F28: 0 | G28: 0 | H28: 0
A29: other | B29: 1 | C29: acre | D29: 0 | E29: 0 | F29: 0 | G29: 0 | H29: 0
A30: Crop Insurance | B30: 1 | C30: acre | D30: 13 | E30: 0 | F30: 13 | G30: 13 | H30: 0
A31: Operator Labor & Hand Labor | B31: 1.5 | C31: hours | D31: ='Universal Input Prices'!$C$35 -> 12 | E31: 0 | F31: 18 | G31: 18 | H31: 0
A32: Irrigation Labor | B32: 0.75 | C32: hours | D32: ='Universal Input Prices'!$C$35 -> 12 | E32: 0 | F32: 9 | G32: 9 | H32: 0
A33: Diesel Fuel - Tractors | B33: 3.8 | C33: gallons | D33: ='Universal Input Prices'!$C$36 -> 2.999 | E33: 0 | F33: 11.3962 | G33: 11.3962 | H33: 0
A34: Gasoline - Pickup | B34: 2 | C34: gallons | D34: ='Universal Input Prices'!$C$37 -> 2.539 | E34: 0 | F34: 5.078 | G34: 5.078 | H34: 0
A35: Irrigation Fuel | B35: 8 | C35: ac-in | D35: ='Universal Input Prices'!$C$38 -> 10 | E35: 0 | F35: 80 | G35: 80 | H35: 0
A36: Pumping Days | B36: 60.3
A37: Calculated GPM capacity per acre needed | B37: =B35*18.85694/B36 -> 2.501749917
A38: Repair & Maintenance
A39: Implements | B39: 1 | C39: acre | D39: 3 | E39: 0 | F39: =(D39*B39) -> 3 | G39: =F39*(1-E39) -> 3 | H39: =F39*E39 -> 0
A40: Tractors | B40: 1 | C40: acre | D40: 6 | E40: 0 | F40: =(D40*B40) -> 6 | G40: =F40*(1-E40) -> 6 | H40: =F40*E40 -> 0
A41: Irrigation-Above Ground | B41: =B35 -> 8 | C41: ac-in | D41: 1 | E41: 0 | F41: 8 | G41: =F41*(1-E41) -> 8 | H41: =F41*E41 -> 0
A42: Irrigation-Below Ground | B42: 1 | C42: acre | D42: 6 | E42: 0 | F42: 6 | G42: =F42*(1-E42) -> 6 | H42: =F42*E42 -> 0
A43: Pickup | B43: 1 | C43: acre | D43: 0.5 | E43: 0 | F43: 0.5 | G43: =F43*(1-E43) -> 0.5 | H43: =F43*E43 -> 0
A44: Interest-operating capital | B44: ='Universal Input Prices'!$C$39 -> 0.09 | F44: =(SUM(F14:F21,F24:F43))*$B44/2 -> 13.15492154 | G44: =(SUM(G14:G21,G24:G43))*$B44/2 -> 13.15492154 | H44: =(SUM(H14:H21,H24:H43))*$B44/2 -> 0
A46: Total Variable Costs | F46: =SUM(F14:F44) -> 331.4865112 | G46: =SUM(G14:G44) -> 331.4865112 | H46: =SUM(H14:H44) -> 0
A47: Returns Above Variable Costs | F47: =F11-F46 -> 68.51348876 | G47: =G11-G46 -> 68.51348876 | H47: =H11-H46 -> 0
A49: Fixed Costs
A50: Implements | B50: 1 | C50: acre | D50: 10 | E50: 0 | F50: =(D50*B50) -> 10 | G50: =F50*(1-E50) -> 10 | H50: =F50*E50 -> 0
A51: Tractors | B51: 1 | C51: acre | D51: 12 | E51: 0 | F51: =(D51*B51) -> 12 | G51: 12 | H51: 0
A52: Irrigation-Above Ground | B52: 1 | C52: acre | D52: 40 | E52: 0 | F52: 40 | G52: 40 | H52: 0
A53: Irrigation-Below Ground | B53: 1 | C53: acre | D53: 15 | E53: 0 | F53: 15 | G53: 15 | H53: 0
A54: Pickup | B54: 1 | C54: acre | D54: 1.25 | E54: 0 | F54: 1.25 | G54: 1.25 | H54: 0
A55: Management | B55: 1 | C55: acre | D55: 25 | E55: 0 | F55: 25 | G55: 25 | H55: 0
A56: Whole Farm Insurance | B56: 1 | C56: acre | D56: 2 | E56: 0 | F56: 2 | G56: 2 | H56: 0
A57: Land | B57: 1 | C57: acre | D57: 100 | E57: 0 | F57: 100 | G57: =IF($H$6="Cash",D57,F57*(1-E57)) -> 100 | H57: =IF($H$6="Cash",0,F57*E57) -> 0
A58: Property Tax | B58: 1 | C58: acre | D58: 0 | E58: 0 | F58: 0 | G58: 0 | H58: 0
A59: Total Fixed Expenses | F59: =SUM(F50:F58) -> 205.25 | G59: =SUM(G50:G58) -> 205.25 | H59: =SUM(H50:H58) -> 0
A60: Total Specified Expenses | F60: =F46+F59 -> 536.7365112 | G60: =G46+G59 -> 536.7365112 | H60: =H46+H59 -> 0
A61: Returns Above Total Specified Expenses | F61: =F11-F60 -> -136.7365112 | G61: =G11-G60 -> -136.7365112 | H61: =H11-H60 -> 0
A63: If you have questions, contact Andrew Wright at 806-746-6101
A66: Supported by a grant from the
A67: Texas Cotton State Support Committee

Sheet Irr Wheat
A2: Estimated Costs and Returns per Acre
A3: Irrigated Wheat
A4: Projected for 2024
H5: Rental Agreement | I5: Share
A6: Item | B6: Quantity | C6: Unit | D6: Price | E6: Owner | H6: Share | I6: Cash
E7: Share | F7: Total | G7: Operator | H7: Owner
A8: Income
A9: wheat | B9: 50 | C9: bu | D9: ='Universal Input Prices'!$C$22 -> 8.5 | E9: 0 | F9: =(D9*B9) -> 425 | G9: =F9*(1-E9) -> 425 | H9: =IF(H6="Cash", D56,F9*E9) -> 0
A10: grazing | B10: 136 | C10: lbs | D10: =Grazing_Price -> 0.5 | E10: 0 | F10: =(D10*B10) -> 68 | G10: =F10*(1-E10) -> 68 | H10: =IF(H6="Cash", 0,F10*E10) -> 0
A12: Total Income | F12: =F9+F10 -> 493 | G12: =G9+G10 -> 493 | H12: =H9+H10 -> 0
A14: Variable Costs
A15: Seed | B15: 1.5 | C15: bu | D15: 25 | E15: 0 | F15: =(D15*B15) -> 37.5 | G15: =F15*(1-E15) -> 37.5 | H15: =F15*E15 -> 0
A16: Fertilizer
A17: fert (N) - liquid | B17: 90 | C17: lbs | D17: =IF(A17="",0,VLOOKUP(A17,'Universal Input Prices'!$B$29:$C$33, 2)) -> 0.6109375 | E17: 0 | F17: =(D17*B17) -> 54.984375 | G17: =F17*(1-E17) -> 54.984375 | H17: =F17*E17 -> 0
A18: fert (P) - liquid | B18: 25 | C18: lbs | D18: =IF(A18="",0,VLOOKUP(A18,'Universal Input Prices'!$B$29:$C$33, 2)) -> 0.8838235294 | E18: 0 | F18: =(D18*B18) -> 22.09558824 | G18: =F18*(1-E18) -> 22.09558824 | H18: =F18*E18 -> 0
A19: fert (N) - NH3 | B19: 0 | C19: lbs | D19: =IF(A19="",0,VLOOKUP(A19,'Universal Input Prices'!$B$29:$C$33, 2)) -> 0.4695121951 | E19: 0 | F19: 0 | G19: =F19*(1-E19) -> 0 | H19: =F19*E19 -> 0
A20: Field Operations
A21: herbicide & application | B21: 1 | C21: acre | D21: 0 | E21: 0 | F21: =(D21*B21) -> 0 | G21: =F21*(1-E21) -> 0 | H21: =F21*E21 -> 0
A22: fertilizer application | B22: 1 | C22: acre | D22: 11.75 | E22: 0 | F22: =(D22*B22) -> 11.75 | G22: 11.75 | H22: 0
A23: insecticide & application | B23: 1 | C23: acre | D23: 11 | E23: 0 | F23: 11 | G23: 11 | H23: 0
A24: custom harvest & haul | B24: =B9 -> 50 | C24: bu | D24: 0.5 | E24: 0 | F24: 25 | G24: 25 | H24: 0
A25: scouting | B25: 1 | C25: acre | D25: 0 | E25: 0 | F25: 0 | G25: =F25*(1-E25) -> 0 | H25: =F25*E25 -> 0
A26: other | B26: 1 | C26: acre | D26: 0 | E26: 0 | F26: 0 | G26: 0 | H26: 0
A27: other | B27: 1 | C27: acre | D27: 0 | E27: 0 | F27: 0 | G27: 0 | H27: 0
A28: other | B28: 1 | C28: acre | D28: 0 | E28: 0 | F28: 0 | G28: 0 | H28: 0
A29: Crop Insurance | B29: 1 | C29: acre | D29: 23 | E29: 0 | F29: 23 | G29: 23 | H29: 0
A30: Operator Labor & Hand Labor | B30: 1 | C30: hours | D30: ='Universal Input Prices'!$C$35 -> 12 | E30: 0 | F30: 12 | G30: 12 | H30: 0
A31: Irrigation Labor | B31: 1 | C31: hours | D31: ='Universal Input Prices'!$C$35 -> 12 | E31: 0 | F31: 12 | G31: 12 | H31: 0
A32: Diesel Fuel - Tractors | B32: 2.4 | C32: gallons | D32: ='Universal Input Prices'!$C$36 -> 2.999 | E32: 0 | F32: 7.1976 | G32: 7.1976 | H32: 0
A33: Gasoline - Pickup | B33: 2 | C33: gallons | D33: ='Universal Input Prices'!$C$37 -> 2.539 | E33: 0 | F33: 5.078 | G33: 5.078 | H33: 0
A34: Irrigation Fuel | B34: 14 | C34: ac-in | D34: ='Universal Input Prices'!$C$38 -> 10 | E34: 0 | F34: 140 | G34: 140 | H34: 0
A35: Pumping Days | B35: 94.2
A36: Calculated GPM capacity per acre needed | B36: =B34*18.85694/B35 -> 2.802517622
A37: Repair & Maintenance
A38: Implements | B38: 1 | C38: acre | D38: 3 | E38: 0 | F38: =(D38*B38) -> 3 | G38: 3 | H38: 0
A39: Tractors | B39: 1 | C39: acre | D39: 6 | E39: 0 | F39: =(D39*B39) -> 6 | G39: 6 | H39: 0
A40: Irrigation-Above Ground | B40: =B34 -> 14 | C40: ac-in | D40: 1 | E40: 0 | F40: 14 | G40: 14 | H40: 0
A41: Irrigation-Below Ground | B41: 1 | C41: acre | D41: 11.25 | E41: 0 | F41: 11.25 | G41: 11.25 | H41: 0
A42: Pickup | B42: 1 | C42: acre | D42: 0.5 | E42: 0 | F42: 0.5 | G42: 0.5 | H42: 0
A43: Interest-operating capital | B43: ='Universal Input Prices'!$C$39 -> 0.09 | F43: =(SUM(F15:F23,F25:F42))*$B43/2 -> 16.71100035 | G43: =(SUM(G15:G23,G25:G42))*$B43/2 -> 16.71100035 | H43: =(SUM(H15:H23,H25:H42))*$B43/2 -> 0
A45: Total Variable Costs | F45: =SUM(F15:F43) -> 413.0665636 | G45: =SUM(G15:G43) -> 413.0665636 | H45: =SUM(H15:H43) -> 0
A46: Returns Above Variable Costs | F46: =F12-F45 -> 79.93343642 | G46: =G12-G45 -> 79.93343642 | H46: =H12-H45 -> 0
A48: Fixed Costs
A49: Implements | B49: 1 | C49: acre | D49: 10 | E49: 0 | F49: =(D49*B49) -> 10 | G49: =F49*(1-E49) -> 10 | H49: =F49*E49 -> 0
A50: Tractors | B50: 1 | C50: acre | D50: 12 | E50: 0 | F50: =(D50*B50) -> 12 | G50: 12 | H50: 0
A51: Irrigation-Above Ground | B51: 1 | C51: acre | D51: 40 | E51: 0 | F51: 40 | G51: 40 | H51: 0
A52: Irrigation-Below Ground | B52: 1 | C52: acre | D52: 15 | E52: 0 | F52: 15 | G52: 15 | H52: 0
A53: Pickup | B53: 1 | C53: acre | D53: 1.25 | E53: 0 | F53: 1.25 | G53: 1.25 | H53: 0
A54: Management | B54: 1 | C54: acre | D54: 25 | E54: 0 | F54: 25 | G54: 25 | H54: 0
A55: Whole Farm Insurance | B55: 1 | C55: acre | D55: 2 | E55: 0 | F55: 2 | G55: 2 | H55: 0
A56: Land | B56: 1 | C56: acre | D56: 100 | E56: 0 | F56: 100 | G56: =IF($H$6="Cash",D56,F56*(1-E56)) -> 100 | H56: =IF($H$6="Cash",0,F56*E56) -> 0
A57: Property Tax | B57: 1 | C57: acre | D57: 0 | E57: 0 | F57: 0 | G57: 0 | H57: 0
A58: Total Fixed Expenses | F58: =SUM(F49:F57) -> 205.25 | G58: =SUM(G49:G57) -> 205.25 | H58: =SUM(H49:H57) -> 0
A59: Total Specified Expenses | F59: =F45+F58 -> 618.3165636 | G59: =G45+G58 -> 618.3165636 | H59: =H45+H58 -> 0
A60: Returns Above Total Specified Expenses | F60: =F12-F59 -> -125.3165636 | G60: =G12-G59 -> -125.3165636 | H60: =H12-H59 -> 0
A62: If you have questions, contact Andrew Wright at 806-746-6101
A65: Supported by a grant from the
A66: Texas Cotton State Support Committee

Sheet Dry Cotton Organic
A2: Estimated Costs and Returns per Acre
A3: Dryland Cotton - Organic
A4: Projected for 2024
H5: Rental Agreement | I5: Share
A6: Item | B6: Quantity | C6: Unit | D6: Price | E6: Owner | H6: Share | I6: Cash
E7: Share | F7: Total | G7: Operator | H7: Owner
A8: Income
A9: cotton lint | B9: 350 | C9: lbs | D9: ='Universal Input Prices'!$C$24 -> 2 | E9: 0 | F9: =(D9*B9) -> 700 | G9: =F9*(1-E9) -> 700 | H9: =IF(H6="Cash", D54,F9*E9) -> 0
A10: cotton seed | B10: =B9/500*'Universal Input Prices'!C43/2000 -> 0.2485 | C10: tons | D10: ='Universal Input Prices'!$C$23 -> 500 | E10: 0 | F10: =(D10*B10) -> 124.25 | G10: =F10*(1-E10) -> 124.25 | H10: =IF(H6="Cash", 0,F10*E10) -> 0
A11: Expected Turnout | B11: 0.3
A12: Total Income | F12: =F9+F10 -> 824.25 | G12: =G9+G10 -> 824.25 | H12: =H9+H10 -> 0
A14: Variable Costs
A15: Seed | B15: 35 | C15: thousand | D15: 1.06 | E15: 0 | F15: =(D15*B15) -> 37.1 | G15: =F15*(1-E15) -> 37.1 | H15: =F15*E15 -> 0
A16: Boll Weevil Assess.-Dry | B16: =B9/500 -> 0.7 | C16: Bales | D16: 1 | E16: 0 | F16: =(D16*B16) -> 0.7 | G16: =F16*(1-E16) -> 0.7 | H16: =F16*E16 -> 0
A17: Fertilizer
A18: fert (N) - liquid | B18: 0 | C18: lbs | D18: =IF(A18="",0,VLOOKUP(A18,'Universal Input Prices'!$B$29:$C$33, 2)) -> 0.6109375 | E18: 0 | F18: =(D18*B18) -> 0 | G18: =F18*(1-E18) -> 0 | H18: =F18*E18 -> 0
A19: fert (P) - liquid | B19: 0 | C19: lbs | D19: =IF(A19="",0,VLOOKUP(A19,'Universal Input Prices'!$B$29:$C$33, 2)) -> 0.8838235294 | E19: 0 | F19: =(D19*B19) -> 0 | G19: =F19*(1-E19) -> 0 | H19: =F19*E19 -> 0
B20: 0 | C20: lbs | D20: =IF(A20="",0,VLOOKUP(A20,'Universal Input Prices'!$B$29:$C$33, 2)) -> 0 | E20: 0 | F20: 0 | G20: =F20*(1-E20) -> 0 | H20: =F20*E20 -> 0
A21: Field Operations
A22: preplant herbicide & application | B22: 1 | C22: acre | D22: 0 | E22: 0 | F22: =(D22*B22) -> 0 | G22: =F22*(1-E22) -> 0 | H22: =F22*E22 -> 0
A23: at-plant herbicide | B23: 1 | C23: acre | D23: 0 | E23: 0 | F23: =(D23*B23) -> 0 | G23: 0 | H23: =+F23*E23 -> 0
A24: post emergence herbicide & application | B24: 1 | C24: acre | D24: 0 | E24: 0 | F24: 0 | G24: 0 | H24: 0
A25: fertilizer application | B25: 0 | C25: acre | D25: 0 | E25: 0 | F25: 0 | G25: 0 | H25: 0
A26: insecticide & application | B26: 0 | C26: acre | D26: 0 | E26: 0 | F26: 0 | G26: 0 | H26: 0
A27: harvest aids | B27: 1 | C27: acre | D27: 0 | E27: 0 | F27: 0 | G27: 0 | H27: 0
A28: strip (field cleaner) | B28: =B9 -> 350 | C28: lb. | D28: ='Universal Input Prices'!$C$41 -> 0.09 | E28: 0 | F28: 31.5 | G28: 31.5 | H28: 0
A29: ginning | B29: 13.33 | C29: cwt. | D29: ='Universal Input Prices'!$C$42 -> 3.1 | E29: 0 | F29: 41.323 | G29: 41.323 | H29: 0
A30: hoeing | B30: 1 | C30: acre | D30: 60 | E30: 0 | F30: 60 | G30: 60 | H30: 0
A31: scouting | B31: 1 | C31: acre | D31: 5 | E31: 0 | F31: 5 | G31: =F31*(1-E31) -> 5 | H31: =F31*E31 -> 0
A32: spot spraying | B32: 1 | C32: acre | D32: 0 | E32: 0 | F32: 0 | G32: 0 | H32: 0
A33: other | B33: 1 | C33: acre | D33: 0 | E33: 0 | F33: 0 | G33: 0 | H33: 0
A34: other | B34: 1 | C34: acre | D34: 0 | E34: 0 | F34: 0 | G34: 0 | H34: 0
A35: Crop Insurance | B35: 1 | C35: acre | D35: 99 | E35: 0 | F35: 99 | G35: 99 | H35: 0
A36: Operator Labor & Hand Labor | B36: 3.21 | C36: hours | D36: ='Universal Input Prices'!$C$35 -> 12 | E36: 0 | F36: 38.52 | G36: 38.52 | H36: 0
A37: Diesel Fuel - Tractors | B37: 6.99 | C37: gallons | D37: ='Universal Input Prices'!$C$36 -> 2.999 | E37: 0 | F37: 20.96301 | G37: 20.96301 | H37: 0
A38: Gasoline - Pickup | B38: 2.04 | C38: gallons | D38: ='Universal Input Prices'!$C$37 -> 2.539 | E38: 0 | F38: 5.17956 | G38: 5.17956 | H38: 0
A39: Repair & Maintenance
A40: Implements | B40: 1 | C40: acre | D40: 9 | E40: 0 | F40: =(D40*B40) -> 9 | G40: =F40*(1-E40) -> 9 | H40: =F40*E40 -> 0
A41: Tractors | B41: 1 | C41: acre | D41: 15 | E41: 0 | F41: =(D41*B41) -> 15 | G41: =F41*(1-E41) -> 15 | H41: =F41*E41 -> 0
A42: Pickup | B42: 1 | C42: acre | D42: 0.5 | E42: 0 | F42: 0.5 | G42: =F42*(1-E42) -> 0.5 | H42: =F42*E42 -> 0
A43: Interest-operating capital | B43: ='Universal Input Prices'!$C$39 -> 0.09 | F43: =(SUM(F15:F26,F30:F42))*$B43/2 -> 13.09331565 | G43: =(SUM(G15:G26,G30:G42))*$B43/2 -> 13.09331565 | H43: =(SUM(H15:H26,H30:H42))*$B43/2 -> 0
A45: Total Variable Costs | F45: =SUM(F15:F43) -> 376.8788857 | G45: =SUM(G15:G43) -> 376.8788857 | H45: =SUM(H15:H43) -> 0
A46: Returns Above Variable Costs | F46: =F12-F45 -> 447.3711143 | G46: =G12-G45 -> 447.3711143 | H46: =H12-H45 -> 0
A48: Fixed Costs
A49: Implements | B49: 1 | C49: acre | D49: 10 | E49: 0 | F49: =(D49*B49) -> 10 | G49: =F49*(1-E49) -> 10 | H49: =F49*E49 -> 0
A50: Tractors | B50: 1 | C50: acre | D50: 12 | E50: 0 | F50: =(D50*B50) -> 12 | G50: 12 | H50: 0
A51: Pickup | B51: 1 | C51: acre | D51: 1.25 | E51: 0 | F51: 1.25 | G51: 1.25 | H51: 0
A52: Management | B52: 1 | C52: acre | D52: 25 | E52: 0 | F52: 25 | G52: 25 | H52: 0
A53: Whole Farm Insurance | B53: 1 | C53: acre | D53: 2 | E53: 0 | F53: 2 | G53: 2 | H53: 0
A54: Land | B54: 1 | C54: acre | D54: 50 | E54: 0 | F54: 50 | G54: =IF($H$6="Cash",D54,F54*(1-E54)) -> 50 | H54: =IF($H$6="Cash",0,F54*E54) -> 0
A55: Property Tax | B55: 1 | C55: acre | D55: 0 | E55: 0 | F55: 0 | G55: 0 | H55: 0
A56: Total Fixed Expenses | F56: =SUM(F49:F55) -> 100.25 | G56: =SUM(G49:G55) -> 100.25 | H56: =SUM(H49:H55) -> 0
A57: Total Specified Expenses | F57: =F45+F56 -> 477.1288857 | G57: =G45+G56 -> 477.1288857 | H57: =H45+H56 -> 0
A58: Returns Above Total Specified Expenses | F58: =F12-F57 -> 347.1211143 | G58: =G12-G57 -> 347.1211143 | H58: =H12-H57 -> 0
A60: If you have questions, contact Andrew Wright at 806-746-6101
A63: Supported by a grant from the
A64: Texas Cotton State Support Committee

Sheet Dry Cotton HT
A2: Estimated Costs and Returns per Acre
A3: Dryland Cotton - Herbicide Tolerant
A4: Projected for 2024
H5: Rental Agreement | I5: Share
A6: Item | B6: Quantity | C6: Unit | D6: Price | E6: Owner | H6: Share | I6: Cash
E7: Share | F7: Total | G7: Operator | H7: Owner
A8: Income
A9: cotton lint | B9: 400 | C9: lbs | D9: ='Universal Input Prices'!$C$8 -> 0.72 | E9: 0 | F9: =(D9*B9) -> 288 | G9: =F9*(1-E9) -> 288 | H9: =IF(H6="Cash", D54,F9*E9) -> 0
A10: cotton seed | B10: =B9/500*'Universal Input Prices'!C43/2000 -> 0.284 | C10: tons | D10: ='Universal Input Prices'!$C$9 -> 225 | E10: 0 | F10: =(D10*B10) -> 63.9 | G10: =F10*(1-E10) -> 63.9 | H10: =IF(H6="Cash", 0,F10*E10) -> 0
A11: Expected Turnout | B11: 0.3
A12: Total Income | F12: =F9+F10 -> 351.9 | G12: =G9+G10 -> 351.9 | H12: =H9+H10 -> 0
A14: Variable Costs
A15: Seed | B15: 35 | C15: thousand | D15: 1.06 | E15: 0 | F15: =(D15*B15) -> 37.1 | G15: =F15*(1-E15) -> 37.1 | H15: =F15*E15 -> 0
A16: Boll Weevil Assess.-Dry | B16: =B9/500 -> 0.8 | C16: Bales | D16: 1 | E16: 0 | F16: =(D16*B16) -> 0.8 | G16: =F16*(1-E16) -> 0.8 | H16: =F16*E16 -> 0
A17: Fertilizer
A18: fert (N) - liquid | B18: 0 | C18: lbs | D18: =IF(A18="",0,VLOOKUP(A18,'Universal Input Prices'!$B$29:$C$33, 2)) -> 0.6109375 | E18: 0 | F18: =(D18*B18) -> 0 | G18: =F18*(1-E18) -> 0 | H18: =F18*E18 -> 0
A19: fert (P) - liquid | B19: 0 | C19: lbs | D19: =IF(A19="",0,VLOOKUP(A19,'Universal Input Prices'!$B$29:$C$33, 2)) -> 0.8838235294 | E19: 0 | F19: =(D19*B19) -> 0 | G19: =F19*(1-E19) -> 0 | H19: =F19*E19 -> 0
B20: 0 | C20: lbs | D20: =IF(A20="",0,VLOOKUP(A20,'Universal Input Prices'!$B$29:$C$33, 2)) -> 0 | E20: 0 | F20: 0 | G20: =F20*(1-E20) -> 0 | H20: =F20*E20 -> 0
A21: Field Operations
A22: preplant herbicide & application | B22: 1 | C22: acre | D22: 6 | E22: 0 | F22: =(D22*B22) -> 6 | G22: =F22*(1-E22) -> 6 | H22: =F22*E22 -> 0
A23: at-plant herbicide | B23: 1 | C23: acre | D23: 6.5 | E23: 0 | F23: =(D23*B23) -> 6.5 | G23: 6.5 | H23: =+F23*E23 -> 0
A24: 1 post emergence herbicide & application | B24: 1 | C24: acre | D24: 29 | E24: 0 | F24: 29 | G24: 29 | H24: 0
A25: fertilizer application | B25: 0 | C25: acre | D25: 0 | E25: 0 | F25: 0 | G25: 0 | H25: 0
A26: insecticide & application | B26: 1 | C26: acre | D26: 6 | E26: 0 | F26: 6 | G26: 6 | H26: 0
A27: harvest aids | B27: 1 | C27: acre | D27: 10 | E27: 0 | F27: 10 | G27: 10 | H27: 0
A28: strip (field cleaner) | B28: =B9 -> 400 | C28: lb. | D28: ='Universal Input Prices'!$C$41 -> 0.09 | E28: 0 | F28: 36 | G28: 36 | H28: 0
A29: ginning | B29: =B9/B11/100 -> 13.33333333 | C29: cwt. | D29: ='Universal Input Prices'!$C$42 -> 3.1 | E29: 0 | F29: 41.33333333 | G29: 41.33333333 | H29: 0
A30: hoeing | B30: 0.1 | C30: acre | D30: 15 | E30: 0 | F30: 1.5 | G30: 1.5 | H30: 0
A31: scouting | B31: 1 | C31: acre | D31: 5 | E31: 0 | F31: 5 | G31: =F31*(1-E31) -> 5 | H31: =F31*E31 -> 0
A32: spot spraying | B32: 0.1 | C32: acre | D32: 15 | E32: 0 | F32: 1.5 | G32: 1.5 | H32: 0
A33: other | B33: 1 | C33: acre | D33: 0 | E33: 0 | F33: 0 | G33: 0 | H33: 0
A34: other | B34: 1 | C34: acre | D34: 0 | E34: 0 | F34: 0 | G34: 0 | H34: 0
A35: Crop Insurance | B35: 1 | C35: acre | D35: 44 | E35: 0 | F35: 44 | G35: 44 | H35: 0
A36: Operator Labor & Hand Labor | B36: 1.4 | C36: hours | D36: ='Universal Input Prices'!$C$35 -> 12 | E36: 0 | F36: 16.8 | G36: 16.8 | H36: 0
A37: Diesel Fuel - Tractors | B37: 3.4 | C37: gallons | D37: ='Universal Input Prices'!$C$36 -> 2.999 | E37: 0 | F37: 10.1966 | G37: 10.1966 | H37: 0
A38: Gasoline - Pickup | B38: 2 | C38: gallons | D38: ='Universal Input Prices'!$C$37 -> 2.539 | E38: 0 | F38: 5.078 | G38: 5.078 | H38: 0
A39: Repair & Maintenance
A40: Implements | B40: 1 | C40: acre | D40: 3 | E40: 0 | F40: =(D40*B40) -> 3 | G40: =F40*(1-E40) -> 3 | H40: =F40*E40 -> 0
A41: Tractors | B41: 1 | C41: acre | D41: 6 | E41: 0 | F41: =(D41*B41) -> 6 | G41: =F41*(1-E41) -> 6 | H41: =F41*E41 -> 0
A42: Pickup | B42: 1 | C42: acre | D42: 0.5 | E42: 0 | F42: 0.5 | G42: =F42*(1-E42) -> 0.5 | H42: =F42*E42 -> 0
A43: Interest-operating capital | B43: ='Universal Input Prices'!$C$39 -> 0.09 | F43: =(SUM(F15:F26,F30:F42))*$B43/2 -> 8.053857 | G43: =(SUM(G15:G26,G30:G42))*$B43/2 -> 8.053857 | H43: =(SUM(H15:H26,H30:H42))*$B43/2 -> 0
A45: Total Variable Costs | F45: =SUM(F15:F43) -> 274.3617903 | G45: =SUM(G15:G43) -> 274.3617903 | H45: =SUM(H15:H43) -> 0
A46: Returns Above Variable Costs | F46: =F12-F45 -> 77.53820967 | G46: =G12-G45 -> 77.53820967 | H46: =H12-H45 -> 0
A48: Fixed Costs
A49: Implements | B49: 1 | C49: acre | D49: 10 | E49: 0 | F49: =(D49*B49) -> 10 | G49: =F49*(1-E49) -> 10 | H49: =F49*E49 -> 0
A50: Tractors | B50: 1 | C50: acre | D50: 12 | E50: 0 | F50: =(D50*B50) -> 12 | G50: 12 | H50: 0
A51: Pickup | B51: 1 | C51: acre | D51: 1.25 | E51: 0 | F51: 1.25 | G51: 1.25 | H51: 0
A52: Management | B52: 1 | C52: acre | D52: 25 | E52: 0 | F52: 25 | G52: 25 | H52: 0
A53: Whole Farm Insurance | B53: 1 | C53: acre | D53: 2 | E53: 0 | F53: 2 | G53: 2 | H53: 0
A54: Land | B54: 1 | C54: acre | D54: 50 | E54: 0 | F54: 50 | G54: =IF($H$6="Cash",D54,F54*(1-E54)) -> 50 | H54: =IF($H$6="Cash",0,F54*E54) -> 0
A55: Property Tax | B55: 1 | C55: acre | D55: 0 | E55: 0 | F55: 0 | G55: 0 | H55: 0
A56: Total Fixed Expenses | F56: =SUM(F49:F55) -> 100.25 | G56: =SUM(G49:G55) -> 100.25 | H56: =SUM(H49:H55) -> 0
A57: Total Specified Expenses | F57: =F45+F56 -> 374.6117903 | G57: =G45+G56 -> 374.6117903 | H57: =H45+H56 -> 0
A58: Returns Above Total Specified Expenses | F58: =F12-F57 -> -22.71179033 | G58: =G12-G57 -> -22.71179033 | H58: =H12-H57 -> 0
A60: If you have questions, contact Andrew Wright at 806-746-6101
A63: Supported by a grant from the
A64: Texas Cotton State Support Committee

Sheet Dry Guar
A2: Estimated Costs and Returns per Ground Acre
A3: Dryland Guar
A4: Projected for 2024
H5: Rental Agreement | I5: Share
A6: Item | B6: Quantity | C6: Unit | D6: Price | E6: Owner | H6: Share | I6: Cash
E7: Share | F7: Total | G7: Operator | H7: Owner
A8: Income
A9: guar | B9: 600 | C9: lbs | D9: ='Universal Input Prices'!C10 -> 0.6 | E9: 0 | F9: =(D9*B9) -> 360 | G9: =F9*(1-E9) -> 360 | H9: =IF(H6="Cash", D50,F9*E9) -> 0
A11: Total Income | F11: =SUM(F9:F10) -> 360 | G11: =SUM(G9:G10) -> 360 | H11: =SUM(H9:H10) -> 0
A13: Variable Costs
A14: Seed | B14: 8 | C14: lbs | D14: 1.5 | E14: 0 | F14: =(D14*B14) -> 12 | G14: =F14*(1-E14) -> 12 | H14: =F14*E14 -> 0
A15: Innoculant | B15: 1 | C15: lbs | D15: 3 | E15: 0 | F15: =(D15*B15) -> 3 | G15: =F15*(1-E15) -> 3 | H15: =F15*E15 -> 0
A16: Fertilizer
A17: fert (P) - dry | B17: 20 | C17: lbs | D17: =IF(A17="",0,VLOOKUP(A17,'Universal Input Prices'!$B$29:$C$33, 2)) -> 0.4903846154 | E17: 0 | F17: =(D17*B17) -> 9.807692308 | G17: =F17*(1-E17) -> 9.807692308 | H17: =F17*E17 -> 0
B18: 0 | C18: lbs | D18: =IF(A18="",0,VLOOKUP(A18,'Universal Input Prices'!$B$29:$C$33, 2)) -> 0 | E18: 0 | F18: =(D18*B18) -> 0 | G18: =F18*(1-E18) -> 0 | H18: =F18*E18 -> 0
B19: 0 | C19: lbs | D19: =IF(A19="",0,VLOOKUP(A19,'Universal Input Prices'!$B$29:$C$33, 2)) -> 0 | E19: 0 | F19: 0 | G19: =F19*(1-E19) -> 0 | H19: =F19*E19 -> 0
A20: Field Operations
A21: herbicide | B21: 1 | C21: acre | D21: 2.34 | E21: 0 | F21: =(D21*B21) -> 2.34 | G21: =F21*(1-E21) -> 2.34 | H21: =F21*E21 -> 0
A22: fertilizer application | B22: 1 | C22: acre | D22: 4 | E22: 0 | F22: =(D22*B22) -> 4 | G22: 4 | H22: 0
A23: insecticide | B23: 0 | C23: acre | D23: 0 | E23: 0 | F23: 0 | G23: 0 | H23: 0
A24: custom harvest and haul | B24: 1 | C24: acre | D24: 25 | E24: 0 | F24: 25 | G24: 25 | H24: 0
A25: custom harvest and haul | B25: =B9/100 -> 6 | C25: cwt | D25: 0.2 | E25: 0 | F25: 1.2 | G25: 1.2 | H25: 0
A26: hoeing | B26: 0 | C26: acre | D26: 0 | E26: 0 | F26: 0 | G26: 0 | H26: 0
A27: scouting | B27: 1 | C27: acre | D27: 0 | E27: 0 | F27: 0 | G27: 0 | H27: 0
A28: other | B28: 1 | C28: acre | D28: 0 | E28: 0 | F28: 0 | G28: 0 | H28: 0
A29: other | B29: 1 | C29: acre | D29: 0 | E29: 0 | F29: 0 | G29: 0 | H29: 0
A30: other | B30: 1 | C30: acre | D30: 0 | E30: 0 | F30: 0 | G30: 0 | H30: 0
A31: Crop Insurance | B31: 1 | C31: acre | D31: 2.5 | E31: 0 | F31: 2.5 | G31: 2.5 | H31: 0
A32: Operator Labor | B32: 0.75 | C32: hours | D32: ='Universal Input Prices'!$C$35 -> 12 | E32: 0 | F32: 9 | G32: 9 | H32: 0
A33: Diesel Fuel - Tractors | B33: 2.4 | C33: gallons | D33: ='Universal Input Prices'!$C$36 -> 2.999 | E33: 0 | F33: 7.1976 | G33: 7.1976 | H33: 0
A34: Gasoline - Pickup | B34: 2 | C34: gallons | D34: ='Universal Input Prices'!$C$37 -> 2.539 | E34: 0 | F34: 5.078 | G34: 5.078 | H34: 0
A35: Repair & Maintenance
A36: Implements | B36: 1 | C36: acre | D36: 3 | E36: 0 | F36: =(D36*B36) -> 3 | G36: =F36*(1-E36) -> 3 | H36: =F36*E36 -> 0
A37: Tractors | B37: 1 | C37: acre | D37: 6 | E37: 0 | F37: =(D37*B37) -> 6 | G37: =F37*(1-E37) -> 6 | H37: =F37*E37 -> 0
A38: Pickup | B38: 1 | C38: acre | D38: 0.5 | E38: 0 | F38: 0.5 | G38: =F38*(1-E38) -> 0.5 | H38: =F38*E38 -> 0
A39: Interest-operating capital | B39: ='Universal Input Prices'!$C$39 -> 0.09 | F39: =(SUM(F14:F38)-SUM(F24:F25))*$B39/2 -> 2.899048154 | G39: =(SUM(G14:G38)-SUM(G24:G25))*$B39/2 -> 2.899048154 | H39: =(SUM(H148)-SUM(H24:H25))*$B39/2 -> 0
A41: Total Variable Costs | F41: =SUM(F14:F39) -> 93.52234046 | G41: =SUM(G14:G39) -> 93.52234046 | H41: =SUM(H149) -> 0
A42: Returns Above Variable Costs | F42: =F11-F41 -> 266.4776595 | G42: =G11-G41 -> 266.4776595 | H42: =H11-H41 -> 0
A44: Fixed Costs
A45: Implements | B45: 1 | C45: acre | D45: 10 | E45: 0 | F45: =(D45*B45) -> 10 | G45: =F45*(1-E45) -> 10 | H45: =F45*E45 -> 0
A46: Tractors | B46: 1 | C46: acre | D46: 12 | E46: 0 | F46: =(D46*B46) -> 12 | G46: 12 | H46: 0
A47: Pickup | B47: 1 | C47: acre | D47: 1.25 | E47: 0 | F47: 1.25 | G47: 1.25 | H47: 0
A48: Management | B48: 1 | C48: acre | D48: 25 | E48: 0 | F48: 25 | G48: 25 | H48: 0
A49: Whole Farm Insurance | B49: 1 | C49: acre | D49: 2 | E49: 0 | F49: 2 | G49: 2 | H49: 0
A50: Land | B50: 1 | C50: acre | D50: 50 | E50: 0 | F50: 50 | G50: =IF($H$6="Cash",D50,F50*(1-E50)) -> 50 | H50: =IF($H$6="Cash",0,F50*E50) -> 0
A51: Property Tax | B51: 1 | C51: acre | D51: 0 | E51: 0 | F51: 0 | G51: =F51*(1-E51) -> 0 | H51: =F51*E51 -> 0
A52: Total Fixed Expenses | F52: =SUM(F45:F51) -> 100.25 | G52: =SUM(G45:G51) -> 100.25 | H52: =SUM(H45:H51) -> 0
A53: Total Specified Expenses | F53: =F41+F52 -> 193.7723405 | G53: =G41+G52 -> 193.7723405 | H53: =H41+H52 -> 0
A54: Returns Above Total Specified Expenses | F54: =F11-F53 -> 166.2276595 | G54: =G11-G53 -> 166.2276595 | H54: =H11-H53 -> 0
A56: If you have questions, contact Andrew Wright at 806-746-6101
A59: Supported by a grant from the
A60: Texas Cotton State Support Committee

Sheet Dry Sesame
A2: Estimated Costs and Returns per Ground Acre
A3: Dryland Sesame
A4: Projected for 2024
H5: Rental Agreement | I5: Share
A6: Item | B6: Quantity | C6: Unit | D6: Price | E6: Owner | H6: Share | I6: Cash
E7: Share | F7: Total | G7: Operator | H7: Owner
A8: Income
A9: sesame | B9: 600 | C9: lbs | D9: =Sesame_NI_Price -> 0.28 | E9: 0 | F9: =(D9*B9) -> 168 | G9: =F9*(1-E9) -> 168 | H9: =IF(H6="Cash", D49,F9*E9) -> 0
A11: Total Income | F11: =SUM(F9:F10) -> 168 | G11: =SUM(G9:G10) -> 168 | H11: =SUM(H9:H10) -> 0
A13: Variable Costs
A14: Seed | B14: 2.5 | C14: lbs | D14: 4 | E14: 0 | F14: =(D14*B14) -> 10 | G14: =F14*(1-E14) -> 10 | H14: =F14*E14 -> 0
A15: Fertilizer
A16: fert (N) - liquid | B16: 30 | C16: lbs | D16: =IF(A16="",0,VLOOKUP(A16,'Universal Input Prices'!$B$29:$C$33, 2)) -> 0.6109375 | E16: 0 | F16: =(D16*B16) -> 18.328125 | G16: =F16*(1-E16) -> 18.328125 | H16: =F16*E16 -> 0
B17: 0 | C17: lbs | D17: =IF(A17="",0,VLOOKUP(A17,'Universal Input Prices'!$B$29:$C$33, 2)) -> 0 | E17: 0 | F17: =(D17*B17) -> 0 | G17: =F17*(1-E17) -> 0 | H17: =F17*E17 -> 0
B18: 0 | C18: lbs | D18: =IF(A18="",0,VLOOKUP(A18,'Universal Input Prices'!$B$29:$C$33, 2)) -> 0 | E18: 0 | F18: 0 | G18: =F18*(1-E18) -> 0 | H18: =F18*E18 -> 0
A19: Field Operations
A20: herbicide | B20: 1 | C20: acre | D20: 21.75 | E20: 0 | F20: =(D20*B20) -> 21.75 | G20: =F20*(1-E20) -> 21.75 | H20: =F20*E20 -> 0
A21: fertilizer application | B21: 1 | C21: acre | D21: 4.75 | E21: 0 | F21: =(D21*B21) -> 4.75 | G21: 4.75 | H21: 0
A22: insecticide | B22: 0 | C22: acre | D22: 0 | E22: 0 | F22: 0 | G22: 0 | H22: 0
A23: custom harvest and haul | B23: 1 | C23: acre | D23: 25 | E23: 0 | F23: 25 | G23: 25 | H23: 0
A24: custom harvest and haul | B24: =B9/100 -> 6 | C24: cwt | D24: 0.12 | E24: 0 | F24: 0.72 | G24: 0.72 | H24: 0
A25: hoeing | B25: 0 | C25: acre | D25: 0 | E25: 0 | F25: 0 | G25: 0 | H25: 0
A26: scouting | B26: 1 | C26: acre | D26: 0 | E26: 0 | F26: 0 | G26: 0 | H26: 0
A27: other | B27: 1 | C27: acre | D27: 0 | E27: 0 | F27: 0 | G27: 0 | H27: 0
A28: other | B28: 1 | C28: acre | D28: 0 | E28: 0 | F28: 0 | G28: 0 | H28: 0
A29: other | B29: 1 | C29: acre | D29: 0 | E29: 0 | F29: 0 | G29: 0 | H29: 0
A30: Crop Insurance | B30: 1 | C30: acre | D30: 10 | E30: 0 | F30: 10 | G30: 10 | H30: 0
A31: Operator Labor | B31: 1 | C31: hours | D31: ='Universal Input Prices'!$C$35 -> 12 | E31: 0 | F31: 12 | G31: 12 | H31: 0
A32: Diesel Fuel - Tractors | B32: 2.2 | C32: gallons | D32: ='Universal Input Prices'!$C$36 -> 2.999 | E32: 0 | F32: 6.5978 | G32: 6.5978 | H32: 0
A33: Gasoline - Pickup | B33: 2 | C33: gallons | D33: ='Universal Input Prices'!$C$37 -> 2.539 | E33: 0 | F33: 5.078 | G33: 5.078 | H33: 0
A34: Repair & Maintenance
A35: Implements | B35: 1 | C35: acre | D35: 3 | E35: 0 | F35: =(D35*B35) -> 3 | G35: =F35*(1-E35) -> 3 | H35: =F35*E35 -> 0
A36: Tractors | B36: 1 | C36: acre | D36: 6 | E36: 0 | F36: =(D36*B36) -> 6 | G36: =F36*(1-E36) -> 6 | H36: =F36*E36 -> 0
A37: Pickup | B37: 1 | C37: acre | D37: 0.5 | E37: 0 | F37: 0.5 | G37: =F37*(1-E37) -> 0.5 | H37: =F37*E37 -> 0
A38: Interest-operating capital | B38: ='Universal Input Prices'!$C$39 -> 0.09 | F38: =(SUM(F14:F37)-SUM(F23:F24))*$B38/2 -> 4.410176625 | G38: =(SUM(G14:G37)-SUM(G23:G24))*$B38/2 -> 4.410176625 | H38: =(SUM(H147)-SUM(H23:H24))*$B38/2 -> 0
A40: Total Variable Costs | F40: =SUM(F14:F38) -> 128.1341016 | G40: =SUM(G14:G38) -> 128.1341016 | H40: =SUM(H148) -> 0
A41: Returns Above Variable Costs | F41: =F11-F40 -> 39.86589838 | G41: =G11-G40 -> 39.86589838 | H41: =H11-H40 -> 0
A43: Fixed Costs
A44: Implements | B44: 1 | C44: acre | D44: 10 | E44: 0 | F44: =(D44*B44) -> 10 | G44: =F44*(1-E44) -> 10 | H44: =F44*E44 -> 0
A45: Tractors | B45: 1 | C45: acre | D45: 12 | E45: 0 | F45: =(D45*B45) -> 12 | G45: 12 | H45: 0
A46: Pickup | B46: 1 | C46: acre | D46: 1.25 | E46: 0 | F46: 1.25 | G46: 1.25 | H46: 0
A47: Management | B47: 1 | C47: acre | D47: 25 | E47: 0 | F47: 25 | G47: 25 | H47: 0
A48: Whole Farm Insurance | B48: 1 | C48: acre | D48: 2 | E48: 0 | F48: 2 | G48: 2 | H48: 0
A49: Land | B49: 1 | C49: acre | D49: 50 | E49: 0 | F49: 50 | G49: =IF($H$6="Cash",D49,F49*(1-E49)) -> 50 | H49: =IF($H$6="Cash",0,F49*E49) -> 0
A50: Property Tax | B50: 1 | C50: acre | D50: 0 | E50: 0 | F50: 0 | G50: =F50*(1-E50) -> 0 | H50: =F50*E50 -> 0
A51: Total Fixed Expenses | F51: =SUM(F44:F50) -> 100.25 | G51: =SUM(G44:G50) -> 100.25 | H51: =SUM(H44:H50) -> 0
A52: Total Specified Expenses | F52: =F40+F51 -> 228.3841016 | G52: =G40+G51 -> 228.3841016 | H52: =H40+H51 -> 0
A53: Returns Above Total Specified Expenses | F53: =F11-F52 -> -60.38410162 | G53: =G11-G52 -> -60.38410162 | H53: =H11-H52 -> 0
A55: If you have questions, contact Andrew Wright at 806-746-6101
A58: Supported by a grant from the
A59: Texas Cotton State Support Committee

Sheet Dry Sorghum
A2: Estimated Costs and Returns per Acre
A3: Dryland Sorghum
A4: Projected for 2024
H5: Rental Agreement | I5: Share
A6: Item | B6: Quantity | C6: Unit | D6: Price | E6: Owner | H6: Share | I6: Cash
E7: Share | F7: Total | G7: Operator | H7: Owner
A8: Income
A9: sorghum grain | B9: 20 | C9: cwt | D9: ='Universal Input Prices'!$C$15 -> 8.6 | E9: 0 | F9: =(B9*D9) -> 172 | G9: =F9*(1-E9) -> 172 | H9: =IF(H6="Cash", D50,F9*E9) -> 0
A10: grazing stalks | B10: 1 | C10: acre | D10: 0 | E10: 0 | F10: =(B10*D10) -> 0 | G10: =F10*(1-E10) -> 0 | H10: =IF(H6="Cash", 0,F10*E10) -> 0
A12: Total Income | F12: =SUM(F9:F11) -> 172 | G12: =SUM(G9:G11) -> 172 | H12: =SUM(H9:H11) -> 0
A14: Variable Costs
A15: Seed | B15: 2.25 | C15: lbs | D15: 2.4 | E15: 0 | F15: =(D15*B15) -> 5.4 | G15: =F15*(1-E15) -> 5.4 | H15: =F15*E15 -> 0
A16: Fertilizer
A17: fert (N) - liquid | B17: 30 | C17: lbs | D17: =IF(A17="",0,VLOOKUP(A17,'Universal Input Prices'!$B$29:$C$33, 2)) -> 0.6109375 | E17: 0 | F17: =(D17*B17) -> 18.328125 | G17: =F17*(1-E17) -> 18.328125 | H17: =F17*E17 -> 0
B18: 0 | C18: lbs | D18: =IF(A18="",0,VLOOKUP(A18,'Universal Input Prices'!$B$29:$C$33, 2)) -> 0 | E18: 0 | F18: =(D18*B18) -> 0 | G18: =F18*(1-E18) -> 0 | H18: =F18*E18 -> 0
B19: 0 | C19: lbs | D19: =IF(A19="",0,VLOOKUP(A19,'Universal Input Prices'!$B$29:$C$33, 2)) -> 0 | E19: 0 | F19: 0 | G19: =F19*(1-E19) -> 0 | H19: =F19*E19 -> 0
A20: Field Operations
A21: herbicide & application | B21: 1 | C21: acre | D21: 10.5 | E21: 0 | F21: =(D21*B21) -> 10.5 | G21: =F21*(1-E21) -> 10.5 | H21: =F21*E21 -> 0
A22: fertilizer application | B22: 1 | C22: acre | D22: 4.75 | E22: 0 | F22: =(D22*B22) -> 4.75 | G22: 4.75 | H22: 0
A23: insecticide & application | B23: 1 | C23: acre | D23: 25 | E23: 0 | F23: 25 | G23: 25 | H23: 0
A24: custom harvest & haul | B24: 1 | C24: acre | D24: 14 | E24: 0 | F24: 14 | G24: 14 | H24: 0
A25: custom harvest & haul | B25: =B9 -> 20 | C25: cwt | D25: 0.4 | E25: 0 | F25: 8 | G25: 8 | H25: 0
A26: hoeing | B26: 1 | C26: acre | D26: 0 | E26: 0 | F26: 0 | G26: 0 | H26: 0
A27: scouting | B27: 1 | C27: acre | D27: 0 | E27: 0 | F27: 0 | G27: =F27*(1-E27) -> 0 | H27: =F27*E27 -> 0
A28: other | B28: 1 | C28: acre | D28: 0 | E28: 0 | F28: 0 | G28: 0 | H28: 0
A29: other | B29: 1 | C29: acre | D29: 0 | E29: 0 | F29: 0 | G29: 0 | H29: 0
A30: other | B30: 1 | C30: acre | D30: 0 | E30: 0 | F30: 0 | G30: 0 | H30: 0
A31: Crop Insurance | B31: 1 | C31: acre | D31: 16.5 | E31: 0 | F31: 16.5 | G31: 16.5 | H31: 0
A32: Operator Labor & Hand Labor | B32: 1 | C32: hours | D32: ='Universal Input Prices'!$C$35 -> 12 | E32: 0 | F32: 12 | G32: 12 | H32: 0
A33: Diesel Fuel - Tractors | B33: 2.4 | C33: gallons | D33: ='Universal Input Prices'!$C$36 -> 2.999 | E33: 0 | F33: 7.1976 | G33: 7.1976 | H33: 0
A34: Gasoline - Pickup | B34: 2 | C34: gallons | D34: ='Universal Input Prices'!$C$37 -> 2.539 | E34: 0 | F34: 5.078 | G34: 5.078 | H34: 0
A35: Repair & Maintenance
A36: Implements | B36: 1 | C36: acre | D36: 3 | E36: 0 | F36: =(D36*B36) -> 3 | G36: =F36*(1-E36) -> 3 | H36: =F36*E36 -> 0
A37: Tractors | B37: 1 | C37: acre | D37: 6 | E37: 0 | F37: =(D37*B37) -> 6 | G37: =F37*(1-E37) -> 6 | H37: =F37*E37 -> 0
A38: Pickup | B38: 1 | C38: acre | D38: 0.5 | E38: 0 | F38: 0.5 | G38: =F38*(1-E38) -> 0.5 | H38: =F38*E38 -> 0
A39: Interest-operating capital | B39: ='Universal Input Prices'!$C$39 -> 0.09 | F39: =(SUM(F15:F23,F26:F38))*$B39/2 -> 5.141417625 | G39: =(SUM(G15:G23,G26:G38))*$B39/2 -> 5.141417625 | H39: =(SUM(H15:H23,H268))*$B39/2 -> 0
A41: Total Variable Costs | F41: =SUM(F15:F39) -> 141.3951426 | G41: =SUM(G15:G39) -> 141.3951426 | H41: =SUM(H159) -> 0
A42: Returns Above Variable Costs | F42: =F12-F41 -> 30.60485737 | G42: =G12-G41 -> 30.60485737 | H42: =H12-H41 -> 0
A44: Fixed Costs
A45: Implements | B45: 1 | C45: acre | D45: 10 | E45: 0 | F45: =(D45*B45) -> 10 | G45: =F45*(1-E45) -> 10 | H45: =F45*E45 -> 0
A46: Tractors | B46: 1 | C46: acre | D46: 12 | E46: 0 | F46: =(D46*B46) -> 12 | G46: 12 | H46: 0
A47: Pickup | B47: 1 | C47: acre | D47: 1.25 | E47: 0 | F47: 1.25 | G47: 1.25 | H47: 0
A48: Management | B48: 1 | C48: acre | D48: 25 | E48: 0 | F48: 25 | G48: 25 | H48: 0
A49: Whole Farm Insurance | B49: 1 | C49: acre | D49: 2 | E49: 0 | F49: 2 | G49: 2 | H49: 0
A50: Land | B50: 1 | C50: acre | D50: 50 | E50: 0 | F50: 50 | G50: =IF($H$6="Cash",D50,F50*(1-E50)) -> 50 | H50: =IF($H$6="Cash",0,F50*E50) -> 0
A51: Property Tax | B51: 1 | C51: acre | D51: 0 | E51: 0 | F51: 0 | G51: 0 | H51: 0
A52: Total Fixed Expenses | F52: =SUM(F45:F51) -> 100.25 | G52: =SUM(G45:G51) -> 100.25 | H52: =SUM(H45:H51) -> 0
A53: Total Specified Expenses | F53: =F41+F52 -> 241.6451426 | G53: =G41+G52 -> 241.6451426 | H53: =H41+H52 -> 0
A54: Returns Above Total Specified Expenses | F54: =F12-F53 -> -69.64514263 | G54: =G12-G53 -> -69.64514263 | H54: =H12-H53 -> 0
A56: If you have questions, contact Andrew Wright at 806-746-6101
A59: Supported by a grant from the
A60: Texas Cotton State Support Committee

Sheet Dry Sunflowers-Oilseed
A2: Estimated Costs and Returns per Acre
A3: Dryland Sunflowers-Oilseed
A4: Projected for 2024
H5: Rental Agreement | I5: Share
A6: Item | B6: Quantity | C6: Unit | D6: Price | E6: Owner | H6: Share | I6: Cash
E7: Share | F7: Total | G7: Operator | H7: Owner
A8: Income
A9: oilseed sunflowers | B9: 1000 | C9: lbs | D9: =Sunflower_Oil_Price -> 0.2 | E9: 0 | F9: =(D9*B9) -> 200 | G9: =F9*(1-E9) -> 200 | H9: =IF(H6="Cash", D49,F9*E9) -> 0
A11: Total Income | F11: =SUM(F8:F10) -> 200 | G11: =SUM(G8:G10) -> 200 | H11: =SUM(H8:H10) -> 0
A13: Variable Costs
A14: Seed | B14: 1 | C14: acre | D14: 12.5 | E14: 0 | F14: =(D14*B14) -> 12.5 | G14: =F14*(1-E14) -> 12.5 | H14: =F14*E14 -> 0
A15: Fertilizer
A16: fert (N) - liquid | B16: 40 | C16: lbs | D16: =IF(A16="",0,VLOOKUP(A16,'Universal Input Prices'!$B$29:$C$33, 2)) -> 0.6109375 | E16: 0 | F16: =(D16*B16) -> 24.4375 | G16: =F16*(1-E16) -> 24.4375 | H16: =F16*E16 -> 0
B17: 0 | C17: lbs | D17: =IF(A17="",0,VLOOKUP(A17,'Universal Input Prices'!$B$29:$C$33, 2)) -> 0 | E17: 0 | F17: =(D17*B17) -> 0 | G17: =F17*(1-E17) -> 0 | H17: =F17*E17 -> 0
B18: 0 | C18: lbs | D18: =IF(A18="",0,VLOOKUP(A18,'Universal Input Prices'!$B$29:$C$33, 2)) -> 0 | E18: 0 | F18: 0 | G18: =F18*(1-E18) -> 0 | H18: =F18*E18 -> 0
A19: Field Operations
A20: herbicide & application | B20: 1 | C20: acre | D20: 34.75 | E20: 0 | F20: =(D20*B20) -> 34.75 | G20: =F20*(1-E20) -> 34.75 | H20: =F20*E20 -> 0
A21: fertilizer application | B21: 1 | C21: acre | D21: 4.75 | E21: 0 | F21: =(D21*B21) -> 4.75 | G21: =F21*(1-E21) -> 4.75 | H21: =F21*E21 -> 0
A22: insecticide & application | B22: 1 | C22: acre | D22: 11.63 | E22: 0 | F22: 11.63 | G22: =F22*(1-E22) -> 11.63 | H22: =F22*E22 -> 0
A23: custom harvest & haul | B23: 1 | C23: acre | D23: 15 | E23: 0 | F23: 15 | G23: 15 | H23: 0
A24: custom harvest & haul | B24: =B9/100 -> 10 | C24: cwt | D24: 0.3 | E24: 0 | F24: 3 | G24: 3 | H24: 0
A25: scouting | B25: 1 | C25: acre | D25: 0 | E25: 0 | F25: 0 | G25: =F25*(1-E25) -> 0 | H25: =F25*E25 -> 0
A26: other | B26: 1 | C26: acre | D26: 0 | E26: 0 | F26: 0 | G26: =F26*(1-E26) -> 0 | H26: =F26*E26 -> 0
A27: other | B27: 1 | C27: acre | D27: 0 | E27: 0 | F27: 0 | G27: 0 | H27: 0
A28: other | B28: 1 | C28: acre | D28: 0 | E28: 0 | F28: 0 | G28: 0 | H28: 0
A29: other | B29: 1 | C29: acre | D29: 0 | E29: 0 | F29: 0 | G29: 0 | H29: 0
A30: Crop Insurance | B30: 1 | C30: acre | D30: 11 | E30: 0 | F30: 11 | G30: 11 | H30: 0
A31: Operator Labor & Hand Labor | B31: 1 | C31: hours | D31: ='Universal Input Prices'!$C$35 -> 12 | E31: 0 | F31: 12 | G31: 12 | H31: 0
A32: Diesel Fuel - Tractors | B32: 2.4 | C32: gallons | D32: ='Universal Input Prices'!$C$36 -> 2.999 | E32: 0 | F32: 7.1976 | G32: 7.1976 | H32: 0
A33: Gasoline - Pickup | B33: 2 | C33: gallons | D33: ='Universal Input Prices'!$C$37 -> 2.539 | E33: 0 | F33: 5.078 | G33: 5.078 | H33: 0
A34: Repair & Maintenance
A35: Implements | B35: 1 | C35: acre | D35: 3 | E35: 0 | F35: =(D35*B35) -> 3 | G35: =F35*(1-E35) -> 3 | H35: =F35*E35 -> 0
A36: Tractors | B36: 1 | C36: acre | D36: 6 | E36: 0 | F36: =(D36*B36) -> 6 | G36: =F36*(1-E36) -> 6 | H36: =F36*E36 -> 0
A37: Pickup | B37: 1 | C37: acre | D37: 0.5 | E37: 0 | F37: 0.5 | G37: =F37*(1-E37) -> 0.5 | H37: =F37*E37 -> 0
A38: Interest-operating capital | B38: ='Universal Input Prices'!$C$39 -> 0.09 | F38: =(SUM(F14:F22,F26:F37))*$B38/2 -> 5.9779395 | G38: =(SUM(G14:G22,G26:G37))*$B38/2 -> 5.9779395 | H38: =(SUM(H14:H22,H267))*$B38/2 -> 0
A40: Total Variable Costs | F40: =SUM(F14:F38) -> 156.8210395 | G40: =SUM(G14:G38) -> 156.8210395 | H40: =SUM(H148) -> 0
A41: Returns Above Variable Costs | F41: =F11-F40 -> 43.1789605 | G41: =G11-G40 -> 43.1789605 | H41: =H11-H40 -> 0
A43: Fixed Costs
A44: Implements | B44: 1 | C44: acre | D44: 10 | E44: 0 | F44: =(D44*B44) -> 10 | G44: =F44*(1-E44) -> 10 | H44: =F44*E44 -> 0
A45: Tractors | B45: 1 | C45: acre | D45: 12 | E45: 0 | F45: =(D45*B45) -> 12 | G45: 12 | H45: 0
A46: Pickup | B46: 1 | C46: acre | D46: 1.25 | E46: 0 | F46: 1.25 | G46: 1.25 | H46: 0
A47: Management | B47: 1 | C47: acre | D47: 25 | E47: 0 | F47: 25 | G47: 25 | H47: 0
A48: Whole Farm Insurance | B48: 1 | C48: acre | D48: 2 | E48: 0 | F48: 2 | G48: 2 | H48: 0
A49: Land | B49: 1 | C49: acre | D49: 50 | E49: 0 | F49: 50 | G49: =IF($H$6="Cash",D49,F49*(1-E49)) -> 50 | H49: =IF($H$6="Cash",0,F49*E49) -> 0
A50: Property Tax | B50: 1 | C50: acre | D50: 0 | E50: 0 | F50: 0 | G50: 0 | H50: 0
A51: Total Fixed Expenses | F51: =SUM(F44:F50) -> 100.25 | G51: =SUM(G44:G50) -> 100.25 | H51: =SUM(H44:H50) -> 0
A52: Total Specified Expenses | F52: =F40+F51 -> 257.0710395 | G52: =G40+G51 -> 257.0710395 | H52: =H40+H51 -> 0
A53: Returns Above Total Specified Expenses | F53: =F11-F52 -> -57.0710395 | G53: =G11-G52 -> -57.0710395 | H53: =H11-H52 -> 0
A55: If you have questions, contact Andrew Wright at 806-746-6101
A58: Supported by a grant from the
A59: Texas Cotton State Support Committee

Sheet Dry Wheat
A2: Estimated Costs and Returns per Acre
A3: Dryland Wheat
A4: Projected for 2024
H5: Rental Agreement | I5: Share
A6: Item | B6: Quantity | C6: Unit | D6: Price | E6: Owner | H6: Share | I6: Cash
E7: Share | F7: Total | G7: Operator | H7: Owner
A8: Income
A9: wheat | B9: 18 | C9: bu | D9: ='Universal Input Prices'!$C$22 -> 8.5 | E9: 0 | F9: =(D9*B9) -> 153 | G9: =F9*(1-E9) -> 153 | H9: =IF(H6="Cash", D49,F9*E9) -> 0
A10: grazing | B10: 68 | C10: lbs | D10: =Grazing_Price -> 0.5 | E10: 0 | F10: =(D10*B10) -> 34 | G10: =F10*(1-E10) -> 34 | H10: =IF(H6="Cash", 0,F10*E10) -> 0
A12: Total Income | F12: =F9+F10 -> 187 | G12: =G9+G10 -> 187 | H12: =H9+H10 -> 0
A14: Variable Costs
A15: Seed | B15: 1 | C15: bu | D15: 25 | E15: 0 | F15: =(D15*B15) -> 25 | G15: =F15*(1-E15) -> 25 | H15: =F15*E15 -> 0
A16: Fertilizer
A17: fert (N) - liquid | B17: 30 | C17: lbs | D17: =IF(A17="",0,VLOOKUP(A17,'Universal Input Prices'!$B$29:$C$33, 2)) -> 0.6109375 | E17: 0 | F17: =(D17*B17) -> 18.328125 | G17: =F17*(1-E17) -> 18.328125 | H17: =F17*E17 -> 0
B18: 0 | C18: lbs | D18: =IF(A18="",0,VLOOKUP(A18,'Universal Input Prices'!$B$29:$C$33, 2)) -> 0 | E18: 0 | F18: =(D18*B18) -> 0 | G18: =F18*(1-E18) -> 0 | H18: =F18*E18 -> 0
B19: 0 | C19: lbs | D19: =IF(A19="",0,VLOOKUP(A19,'Universal Input Prices'!$B$29:$C$33, 2)) -> 0 | E19: 0 | F19: 0 | G19: =F19*(1-E19) -> 0 | H19: =F19*E19 -> 0
A20: Field Operations
A21: herbicide & application | B21: 1 | C21: acre | D21: 16.75 | E21: 0 | F21: =(D21*B21) -> 16.75 | G21: =F21*(1-E21) -> 16.75 | H21: =F21*E21 -> 0
A22: fertilizer application | B22: 1 | C22: acre | D22: 4.75 | E22: 0 | F22: =(D22*B22) -> 4.75 | G22: 4.75 | H22: 0
A23: insecticide & application | B23: 1 | C23: acre | D23: 5.5 | E23: 0 | F23: 5.5 | G23: 5.5 | H23: 0
A24: custom harvest & haul | B24: 1 | C24: acre | D24: 14 | E24: 0 | F24: 14 | G24: 14 | H24: 0
A25: custom harvest & haul | B25: =B9 -> 18 | C25: bu | D25: 0.14 | E25: 0 | F25: 2.52 | G25: 2.52 | H25: 0
A26: scouting | B26: 1 | C26: acre | D26: 0 | E26: 0 | F26: 0 | G26: =F26*(1-E26) -> 0 | H26: =F26*E26 -> 0
A27: other | B27: 1 | C27: acre | D27: 0 | E27: 0 | F27: 0 | G27: 0 | H27: 0
A28: other | B28: 1 | C28: acre | D28: 0 | E28: 0 | F28: 0 | G28: 0 | H28: 0
A29: other | B29: 1 | C29: acre | D29: 0 | E29: 0 | F29: 0 | G29: 0 | H29: 0
A30: Crop Insurance | B30: 1 | C30: acre | D30: 12 | E30: 0 | F30: 12 | G30: 12 | H30: 0
A31: Operator Labor & Hand Labor | B31: 0.9 | C31: hours | D31: ='Universal Input Prices'!$C$35 -> 12 | E31: 0 | F31: 10.8 | G31: 10.8 | H31: 0
A32: Diesel Fuel - Tractors | B32: 2.2 | C32: gallons | D32: ='Universal Input Prices'!$C$36 -> 2.999 | E32: 0 | F32: 6.5978 | G32: 6.5978 | H32: 0
A33: Gasoline - Pickup | B33: 2 | C33: gallons | D33: ='Universal Input Prices'!$C$37 -> 2.539 | E33: 0 | F33: 5.078 | G33: 5.078 | H33: 0
A34: Repair & Maintenance
A35: Implements | B35: 1 | C35: acre | D35: 3 | E35: 0 | F35: =(D35*B35) -> 3 | G35: =F35*(1-E35) -> 3 | H35: =F35*E35 -> 0
A36: Tractors | B36: 1 | C36: acre | D36: 6 | E36: 0 | F36: =(D36*B36) -> 6 | G36: =F36*(1-E36) -> 6 | H36: =F36*E36 -> 0
A37: Pickup | B37: 1 | C37: acre | D37: 0.5 | E37: 0 | F37: 0.5 | G37: =F37*(1-E37) -> 0.5 | H37: =F37*E37 -> 0
A38: Interest-operating capital | B38: ='Universal Input Prices'!$C$39 -> 0.09 | F38: =(SUM(F15:F23,F26:F37))*$B38/2 -> 5.143676625 | G38: =(SUM(G15:G23,G26:G37))*$B38/2 -> 5.143676625 | H38: =(SUM(H15:H23,H267))*$B38/2 -> 0
A40: Total Variable Costs | F40: =SUM(F15:F38) -> 135.9676016 | G40: =SUM(G15:G38) -> 135.9676016 | H40: =SUM(H158) -> 0
A41: Returns Above Variable Costs | F41: =F12-F40 -> 51.03239837 | G41: =G12-G40 -> 51.03239837 | H41: =H12-H40 -> 0
A43: Fixed Costs
A44: Implements | B44: 1 | C44: acre | D44: 10 | E44: 0 | F44: =(D44*B44) -> 10 | G44: =F44*(1-E44) -> 10 | H44: =F44*E44 -> 0
A45: Tractors | B45: 1 | C45: acre | D45: 12 | E45: 0 | F45: =(D45*B45) -> 12 | G45: 12 | H45: 0
A46: Pickup | B46: 1 | C46: acre | D46: 1.25 | E46: 0 | F46: 1.25 | G46: 1.25 | H46: 0
A47: Management | B47: 1 | C47: acre | D47: 25 | E47: 0 | F47: 25 | G47: 25 | H47: 0
A48: Whole Farm Insurance | B48: 1 | C48: acre | D48: 2 | E48: 0 | F48: 2 | G48: 2 | H48: 0
A49: Land | B49: 1 | C49: acre | D49: 50 | E49: 0 | F49: 50 | G49: =IF($H$6="Cash",D49,F49*(1-E49)) -> 50 | H49: =IF($H$6="Cash",0,F49*E49) -> 0
A50: Property Tax | B50: 1 | C50: acre | D50: 0 | E50: 0 | F50: 0 | G50: 0 | H50: 0
A51: Total Fixed Expenses | F51: =SUM(F44:F50) -> 100.25 | G51: =SUM(G44:G50) -> 100.25 | H51: =SUM(H44:H50) -> 0
A52: Total Specified Expenses | F52: =F40+F51 -> 236.2176016 | G52: =G40+G51 -> 236.2176016 | H52: =H40+H51 -> 0
A53: Returns Above Total Specified Expenses | F53: =F12-F52 -> -49.21760163 | G53: =G12-G52 -> -49.21760163 | H53: =H12-H52 -> 0
A55: If you have questions, contact Andrew Wright at 806-746-6101
A58: Supported by a grant from the
A59: Texas Cotton State Support Committee

Sheet Break-Even Comparison
C2: Comparative Break-Even Analysis Projected for 2024
A4: PARAMETER? | B4: DISPLAY? | G4: Total | H4: Operator | I4: Total | J4: Operator | K4: Owner
G5: =_xlfn.XLOOKUP(G4,PGM_ShowHide_Lookup,PGM_ShowHide_Return,"") -> Yes | H5: =_xlfn.XLOOKUP(H4,PGM_ShowHide_Lookup,PGM_ShowHide_Return,"") -> Yes | I5: =_xlfn.XLOOKUP(I4,PGM_ShowHide_Lookup,PGM_ShowHide_Return,"") -> Yes | J5: =_xlfn.XLOOKUP(J4,PGM_ShowHide_Lookup,PGM_ShowHide_Return,"") -> Yes | K5: =_xlfn.XLOOKUP(K4,PGM_ShowHide_Lookup,PGM_ShowHide_Return,"") -> Yes
C6: A | D6: B | E6: C | F6: D | G6: E | H6: F | I6: G | J6: H | K6: I
A7: Irrigated Alfalfa | B7: =_xlfn.XLOOKUP(A7,PGM_ShowHide_Lookup,PGM_ShowHide_Return,"") -> Yes | C7: ='Irr Alfalfa'!A3 -> Irrigated Alfalfa
A8: Irrigated Alfalfa | B8: Yes | G8: BE Price to Cover Variable Costs | I8: BE Price to Cover Total Costs
A9: Irrigated Alfalfa | B9: Yes | C9: Yield | D9: ='Irr Alfalfa'!C9 -> tons | G9: Total | H9: Operator | I9: Total | J9: Operator | K9: Owner
A10: Irrigated Alfalfa | B10: Yes | C10: 0.75 | D10: ='Irr Alfalfa'!$B$9*$C10 -> 4.5 | E10: ='Irr Alfalfa'!$B$9*(1-'Irr Alfalfa'!$E$9)*$C10 -> 4.5 | F10: ='Irr Alfalfa'!$B$9*'Irr Alfalfa'!$E$9*$C10 -> 0 | G10: =('Irr Alfalfa'!F$46+(D10-D$12)*('Irr Alfalfa'!$D$24))/D10 -> 183.0500164 | H10: =('Irr Alfalfa'!G$46+(E10-E$12)*('Irr Alfalfa'!$D$24))/E10 -> 183.0500164 | I10: =('Irr Alfalfa'!F$61+(D10-D$12)*('Irr Alfalfa'!$D$24))/D10 -> 245.3277942 | J10: =('Irr Alfalfa'!G$61+(E10-E$12)*('Irr Alfalfa'!$D$24))/E10 -> 245.3277942 | K10: =IF($F10=0,"N/A",('Irr Alfalfa'!H$61+(F10-F$12)*('Irr Alfalfa'!$D$24))/F10) -> N/A
A11: Irrigated Alfalfa | B11: Yes | C11: 0.9 | D11: ='Irr Alfalfa'!$B$9*$C11 -> 5.4 | E11: ='Irr Alfalfa'!$B$9*(1-'Irr Alfalfa'!$E$9)*$C11 -> 5.4 | F11: ='Irr Alfalfa'!$B$9*'Irr Alfalfa'!$E$9*$C11 -> 0 | G11: =('Irr Alfalfa'!F$46+(D11-D$12)*('Irr Alfalfa'!$D$24))/D11 -> 160.8750137 | H11: =('Irr Alfalfa'!G$46+(E11-E$12)*('Irr Alfalfa'!$D$24))/E11 -> 160.8750137 | I11: =('Irr Alfalfa'!F$61+(D11-D$12)*('Irr Alfalfa'!$D$24))/D11 -> 212.7731618 | J11: =('Irr Alfalfa'!G$61+(E11-E$12)*('Irr Alfalfa'!$D$24))/E11 -> 212.7731618 | K11: =IF($F11=0,"N/A",('Irr Alfalfa'!H$61+(F11-F$12)*('Irr Alfalfa'!$D$24))/F11) -> N/A
A12: Irrigated Alfalfa | B12: Yes | C12: 1 | D12: ='Irr Alfalfa'!$B$9*$C12 -> 6 | E12: ='Irr Alfalfa'!$B$9*(1-'Irr Alfalfa'!$E$9)*$C12 -> 6 | F12: ='Irr Alfalfa'!$B$9*'Irr Alfalfa'!$E$9*$C12 -> 0 | G12: =('Irr Alfalfa'!F$46+(D12-D$12)*('Irr Alfalfa'!$D$24))/D12 -> 149.7875123 | H12: =('Irr Alfalfa'!G$46+(E12-E$12)*('Irr Alfalfa'!$D$24))/E12 -> 149.7875123 | I12: =('Irr Alfalfa'!F$61+(D12-D$12)*('Irr Alfalfa'!$D$24))/D12 -> 196.4958456 | J12: =('Irr Alfalfa'!G$61+(E12-E$12)*('Irr Alfalfa'!$D$24))/E12 -> 196.4958456 | K12: =IF($F12=0,"N/A",('Irr Alfalfa'!H$61+(F12-F$12)*('Irr Alfalfa'!$D$24))/F12) -> N/A
A13: Irrigated Alfalfa | B13: Yes | C13: 1.1 | D13: ='Irr Alfalfa'!$B$9*$C13 -> 6.6 | E13: ='Irr Alfalfa'!$B$9*(1-'Irr Alfalfa'!$E$9)*$C13 -> 6.6 | F13: ='Irr Alfalfa'!$B$9*'Irr Alfalfa'!$E$9*$C13 -> 0 | G13: =('Irr Alfalfa'!F$46+(D13-D$12)*('Irr Alfalfa'!$D$24))/D13 -> 140.7159203 | H13: =('Irr Alfalfa'!G$46+(E13-E$12)*('Irr Alfalfa'!$D$24))/E13 -> 140.7159203 | I13: =('Irr Alfalfa'!F$61+(D13-D$12)*('Irr Alfalfa'!$D$24))/D13 -> 183.1780415 | J13: =('Irr Alfalfa'!G$61+(E13-E$12)*('Irr Alfalfa'!$D$24))/E13 -> 183.1780415 | K13: =IF($F13=0,"N/A",('Irr Alfalfa'!H$61+(F13-F$12)*('Irr Alfalfa'!$D$24))/F13) -> N/A
A14: Irrigated Alfalfa | B14: Yes | C14: 1.25 | D14: ='Irr Alfalfa'!$B$9*$C14 -> 7.5 | E14: ='Irr Alfalfa'!$B$9*(1-'Irr Alfalfa'!$E$9)*$C14 -> 7.5 | F14: ='Irr Alfalfa'!$B$9*'Irr Alfalfa'!$E$9*$C14 -> 0 | G14: =('Irr Alfalfa'!F$46+(D14-D$12)*('Irr Alfalfa'!$D$24))/D14 -> 129.8300098 | H14: =('Irr Alfalfa'!G$46+(E14-E$12)*('Irr Alfalfa'!$D$24))/E14 -> 129.8300098 | I14: =('Irr Alfalfa'!F$61+(D14-D$12)*('Irr Alfalfa'!$D$24))/D14 -> 167.1966765 | J14: =('Irr Alfalfa'!G$61+(E14-E$12)*('Irr Alfalfa'!$D$24))/E14 -> 167.1966765 | K14: =IF($F14=0,"N/A",('Irr Alfalfa'!H$61+(F14-F$12)*('Irr Alfalfa'!$D$24))/F14) -> N/A
A15: Irrigated Alfalfa | B15: Yes
A16: Irrigated Blackeyed Peas | B16: Yes | C16: ='Irr Blackeyes'!A3 -> Irrigated Blackeyed Peas
A17: Irrigated Blackeyed Peas | B17: Yes | G17: BE Price to Cover Variable Costs | I17: BE Price to Cover Total Costs
A18: Irrigated Blackeyed Peas | B18: Yes | C18: Yield | D18: ='Irr Blackeyes'!C9 -> lbs | G18: Total | H18: Operator | I18: Total | J18: Operator | K18: Owner
A19: Irrigated Blackeyed Peas | B19: Yes | C19: 0.75 | D19: ='Irr Blackeyes'!$B$9*$C19 -> 1387.5 | E19: ='Irr Blackeyes'!$B$9*(1-'Irr Blackeyes'!$E$9)*$C19 -> 1387.5 | F19: ='Irr Blackeyes'!$B$9*'Irr Blackeyes'!$E$9*$C19 -> 0 | G19: =('Irr Blackeyes'!F$46+(D19-D$21)*('Irr Blackeyes'!$D$24))/D19 -> -9.791405269 | H19: =('Irr Blackeyes'!G$46+(E19-E$21)*('Irr Blackeyes'!$D$24))/E19 -> -9.791405269 | I19: =('Irr Blackeyes'!F$60+(D19-D$21)*('Irr Blackeyes'!$D$24))/D19 -> -9.661495359 | J19: =('Irr Blackeyes'!G$60+(E19-E$21)*('Irr Blackeyes'!$D$24))/E19 -> -9.661495359 | K19: =IF($F19=0,"N/A",('Irr Blackeyes'!H$60+(F19-F$21)*('Irr Blackeyes'!$D$24))/F19) -> N/A
A20: Irrigated Blackeyed Peas | B20: Yes | C20: 0.9 | D20: ='Irr Blackeyes'!$B$9*$C20 -> 1665 | E20: ='Irr Blackeyes'!$B$9*(1-'Irr Blackeyes'!$E$9)*$C20 -> 1665 | F20: ='Irr Blackeyes'!$B$9*'Irr Blackeyes'!$E$9*$C20 -> 0 | G20: =('Irr Blackeyes'!F$46+(D20-D$21)*('Irr Blackeyes'!$D$24))/D20 -> -3.159504391 | H20: =('Irr Blackeyes'!G$46+(E20-E$21)*('Irr Blackeyes'!$D$24))/E20 -> -3.159504391 | I20: =('Irr Blackeyes'!F$60+(D20-D$21)*('Irr Blackeyes'!$D$24))/D20 -> -3.051246132 | J20: =('Irr Blackeyes'!G$60+(E20-E$21)*('Irr Blackeyes'!$D$24))/E20 -> -3.051246132 | K20: =IF($F20=0,"N/A",('Irr Blackeyes'!H$60+(F20-F$21)*('Irr Blackeyes'!$D$24))/F20) -> N/A
A21: Irrigated Blackeyed Peas | B21: Yes | C21: 1 | D21: ='Irr Blackeyes'!$B$9*$C21 -> 1850 | E21: ='Irr Blackeyes'!$B$9*(1-'Irr Blackeyes'!$E$9)*$C21 -> 1850 | F21: ='Irr Blackeyes'!$B$9*'Irr Blackeyes'!$E$9*$C21 -> 0 | G21: =('Irr Blackeyes'!F$46+(D21-D$21)*('Irr Blackeyes'!$D$24))/D21 -> 0.1564460484 | H21: =('Irr Blackeyes'!G$46+(E21-E$21)*('Irr Blackeyes'!$D$24))/E21 -> 0.1564460484 | I21: =('Irr Blackeyes'!F$60+(D21-D$21)*('Irr Blackeyes'!$D$24))/D21 -> 0.2538784808 | J21: =('Irr Blackeyes'!G$60+(E21-E$21)*('Irr Blackeyes'!$D$24))/E21 -> 0.2538784808 | K21: =IF($F21=0,"N/A",('Irr Blackeyes'!H$60+(F21-F$21)*('Irr Blackeyes'!$D$24))/F21) -> N/A
A22: Irrigated Blackeyed Peas | B22: Yes | C22: 1.1 | D22: ='Irr Blackeyes'!$B$9*$C22 -> 2035 | E22: ='Irr Blackeyes'!$B$9*(1-'Irr Blackeyes'!$E$9)*$C22 -> 2035 | F22: ='Irr Blackeyes'!$B$9*'Irr Blackeyes'!$E$9*$C22 -> 0 | G22: =('Irr Blackeyes'!F$46+(D22-D$21)*('Irr Blackeyes'!$D$24))/D22 -> 2.869496408 | H22: =('Irr Blackeyes'!G$46+(E22-E$21)*('Irr Blackeyes'!$D$24))/E22 -> 2.869496408 | I22: =('Irr Blackeyes'!F$60+(D22-D$21)*('Irr Blackeyes'!$D$24))/D22 -> 2.958071346 | J22: =('Irr Blackeyes'!G$60+(E22-E$21)*('Irr Blackeyes'!$D$24))/E22 -> 2.958071346 | K22: =IF($F22=0,"N/A",('Irr Blackeyes'!H$60+(F22-F$21)*('Irr Blackeyes'!$D$24))/F22) -> N/A
A23: Irrigated Blackeyed Peas | B23: Yes | C23: 1.25 | D23: ='Irr Blackeyes'!$B$9*$C23 -> 2312.5 | E23: ='Irr Blackeyes'!$B$9*(1-'Irr Blackeyes'!$E$9)*$C23 -> 2312.5 | F23: ='Irr Blackeyes'!$B$9*'Irr Blackeyes'!$E$9*$C23 -> 0 | G23: =('Irr Blackeyes'!F$46+(D23-D$21)*('Irr Blackeyes'!$D$24))/D23 -> 6.125156839 | H23: =('Irr Blackeyes'!G$46+(E23-E$21)*('Irr Blackeyes'!$D$24))/E23 -> 6.125156839 | I23: =('Irr Blackeyes'!F$60+(D23-D$21)*('Irr Blackeyes'!$D$24))/D23 -> 6.203102785 | J23: =('Irr Blackeyes'!G$60+(E23-E$21)*('Irr Blackeyes'!$D$24))/E23 -> 6.203102785 | K23: =IF($F23=0,"N/A",('Irr Blackeyes'!H$60+(F23-F$21)*('Irr Blackeyes'!$D$24))/F23) -> N/A
A24: Irrigated Blackeyed Peas | B24: Yes
A25: Irrigated Corn | B25: Yes | C25: ='Irr Corn'!A3 -> Irrigated Corn
A26: Irrigated Corn | B26: Yes | G26: BE Price to Cover Variable Costs | I26: BE Price to Cover Total Costs
A27: Irrigated Corn | B27: Yes | C27: Yield | D27: ='Irr Corn'!C9 -> bu | G27: Total | H27: Operator | I27: Total | J27: Operator | K27: Owner
A28: Irrigated Corn | B28: Yes | C28: 0.75 | D28: ='Irr Corn'!$B$9*$C28 -> 157.5 | E28: ='Irr Corn'!$B$9*(1-'Irr Corn'!$E$9)*$C28 -> 157.5 | F28: ='Irr Corn'!$B$9*'Irr Corn'!$E$9*$C28 -> 0 | G28: =('Irr Corn'!F$45+(D28-D$30)*('Irr Corn'!$D$23))/D28 -> 4.437586239 | H28: =('Irr Corn'!G$45+(E28-E$30)*('Irr Corn'!$D$23))/E28 -> 4.437586239 | I28: =('Irr Corn'!F$59+(D28-D$30)*('Irr Corn'!$D$23))/D28 -> 5.931237033 | J28: =('Irr Corn'!G$59+(E28-E$30)*('Irr Corn'!$D$23))/E28 -> 5.931237033 | K28: =IF($F28=0,"N/A",('Irr Corn'!H$59+(F28-F$30)*('Irr Corn'!$D$23))/F28) -> N/A
A29: Irrigated Corn | B29: Yes | C29: 0.9 | D29: ='Irr Corn'!$B$9*$C29 -> 189 | E29: ='Irr Corn'!$B$9*(1-'Irr Corn'!$E$9)*$C29 -> 189 | F29: ='Irr Corn'!$B$9*'Irr Corn'!$E$9*$C29 -> 0 | G29: =('Irr Corn'!F$45+(D29-D$30)*('Irr Corn'!$D$23))/D29 -> 3.756321866 | H29: =('Irr Corn'!G$45+(E29-E$30)*('Irr Corn'!$D$23))/E29 -> 3.756321866 | I29: =('Irr Corn'!F$59+(D29-D$30)*('Irr Corn'!$D$23))/D29 -> 5.001030861 | J29: =('Irr Corn'!G$59+(E29-E$30)*('Irr Corn'!$D$23))/E29 -> 5.001030861 | K29: =IF($F29=0,"N/A",('Irr Corn'!H$59+(F29-F$30)*('Irr Corn'!$D$23))/F29) -> N/A
A30: Irrigated Corn | B30: Yes | C30: 1 | D30: ='Irr Corn'!$B$9*$C30 -> 210 | E30: ='Irr Corn'!$B$9*(1-'Irr Corn'!$E$9)*$C30 -> 210 | F30: ='Irr Corn'!$B$9*'Irr Corn'!$E$9*$C30 -> 0 | G30: =('Irr Corn'!F$45+(D30-D$30)*('Irr Corn'!$D$23))/D30 -> 3.415689679 | H30: =('Irr Corn'!G$45+(E30-E$30)*('Irr Corn'!$D$23))/E30 -> 3.415689679 | I30: =('Irr Corn'!F$59+(D30-D$30)*('Irr Corn'!$D$23))/D30 -> 4.535927775 | J30: =('Irr Corn'!G$59+(E30-E$30)*('Irr Corn'!$D$23))/E30 -> 4.535927775 | K30: =IF($F30=0,"N/A",('Irr Corn'!H$59+(F30-F$30)*('Irr Corn'!$D$23))/F30) -> N/A
A31: Irrigated Corn | B31: Yes | C31: 1.1 | D31: ='Irr Corn'!$B$9*$C31 -> 231 | E31: ='Irr Corn'!$B$9*(1-'Irr Corn'!$E$9)*$C31 -> 231 | F31: ='Irr Corn'!$B$9*'Irr Corn'!$E$9*$C31 -> 0 | G31: =('Irr Corn'!F$45+(D31-D$30)*('Irr Corn'!$D$23))/D31 -> 3.136990618 | H31: =('Irr Corn'!G$45+(E31-E$30)*('Irr Corn'!$D$23))/E31 -> 3.136990618 | I31: =('Irr Corn'!F$59+(D31-D$30)*('Irr Corn'!$D$23))/D31 -> 4.155388886 | J31: =('Irr Corn'!G$59+(E31-E$30)*('Irr Corn'!$D$23))/E31 -> 4.155388886 | K31: =IF($F31=0,"N/A",('Irr Corn'!H$59+(F31-F$30)*('Irr Corn'!$D$23))/F31) -> N/A
A32: Irrigated Corn | B32: Yes | C32: 1.25 | D32: ='Irr Corn'!$B$9*$C32 -> 262.5 | E32: ='Irr Corn'!$B$9*(1-'Irr Corn'!$E$9)*$C32 -> 262.5 | F32: ='Irr Corn'!$B$9*'Irr Corn'!$E$9*$C32 -> 0 | G32: =('Irr Corn'!F$45+(D32-D$30)*('Irr Corn'!$D$23))/D32 -> 2.802551743 | H32: =('Irr Corn'!G$45+(E32-E$30)*('Irr Corn'!$D$23))/E32 -> 2.802551743 | I32: =('Irr Corn'!F$59+(D32-D$30)*('Irr Corn'!$D$23))/D32 -> 3.69874222 | J32: =('Irr Corn'!G$59+(E32-E$30)*('Irr Corn'!$D$23))/E32 -> 3.69874222 | K32: =IF($F32=0,"N/A",('Irr Corn'!H$59+(F32-F$30)*('Irr Corn'!$D$23))/F32) -> N/A
A33: Irrigated Corn | B33: Yes
A34: Irrigated Corn Silage | B34: Yes | C34: ='Irr Corn Silage'!A3 -> Irrigated Corn Silage
A35: Irrigated Corn Silage | B35: Yes | G35: BE Price to Cover Variable Costs | I35: BE Price to Cover Total Costs
A36: Irrigated Corn Silage | B36: Yes | C36: Yield | D36: ='Irr Corn Silage'!C9 -> tons | G36: Total | H36: Operator | I36: Total | J36: Operator | K36: Owner
A37: Irrigated Corn Silage | B37: Yes | C37: 0.75 | D37: ='Irr Corn Silage'!$B$9*$C37 -> 20.25 | E37: ='Irr Corn Silage'!$B$9*(1-'Irr Corn Silage'!$E$9)*$C37 -> 20.25 | F37: ='Irr Corn Silage'!$B$9*'Irr Corn Silage'!$E$9*$C37 -> 0 | G37: =('Irr Corn Silage'!F$45+(D37-D$39)*('Irr Corn Silage'!$D$23))/D37 -> 41.58350348 | H37: =('Irr Corn Silage'!G$45+(E37-E$39)*('Irr Corn Silage'!$D$23))/E37 -> 41.58350348 | I37: =('Irr Corn Silage'!F$59+(D37-D$39)*('Irr Corn Silage'!$D$23))/D37 -> 51.71930595 | J37: =('Irr Corn Silage'!G$59+(E37-E$39)*('Irr Corn Silage'!$D$23))/E37 -> 51.71930595 | K37: =IF($F37=0,"N/A",('Irr Corn Silage'!H$59+(F37-F$39)*('Irr Corn Silage'!$D$23))/F37) -> N/A
A38: Irrigated Corn Silage | B38: Yes | C38: 0.9 | D38: ='Irr Corn Silage'!$B$9*$C38 -> 24.3 | E38: ='Irr Corn Silage'!$B$9*(1-'Irr Corn Silage'!$E$9)*$C38 -> 24.3 | F38: ='Irr Corn Silage'!$B$9*'Irr Corn Silage'!$E$9*$C38 -> 0 | G38: =('Irr Corn Silage'!F$45+(D38-D$39)*('Irr Corn Silage'!$D$23))/D38 -> 35.81958623 | H38: =('Irr Corn Silage'!G$45+(E38-E$39)*('Irr Corn Silage'!$D$23))/E38 -> 35.81958623 | I38: =('Irr Corn Silage'!F$59+(D38-D$39)*('Irr Corn Silage'!$D$23))/D38 -> 44.26608829 | J38: =('Irr Corn Silage'!G$59+(E38-E$39)*('Irr Corn Silage'!$D$23))/E38 -> 44.26608829 | K38: =IF($F38=0,"N/A",('Irr Corn Silage'!H$59+(F38-F$39)*('Irr Corn Silage'!$D$23))/F38) -> N/A
A39: Irrigated Corn Silage | B39: Yes | C39: 1 | D39: ='Irr Corn Silage'!$B$9*$C39 -> 27 | E39: ='Irr Corn Silage'!$B$9*(1-'Irr Corn Silage'!$E$9)*$C39 -> 27 | F39: ='Irr Corn Silage'!$B$9*'Irr Corn Silage'!$E$9*$C39 -> 0 | G39: =('Irr Corn Silage'!F$45+(D39-D$39)*('Irr Corn Silage'!$D$23))/D39 -> 32.93762761 | H39: =('Irr Corn Silage'!G$45+(E39-E$39)*('Irr Corn Silage'!$D$23))/E39 -> 32.93762761 | I39: =('Irr Corn Silage'!F$59+(D39-D$39)*('Irr Corn Silage'!$D$23))/D39 -> 40.53947946 | J39: =('Irr Corn Silage'!G$59+(E39-E$39)*('Irr Corn Silage'!$D$23))/E39 -> 40.53947946 | K39: =IF($F39=0,"N/A",('Irr Corn Silage'!H$59+(F39-F$39)*('Irr Corn Silage'!$D$23))/F39) -> N/A
A40: Irrigated Corn Silage | B40: Yes | C40: 1.1 | D40: ='Irr Corn Silage'!$B$9*$C40 -> 29.7 | E40: ='Irr Corn Silage'!$B$9*(1-'Irr Corn Silage'!$E$9)*$C40 -> 29.7 | F40: ='Irr Corn Silage'!$B$9*'Irr Corn Silage'!$E$9*$C40 -> 0 | G40: =('Irr Corn Silage'!F$45+(D40-D$39)*('Irr Corn Silage'!$D$23))/D40 -> 30.57966146 | H40: =('Irr Corn Silage'!G$45+(E40-E$39)*('Irr Corn Silage'!$D$23))/E40 -> 30.57966146 | I40: =('Irr Corn Silage'!F$59+(D40-D$39)*('Irr Corn Silage'!$D$23))/D40 -> 37.49043587 | J40: =('Irr Corn Silage'!G$59+(E40-E$39)*('Irr Corn Silage'!$D$23))/E40 -> 37.49043587 | K40: =IF($F40=0,"N/A",('Irr Corn Silage'!H$59+(F40-F$39)*('Irr Corn Silage'!$D$23))/F40) -> N/A
A41: Irrigated Corn Silage | B41: Yes | C41: 1.25 | D41: ='Irr Corn Silage'!$B$9*$C41 -> 33.75 | E41: ='Irr Corn Silage'!$B$9*(1-'Irr Corn Silage'!$E$9)*$C41 -> 33.75 | F41: ='Irr Corn Silage'!$B$9*'Irr Corn Silage'!$E$9*$C41 -> 0 | G41: =('Irr Corn Silage'!F$45+(D41-D$39)*('Irr Corn Silage'!$D$23))/D41 -> 27.75010209 | H41: =('Irr Corn Silage'!G$45+(E41-E$39)*('Irr Corn Silage'!$D$23))/E41 -> 27.75010209 | I41: =('Irr Corn Silage'!F$59+(D41-D$39)*('Irr Corn Silage'!$D$23))/D41 -> 33.83158357 | J41: =('Irr Corn Silage'!G$59+(E41-E$39)*('Irr Corn Silage'!$D$23))/E41 -> 33.83158357 | K41: =IF($F41=0,"N/A",('Irr Corn Silage'!H$59+(F41-F$39)*('Irr Corn Silage'!$D$23))/F41) -> N/A
A42: Irrigated Corn Silage | B42: Yes
A43: Irrigated Cotton - Drip | B43: Yes | C43: ='Irr Cotton Drip'!A3 -> Irrigated Cotton - Drip
A44: Irrigated Cotton - Drip | B44: Yes | G44: BE Price to Cover Variable Costs | I44: BE Price to Cover Total Costs
A45: Irrigated Cotton - Drip | B45: Yes | C45: Yield | D45: ='Irr Cotton Drip'!C9 -> lbs | G45: Total | H45: Operator | I45: Total | J45: Operator | K45: Owner
A46: Irrigated Cotton - Drip | B46: Yes | C46: 0.75 | D46: ='Irr Cotton Drip'!$B$9*$C46 -> 1125 | E46: ='Irr Cotton Drip'!$B$9*(1-'Irr Cotton Drip'!$E$9)*$C46 -> 1125 | F46: ='Irr Cotton Drip'!$B$9*'Irr Cotton Drip'!$E$9*$C46 -> 0 | G46: =('Irr Cotton Drip'!F$52-D46/500*'Universal Input Prices'!$C$43/2000*Cottonseed_Price+(D46-D$48)*'Irr Cotton Drip'!$D$29+(D46-D$48)/'Irr Cotton Drip'!$B$11/100*'Irr Cotton Drip'!$D$30)/D46 -> 0.6488431924 | H46: =('Irr Cotton Drip'!G$52-E46/500*'Universal Input Prices'!$C$43/2000*Cottonseed_Price+(E46-E$48)*'Irr Cotton Drip'!$D$29+(E46-E$48)/'Irr Cotton Drip'!$B$11/100*'Irr Cotton Drip'!$D$30)/E46 -> 0.6488431924 | I46: =('Irr Cotton Drip'!F$66-D46/500*'Universal Input Prices'!$C$43/2000*Cottonseed_Price+(D46-D$48)*'Irr Cotton Drip'!$D$29+(D46-D$48)/'Irr Cotton Drip'!$B$11/100*'Irr Cotton Drip'!$D$30)/D46 -> 0.8695098591 | J46: =('Irr Cotton Drip'!G$66-E46/500*'Universal Input Prices'!$C$43/2000*Cottonseed_Price+(E46-E$48)*'Irr Cotton Drip'!$D$29+(E46-E$48)/'Irr Cotton Drip'!$B$11/100*'Irr Cotton Drip'!$D$30)/E46 -> 0.8695098591 | K46: =IF($F46=0,"N/A",('Irr Cotton Drip'!H$66-F46/500*'Universal Input Prices'!$C$43/2000*Cottonseed_Price+(F46-F$48)*'Irr Cotton Drip'!$D$29+(F46-F$48)/'Irr Cotton Drip'!$B$11/100*'Irr Cotton Drip'!$D$30)/F46) -> N/A
A47: Irrigated Cotton - Drip | B47: Yes | C47: 0.9 | D47: ='Irr Cotton Drip'!$B$9*$C47 -> 1350 | E47: ='Irr Cotton Drip'!$B$9*(1-'Irr Cotton Drip'!$E$9)*$C47 -> 1350 | F47: ='Irr Cotton Drip'!$B$9*'Irr Cotton Drip'!$E$9*$C47 -> 0 | G47: =('Irr Cotton Drip'!F$52-D47/500*'Universal Input Prices'!$C$43/2000*Cottonseed_Price+(D47-D$48)*'Irr Cotton Drip'!$D$29+(D47-D$48)/'Irr Cotton Drip'!$B$11/100*'Irr Cotton Drip'!$D$30)/D47 -> 0.5452234937 | H47: =('Irr Cotton Drip'!G$52-E47/500*'Universal Input Prices'!$C$43/2000*Cottonseed_Price+(E47-E$48)*'Irr Cotton Drip'!$D$29+(E47-E$48)/'Irr Cotton Drip'!$B$11/100*'Irr Cotton Drip'!$D$30)/E47 -> 0.5452234937 | I47: =('Irr Cotton Drip'!F$66-D47/500*'Universal Input Prices'!$C$43/2000*Cottonseed_Price+(D47-D$48)*'Irr Cotton Drip'!$D$29+(D47-D$48)/'Irr Cotton Drip'!$B$11/100*'Irr Cotton Drip'!$D$30)/D47 -> 0.7291123826 | J47: =('Irr Cotton Drip'!G$66-E47/500*'Universal Input Prices'!$C$43/2000*Cottonseed_Price+(E47-E$48)*'Irr Cotton Drip'!$D$29+(E47-E$48)/'Irr Cotton Drip'!$B$11/100*'Irr Cotton Drip'!$D$30)/E47 -> 0.7291123826 | K47: =IF($F47=0,"N/A",('Irr Cotton Drip'!H$66-F47/500*'Universal Input Prices'!$C$43/2000*Cottonseed_Price+(F47-F$48)*'Irr Cotton Drip'!$D$29+(F47-F$48)/'Irr Cotton Drip'!$B$11/100*'Irr Cotton Drip'!$D$30)/F47) -> N/A
A48: Irrigated Cotton - Drip | B48: Yes | C48: 1 | D48: ='Irr Cotton Drip'!$B$9*$C48 -> 1500 | E48: ='Irr Cotton Drip'!$B$9*(1-'Irr Cotton Drip'!$E$9)*$C48 -> 1500 | F48: ='Irr Cotton Drip'!$B$9*'Irr Cotton Drip'!$E$9*$C48 -> 0 | G48: =('Irr Cotton Drip'!F$52-D48/500*'Universal Input Prices'!$C$43/2000*Cottonseed_Price+(D48-D$48)*'Irr Cotton Drip'!$D$29+(D48-D$48)/'Irr Cotton Drip'!$B$11/100*'Irr Cotton Drip'!$D$30)/D48 -> 0.4934136443 | H48: =('Irr Cotton Drip'!G$52-E48/500*'Universal Input Prices'!$C$43/2000*Cottonseed_Price+(E48-E$48)*'Irr Cotton Drip'!$D$29+(E48-E$48)/'Irr Cotton Drip'!$B$11/100*'Irr Cotton Drip'!$D$30)/E48 -> 0.4934136443 | I48: =('Irr Cotton Drip'!F$66-D48/500*'Universal Input Prices'!$C$43/2000*Cottonseed_Price+(D48-D$48)*'Irr Cotton Drip'!$D$29+(D48-D$48)/'Irr Cotton Drip'!$B$11/100*'Irr Cotton Drip'!$D$30)/D48 -> 0.6589136443 | J48: =('Irr Cotton Drip'!G$66-E48/500*'Universal Input Prices'!$C$43/2000*Cottonseed_Price+(E48-E$48)*'Irr Cotton Drip'!$D$29+(E48-E$48)/'Irr Cotton Drip'!$B$11/100*'Irr Cotton Drip'!$D$30)/E48 -> 0.6589136443 | K48: =IF($F48=0,"N/A",('Irr Cotton Drip'!H$66-F48/500*'Universal Input Prices'!$C$43/2000*Cottonseed_Price+(F48-F$48)*'Irr Cotton Drip'!$D$29+(F48-F$48)/'Irr Cotton Drip'!$B$11/100*'Irr Cotton Drip'!$D$30)/F48) -> N/A
A49: Irrigated Cotton - Drip | B49: Yes | C49: 1.1 | D49: ='Irr Cotton Drip'!$B$9*$C49 -> 1650 | E49: ='Irr Cotton Drip'!$B$9*(1-'Irr Cotton Drip'!$E$9)*$C49 -> 1650 | F49: ='Irr Cotton Drip'!$B$9*'Irr Cotton Drip'!$E$9*$C49 -> 0 | G49: =('Irr Cotton Drip'!F$52-D49/500*'Universal Input Prices'!$C$43/2000*Cottonseed_Price+(D49-D$48)*'Irr Cotton Drip'!$D$29+(D49-D$48)/'Irr Cotton Drip'!$B$11/100*'Irr Cotton Drip'!$D$30)/D49 -> 0.4510237676 | H49: =('Irr Cotton Drip'!G$52-E49/500*'Universal Input Prices'!$C$43/2000*Cottonseed_Price+(E49-E$48)*'Irr Cotton Drip'!$D$29+(E49-E$48)/'Irr Cotton Drip'!$B$11/100*'Irr Cotton Drip'!$D$30)/E49 -> 0.4510237676 | I49: =('Irr Cotton Drip'!F$66-D49/500*'Universal Input Prices'!$C$43/2000*Cottonseed_Price+(D49-D$48)*'Irr Cotton Drip'!$D$29+(D49-D$48)/'Irr Cotton Drip'!$B$11/100*'Irr Cotton Drip'!$D$30)/D49 -> 0.601478313 | J49: =('Irr Cotton Drip'!G$66-E49/500*'Universal Input Prices'!$C$43/2000*Cottonseed_Price+(E49-E$48)*'Irr Cotton Drip'!$D$29+(E49-E$48)/'Irr Cotton Drip'!$B$11/100*'Irr Cotton Drip'!$D$30)/E49 -> 0.601478313 | K49: =IF($F49=0,"N/A",('Irr Cotton Drip'!H$66-F49/500*'Universal Input Prices'!$C$43/2000*Cottonseed_Price+(F49-F$48)*'Irr Cotton Drip'!$D$29+(F49-F$48)/'Irr Cotton Drip'!$B$11/100*'Irr Cotton Drip'!$D$30)/F49) -> N/A
A50: Irrigated Cotton - Drip | B50: Yes | C50: 1.25 | D50: ='Irr Cotton Drip'!$B$9*$C50 -> 1875 | E50: ='Irr Cotton Drip'!$B$9*(1-'Irr Cotton Drip'!$E$9)*$C50 -> 1875 | F50: ='Irr Cotton Drip'!$B$9*'Irr Cotton Drip'!$E$9*$C50 -> 0 | G50: =('Irr Cotton Drip'!F$52-D50/500*'Universal Input Prices'!$C$43/2000*Cottonseed_Price+(D50-D$48)*'Irr Cotton Drip'!$D$29+(D50-D$48)/'Irr Cotton Drip'!$B$11/100*'Irr Cotton Drip'!$D$30)/D50 -> 0.4001559155 | H50: =('Irr Cotton Drip'!G$52-E50/500*'Universal Input Prices'!$C$43/2000*Cottonseed_Price+(E50-E$48)*'Irr Cotton Drip'!$D$29+(E50-E$48)/'Irr Cotton Drip'!$B$11/100*'Irr Cotton Drip'!$D$30)/E50 -> 0.4001559155 | I50: =('Irr Cotton Drip'!F$66-D50/500*'Universal Input Prices'!$C$43/2000*Cottonseed_Price+(D50-D$48)*'Irr Cotton Drip'!$D$29+(D50-D$48)/'Irr Cotton Drip'!$B$11/100*'Irr Cotton Drip'!$D$30)/D50 -> 0.5325559155 | J50: =('Irr Cotton Drip'!G$66-E50/500*'Universal Input Prices'!$C$43/2000*Cottonseed_Price+(E50-E$48)*'Irr Cotton Drip'!$D$29+(E50-E$48)/'Irr Cotton Drip'!$B$11/100*'Irr Cotton Drip'!$D$30)/E50 -> 0.5325559155 | K50: =IF($F50=0,"N/A",('Irr Cotton Drip'!H$66-F50/500*'Universal Input Prices'!$C$43/2000*Cottonseed_Price+(F50-F$48)*'Irr Cotton Drip'!$D$29+(F50-F$48)/'Irr Cotton Drip'!$B$11/100*'Irr Cotton Drip'!$D$30)/F50) -> N/A
A51: Irrigated Cotton - Drip | B51: Yes
A52: Irrigated Cotton - Pivot | B52: Yes | C52: ='Irr Cotton Pivot'!A3 -> Irrigated Cotton - Pivot
A53: Irrigated Cotton - Pivot | B53: Yes | G53: BE Price to Cover Variable Costs | I53: BE Price to Cover Total Costs
A54: Irrigated Cotton - Pivot | B54: Yes | C54: Yield | D54: ='Irr Cotton Pivot'!C9 -> lbs | G54: Total | H54: Operator | I54: Total | J54: Operator | K54: Owner
A55: Irrigated Cotton - Pivot | B55: Yes | C55: 0.75 | D55: ='Irr Cotton Pivot'!$B$9*$C55 -> 750 | E55: ='Irr Cotton Pivot'!$B$9*(1-'Irr Cotton Pivot'!$E$9)*$C55 -> 750 | F55: ='Irr Cotton Pivot'!$B$9*'Irr Cotton Pivot'!$E$9*$C55 -> 0 | G55: =('Irr Cotton Pivot'!F$51-D55/500*'Universal Input Prices'!$C$43/2000*Cottonseed_Price+(D55-D$57)*'Irr Cotton Pivot'!$D$28+(D55-D$57)/'Irr Cotton Pivot'!$B$11/100*'Irr Cotton Pivot'!$D$29)/D55 -> 0.6673324529 | H55: =('Irr Cotton Pivot'!G$51-E55/500*'Universal Input Prices'!$C$43/2000*Cottonseed_Price+(E55-E$57)*'Irr Cotton Pivot'!$D$28+(E55-E$57)/'Irr Cotton Pivot'!$B$11/100*'Irr Cotton Pivot'!$D$29)/E55 -> 0.6673324529 | I55: =('Irr Cotton Pivot'!F$65-D55/500*'Universal Input Prices'!$C$43/2000*Cottonseed_Price+(D55-D$57)*'Irr Cotton Pivot'!$D$28+(D55-D$57)/'Irr Cotton Pivot'!$B$11/100*'Irr Cotton Pivot'!$D$29)/D55 -> 0.9383324529 | J55: =('Irr Cotton Pivot'!G$65-E55/500*'Universal Input Prices'!$C$43/2000*Cottonseed_Price+(E55-E$57)*'Irr Cotton Pivot'!$D$28+(E55-E$57)/'Irr Cotton Pivot'!$B$11/100*'Irr Cotton Pivot'!$D$29)/E55 -> 0.9383324529 | K55: =IF($F55=0,"N/A",('Irr Cotton Pivot'!H$65-F55/500*'Universal Input Prices'!$C$43/2000*Cottonseed_Price+(F55-F$57)*'Irr Cotton Pivot'!$D$28+(F55-F$57)/'Irr Cotton Pivot'!$B$11/100*'Irr Cotton Pivot'!$D$29)/F55) -> N/A
A56: Irrigated Cotton - Pivot | B56: Yes | C56: 0.9 | D56: ='Irr Cotton Pivot'!$B$9*$C56 -> 900 | E56: ='Irr Cotton Pivot'!$B$9*(1-'Irr Cotton Pivot'!$E$9)*$C56 -> 900 | F56: ='Irr Cotton Pivot'!$B$9*'Irr Cotton Pivot'!$E$9*$C56 -> 0 | G56: =('Irr Cotton Pivot'!F$51-D56/500*'Universal Input Prices'!$C$43/2000*Cottonseed_Price+(D56-D$57)*'Irr Cotton Pivot'!$D$28+(D56-D$57)/'Irr Cotton Pivot'!$B$11/100*'Irr Cotton Pivot'!$D$29)/D56 -> 0.5606312108 | H56: =('Irr Cotton Pivot'!G$51-E56/500*'Universal Input Prices'!$C$43/2000*Cottonseed_Price+(E56-E$57)*'Irr Cotton Pivot'!$D$28+(E56-E$57)/'Irr Cotton Pivot'!$B$11/100*'Irr Cotton Pivot'!$D$29)/E56 -> 0.5606312108 | I56: =('Irr Cotton Pivot'!F$65-D56/500*'Universal Input Prices'!$C$43/2000*Cottonseed_Price+(D56-D$57)*'Irr Cotton Pivot'!$D$28+(D56-D$57)/'Irr Cotton Pivot'!$B$11/100*'Irr Cotton Pivot'!$D$29)/D56 -> 0.7864645441 | J56: =('Irr Cotton Pivot'!G$65-E56/500*'Universal Input Prices'!$C$43/2000*Cottonseed_Price+(E56-E$57)*'Irr Cotton Pivot'!$D$28+(E56-E$57)/'Irr Cotton Pivot'!$B$11/100*'Irr Cotton Pivot'!$D$29)/E56 -> 0.7864645441 | K56: =IF($F56=0,"N/A",('Irr Cotton Pivot'!H$65-F56/500*'Universal Input Prices'!$C$43/2000*Cottonseed_Price+(F56-F$57)*'Irr Cotton Pivot'!$D$28+(F56-F$57)/'Irr Cotton Pivot'!$B$11/100*'Irr Cotton Pivot'!$D$29)/F56) -> N/A
A57: Irrigated Cotton - Pivot | B57: Yes | C57: 1 | D57: ='Irr Cotton Pivot'!$B$9*$C57 -> 1000 | E57: ='Irr Cotton Pivot'!$B$9*(1-'Irr Cotton Pivot'!$E$9)*$C57 -> 1000 | F57: ='Irr Cotton Pivot'!$B$9*'Irr Cotton Pivot'!$E$9*$C57 -> 0 | G57: =('Irr Cotton Pivot'!F$51-D57/500*'Universal Input Prices'!$C$43/2000*Cottonseed_Price+(D57-D$57)*'Irr Cotton Pivot'!$D$28+(D57-D$57)/'Irr Cotton Pivot'!$B$11/100*'Irr Cotton Pivot'!$D$29)/D57 -> 0.5072805897 | H57: =('Irr Cotton Pivot'!G$51-E57/500*'Universal Input Prices'!$C$43/2000*Cottonseed_Price+(E57-E$57)*'Irr Cotton Pivot'!$D$28+(E57-E$57)/'Irr Cotton Pivot'!$B$11/100*'Irr Cotton Pivot'!$D$29)/E57 -> 0.5072805897 | I57: =('Irr Cotton Pivot'!F$65-D57/500*'Universal Input Prices'!$C$43/2000*Cottonseed_Price+(D57-D$57)*'Irr Cotton Pivot'!$D$28+(D57-D$57)/'Irr Cotton Pivot'!$B$11/100*'Irr Cotton Pivot'!$D$29)/D57 -> 0.7105305897 | J57: =('Irr Cotton Pivot'!G$65-E57/500*'Universal Input Prices'!$C$43/2000*Cottonseed_Price+(E57-E$57)*'Irr Cotton Pivot'!$D$28+(E57-E$57)/'Irr Cotton Pivot'!$B$11/100*'Irr Cotton Pivot'!$D$29)/E57 -> 0.7105305897 | K57: =IF($F57=0,"N/A",('Irr Cotton Pivot'!H$65-F57/500*'Universal Input Prices'!$C$43/2000*Cottonseed_Price+(F57-F$57)*'Irr Cotton Pivot'!$D$28+(F57-F$57)/'Irr Cotton Pivot'!$B$11/100*'Irr Cotton Pivot'!$D$29)/F57) -> N/A
A58: Irrigated Cotton - Pivot | B58: Yes | C58: 1.1 | D58: ='Irr Cotton Pivot'!$B$9*$C58 -> 1100 | E58: ='Irr Cotton Pivot'!$B$9*(1-'Irr Cotton Pivot'!$E$9)*$C58 -> 1100 | F58: ='Irr Cotton Pivot'!$B$9*'Irr Cotton Pivot'!$E$9*$C58 -> 0 | G58: =('Irr Cotton Pivot'!F$51-D58/500*'Universal Input Prices'!$C$43/2000*Cottonseed_Price+(D58-D$57)*'Irr Cotton Pivot'!$D$28+(D58-D$57)/'Irr Cotton Pivot'!$B$11/100*'Irr Cotton Pivot'!$D$29)/D58 -> 0.4636300816 | H58: =('Irr Cotton Pivot'!G$51-E58/500*'Universal Input Prices'!$C$43/2000*Cottonseed_Price+(E58-E$57)*'Irr Cotton Pivot'!$D$28+(E58-E$57)/'Irr Cotton Pivot'!$B$11/100*'Irr Cotton Pivot'!$D$29)/E58 -> 0.4636300816 | I58: =('Irr Cotton Pivot'!F$65-D58/500*'Universal Input Prices'!$C$43/2000*Cottonseed_Price+(D58-D$57)*'Irr Cotton Pivot'!$D$28+(D58-D$57)/'Irr Cotton Pivot'!$B$11/100*'Irr Cotton Pivot'!$D$29)/D58 -> 0.6484028088 | J58: =('Irr Cotton Pivot'!G$65-E58/500*'Universal Input Prices'!$C$43/2000*Cottonseed_Price+(E58-E$57)*'Irr Cotton Pivot'!$D$28+(E58-E$57)/'Irr Cotton Pivot'!$B$11/100*'Irr Cotton Pivot'!$D$29)/E58 -> 0.6484028088 | K58: =IF($F58=0,"N/A",('Irr Cotton Pivot'!H$65-F58/500*'Universal Input Prices'!$C$43/2000*Cottonseed_Price+(F58-F$57)*'Irr Cotton Pivot'!$D$28+(F58-F$57)/'Irr Cotton Pivot'!$B$11/100*'Irr Cotton Pivot'!$D$29)/F58) -> N/A
A59: Irrigated Cotton - Pivot | B59: Yes | C59: 1.25 | D59: ='Irr Cotton Pivot'!$B$9*$C59 -> 1250 | E59: ='Irr Cotton Pivot'!$B$9*(1-'Irr Cotton Pivot'!$E$9)*$C59 -> 1250 | F59: ='Irr Cotton Pivot'!$B$9*'Irr Cotton Pivot'!$E$9*$C59 -> 0 | G59: =('Irr Cotton Pivot'!F$51-D59/500*'Universal Input Prices'!$C$43/2000*Cottonseed_Price+(D59-D$57)*'Irr Cotton Pivot'!$D$28+(D59-D$57)/'Irr Cotton Pivot'!$B$11/100*'Irr Cotton Pivot'!$D$29)/D59 -> 0.4112494718 | H59: =('Irr Cotton Pivot'!G$51-E59/500*'Universal Input Prices'!$C$43/2000*Cottonseed_Price+(E59-E$57)*'Irr Cotton Pivot'!$D$28+(E59-E$57)/'Irr Cotton Pivot'!$B$11/100*'Irr Cotton Pivot'!$D$29)/E59 -> 0.4112494718 | I59: =('Irr Cotton Pivot'!F$65-D59/500*'Universal Input Prices'!$C$43/2000*Cottonseed_Price+(D59-D$57)*'Irr Cotton Pivot'!$D$28+(D59-D$57)/'Irr Cotton Pivot'!$B$11/100*'Irr Cotton Pivot'!$D$29)/D59 -> 0.5738494718 | J59: =('Irr Cotton Pivot'!G$65-E59/500*'Universal Input Prices'!$C$43/2000*Cottonseed_Price+(E59-E$57)*'Irr Cotton Pivot'!$D$28+(E59-E$57)/'Irr Cotton Pivot'!$B$11/100*'Irr Cotton Pivot'!$D$29)/E59 -> 0.5738494718 | K59: =IF($F59=0,"N/A",('Irr Cotton Pivot'!H$65-F59/500*'Universal Input Prices'!$C$43/2000*Cottonseed_Price+(F59-F$57)*'Irr Cotton Pivot'!$D$28+(F59-F$57)/'Irr Cotton Pivot'!$B$11/100*'Irr Cotton Pivot'!$D$29)/F59) -> N/A
A60: Irrigated Cotton - Pivot | B60: Yes
A61: Irrigated Guar | B61: Yes | C61: ='Irr Guar'!A3 -> Irrigated Guar
A62: Irrigated Guar | B62: Yes | G62: BE Price to Cover Variable Costs | I62: BE Price to Cover Total Costs
A63: Irrigated Guar | B63: Yes | C63: Yield | D63: ='Irr Guar'!C9 -> lb | G63: Total | H63: Operator | I63: Total | J63: Operator | K63: Owner
A64: Irrigated Guar | B64: Yes | C64: 0.75 | D64: ='Irr Guar'!$B$9*$C64 -> 900 | E64: ='Irr Guar'!$B$9*(1-'Irr Guar'!$E$9)*$C64 -> 900 | F64: ='Irr Guar'!$B$9*'Irr Guar'!$E$9*$C64 -> 0 | G64: =('Irr Guar'!$F$47+($D64-$D$75)*'Irr Guar'!$D$25)/$D64 -> 0.4166178655 | H64: =('Irr Guar'!$G$47+($E64-$E$75)*'Irr Guar'!$D$25)/$E64 -> 0.4166178655 | I64: =('Irr Guar'!$F$61+($D64-$D$75)*'Irr Guar'!$D$25)/$D64 -> 0.6168956432 | J64: =('Irr Guar'!$G$61+($E64-$E$75)*'Irr Guar'!$D$25)/$E64 -> 0.6168956432 | K64: =IF($F64=0, "N/A", ('Irr Guar'!$H$61+($F64-$F$75)*'Irr Guar'!$D$25)/$F64) -> N/A
A65: Irrigated Guar | B65: Yes | C65: 0.9 | D65: ='Irr Guar'!$B$9*$C65 -> 1080 | E65: ='Irr Guar'!$B$9*(1-'Irr Guar'!$E$9)*$C65 -> 1080 | F65: ='Irr Guar'!$B$9*'Irr Guar'!$E$9*$C65 -> 0 | G65: =('Irr Guar'!$F$47+($D65-$D$75)*'Irr Guar'!$D$25)/$D65 -> 0.3805148879 | H65: =('Irr Guar'!$G$47+($E65-$E$75)*'Irr Guar'!$D$25)/$E65 -> 0.3805148879 | I65: =('Irr Guar'!$F$61+($D65-$D$75)*'Irr Guar'!$D$25)/$D65 -> 0.547413036 | J65: =('Irr Guar'!$G$61+($E65-$E$75)*'Irr Guar'!$D$25)/$E65 -> 0.547413036 | K65: =IF($F65=0, "N/A", ('Irr Guar'!$H$61+($F65-$F$75)*'Irr Guar'!$D$25)/$F65) -> N/A
A66: Irrigated Guar | B66: Yes | C66: 1 | D66: ='Irr Guar'!$B$9*$C66 -> 1200 | E66: ='Irr Guar'!$B$9*(1-'Irr Guar'!$E$9)*$C66 -> 1200 | F66: ='Irr Guar'!$B$9*'Irr Guar'!$E$9*$C66 -> 0 | G66: =('Irr Guar'!$F$47+($D66-$D$75)*'Irr Guar'!$D$25)/$D66 -> 0.3624633991 | H66: =('Irr Guar'!$G$47+($E66-$E$75)*'Irr Guar'!$D$25)/$E66 -> 0.3624633991 | I66: =('Irr Guar'!$F$61+($D66-$D$75)*'Irr Guar'!$D$25)/$D66 -> 0.5126717324 | J66: =('Irr Guar'!$G$61+($E66-$E$75)*'Irr Guar'!$D$25)/$E66 -> 0.5126717324 | K66: =IF($F66=0, "N/A", ('Irr Guar'!$H$61+($F66-$F$75)*'Irr Guar'!$D$25)/$F66) -> N/A
A67: Irrigated Guar | B67: Yes | C67: 1.1 | D67: ='Irr Guar'!$B$9*$C67 -> 1320 | E67: ='Irr Guar'!$B$9*(1-'Irr Guar'!$E$9)*$C67 -> 1320 | F67: ='Irr Guar'!$B$9*'Irr Guar'!$E$9*$C67 -> 0 | G67: =('Irr Guar'!$F$47+($D67-$D$75)*'Irr Guar'!$D$25)/$D67 -> 0.3476939992 | H67: =('Irr Guar'!$G$47+($E67-$E$75)*'Irr Guar'!$D$25)/$E67 -> 0.3476939992 | I67: =('Irr Guar'!$F$61+($D67-$D$75)*'Irr Guar'!$D$25)/$D67 -> 0.4842470295 | J67: =('Irr Guar'!$G$61+($E67-$E$75)*'Irr Guar'!$D$25)/$E67 -> 0.4842470295 | K67: =IF($F67=0, "N/A", ('Irr Guar'!$H$61+($F67-$F$75)*'Irr Guar'!$D$25)/$F67) -> N/A
A68: Irrigated Guar | B68: Yes | C68: 1.25 | D68: ='Irr Guar'!$B$9*$C68 -> 1500 | E68: ='Irr Guar'!$B$9*(1-'Irr Guar'!$E$9)*$C68 -> 1500 | F68: ='Irr Guar'!$B$9*'Irr Guar'!$E$9*$C68 -> 0 | G68: =('Irr Guar'!$F$47+($D68-$D$75)*'Irr Guar'!$D$25)/$D68 -> 0.3299707193 | H68: =('Irr Guar'!$G$47+($E68-$E$75)*'Irr Guar'!$D$25)/$E68 -> 0.3299707193 | I68: =('Irr Guar'!$F$61+($D68-$D$75)*'Irr Guar'!$D$25)/$D68 -> 0.4501373859 | J68: =('Irr Guar'!$G$61+($E68-$E$75)*'Irr Guar'!$D$25)/$E68 -> 0.4501373859 | K68: =IF($F68=0, "N/A", ('Irr Guar'!$H$61+($F68-$F$75)*'Irr Guar'!$D$25)/$F68) -> N/A
A69: Irrigated Guar | B69: Yes
A70: Irrigated Peanuts | B70: Yes | C70: ='Irr Peanuts'!A3 -> Irrigated Peanuts
A71: Irrigated Peanuts | B71: =_xlfn.XLOOKUP(A71,PGM_ShowHide_Lookup,PGM_ShowHide_Return,"") -> Yes | G71: BE Price to Cover Variable Costs | I71: BE Price to Cover Total Costs
A72: Irrigated Peanuts | B72: Yes | C72: Yield | D72: ='Irr Peanuts'!C9 -> tons | G72: Total | H72: Operator | I72: Total | J72: Operator | K72: Owner
A73: Irrigated Peanuts | B73: Yes | C73: 0.75 | D73: ='Irr Peanuts'!$B$9*$C73 -> 1.3125 | E73: ='Irr Peanuts'!$B$9*(1-'Irr Peanuts'!$E$9)*$C73 -> 1.3125 | F73: ='Irr Peanuts'!$B$9*'Irr Peanuts'!$E$9*$C73 -> 0 | G73: =('Irr Peanuts'!$F$50+($D73-$D$75)*(SUM('Irr Peanuts'!$D$26:$D$27)))/$D73 -> 636.2742647 | H73: =('Irr Peanuts'!$G$50+($E73-$E$75)*(SUM('Irr Peanuts'!$D$26:$D$27)))/$E73 -> 636.2742647 | I73: =('Irr Peanuts'!$F$64+($D73-$D$75)*(SUM('Irr Peanuts'!$D$26:$D$27)))/$D73 -> 792.6552171 | J73: =('Irr Peanuts'!$G$64+($E73-$E$75)*(SUM('Irr Peanuts'!$D$26:$D$27)))/$E73 -> 792.6552171 | K73: =IF($F73=0, "N/A", ('Irr Peanuts'!$H$64+($F73-$F$75)*(SUM('Irr Peanuts'!$D$26:$D$27)))/$F73) -> N/A
A74: Irrigated Peanuts | B74: Yes | C74: 0.9 | D74: ='Irr Peanuts'!$B$9*$C74 -> 1.575 | E74: ='Irr Peanuts'!$B$9*(1-'Irr Peanuts'!$E$9)*$C74 -> 1.575 | F74: ='Irr Peanuts'!$B$9*'Irr Peanuts'!$E$9*$C74 -> 0 | G74: =('Irr Peanuts'!$F$50+($D74-$D$75)*(SUM('Irr Peanuts'!$D$26:$D$27)))/$D74 -> 545.2285539 | H74: =('Irr Peanuts'!$G$50+($E74-$E$75)*(SUM('Irr Peanuts'!$D$26:$D$27)))/$E74 -> 545.2285539 | I74: =('Irr Peanuts'!$F$64+($D74-$D$75)*(SUM('Irr Peanuts'!$D$26:$D$27)))/$D74 -> 675.5460142 | J74: =('Irr Peanuts'!$G$64+($E74-$E$75)*(SUM('Irr Peanuts'!$D$26:$D$27)))/$E74 -> 675.5460142 | K74: =IF($F74=0, "N/A", ('Irr Peanuts'!$H$64+($F74-$F$75)*(SUM('Irr Peanuts'!$D$26:$D$27)))/$F74) -> N/A
A75: Irrigated Peanuts | B75: Yes | C75: 1 | D75: ='Irr Peanuts'!$B$9*$C75 -> 1.75 | E75: ='Irr Peanuts'!$B$9*(1-'Irr Peanuts'!$E$9)*$C75 -> 1.75 | F75: ='Irr Peanuts'!$B$9*'Irr Peanuts'!$E$9*$C75 -> 0 | G75: =('Irr Peanuts'!$F$50+($D75-$D$75)*(SUM('Irr Peanuts'!$D$26:$D$27)))/$D75 -> 499.7056985 | H75: =('Irr Peanuts'!$G$50+($E75-$E$75)*(SUM('Irr Peanuts'!$D$26:$D$27)))/$E75 -> 499.7056985 | I75: =('Irr Peanuts'!$F$64+($D75-$D$75)*(SUM('Irr Peanuts'!$D$26:$D$27)))/$D75 -> 616.9914128 | J75: =('Irr Peanuts'!$G$64+($E75-$E$75)*(SUM('Irr Peanuts'!$D$26:$D$27)))/$E75 -> 616.9914128 | K75: =IF($F75=0, "N/A", ('Irr Peanuts'!$H$64+($F75-$F$75)*(SUM('Irr Peanuts'!$D$26:$D$27)))/$F75) -> N/A
A76: Irrigated Peanuts | B76: Yes | C76: 1.1 | D76: ='Irr Peanuts'!$B$9*$C76 -> 1.925 | E76: ='Irr Peanuts'!$B$9*(1-'Irr Peanuts'!$E$9)*$C76 -> 1.925 | F76: ='Irr Peanuts'!$B$9*'Irr Peanuts'!$E$9*$C76 -> 0 | G76: =('Irr Peanuts'!$F$50+($D76-$D$75)*(SUM('Irr Peanuts'!$D$26:$D$27)))/$D76 -> 462.4597259 | H76: =('Irr Peanuts'!$G$50+($E76-$E$75)*(SUM('Irr Peanuts'!$D$26:$D$27)))/$E76 -> 462.4597259 | I76: =('Irr Peanuts'!$F$64+($D76-$D$75)*(SUM('Irr Peanuts'!$D$26:$D$27)))/$D76 -> 569.0831026 | J76: =('Irr Peanuts'!$G$64+($E76-$E$75)*(SUM('Irr Peanuts'!$D$26:$D$27)))/$E76 -> 569.0831026 | K76: =IF($F76=0, "N/A", ('Irr Peanuts'!$H$64+($F76-$F$75)*(SUM('Irr Peanuts'!$D$26:$D$27)))/$F76) -> N/A
A77: Irrigated Peanuts | B77: Yes | C77: 1.25 | D77: ='Irr Peanuts'!$B$9*$C77 -> 2.1875 | E77: ='Irr Peanuts'!$B$9*(1-'Irr Peanuts'!$E$9)*$C77 -> 2.1875 | F77: ='Irr Peanuts'!$B$9*'Irr Peanuts'!$E$9*$C77 -> 0 | G77: =('Irr Peanuts'!$F$50+($D77-$D$75)*(SUM('Irr Peanuts'!$D$26:$D$27)))/$D77 -> 417.7645588 | H77: =('Irr Peanuts'!$G$50+($E77-$E$75)*(SUM('Irr Peanuts'!$D$26:$D$27)))/$E77 -> 417.7645588 | I77: =('Irr Peanuts'!$F$64+($D77-$D$75)*(SUM('Irr Peanuts'!$D$26:$D$27)))/$D77 -> 511.5931302 | J77: =('Irr Peanuts'!$G$64+($E77-$E$75)*(SUM('Irr Peanuts'!$D$26:$D$27)))/$E77 -> 511.5931302 | K77: =IF($F77=0, "N/A", ('Irr Peanuts'!$H$64+($F77-$F$75)*(SUM('Irr Peanuts'!$D$26:$D$27)))/$F77) -> N/A
A78: Irrigated Peanuts | B78: Yes
A79: Irrigated Sesame | B79: Yes | C79: ='Irr Sesame'!A3 -> Irrigated Sesame
A80: Irrigated Sesame | B80: Yes | G80: BE Price to Cover Variable Costs | I80: BE Price to Cover Total Costs
A81: Irrigated Sesame | B81: Yes | C81: Yield | D81: ='Irr Sesame'!C9 -> lbs | G81: Total | H81: Operator | I81: Total | J81: Operator | K81: Owner
A82: Irrigated Sesame | B82: Yes | C82: 0.75 | D82: ='Irr Sesame'!$B$9*$C82 -> 900 | E82: ='Irr Sesame'!$B$9*(1-'Irr Sesame'!$E$9)*$C82 -> 900 | F82: ='Irr Sesame'!$B$9*'Irr Sesame'!$E$9*$C82 -> 0 | G82: =('Irr Sesame'!$F$47+($D82-$D$84)*'Irr Sesame'!$D$24)/$D82 -> 0.3509020513 | H82: =('Irr Sesame'!$G$47+($E82-$E$84)*'Irr Sesame'!$D$24)/$E82 -> 0.3509020513 | I82: =('Irr Sesame'!$F$61+($D82-$D$84)*'Irr Sesame'!$D$24)/$D82 -> 0.5789576069 | J82: =('Irr Sesame'!$G$61+($E82-$E$84)*'Irr Sesame'!$D$24)/$E82 -> 0.5789576069 | K82: =IF($F82=0, "N/A", ('Irr Sesame'!$H$61+($F82-$F$84)*'Irr Sesame'!$D$24)/$F82) -> N/A
A83: Irrigated Sesame | B83: Yes | C83: 0.9 | D83: ='Irr Sesame'!$B$9*$C83 -> 1080 | E83: ='Irr Sesame'!$B$9*(1-'Irr Sesame'!$E$9)*$C83 -> 1080 | F83: ='Irr Sesame'!$B$9*'Irr Sesame'!$E$9*$C83 -> 0 | G83: =('Irr Sesame'!$F$47+($D83-$D$84)*'Irr Sesame'!$D$24)/$D83 -> 0.3124183761 | H83: =('Irr Sesame'!$G$47+($E83-$E$84)*'Irr Sesame'!$D$24)/$E83 -> 0.3124183761 | I83: =('Irr Sesame'!$F$61+($D83-$D$84)*'Irr Sesame'!$D$24)/$D83 -> 0.5024646724 | J83: =('Irr Sesame'!$G$61+($E83-$E$84)*'Irr Sesame'!$D$24)/$E83 -> 0.5024646724 | K83: =IF($F83=0, "N/A", ('Irr Sesame'!$H$61+($F83-$F$84)*'Irr Sesame'!$D$24)/$F83) -> N/A
A84: Irrigated Sesame | B84: Yes | C84: 1 | D84: ='Irr Sesame'!$B$9*$C84 -> 1200 | E84: ='Irr Sesame'!$B$9*(1-'Irr Sesame'!$E$9)*$C84 -> 1200 | F84: ='Irr Sesame'!$B$9*'Irr Sesame'!$E$9*$C84 -> 0 | G84: =('Irr Sesame'!$F$47+($D84-$D$84)*'Irr Sesame'!$D$24)/$D84 -> 0.2931765385 | H84: =('Irr Sesame'!$G$47+($E84-$E$84)*'Irr Sesame'!$D$24)/$E84 -> 0.2931765385 | I84: =('Irr Sesame'!$F$61+($D84-$D$84)*'Irr Sesame'!$D$24)/$D84 -> 0.4642182052 | J84: =('Irr Sesame'!$G$61+($E84-$E$84)*'Irr Sesame'!$D$24)/$E84 -> 0.4642182052 | K84: =IF($F84=0, "N/A", ('Irr Sesame'!$H$61+($F84-$F$84)*'Irr Sesame'!$D$24)/$F84) -> N/A
A85: Irrigated Sesame | B85: Yes | C85: 1.1 | D85: ='Irr Sesame'!$B$9*$C85 -> 1320 | E85: ='Irr Sesame'!$B$9*(1-'Irr Sesame'!$E$9)*$C85 -> 1320 | F85: ='Irr Sesame'!$B$9*'Irr Sesame'!$E$9*$C85 -> 0 | G85: =('Irr Sesame'!$F$47+($D85-$D$84)*'Irr Sesame'!$D$24)/$D85 -> 0.2774332168 | H85: =('Irr Sesame'!$G$47+($E85-$E$84)*'Irr Sesame'!$D$24)/$E85 -> 0.2774332168 | I85: =('Irr Sesame'!$F$61+($D85-$D$84)*'Irr Sesame'!$D$24)/$D85 -> 0.4329256411 | J85: =('Irr Sesame'!$G$61+($E85-$E$84)*'Irr Sesame'!$D$24)/$E85 -> 0.4329256411 | K85: =IF($F85=0, "N/A", ('Irr Sesame'!$H$61+($F85-$F$84)*'Irr Sesame'!$D$24)/$F85) -> N/A
A86: Irrigated Sesame | B86: Yes | C86: 1.25 | D86: ='Irr Sesame'!$B$9*$C86 -> 1500 | E86: ='Irr Sesame'!$B$9*(1-'Irr Sesame'!$E$9)*$C86 -> 1500 | F86: ='Irr Sesame'!$B$9*'Irr Sesame'!$E$9*$C86 -> 0 | G86: =('Irr Sesame'!$F$47+($D86-$D$84)*'Irr Sesame'!$D$24)/$D86 -> 0.2585412308 | H86: =('Irr Sesame'!$G$47+($E86-$E$84)*'Irr Sesame'!$D$24)/$E86 -> 0.2585412308 | I86: =('Irr Sesame'!$F$61+($D86-$D$84)*'Irr Sesame'!$D$24)/$D86 -> 0.3953745641 | J86: =('Irr Sesame'!$G$61+($E86-$E$84)*'Irr Sesame'!$D$24)/$E86 -> 0.3953745641 | K86: =IF($F86=0, "N/A", ('Irr Sesame'!$H$61+($F86-$F$84)*'Irr Sesame'!$D$24)/$F86) -> N/A
A87: Irrigated Sesame | B87: Yes
A88: Irrigated Sorghum | B88: Yes | C88: ='Irr Sorghum'!A3 -> Irrigated Sorghum
A89: Irrigated Sorghum | B89: Yes | G89: BE Price to Cover Variable Costs | I89: BE Price to Cover Total Costs
A90: Irrigated Sorghum | B90: Yes | C90: Yield | D90: ='Irr Sorghum'!C9 -> cwt | G90: Total | H90: Operator | I90: Total | J90: Operator | K90: Owner
A91: Irrigated Sorghum | B91: Yes | C91: 0.75 | D91: ='Irr Sorghum'!$B$9*$C91 -> 33.75 | E91: ='Irr Sorghum'!$B$9*(1-'Irr Sorghum'!$E$9)*$C91 -> 33.75 | F91: ='Irr Sorghum'!$B$9*'Irr Sorghum'!$E$9*$C91 -> 0 | G91: =('Irr Sorghum'!$F$46-'Irr Sorghum'!$F$10+($D91-$D$93)*'Irr Sorghum'!$D$24)/$D91 -> 11.20580923 | H91: =('Irr Sorghum'!$G$46-'Irr Sorghum'!$G$10+($E91-$E$93)*'Irr Sorghum'!$D$24)/$E91 -> 11.20580923 | I91: =('Irr Sorghum'!$F$60-'Irr Sorghum'!$F$10+($D91-$D$93)*'Irr Sorghum'!$D$24)/$D91 -> 17.28729071 | J91: =('Irr Sorghum'!$G$60-'Irr Sorghum'!$G$10+($E91-$E$93)*'Irr Sorghum'!$D$24)/$E91 -> 17.28729071 | K91: =IF($F91=0, "N/A", ('Irr Sorghum'!$H$60-'Irr Sorghum'!$H$10+($F91-$F$93)*'Irr Sorghum'!$D$24)/$F91) -> N/A
A92: Irrigated Sorghum | B92: Yes | C92: 0.9 | D92: ='Irr Sorghum'!$B$9*$C92 -> 40.5 | E92: ='Irr Sorghum'!$B$9*(1-'Irr Sorghum'!$E$9)*$C92 -> 40.5 | F92: ='Irr Sorghum'!$B$9*'Irr Sorghum'!$E$9*$C92 -> 0 | G92: =('Irr Sorghum'!$F$46-'Irr Sorghum'!$F$10+($D92-$D$93)*'Irr Sorghum'!$D$24)/$D92 -> 9.438174356 | H92: =('Irr Sorghum'!$G$46-'Irr Sorghum'!$G$10+($E92-$E$93)*'Irr Sorghum'!$D$24)/$E92 -> 9.438174356 | I92: =('Irr Sorghum'!$F$60-'Irr Sorghum'!$F$10+($D92-$D$93)*'Irr Sorghum'!$D$24)/$D92 -> 14.50607559 | J92: =('Irr Sorghum'!$G$60-'Irr Sorghum'!$G$10+($E92-$E$93)*'Irr Sorghum'!$D$24)/$E92 -> 14.50607559 | K92: =IF($F92=0, "N/A", ('Irr Sorghum'!$H$60-'Irr Sorghum'!$H$10+($F92-$F$93)*'Irr Sorghum'!$D$24)/$F92) -> N/A
A93: Irrigated Sorghum | B93: Yes | C93: 1 | D93: ='Irr Sorghum'!$B$9*$C93 -> 45 | E93: ='Irr Sorghum'!$B$9*(1-'Irr Sorghum'!$E$9)*$C93 -> 45 | F93: ='Irr Sorghum'!$B$9*'Irr Sorghum'!$E$9*$C93 -> 0 | G93: =('Irr Sorghum'!$F$46-'Irr Sorghum'!$F$10+($D93-$D$93)*'Irr Sorghum'!$D$24)/$D93 -> 8.55435692 | H93: =('Irr Sorghum'!$G$46-'Irr Sorghum'!$G$10+($E93-$E$93)*'Irr Sorghum'!$D$24)/$E93 -> 8.55435692 | I93: =('Irr Sorghum'!$F$60-'Irr Sorghum'!$F$10+($D93-$D$93)*'Irr Sorghum'!$D$24)/$D93 -> 13.11546803 | J93: =('Irr Sorghum'!$G$60-'Irr Sorghum'!$G$10+($E93-$E$93)*'Irr Sorghum'!$D$24)/$E93 -> 13.11546803 | K93: =IF($F93=0, "N/A", ('Irr Sorghum'!$H$60-'Irr Sorghum'!$H$10+($F93-$F$93)*'Irr Sorghum'!$D$24)/$F93) -> N/A
A94: Irrigated Sorghum | B94: Yes | C94: 1.1 | D94: ='Irr Sorghum'!$B$9*$C94 -> 49.5 | E94: ='Irr Sorghum'!$B$9*(1-'Irr Sorghum'!$E$9)*$C94 -> 49.5 | F94: ='Irr Sorghum'!$B$9*'Irr Sorghum'!$E$9*$C94 -> 0 | G94: =('Irr Sorghum'!$F$46-'Irr Sorghum'!$F$10+($D94-$D$93)*'Irr Sorghum'!$D$24)/$D94 -> 7.831233564 | H94: =('Irr Sorghum'!$G$46-'Irr Sorghum'!$G$10+($E94-$E$93)*'Irr Sorghum'!$D$24)/$E94 -> 7.831233564 | I94: =('Irr Sorghum'!$F$60-'Irr Sorghum'!$F$10+($D94-$D$93)*'Irr Sorghum'!$D$24)/$D94 -> 11.97769821 | J94: =('Irr Sorghum'!$G$60-'Irr Sorghum'!$G$10+($E94-$E$93)*'Irr Sorghum'!$D$24)/$E94 -> 11.97769821 | K94: =IF($F94=0, "N/A", ('Irr Sorghum'!$H$60-'Irr Sorghum'!$H$10+($F94-$F$93)*'Irr Sorghum'!$D$24)/$F94) -> N/A
A95: Irrigated Sorghum | B95: Yes | C95: 1.25 | D95: ='Irr Sorghum'!$B$9*$C95 -> 56.25 | E95: ='Irr Sorghum'!$B$9*(1-'Irr Sorghum'!$E$9)*$C95 -> 56.25 | F95: ='Irr Sorghum'!$B$9*'Irr Sorghum'!$E$9*$C95 -> 0 | G95: =('Irr Sorghum'!$F$46-'Irr Sorghum'!$F$10+($D95-$D$93)*'Irr Sorghum'!$D$24)/$D95 -> 6.963485536 | H95: =('Irr Sorghum'!$G$46-'Irr Sorghum'!$G$10+($E95-$E$93)*'Irr Sorghum'!$D$24)/$E95 -> 6.963485536 | I95: =('Irr Sorghum'!$F$60-'Irr Sorghum'!$F$10+($D95-$D$93)*'Irr Sorghum'!$D$24)/$D95 -> 10.61237442 | J95: =('Irr Sorghum'!$G$60-'Irr Sorghum'!$G$10+($E95-$E$93)*'Irr Sorghum'!$D$24)/$E95 -> 10.61237442 | K95: =IF($F95=0, "N/A", ('Irr Sorghum'!$H$60-'Irr Sorghum'!$H$10+($F95-$F$93)*'Irr Sorghum'!$D$24)/$F95) -> N/A
A96: Irrigated Sorghum | B96: Yes
A97: Irrigated Sorghum Silage | B97: Yes | C97: ='Irr Sorghum Silage'!A3 -> Irrigated Sorghum Silage
A98: Irrigated Sorghum Silage | B98: Yes | G98: BE Price to Cover Variable Costs | I98: BE Price to Cover Total Costs
A99: Irrigated Sorghum Silage | B99: Yes | C99: Yield | D99: ='Irr Sorghum Silage'!C9 -> tons | G99: Total | H99: Operator | I99: Total | J99: Operator | K99: Owner
A100: Irrigated Sorghum Silage | B100: Yes | C100: 0.75 | D100: ='Irr Sorghum Silage'!$B$9*$C100 -> 18 | E100: ='Irr Sorghum Silage'!$B$9*(1-'Irr Sorghum Silage'!$E$9)*$C100 -> 18 | F100: ='Irr Sorghum Silage'!$B$9*'Irr Sorghum Silage'!$E$9*$C100 -> 0 | G100: =('Irr Sorghum Silage'!F$45+(D100-D$102)*('Irr Sorghum Silage'!$D$23))/D100 -> 35.81493014 | H100: =('Irr Sorghum Silage'!G$45+(E100-E$102)*('Irr Sorghum Silage'!$D$23))/E100 -> 35.81493014 | I100: =('Irr Sorghum Silage'!F$59+(D100-D$102)*('Irr Sorghum Silage'!$D$23))/D100 -> 47.21770792 | J100: =('Irr Sorghum Silage'!G$59+(E100-E$102)*('Irr Sorghum Silage'!$D$23))/E100 -> 47.21770792 | K100: =IF($F100=0,"N/A",('Irr Sorghum Silage'!H$59+(F100-F$102)*('Irr Sorghum Silage'!$D$23))/F100) -> N/A
A101: Irrigated Sorghum Silage | B101: Yes | C101: 0.9 | D101: ='Irr Sorghum Silage'!$B$9*$C101 -> 21.6 | E101: ='Irr Sorghum Silage'!$B$9*(1-'Irr Sorghum Silage'!$E$9)*$C101 -> 21.6 | F101: ='Irr Sorghum Silage'!$B$9*'Irr Sorghum Silage'!$E$9*$C101 -> 0 | G101: =('Irr Sorghum Silage'!F$45+(D101-D$102)*('Irr Sorghum Silage'!$D$23))/D101 -> 31.01244178 | H101: =('Irr Sorghum Silage'!G$45+(E101-E$102)*('Irr Sorghum Silage'!$D$23))/E101 -> 31.01244178 | I101: =('Irr Sorghum Silage'!F$59+(D101-D$102)*('Irr Sorghum Silage'!$D$23))/D101 -> 40.5147566 | J101: =('Irr Sorghum Silage'!G$59+(E101-E$102)*('Irr Sorghum Silage'!$D$23))/E101 -> 40.5147566 | K101: =IF($F101=0,"N/A",('Irr Sorghum Silage'!H$59+(F101-F$102)*('Irr Sorghum Silage'!$D$23))/F101) -> N/A
A102: Irrigated Sorghum Silage | B102: Yes | C102: 1 | D102: ='Irr Sorghum Silage'!$B$9*$C102 -> 24 | E102: ='Irr Sorghum Silage'!$B$9*(1-'Irr Sorghum Silage'!$E$9)*$C102 -> 24 | F102: ='Irr Sorghum Silage'!$B$9*'Irr Sorghum Silage'!$E$9*$C102 -> 0 | G102: =('Irr Sorghum Silage'!F$45+(D102-D$102)*('Irr Sorghum Silage'!$D$23))/D102 -> 28.6111976 | H102: =('Irr Sorghum Silage'!G$45+(E102-E$102)*('Irr Sorghum Silage'!$D$23))/E102 -> 28.6111976 | I102: =('Irr Sorghum Silage'!F$59+(D102-D$102)*('Irr Sorghum Silage'!$D$23))/D102 -> 37.16328094 | J102: =('Irr Sorghum Silage'!G$59+(E102-E$102)*('Irr Sorghum Silage'!$D$23))/E102 -> 37.16328094 | K102: =IF($F102=0,"N/A",('Irr Sorghum Silage'!H$59+(F102-F$102)*('Irr Sorghum Silage'!$D$23))/F102) -> N/A
A103: Irrigated Sorghum Silage | B103: Yes | C103: 1.1 | D103: ='Irr Sorghum Silage'!$B$9*$C103 -> 26.4 | E103: ='Irr Sorghum Silage'!$B$9*(1-'Irr Sorghum Silage'!$E$9)*$C103 -> 26.4 | F103: ='Irr Sorghum Silage'!$B$9*'Irr Sorghum Silage'!$E$9*$C103 -> 0 | G103: =('Irr Sorghum Silage'!F$45+(D103-D$102)*('Irr Sorghum Silage'!$D$23))/D103 -> 26.64654328 | H103: =('Irr Sorghum Silage'!G$45+(E103-E$102)*('Irr Sorghum Silage'!$D$23))/E103 -> 26.64654328 | I103: =('Irr Sorghum Silage'!F$59+(D103-D$102)*('Irr Sorghum Silage'!$D$23))/D103 -> 34.42116449 | J103: =('Irr Sorghum Silage'!G$59+(E103-E$102)*('Irr Sorghum Silage'!$D$23))/E103 -> 34.42116449 | K103: =IF($F103=0,"N/A",('Irr Sorghum Silage'!H$59+(F103-F$102)*('Irr Sorghum Silage'!$D$23))/F103) -> N/A
A104: Irrigated Sorghum Silage | B104: Yes | C104: 1.25 | D104: ='Irr Sorghum Silage'!$B$9*$C104 -> 30 | E104: ='Irr Sorghum Silage'!$B$9*(1-'Irr Sorghum Silage'!$E$9)*$C104 -> 30 | F104: ='Irr Sorghum Silage'!$B$9*'Irr Sorghum Silage'!$E$9*$C104 -> 0 | G104: =('Irr Sorghum Silage'!F$45+(D104-D$102)*('Irr Sorghum Silage'!$D$23))/D104 -> 24.28895808 | H104: =('Irr Sorghum Silage'!G$45+(E104-E$102)*('Irr Sorghum Silage'!$D$23))/E104 -> 24.28895808 | I104: =('Irr Sorghum Silage'!F$59+(D104-D$102)*('Irr Sorghum Silage'!$D$23))/D104 -> 31.13062475 | J104: =('Irr Sorghum Silage'!G$59+(E104-E$102)*('Irr Sorghum Silage'!$D$23))/E104 -> 31.13062475 | K104: =IF($F104=0,"N/A",('Irr Sorghum Silage'!H$59+(F104-F$102)*('Irr Sorghum Silage'!$D$23))/F104) -> N/A
A105: Irrigated Sorghum Silage | B105: Yes
A106: Irrigated Peanuts-Organic | B106: Yes | C106: ='Organic Peanuts'!A3 -> Irrigated Peanuts-Organic
A107: Irrigated Peanuts-Organic | B107: Yes | G107: BE Price to Cover Variable Costs | I107: BE Price to Cover Total Costs
A108: Irrigated Peanuts-Organic | B108: =_xlfn.XLOOKUP(A108,PGM_ShowHide_Lookup,PGM_ShowHide_Return,"") -> Yes | C108: Yield | D108: ='Organic Peanuts'!C9 -> ton | G108: Total | H108: Operator | I108: Total | J108: Operator | K108: Owner
A109: Irrigated Peanuts-Organic | B109: Yes | C109: 0.75 | D109: ='Organic Peanuts'!$B$9*$C109 -> 1.125 | E109: ='Organic Peanuts'!$B$9*(1-'Organic Peanuts'!$E$9)*$C109 -> 1.125 | F109: ='Organic Peanuts'!$B$9*'Organic Peanuts'!$E$9*$C109 -> 0 | G109: =('Organic Peanuts'!F$47+(D109-D$111)*('Organic Peanuts'!$D$25))/D109 -> 764.2323552 | H109: =('Organic Peanuts'!G$47+(E109-E$111)*('Organic Peanuts'!$D$25))/E109 -> 764.2323552 | I109: =('Organic Peanuts'!F$61+(D109-D$111)*('Organic Peanuts'!$D$25))/D109 -> 946.6767996 | J109: =('Organic Peanuts'!G$61+(E109-E$111)*('Organic Peanuts'!$D$25))/E109 -> 946.6767996 | K109: =IF($F109=0,"N/A",('Organic Peanuts'!H$61+(F109-F$111)*('Organic Peanuts'!$D$25))/F109) -> N/A
A110: Irrigated Peanuts-Organic | B110: Yes | C110: 0.9 | D110: ='Organic Peanuts'!$B$9*$C110 -> 1.35 | E110: ='Organic Peanuts'!$B$9*(1-'Organic Peanuts'!$E$9)*$C110 -> 1.35 | F110: ='Organic Peanuts'!$B$9*'Organic Peanuts'!$E$9*$C110 -> 0 | G110: =('Organic Peanuts'!F$47+(D110-D$111)*('Organic Peanuts'!$D$25))/D110 -> 646.860296 | H110: =('Organic Peanuts'!G$47+(E110-E$111)*('Organic Peanuts'!$D$25))/E110 -> 646.860296 | I110: =('Organic Peanuts'!F$61+(D110-D$111)*('Organic Peanuts'!$D$25))/D110 -> 798.897333 | J110: =('Organic Peanuts'!G$61+(E110-E$111)*('Organic Peanuts'!$D$25))/E110 -> 798.897333 | K110: =IF($F110=0,"N/A",('Organic Peanuts'!H$61+(F110-F$111)*('Organic Peanuts'!$D$25))/F110) -> N/A
A111: Irrigated Peanuts-Organic | B111: Yes | C111: 1 | D111: ='Organic Peanuts'!$B$9*$C111 -> 1.5 | E111: ='Organic Peanuts'!$B$9*(1-'Organic Peanuts'!$E$9)*$C111 -> 1.5 | F111: ='Organic Peanuts'!$B$9*'Organic Peanuts'!$E$9*$C111 -> 0 | G111: =('Organic Peanuts'!F$47+(D111-D$111)*('Organic Peanuts'!$D$25))/D111 -> 588.1742664 | H111: =('Organic Peanuts'!G$47+(E111-E$111)*('Organic Peanuts'!$D$25))/E111 -> 588.1742664 | I111: =('Organic Peanuts'!F$61+(D111-D$111)*('Organic Peanuts'!$D$25))/D111 -> 725.0075997 | J111: =('Organic Peanuts'!G$61+(E111-E$111)*('Organic Peanuts'!$D$25))/E111 -> 725.0075997 | K111: =IF($F111=0,"N/A",('Organic Peanuts'!H$61+(F111-F$111)*('Organic Peanuts'!$D$25))/F111) -> N/A
A112: Irrigated Peanuts-Organic | B112: Yes | C112: 1.1 | D112: ='Organic Peanuts'!$B$9*$C112 -> 1.65 | E112: ='Organic Peanuts'!$B$9*(1-'Organic Peanuts'!$E$9)*$C112 -> 1.65 | F112: ='Organic Peanuts'!$B$9*'Organic Peanuts'!$E$9*$C112 -> 0 | G112: =('Organic Peanuts'!F$47+(D112-D$111)*('Organic Peanuts'!$D$25))/D112 -> 540.158424 | H112: =('Organic Peanuts'!G$47+(E112-E$111)*('Organic Peanuts'!$D$25))/E112 -> 540.158424 | I112: =('Organic Peanuts'!F$61+(D112-D$111)*('Organic Peanuts'!$D$25))/D112 -> 664.5523634 | J112: =('Organic Peanuts'!G$61+(E112-E$111)*('Organic Peanuts'!$D$25))/E112 -> 664.5523634 | K112: =IF($F112=0,"N/A",('Organic Peanuts'!H$61+(F112-F$111)*('Organic Peanuts'!$D$25))/F112) -> N/A
A113: Irrigated Peanuts-Organic | B113: Yes | C113: 1.25 | D113: ='Organic Peanuts'!$B$9*$C113 -> 1.875 | E113: ='Organic Peanuts'!$B$9*(1-'Organic Peanuts'!$E$9)*$C113 -> 1.875 | F113: ='Organic Peanuts'!$B$9*'Organic Peanuts'!$E$9*$C113 -> 0 | G113: =('Organic Peanuts'!F$47+(D113-D$111)*('Organic Peanuts'!$D$25))/D113 -> 482.5394131 | H113: =('Organic Peanuts'!G$47+(E113-E$111)*('Organic Peanuts'!$D$25))/E113 -> 482.5394131 | I113: =('Organic Peanuts'!F$61+(D113-D$111)*('Organic Peanuts'!$D$25))/D113 -> 592.0060798 | J113: =('Organic Peanuts'!G$61+(E113-E$111)*('Organic Peanuts'!$D$25))/E113 -> 592.0060798 | K113: =IF($F113=0,"N/A",('Organic Peanuts'!H$61+(F113-F$111)*('Organic Peanuts'!$D$25))/F113) -> N/A
A114: Irrigated Peanuts-Organic | B114: Yes
A115: Irrigated Sunflowers-Confectionary | B115: Yes | C115: ='Irr Sunflowers-Confection'!A3 -> Irrigated Sunflowers-Confectionary
A116: Irrigated Sunflowers-Confectionary | B116: Yes | G116: BE Price to Cover Variable Costs | I116: BE Price to Cover Total Costs
A117: Irrigated Sunflowers-Confectionary | B117: Yes | C117: Yield | D117: ='Irr Sunflowers-Confection'!C9 -> lbs | G117: Total | H117: Operator | I117: Total | J117: Operator | K117: Owner
A118: Irrigated Sunflowers-Confectionary | B118: Yes | C118: 0.75 | D118: ='Irr Sunflowers-Confection'!$B$9*$C118 -> 1500 | E118: ='Irr Sunflowers-Confection'!$B$9*(1-'Irr Sunflowers-Confection'!$E$9)*$C118 -> 1500 | F118: ='Irr Sunflowers-Confection'!$B$9*'Irr Sunflowers-Confection'!$E$9*$C118 -> 0 | G118: =('Irr Sunflowers-Confection'!F$47+(D118-D$120)*('Irr Sunflowers-Confection'!$D$24))/D118 -> 0.1325696075 | H118: =('Irr Sunflowers-Confection'!G$47+(E118-E$120)*('Irr Sunflowers-Confection'!$D$24))/E118 -> 0.1325696075 | I118: =('Irr Sunflowers-Confection'!F$61+(D118-D$120)*('Irr Sunflowers-Confection'!$D$24))/D118 -> 0.2694029408 | J118: =('Irr Sunflowers-Confection'!G$61+(E118-E$120)*('Irr Sunflowers-Confection'!$D$24))/E118 -> 0.2694029408 | K118: =IF($F118=0, "N/A", ('Irr Sunflowers-Confection'!H$61+(F118-F$120)*('Irr Sunflowers-Confection'!$D$24))/F118) -> N/A
A119: Irrigated Sunflowers-Confectionary | B119: Yes | C119: 0.9 | D119: ='Irr Sunflowers-Confection'!$B$9*$C119 -> 1800 | E119: ='Irr Sunflowers-Confection'!$B$9*(1-'Irr Sunflowers-Confection'!$E$9)*$C119 -> 1800 | F119: ='Irr Sunflowers-Confection'!$B$9*'Irr Sunflowers-Confection'!$E$9*$C119 -> 0 | G119: =('Irr Sunflowers-Confection'!F$47+(D119-D$120)*('Irr Sunflowers-Confection'!$D$24))/D119 -> 0.1604746729 | H119: =('Irr Sunflowers-Confection'!G$47+(E119-E$120)*('Irr Sunflowers-Confection'!$D$24))/E119 -> 0.1604746729 | I119: =('Irr Sunflowers-Confection'!F$61+(D119-D$120)*('Irr Sunflowers-Confection'!$D$24))/D119 -> 0.2745024507 | J119: =('Irr Sunflowers-Confection'!G$61+(E119-E$120)*('Irr Sunflowers-Confection'!$D$24))/E119 -> 0.2745024507 | K119: =IF($F119=0, "N/A", ('Irr Sunflowers-Confection'!H$61+(F119-F$120)*('Irr Sunflowers-Confection'!$D$24))/F119) -> N/A
A120: Irrigated Sunflowers-Confectionary | B120: Yes | C120: 1 | D120: ='Irr Sunflowers-Confection'!$B$9*$C120 -> 2000 | E120: ='Irr Sunflowers-Confection'!$B$9*(1-'Irr Sunflowers-Confection'!$E$9)*$C120 -> 2000 | F120: ='Irr Sunflowers-Confection'!$B$9*'Irr Sunflowers-Confection'!$E$9*$C120 -> 0 | G120: =('Irr Sunflowers-Confection'!F$47+(D120-D$120)*('Irr Sunflowers-Confection'!$D$24))/D120 -> 0.1744272056 | H120: =('Irr Sunflowers-Confection'!G$47+(E120-E$120)*('Irr Sunflowers-Confection'!$D$24))/E120 -> 0.1744272056 | I120: =('Irr Sunflowers-Confection'!F$61+(D120-D$120)*('Irr Sunflowers-Confection'!$D$24))/D120 -> 0.2770522056 | J120: =('Irr Sunflowers-Confection'!G$61+(E120-E$120)*('Irr Sunflowers-Confection'!$D$24))/E120 -> 0.2770522056 | K120: =IF($F120=0, "N/A", ('Irr Sunflowers-Confection'!H$61+(F120-F$120)*('Irr Sunflowers-Confection'!$D$24))/F120) -> N/A
A121: Irrigated Sunflowers-Confectionary | B121: Yes | C121: 1.1 | D121: ='Irr Sunflowers-Confection'!$B$9*$C121 -> 2200 | E121: ='Irr Sunflowers-Confection'!$B$9*(1-'Irr Sunflowers-Confection'!$E$9)*$C121 -> 2200 | F121: ='Irr Sunflowers-Confection'!$B$9*'Irr Sunflowers-Confection'!$E$9*$C121 -> 0 | G121: =('Irr Sunflowers-Confection'!F$47+(D121-D$120)*('Irr Sunflowers-Confection'!$D$24))/D121 -> 0.1858429142 | H121: =('Irr Sunflowers-Confection'!G$47+(E121-E$120)*('Irr Sunflowers-Confection'!$D$24))/E121 -> 0.1858429142 | I121: =('Irr Sunflowers-Confection'!F$61+(D121-D$120)*('Irr Sunflowers-Confection'!$D$24))/D121 -> 0.2791383687 | J121: =('Irr Sunflowers-Confection'!G$61+(E121-E$120)*('Irr Sunflowers-Confection'!$D$24))/E121 -> 0.2791383687 | K121: =IF($F121=0, "N/A", ('Irr Sunflowers-Confection'!H$61+(F121-F$120)*('Irr Sunflowers-Confection'!$D$24))/F121) -> N/A
A122: Irrigated Sunflowers-Confectionary | B122: Yes | C122: 1.25 | D122: ='Irr Sunflowers-Confection'!$B$9*$C122 -> 2500 | E122: ='Irr Sunflowers-Confection'!$B$9*(1-'Irr Sunflowers-Confection'!$E$9)*$C122 -> 2500 | F122: ='Irr Sunflowers-Confection'!$B$9*'Irr Sunflowers-Confection'!$E$9*$C122 -> 0 | G122: =('Irr Sunflowers-Confection'!F$47+(D122-D$120)*('Irr Sunflowers-Confection'!$D$24))/D122 -> 0.1995417645 | H122: =('Irr Sunflowers-Confection'!G$47+(E122-E$120)*('Irr Sunflowers-Confection'!$D$24))/E122 -> 0.1995417645 | I122: =('Irr Sunflowers-Confection'!F$61+(D122-D$120)*('Irr Sunflowers-Confection'!$D$24))/D122 -> 0.2816417645 | J122: =('Irr Sunflowers-Confection'!G$61+(E122-E$120)*('Irr Sunflowers-Confection'!$D$24))/E122 -> 0.2816417645 | K122: =IF($F122=0, "N/A", ('Irr Sunflowers-Confection'!H$61+(F122-F$120)*('Irr Sunflowers-Confection'!$D$24))/F122) -> N/A
A123: Irrigated Sunflowers-Confectionary | B123: Yes
A124: Irrigated Sunflowers-Oilseed | B124: Yes | C124: ='Irr Sunflowers-Oilseed'!A3 -> Irrigated Sunflowers-Oilseed
A125: Irrigated Sunflowers-Oilseed | B125: Yes | G125: BE Price to Cover Variable Costs | I125: BE Price to Cover Total Costs
A126: Irrigated Sunflowers-Oilseed | B126: Yes | C126: Yield | D126: ='Irr Sunflowers-Oilseed'!C9 -> lbs | G126: Total | H126: Operator | I126: Total | J126: Operator | K126: Owner
A127: Irrigated Sunflowers-Oilseed | B127: Yes | C127: 0.75 | D127: ='Irr Sunflowers-Oilseed'!$B$9*$C127 -> 1500 | E127: ='Irr Sunflowers-Oilseed'!$B$9*(1-'Irr Sunflowers-Oilseed'!$E$9)*$C127 -> 1500 | F127: ='Irr Sunflowers-Oilseed'!$B$9*'Irr Sunflowers-Oilseed'!$E$9*$C127 -> 0 | G127: =('Irr Sunflowers-Oilseed'!F$46+(D127-D$129)*('Irr Sunflowers-Oilseed'!$D$23))/D127 -> 0.1209910075 | H127: =('Irr Sunflowers-Oilseed'!G$46+(E127-E$129)*('Irr Sunflowers-Oilseed'!$D$23))/E127 -> 0.1209910075 | I127: =('Irr Sunflowers-Oilseed'!F$60+(D127-D$129)*('Irr Sunflowers-Oilseed'!$D$23))/D127 -> 0.2578243408 | J127: =('Irr Sunflowers-Oilseed'!G$60+(E127-E$129)*('Irr Sunflowers-Oilseed'!$D$23))/E127 -> 0.2578243408 | K127: =IF($F127=0, "N/A", ('Irr Sunflowers-Oilseed'!H$60+(F127-F$129)*('Irr Sunflowers-Oilseed'!$D$23))/F127) -> N/A
A128: Irrigated Sunflowers-Oilseed | B128: Yes | C128: 0.9 | D128: ='Irr Sunflowers-Oilseed'!$B$9*$C128 -> 1800 | E128: ='Irr Sunflowers-Oilseed'!$B$9*(1-'Irr Sunflowers-Oilseed'!$E$9)*$C128 -> 1800 | F128: ='Irr Sunflowers-Oilseed'!$B$9*'Irr Sunflowers-Oilseed'!$E$9*$C128 -> 0 | G128: =('Irr Sunflowers-Oilseed'!F$46+(D128-D$129)*('Irr Sunflowers-Oilseed'!$D$23))/D128 -> 0.1508258396 | H128: =('Irr Sunflowers-Oilseed'!G$46+(E128-E$129)*('Irr Sunflowers-Oilseed'!$D$23))/E128 -> 0.1508258396 | I128: =('Irr Sunflowers-Oilseed'!F$60+(D128-D$129)*('Irr Sunflowers-Oilseed'!$D$23))/D128 -> 0.2648536174 | J128: =('Irr Sunflowers-Oilseed'!G$60+(E128-E$129)*('Irr Sunflowers-Oilseed'!$D$23))/E128 -> 0.2648536174 | K128: =IF($F128=0, "N/A", ('Irr Sunflowers-Oilseed'!H$60+(F128-F$129)*('Irr Sunflowers-Oilseed'!$D$23))/F128) -> N/A
A129: Irrigated Sunflowers-Oilseed | B129: Yes | C129: 1 | D129: ='Irr Sunflowers-Oilseed'!$B$9*$C129 -> 2000 | E129: ='Irr Sunflowers-Oilseed'!$B$9*(1-'Irr Sunflowers-Oilseed'!$E$9)*$C129 -> 2000 | F129: ='Irr Sunflowers-Oilseed'!$B$9*'Irr Sunflowers-Oilseed'!$E$9*$C129 -> 0 | G129: =('Irr Sunflowers-Oilseed'!F$46+(D129-D$129)*('Irr Sunflowers-Oilseed'!$D$23))/D129 -> 0.1657432556 | H129: =('Irr Sunflowers-Oilseed'!G$46+(E129-E$129)*('Irr Sunflowers-Oilseed'!$D$23))/E129 -> 0.1657432556 | I129: =('Irr Sunflowers-Oilseed'!F$60+(D129-D$129)*('Irr Sunflowers-Oilseed'!$D$23))/D129 -> 0.2683682556 | J129: =('Irr Sunflowers-Oilseed'!G$60+(E129-E$129)*('Irr Sunflowers-Oilseed'!$D$23))/E129 -> 0.2683682556 | K129: =IF($F129=0, "N/A", ('Irr Sunflowers-Oilseed'!H$60+(F129-F$129)*('Irr Sunflowers-Oilseed'!$D$23))/F129) -> N/A
A130: Irrigated Sunflowers-Oilseed | B130: Yes | C130: 1.1 | D130: ='Irr Sunflowers-Oilseed'!$B$9*$C130 -> 2200 | E130: ='Irr Sunflowers-Oilseed'!$B$9*(1-'Irr Sunflowers-Oilseed'!$E$9)*$C130 -> 2200 | F130: ='Irr Sunflowers-Oilseed'!$B$9*'Irr Sunflowers-Oilseed'!$E$9*$C130 -> 0 | G130: =('Irr Sunflowers-Oilseed'!F$46+(D130-D$129)*('Irr Sunflowers-Oilseed'!$D$23))/D130 -> 0.1779484142 | H130: =('Irr Sunflowers-Oilseed'!G$46+(E130-E$129)*('Irr Sunflowers-Oilseed'!$D$23))/E130 -> 0.1779484142 | I130: =('Irr Sunflowers-Oilseed'!F$60+(D130-D$129)*('Irr Sunflowers-Oilseed'!$D$23))/D130 -> 0.2712438687 | J130: =('Irr Sunflowers-Oilseed'!G$60+(E130-E$129)*('Irr Sunflowers-Oilseed'!$D$23))/E130 -> 0.2712438687 | K130: =IF($F130=0, "N/A", ('Irr Sunflowers-Oilseed'!H$60+(F130-F$129)*('Irr Sunflowers-Oilseed'!$D$23))/F130) -> N/A
A131: Irrigated Sunflowers-Oilseed | B131: Yes | C131: 1.25 | D131: ='Irr Sunflowers-Oilseed'!$B$9*$C131 -> 2500 | E131: ='Irr Sunflowers-Oilseed'!$B$9*(1-'Irr Sunflowers-Oilseed'!$E$9)*$C131 -> 2500 | F131: ='Irr Sunflowers-Oilseed'!$B$9*'Irr Sunflowers-Oilseed'!$E$9*$C131 -> 0 | G131: =('Irr Sunflowers-Oilseed'!F$46+(D131-D$129)*('Irr Sunflowers-Oilseed'!$D$23))/D131 -> 0.1925946045 | H131: =('Irr Sunflowers-Oilseed'!G$46+(E131-E$129)*('Irr Sunflowers-Oilseed'!$D$23))/E131 -> 0.1925946045 | I131: =('Irr Sunflowers-Oilseed'!F$60+(D131-D$129)*('Irr Sunflowers-Oilseed'!$D$23))/D131 -> 0.2746946045 | J131: =('Irr Sunflowers-Oilseed'!G$60+(E131-E$129)*('Irr Sunflowers-Oilseed'!$D$23))/E131 -> 0.2746946045 | K131: =IF($F131=0, "N/A", ('Irr Sunflowers-Oilseed'!H$60+(F131-F$129)*('Irr Sunflowers-Oilseed'!$D$23))/F131) -> N/A
A132: Irrigated Sunflowers-Oilseed | B132: Yes
A133: Irrigated Wheat | B133: Yes | C133: ='Irr Wheat'!A3 -> Irrigated Wheat
A134: Irrigated Wheat | B134: Yes | G134: BE Price to Cover Variable Costs | I134: BE Price to Cover Total Costs
A135: Irrigated Wheat | B135: =_xlfn.XLOOKUP(A135,PGM_ShowHide_Lookup,PGM_ShowHide_Return,"") -> Yes | C135: Yield | D135: ='Irr Wheat'!C9 -> bu | G135: Total | H135: Operator | I135: Total | J135: Operator | K135: Owner
A136: Irrigated Wheat | B136: Yes | C136: 0.75 | D136: ='Irr Wheat'!$B$9*$C136 -> 37.5 | E136: ='Irr Wheat'!$B$9*(1-'Irr Wheat'!$E$9)*$C136 -> 37.5 | F136: ='Irr Wheat'!$B$9*'Irr Wheat'!$E$9*$C136 -> 0 | G136: =('Irr Wheat'!$F$45-'Irr Wheat'!$F$10+($D136-$D$138)*'Irr Wheat'!$D$24)/$D136 -> 9.035108362 | H136: =('Irr Wheat'!$G$45-'Irr Wheat'!$G$10+($E136-$E$138)*'Irr Wheat'!$D$24)/$E136 -> 9.035108362 | I136: =('Irr Wheat'!$F$59-'Irr Wheat'!$F$10+($D136-$D$138)*'Irr Wheat'!$D$24)/$D136 -> 14.5084417 | J136: =('Irr Wheat'!$G$59-'Irr Wheat'!$G$10+($E136-$E$138)*'Irr Wheat'!$D$24)/$E136 -> 14.5084417 | K136: =IF($F136=0, "N/A", ('Irr Wheat'!$H$59-'Irr Wheat'!$H$10+($F136-$F$138)*'Irr Wheat'!$D$24)/$F136) -> N/A
A137: Irrigated Wheat | B137: Yes | C137: 0.9 | D137: ='Irr Wheat'!$B$9*$C137 -> 45 | E137: ='Irr Wheat'!$B$9*(1-'Irr Wheat'!$E$9)*$C137 -> 45 | F137: ='Irr Wheat'!$B$9*'Irr Wheat'!$E$9*$C137 -> 0 | G137: =('Irr Wheat'!$F$45-'Irr Wheat'!$F$10+($D137-$D$138)*'Irr Wheat'!$D$24)/$D137 -> 7.612590302 | H137: =('Irr Wheat'!$G$45-'Irr Wheat'!$G$10+($E137-$E$138)*'Irr Wheat'!$D$24)/$E137 -> 7.612590302 | I137: =('Irr Wheat'!$F$59-'Irr Wheat'!$F$10+($D137-$D$138)*'Irr Wheat'!$D$24)/$D137 -> 12.17370141 | J137: =('Irr Wheat'!$G$59-'Irr Wheat'!$G$10+($E137-$E$138)*'Irr Wheat'!$D$24)/$E137 -> 12.17370141 | K137: =IF($F137=0, "N/A", ('Irr Wheat'!$H$59-'Irr Wheat'!$H$10+($F137-$F$138)*'Irr Wheat'!$D$24)/$F137) -> N/A
A138: Irrigated Wheat | B138: Yes | C138: 1 | D138: ='Irr Wheat'!$B$9*$C138 -> 50 | E138: ='Irr Wheat'!$B$9*(1-'Irr Wheat'!$E$9)*$C138 -> 50 | F138: ='Irr Wheat'!$B$9*'Irr Wheat'!$E$9*$C138 -> 0 | G138: =('Irr Wheat'!$F$45-'Irr Wheat'!$F$10+($D138-$D$138)*'Irr Wheat'!$D$24)/$D138 -> 6.901331272 | H138: =('Irr Wheat'!$G$45-'Irr Wheat'!$G$10+($E138-$E$138)*'Irr Wheat'!$D$24)/$E138 -> 6.901331272 | I138: =('Irr Wheat'!$F$59-'Irr Wheat'!$F$10+($D138-$D$138)*'Irr Wheat'!$D$24)/$D138 -> 11.00633127 | J138: =('Irr Wheat'!$G$59-'Irr Wheat'!$G$10+($E138-$E$138)*'Irr Wheat'!$D$24)/$E138 -> 11.00633127 | K138: =IF($F138=0, "N/A", ('Irr Wheat'!$H$59-'Irr Wheat'!$H$10+($F138-$F$138)*'Irr Wheat'!$D$24)/$F138) -> N/A
A139: Irrigated Wheat | B139: Yes | C139: 1.1 | D139: ='Irr Wheat'!$B$9*$C139 -> 55 | E139: ='Irr Wheat'!$B$9*(1-'Irr Wheat'!$E$9)*$C139 -> 55 | F139: ='Irr Wheat'!$B$9*'Irr Wheat'!$E$9*$C139 -> 0 | G139: =('Irr Wheat'!$F$45-'Irr Wheat'!$F$10+($D139-$D$138)*'Irr Wheat'!$D$24)/$D139 -> 6.319392065 | H139: =('Irr Wheat'!$G$45-'Irr Wheat'!$G$10+($E139-$E$138)*'Irr Wheat'!$D$24)/$E139 -> 6.319392065 | I139: =('Irr Wheat'!$F$59-'Irr Wheat'!$F$10+($D139-$D$138)*'Irr Wheat'!$D$24)/$D139 -> 10.05121025 | J139: =('Irr Wheat'!$G$59-'Irr Wheat'!$G$10+($E139-$E$138)*'Irr Wheat'!$D$24)/$E139 -> 10.05121025 | K139: =IF($F139=0, "N/A", ('Irr Wheat'!$H$59-'Irr Wheat'!$H$10+($F139-$F$138)*'Irr Wheat'!$D$24)/$F139) -> N/A
A140: Irrigated Wheat | B140: Yes | C140: 1.25 | D140: ='Irr Wheat'!$B$9*$C140 -> 62.5 | E140: ='Irr Wheat'!$B$9*(1-'Irr Wheat'!$E$9)*$C140 -> 62.5 | F140: ='Irr Wheat'!$B$9*'Irr Wheat'!$E$9*$C140 -> 0 | G140: =('Irr Wheat'!$F$45-'Irr Wheat'!$F$10+($D140-$D$138)*'Irr Wheat'!$D$24)/$D140 -> 5.621065017 | H140: =('Irr Wheat'!$G$45-'Irr Wheat'!$G$10+($E140-$E$138)*'Irr Wheat'!$D$24)/$E140 -> 5.621065017 | I140: =('Irr Wheat'!$F$59-'Irr Wheat'!$F$10+($D140-$D$138)*'Irr Wheat'!$D$24)/$D140 -> 8.905065017 | J140: =('Irr Wheat'!$G$59-'Irr Wheat'!$G$10+($E140-$E$138)*'Irr Wheat'!$D$24)/$E140 -> 8.905065017 | K140: =IF($F140=0, "N/A", ('Irr Wheat'!$H$59-'Irr Wheat'!$H$10+($F140-$F$138)*'Irr Wheat'!$D$24)/$F140) -> N/A
A141: Irrigated Wheat | B141: Yes
A142: Dryland Cotton - Organic | B142: Yes | C142: ='Dry Cotton Organic'!A3 -> Dryland Cotton - Organic
A143: Dryland Cotton - Organic | B143: Yes | G143: BE Price to Cover Variable Costs | I143: BE Price to Cover Total Costs
A144: Dryland Cotton - Organic | B144: Yes | C144: Yield | D144: ='Dry Cotton Organic'!C9 -> lbs | G144: Total | H144: Operator | I144: Total | J144: Operator | K144: Owner
A145: Dryland Cotton - Organic | B145: Yes | C145: 0.75 | D145: ='Dry Cotton Organic'!$B$9*$C145 -> 262.5 | E145: ='Dry Cotton Organic'!$B$9*(1-'Dry Cotton Organic'!$E$9)*$C145 -> 262.5 | F145: ='Dry Cotton Organic'!$B$9*'Dry Cotton Organic'!$E$9*$C145 -> 0 | G145: =('Dry Cotton Organic'!F$45-D145/500*'Universal Input Prices'!$C$43/2000*Cottonseed_Price+(D145-D$147)*'Dry Cotton Organic'!$D$28+(D145-D$147)/'Dry Cotton Organic'!$B$11/100*'Dry Cotton Organic'!$D$29)/D145 -> 1.211534644 | H145: =('Dry Cotton Organic'!G$45-E145/500*'Universal Input Prices'!$C$43/2000*Cottonseed_Price+(E145-E$147)*'Dry Cotton Organic'!$D$28+(E145-E$147)/'Dry Cotton Organic'!$B$11/100*'Dry Cotton Organic'!$D$29)/E145 -> 1.211534644 | I145: =('Dry Cotton Organic'!F$57-D145/500*'Universal Input Prices'!$C$43/2000*Cottonseed_Price+(D145-D$147)*'Dry Cotton Organic'!$D$28+(D145-D$147)/'Dry Cotton Organic'!$B$11/100*'Dry Cotton Organic'!$D$29)/D145 -> 1.593439406 | J145: =('Dry Cotton Organic'!G$57-E145/500*'Universal Input Prices'!$C$43/2000*Cottonseed_Price+(E145-E$147)*'Dry Cotton Organic'!$D$28+(E145-E$147)/'Dry Cotton Organic'!$B$11/100*'Dry Cotton Organic'!$D$29)/E145 -> 1.593439406 | K145: =IF($F145=0,"N/A",('Dry Cotton Organic'!H$57-F145/500*'Universal Input Prices'!$C$43/2000*Cottonseed_Price+(F145-F$147)*'Dry Cotton Organic'!$D$28+(F145-F$147)/'Dry Cotton Organic'!$B$11/100*'Dry Cotton Organic'!$D$29)/F145) -> N/A
A146: Dryland Cotton - Organic | B146: Yes | C146: 0.9 | D146: ='Dry Cotton Organic'!$B$9*$C146 -> 315 | E146: ='Dry Cotton Organic'!$B$9*(1-'Dry Cotton Organic'!$E$9)*$C146 -> 315 | F146: ='Dry Cotton Organic'!$B$9*'Dry Cotton Organic'!$E$9*$C146 -> 0 | G146: =('Dry Cotton Organic'!F$45-D146/500*'Universal Input Prices'!$C$43/2000*Cottonseed_Price+(D146-D$147)*'Dry Cotton Organic'!$D$28+(D146-D$147)/'Dry Cotton Organic'!$B$11/100*'Dry Cotton Organic'!$D$29)/D146 -> 1.015209425 | H146: =('Dry Cotton Organic'!G$45-E146/500*'Universal Input Prices'!$C$43/2000*Cottonseed_Price+(E146-E$147)*'Dry Cotton Organic'!$D$28+(E146-E$147)/'Dry Cotton Organic'!$B$11/100*'Dry Cotton Organic'!$D$29)/E146 -> 1.015209425 | I146: =('Dry Cotton Organic'!F$57-D146/500*'Universal Input Prices'!$C$43/2000*Cottonseed_Price+(D146-D$147)*'Dry Cotton Organic'!$D$28+(D146-D$147)/'Dry Cotton Organic'!$B$11/100*'Dry Cotton Organic'!$D$29)/D146 -> 1.333463394 | J146: =('Dry Cotton Organic'!G$57-E146/500*'Universal Input Prices'!$C$43/2000*Cottonseed_Price+(E146-E$147)*'Dry Cotton Organic'!$D$28+(E146-E$147)/'Dry Cotton Organic'!$B$11/100*'Dry Cotton Organic'!$D$29)/E146 -> 1.333463394 | K146: =IF($F146=0,"N/A",('Dry Cotton Organic'!H$57-F146/500*'Universal Input Prices'!$C$43/2000*Cottonseed_Price+(F146-F$147)*'Dry Cotton Organic'!$D$28+(F146-F$147)/'Dry Cotton Organic'!$B$11/100*'Dry Cotton Organic'!$D$29)/F146) -> N/A
A147: Dryland Cotton - Organic | B147: Yes | C147: 1 | D147: ='Dry Cotton Organic'!$B$9*$C147 -> 350 | E147: ='Dry Cotton Organic'!$B$9*(1-'Dry Cotton Organic'!$E$9)*$C147 -> 350 | F147: ='Dry Cotton Organic'!$B$9*'Dry Cotton Organic'!$E$9*$C147 -> 0 | G147: =('Dry Cotton Organic'!F$45-D147/500*'Universal Input Prices'!$C$43/2000*Cottonseed_Price+(D147-D$147)*'Dry Cotton Organic'!$D$28+(D147-D$147)/'Dry Cotton Organic'!$B$11/100*'Dry Cotton Organic'!$D$29)/D147 -> 0.9170468161 | H147: =('Dry Cotton Organic'!G$45-E147/500*'Universal Input Prices'!$C$43/2000*Cottonseed_Price+(E147-E$147)*'Dry Cotton Organic'!$D$28+(E147-E$147)/'Dry Cotton Organic'!$B$11/100*'Dry Cotton Organic'!$D$29)/E147 -> 0.9170468161 | I147: =('Dry Cotton Organic'!F$57-D147/500*'Universal Input Prices'!$C$43/2000*Cottonseed_Price+(D147-D$147)*'Dry Cotton Organic'!$D$28+(D147-D$147)/'Dry Cotton Organic'!$B$11/100*'Dry Cotton Organic'!$D$29)/D147 -> 1.203475388 | J147: =('Dry Cotton Organic'!G$57-E147/500*'Universal Input Prices'!$C$43/2000*Cottonseed_Price+(E147-E$147)*'Dry Cotton Organic'!$D$28+(E147-E$147)/'Dry Cotton Organic'!$B$11/100*'Dry Cotton Organic'!$D$29)/E147 -> 1.203475388 | K147: =IF($F147=0,"N/A",('Dry Cotton Organic'!H$57-F147/500*'Universal Input Prices'!$C$43/2000*Cottonseed_Price+(F147-F$147)*'Dry Cotton Organic'!$D$28+(F147-F$147)/'Dry Cotton Organic'!$B$11/100*'Dry Cotton Organic'!$D$29)/F147) -> N/A
A148: Dryland Cotton - Organic | B148: Yes | C148: 1.1 | D148: ='Dry Cotton Organic'!$B$9*$C148 -> 385 | E148: ='Dry Cotton Organic'!$B$9*(1-'Dry Cotton Organic'!$E$9)*$C148 -> 385 | F148: ='Dry Cotton Organic'!$B$9*'Dry Cotton Organic'!$E$9*$C148 -> 0 | G148: =('Dry Cotton Organic'!F$45-D148/500*'Universal Input Prices'!$C$43/2000*Cottonseed_Price+(D148-D$147)*'Dry Cotton Organic'!$D$28+(D148-D$147)/'Dry Cotton Organic'!$B$11/100*'Dry Cotton Organic'!$D$29)/D148 -> 0.8367319541 | H148: =('Dry Cotton Organic'!G$45-E148/500*'Universal Input Prices'!$C$43/2000*Cottonseed_Price+(E148-E$147)*'Dry Cotton Organic'!$D$28+(E148-E$147)/'Dry Cotton Organic'!$B$11/100*'Dry Cotton Organic'!$D$29)/E148 -> 0.8367319541 | I148: =('Dry Cotton Organic'!F$57-D148/500*'Universal Input Prices'!$C$43/2000*Cottonseed_Price+(D148-D$147)*'Dry Cotton Organic'!$D$28+(D148-D$147)/'Dry Cotton Organic'!$B$11/100*'Dry Cotton Organic'!$D$29)/D148 -> 1.097121564 | J148: =('Dry Cotton Organic'!G$57-E148/500*'Universal Input Prices'!$C$43/2000*Cottonseed_Price+(E148-E$147)*'Dry Cotton Organic'!$D$28+(E148-E$147)/'Dry Cotton Organic'!$B$11/100*'Dry Cotton Organic'!$D$29)/E148 -> 1.097121564 | K148: =IF($F148=0,"N/A",('Dry Cotton Organic'!H$57-F148/500*'Universal Input Prices'!$C$43/2000*Cottonseed_Price+(F148-F$147)*'Dry Cotton Organic'!$D$28+(F148-F$147)/'Dry Cotton Organic'!$B$11/100*'Dry Cotton Organic'!$D$29)/F148) -> N/A
A149: Dryland Cotton - Organic | B149: Yes | C149: 1.25 | D149: ='Dry Cotton Organic'!$B$9*$C149 -> 437.5 | E149: ='Dry Cotton Organic'!$B$9*(1-'Dry Cotton Organic'!$E$9)*$C149 -> 437.5 | F149: ='Dry Cotton Organic'!$B$9*'Dry Cotton Organic'!$E$9*$C149 -> 0 | G149: =('Dry Cotton Organic'!F$45-D149/500*'Universal Input Prices'!$C$43/2000*Cottonseed_Price+(D149-D$147)*'Dry Cotton Organic'!$D$28+(D149-D$147)/'Dry Cotton Organic'!$B$11/100*'Dry Cotton Organic'!$D$29)/D149 -> 0.7403541196 | H149: =('Dry Cotton Organic'!G$45-E149/500*'Universal Input Prices'!$C$43/2000*Cottonseed_Price+(E149-E$147)*'Dry Cotton Organic'!$D$28+(E149-E$147)/'Dry Cotton Organic'!$B$11/100*'Dry Cotton Organic'!$D$29)/E149 -> 0.7403541196 | I149: =('Dry Cotton Organic'!F$57-D149/500*'Universal Input Prices'!$C$43/2000*Cottonseed_Price+(D149-D$147)*'Dry Cotton Organic'!$D$28+(D149-D$147)/'Dry Cotton Organic'!$B$11/100*'Dry Cotton Organic'!$D$29)/D149 -> 0.9694969767 | J149: =('Dry Cotton Organic'!G$57-E149/500*'Universal Input Prices'!$C$43/2000*Cottonseed_Price+(E149-E$147)*'Dry Cotton Organic'!$D$28+(E149-E$147)/'Dry Cotton Organic'!$B$11/100*'Dry Cotton Organic'!$D$29)/E149 -> 0.9694969767 | K149: =IF($F149=0,"N/A",('Dry Cotton Organic'!H$57-F149/500*'Universal Input Prices'!$C$43/2000*Cottonseed_Price+(F149-F$147)*'Dry Cotton Organic'!$D$28+(F149-F$147)/'Dry Cotton Organic'!$B$11/100*'Dry Cotton Organic'!$D$29)/F149) -> N/A
A150: Dryland Cotton - Organic | B150: Yes
A151: Dryland Cotton - Herbicide Tolerant | B151: Yes | C151: ='Dry Cotton HT'!$A$3 -> Dryland Cotton - Herbicide Tolerant
A152: Dryland Cotton - Herbicide Tolerant | B152: Yes | G152: BE Price to Cover Variable Costs | I152: BE Price to Cover Total Costs
A153: Dryland Cotton - Herbicide Tolerant | B153: Yes | C153: Yield | D153: ='Dry Cotton HT'!C9 -> lbs | G153: Total | H153: Operator | I153: Total | J153: Operator | K153: Owner
A154: Dryland Cotton - Herbicide Tolerant | B154: Yes | C154: 0.75 | D154: ='Dry Cotton HT'!$B$9*$C154 -> 300 | E154: ='Dry Cotton HT'!$B$9*(1-'Dry Cotton HT'!$E$9)*$C154 -> 300 | F154: ='Dry Cotton HT'!$B$9*'Dry Cotton HT'!$E$9*$C154 -> 0 | G154: =('Dry Cotton HT'!F$45-D154/500*'Universal Input Prices'!$C$43/2000*Cottonseed_Price+(D154-D$156)*'Dry Cotton HT'!$D$28+(D154-D$156)/'Dry Cotton HT'!$B$11/100*'Dry Cotton HT'!$D$29)/D154 -> 0.6903448567 | H154: =('Dry Cotton HT'!G$45-E154/500*'Universal Input Prices'!$C$43/2000*Cottonseed_Price+(E154-E$156)*'Dry Cotton HT'!$D$28+(E154-E$156)/'Dry Cotton HT'!$B$11/100*'Dry Cotton HT'!$D$29)/E154 -> 0.6903448567 | I154: =('Dry Cotton HT'!F$57-D154/500*'Universal Input Prices'!$C$43/2000*Cottonseed_Price+(D154-D$156)*'Dry Cotton HT'!$D$28+(D154-D$156)/'Dry Cotton HT'!$B$11/100*'Dry Cotton HT'!$D$29)/D154 -> 1.024511523 | J154: =('Dry Cotton HT'!G$57-E154/500*'Universal Input Prices'!$C$43/2000*Cottonseed_Price+(E154-E$156)*'Dry Cotton HT'!$D$28+(E154-E$156)/'Dry Cotton HT'!$B$11/100*'Dry Cotton HT'!$D$29)/E154 -> 1.024511523 | K154: =IF($F154=0,"N/A",('Dry Cotton HT'!H$57-F154/500*'Universal Input Prices'!$C$43/2000*Cottonseed_Price+(F154-F$156)*'Dry Cotton HT'!$D$28+(F154-F$156)/'Dry Cotton HT'!$B$11/100*'Dry Cotton HT'!$D$29)/F154) -> N/A
A155: Dryland Cotton - Herbicide Tolerant | B155: Yes | C155: 0.9 | D155: ='Dry Cotton HT'!$B$9*$C155 -> 360 | E155: ='Dry Cotton HT'!$B$9*(1-'Dry Cotton HT'!$E$9)*$C155 -> 360 | F155: ='Dry Cotton HT'!$B$9*'Dry Cotton HT'!$E$9*$C155 -> 0 | G155: =('Dry Cotton HT'!F$45-D155/500*'Universal Input Prices'!$C$43/2000*Cottonseed_Price+(D155-D$156)*'Dry Cotton HT'!$D$28+(D155-D$156)/'Dry Cotton HT'!$B$11/100*'Dry Cotton HT'!$D$29)/D155 -> 0.5808846028 | H155: =('Dry Cotton HT'!G$45-E155/500*'Universal Input Prices'!$C$43/2000*Cottonseed_Price+(E155-E$156)*'Dry Cotton HT'!$D$28+(E155-E$156)/'Dry Cotton HT'!$B$11/100*'Dry Cotton HT'!$D$29)/E155 -> 0.5808846028 | I155: =('Dry Cotton HT'!F$57-D155/500*'Universal Input Prices'!$C$43/2000*Cottonseed_Price+(D155-D$156)*'Dry Cotton HT'!$D$28+(D155-D$156)/'Dry Cotton HT'!$B$11/100*'Dry Cotton HT'!$D$29)/D155 -> 0.859356825 | J155: =('Dry Cotton HT'!G$57-E155/500*'Universal Input Prices'!$C$43/2000*Cottonseed_Price+(E155-E$156)*'Dry Cotton HT'!$D$28+(E155-E$156)/'Dry Cotton HT'!$B$11/100*'Dry Cotton HT'!$D$29)/E155 -> 0.859356825 | K155: =IF($F155=0,"N/A",('Dry Cotton HT'!H$57-F155/500*'Universal Input Prices'!$C$43/2000*Cottonseed_Price+(F155-F$156)*'Dry Cotton HT'!$D$28+(F155-F$156)/'Dry Cotton HT'!$B$11/100*'Dry Cotton HT'!$D$29)/F155) -> N/A
A156: Dryland Cotton - Herbicide Tolerant | B156: Yes | C156: 1 | D156: ='Dry Cotton HT'!$B$9*$C156 -> 400 | E156: ='Dry Cotton HT'!$B$9*(1-'Dry Cotton HT'!$E$9)*$C156 -> 400 | F156: ='Dry Cotton HT'!$B$9*'Dry Cotton HT'!$E$9*$C156 -> 0 | G156: =('Dry Cotton HT'!F$45-D156/500*'Universal Input Prices'!$C$43/2000*Cottonseed_Price+(D156-D$156)*'Dry Cotton HT'!$D$28+(D156-D$156)/'Dry Cotton HT'!$B$11/100*'Dry Cotton HT'!$D$29)/D156 -> 0.5261544758 | H156: =('Dry Cotton HT'!G$45-E156/500*'Universal Input Prices'!$C$43/2000*Cottonseed_Price+(E156-E$156)*'Dry Cotton HT'!$D$28+(E156-E$156)/'Dry Cotton HT'!$B$11/100*'Dry Cotton HT'!$D$29)/E156 -> 0.5261544758 | I156: =('Dry Cotton HT'!F$57-D156/500*'Universal Input Prices'!$C$43/2000*Cottonseed_Price+(D156-D$156)*'Dry Cotton HT'!$D$28+(D156-D$156)/'Dry Cotton HT'!$B$11/100*'Dry Cotton HT'!$D$29)/D156 -> 0.7767794758 | J156: =('Dry Cotton HT'!G$57-E156/500*'Universal Input Prices'!$C$43/2000*Cottonseed_Price+(E156-E$156)*'Dry Cotton HT'!$D$28+(E156-E$156)/'Dry Cotton HT'!$B$11/100*'Dry Cotton HT'!$D$29)/E156 -> 0.7767794758 | K156: =IF($F156=0,"N/A",('Dry Cotton HT'!H$57-F156/500*'Universal Input Prices'!$C$43/2000*Cottonseed_Price+(F156-F$156)*'Dry Cotton HT'!$D$28+(F156-F$156)/'Dry Cotton HT'!$B$11/100*'Dry Cotton HT'!$D$29)/F156) -> N/A
A157: Dryland Cotton - Herbicide Tolerant | B157: Yes | C157: 1.1 | D157: ='Dry Cotton HT'!$B$9*$C157 -> 440 | E157: ='Dry Cotton HT'!$B$9*(1-'Dry Cotton HT'!$E$9)*$C157 -> 440 | F157: ='Dry Cotton HT'!$B$9*'Dry Cotton HT'!$E$9*$C157 -> 0 | G157: =('Dry Cotton HT'!F$45-D157/500*'Universal Input Prices'!$C$43/2000*Cottonseed_Price+(D157-D$156)*'Dry Cotton HT'!$D$28+(D157-D$156)/'Dry Cotton HT'!$B$11/100*'Dry Cotton HT'!$D$29)/D157 -> 0.4813752811 | H157: =('Dry Cotton HT'!G$45-E157/500*'Universal Input Prices'!$C$43/2000*Cottonseed_Price+(E157-E$156)*'Dry Cotton HT'!$D$28+(E157-E$156)/'Dry Cotton HT'!$B$11/100*'Dry Cotton HT'!$D$29)/E157 -> 0.4813752811 | I157: =('Dry Cotton HT'!F$57-D157/500*'Universal Input Prices'!$C$43/2000*Cottonseed_Price+(D157-D$156)*'Dry Cotton HT'!$D$28+(D157-D$156)/'Dry Cotton HT'!$B$11/100*'Dry Cotton HT'!$D$29)/D157 -> 0.7092161902 | J157: =('Dry Cotton HT'!G$57-E157/500*'Universal Input Prices'!$C$43/2000*Cottonseed_Price+(E157-E$156)*'Dry Cotton HT'!$D$28+(E157-E$156)/'Dry Cotton HT'!$B$11/100*'Dry Cotton HT'!$D$29)/E157 -> 0.7092161902 | K157: =IF($F157=0,"N/A",('Dry Cotton HT'!H$57-F157/500*'Universal Input Prices'!$C$43/2000*Cottonseed_Price+(F157-F$156)*'Dry Cotton HT'!$D$28+(F157-F$156)/'Dry Cotton HT'!$B$11/100*'Dry Cotton HT'!$D$29)/F157) -> N/A
A158: Dryland Cotton - Herbicide Tolerant | B158: Yes | C158: 1.25 | D158: ='Dry Cotton HT'!$B$9*$C158 -> 500 | E158: ='Dry Cotton HT'!$B$9*(1-'Dry Cotton HT'!$E$9)*$C158 -> 500 | F158: ='Dry Cotton HT'!$B$9*'Dry Cotton HT'!$E$9*$C158 -> 0 | G158: =('Dry Cotton HT'!F$45-D158/500*'Universal Input Prices'!$C$43/2000*Cottonseed_Price+(D158-D$156)*'Dry Cotton HT'!$D$28+(D158-D$156)/'Dry Cotton HT'!$B$11/100*'Dry Cotton HT'!$D$29)/D158 -> 0.4276402473 | H158: =('Dry Cotton HT'!G$45-E158/500*'Universal Input Prices'!$C$43/2000*Cottonseed_Price+(E158-E$156)*'Dry Cotton HT'!$D$28+(E158-E$156)/'Dry Cotton HT'!$B$11/100*'Dry Cotton HT'!$D$29)/E158 -> 0.4276402473 | I158: =('Dry Cotton HT'!F$57-D158/500*'Universal Input Prices'!$C$43/2000*Cottonseed_Price+(D158-D$156)*'Dry Cotton HT'!$D$28+(D158-D$156)/'Dry Cotton HT'!$B$11/100*'Dry Cotton HT'!$D$29)/D158 -> 0.6281402473 | J158: =('Dry Cotton HT'!G$57-E158/500*'Universal Input Prices'!$C$43/2000*Cottonseed_Price+(E158-E$156)*'Dry Cotton HT'!$D$28+(E158-E$156)/'Dry Cotton HT'!$B$11/100*'Dry Cotton HT'!$D$29)/E158 -> 0.6281402473 | K158: =IF($F158=0,"N/A",('Dry Cotton HT'!H$57-F158/500*'Universal Input Prices'!$C$43/2000*Cottonseed_Price+(F158-F$156)*'Dry Cotton HT'!$D$28+(F158-F$156)/'Dry Cotton HT'!$B$11/100*'Dry Cotton HT'!$D$29)/F158) -> N/A
A159: Dryland Cotton - Herbicide Tolerant | B159: Yes
A160: Dryland Guar | B160: Yes | C160: ='Dry Guar'!A3 -> Dryland Guar
A161: Dryland Guar | B161: Yes | G161: BE Price to Cover Variable Costs | I161: BE Price to Cover Total Costs
A162: Dryland Guar | B162: Yes | C162: Yield | D162: ='Dry Guar'!C9 -> lbs | G162: Total | H162: Operator | I162: Total | J162: Operator | K162: Owner
A163: Dryland Guar | B163: Yes | C163: 0.75 | D163: ='Dry Guar'!$B$9*$C163 -> 450 | E163: ='Dry Guar'!$B$9*(1-'Dry Guar'!$E$9)*$C163 -> 450 | F163: ='Dry Guar'!$B$9*'Dry Guar'!$E$9*$C163 -> 0 | G163: =('Dry Guar'!$F$41+($D163-$D$75)*'Dry Guar'!$D$25)/$D163 -> 0.4070496455 | H163: =('Dry Guar'!$G$41+($E163-$E$75)*'Dry Guar'!$D$25)/$E163 -> 0.4070496455 | I163: =('Dry Guar'!$F$53+($D163-$D$75)*'Dry Guar'!$D$25)/$D163 -> 0.6298274232 | J163: =('Dry Guar'!$G$53+($E163-$E$75)*'Dry Guar'!$D$25)/$E163 -> 0.6298274232 | K163: =IF($F163=0, "N/A", ('Dry Guar'!$H$53+($F163-$F$75)*'Dry Guar'!$D$25)/$F163) -> N/A
A164: Dryland Guar | B164: Yes | C164: 0.9 | D164: ='Irr Guar'!$B$9*$C164 -> 1080 | E164: ='Dry Guar'!$B$9*(1-'Dry Guar'!$E$9)*$C164 -> 540 | F164: ='Dry Guar'!$B$9*'Dry Guar'!$E$9*$C164 -> 0 | G164: =('Dry Guar'!$F$41+($D164-$D$75)*'Dry Guar'!$D$25)/$D164 -> 0.2862706856 | H164: =('Dry Guar'!$G$41+($E164-$E$75)*'Dry Guar'!$D$25)/$E164 -> 0.3725413712 | I164: =('Dry Guar'!$F$53+($D164-$D$75)*'Dry Guar'!$D$25)/$D164 -> 0.3790947597 | J164: =('Dry Guar'!$G$53+($E164-$E$75)*'Dry Guar'!$D$25)/$E164 -> 0.5581895194 | K164: =IF($F164=0, "N/A", ('Dry Guar'!$H$53+($F164-$F$75)*'Dry Guar'!$D$25)/$F164) -> N/A
A165: Dryland Guar | B165: Yes | C165: 1 | D165: ='Irr Guar'!$B$9*$C165 -> 1200 | E165: ='Dry Guar'!$B$9*(1-'Dry Guar'!$E$9)*$C165 -> 600 | F165: ='Dry Guar'!$B$9*'Dry Guar'!$E$9*$C165 -> 0 | G165: =('Dry Guar'!$F$41+($D165-$D$75)*'Dry Guar'!$D$25)/$D165 -> 0.2776436171 | H165: =('Dry Guar'!$G$41+($E165-$E$75)*'Dry Guar'!$D$25)/$E165 -> 0.3552872341 | I165: =('Dry Guar'!$F$53+($D165-$D$75)*'Dry Guar'!$D$25)/$D165 -> 0.3611852837 | J165: =('Dry Guar'!$G$53+($E165-$E$75)*'Dry Guar'!$D$25)/$E165 -> 0.5223705674 | K165: =IF($F165=0, "N/A", ('Dry Guar'!$H$53+($F165-$F$75)*'Dry Guar'!$D$25)/$F165) -> N/A
A166: Dryland Guar | B166: Yes | C166: 1.1 | D166: ='Irr Guar'!$B$9*$C166 -> 1320 | E166: ='Dry Guar'!$B$9*(1-'Dry Guar'!$E$9)*$C166 -> 660 | F166: ='Dry Guar'!$B$9*'Dry Guar'!$E$9*$C166 -> 0 | G166: =('Dry Guar'!$F$41+($D166-$D$75)*'Dry Guar'!$D$25)/$D166 -> 0.2705851064 | H166: =('Dry Guar'!$G$41+($E166-$E$75)*'Dry Guar'!$D$25)/$E166 -> 0.3411702128 | I166: =('Dry Guar'!$F$53+($D166-$D$75)*'Dry Guar'!$D$25)/$D166 -> 0.3465320761 | J166: =('Dry Guar'!$G$53+($E166-$E$75)*'Dry Guar'!$D$25)/$E166 -> 0.4930641522 | K166: =IF($F166=0, "N/A", ('Dry Guar'!$H$53+($F166-$F$75)*'Dry Guar'!$D$25)/$F166) -> N/A
A167: Dryland Guar | B167: Yes | C167: 1.25 | D167: ='Irr Guar'!$B$9*$C167 -> 1500 | E167: ='Dry Guar'!$B$9*(1-'Dry Guar'!$E$9)*$C167 -> 750 | F167: ='Dry Guar'!$B$9*'Dry Guar'!$E$9*$C167 -> 0 | G167: =('Dry Guar'!$F$41+($D167-$D$75)*'Dry Guar'!$D$25)/$D167 -> 0.2621148936 | H167: =('Dry Guar'!$G$41+($E167-$E$75)*'Dry Guar'!$D$25)/$E167 -> 0.3242297873 | I167: =('Dry Guar'!$F$53+($D167-$D$75)*'Dry Guar'!$D$25)/$D167 -> 0.328948227 | J167: =('Dry Guar'!$G$53+($E167-$E$75)*'Dry Guar'!$D$25)/$E167 -> 0.4578964539 | K167: =IF($F167=0, "N/A", ('Dry Guar'!$H$53+($F167-$F$75)*'Dry Guar'!$D$25)/$F167) -> N/A
A168: Dryland Guar | B168: Yes
A169: Dryland Sesame | B169: Yes | C169: ='Dry Sesame'!$A$3 -> Dryland Sesame
A170: Dryland Sesame | B170: Yes | G170: BE Price to Cover Variable Costs | I170: BE Price to Cover Total Costs
A171: Dryland Sesame | B171: Yes | C171: Yield | D171: ='Dry Sesame'!C9 -> lbs | G171: Total | H171: Operator | I171: Total | J171: Operator | K171: Owner
A172: Dryland Sesame | B172: Yes | C172: 0.75 | D172: ='Dry Sesame'!$B$9*$C172 -> 450 | E172: ='Dry Sesame'!$B$9*(1-'Dry Sesame'!$E$9)*$C172 -> 450 | F172: ='Dry Sesame'!$B$9*'Dry Sesame'!$E$9*$C172 -> 0 | G172: =('Dry Sesame'!$F$40+($D172-D$174)*'Dry Sesame'!$D$24)/$D172 -> 0.2447424481 | H172: =('Dry Sesame'!$G$40+($E172-E$174)*'Dry Sesame'!$D$24)/$E172 -> 0.2447424481 | I172: =('Dry Sesame'!$F$52+($D172-D$174)*'Dry Sesame'!$D$24)/$D172 -> 0.4675202258 | J172: =('Dry Sesame'!$G$52+($E172-E$174)*'Dry Sesame'!$D$24)/$E172 -> 0.4675202258 | K172: =IF($F172=0, "N/A", ('Dry Sesame'!$H$52+($F172-F$174)*'Dry Sesame'!$D$24)/$F172) -> N/A
A173: Dryland Sesame | B173: Yes | C173: 0.9 | D173: ='Dry Sesame'!$B$9*$C173 -> 540 | E173: ='Dry Sesame'!$B$9*(1-'Dry Sesame'!$E$9)*$C173 -> 540 | F173: ='Dry Sesame'!$B$9*'Dry Sesame'!$E$9*$C173 -> 0 | G173: =('Dry Sesame'!$F$40+($D173-D$174)*'Dry Sesame'!$D$24)/$D173 -> 0.22395204 | H173: =('Dry Sesame'!$G$40+($E173-E$174)*'Dry Sesame'!$D$24)/$E173 -> 0.22395204 | I173: =('Dry Sesame'!$F$52+($D173-D$174)*'Dry Sesame'!$D$24)/$D173 -> 0.4096001882 | J173: =('Dry Sesame'!$G$52+($E173-E$174)*'Dry Sesame'!$D$24)/$E173 -> 0.4096001882 | K173: =IF($F173=0, "N/A", ('Dry Sesame'!$H$52+($F173-F$174)*'Dry Sesame'!$D$24)/$F173) -> N/A
A174: Dryland Sesame | B174: Yes | C174: 1 | D174: ='Dry Sesame'!$B$9*$C174 -> 600 | E174: ='Dry Sesame'!$B$9*(1-'Dry Sesame'!$E$9)*$C174 -> 600 | F174: ='Dry Sesame'!$B$9*'Dry Sesame'!$E$9*$C174 -> 0 | G174: =('Dry Sesame'!$F$40+($D174-D$174)*'Dry Sesame'!$D$24)/$D174 -> 0.213556836 | H174: =('Dry Sesame'!$G$40+($E174-E$174)*'Dry Sesame'!$D$24)/$E174 -> 0.213556836 | I174: =('Dry Sesame'!$F$52+($D174-D$174)*'Dry Sesame'!$D$24)/$D174 -> 0.3806401694 | J174: =('Dry Sesame'!$G$52+($E174-E$174)*'Dry Sesame'!$D$24)/$E174 -> 0.3806401694 | K174: =IF($F174=0, "N/A", ('Dry Sesame'!$H$52+($F174-F$174)*'Dry Sesame'!$D$24)/$F174) -> N/A
A175: Dryland Sesame | B175: Yes | C175: 1.1 | D175: ='Dry Sesame'!$B$9*$C175 -> 660 | E175: ='Dry Sesame'!$B$9*(1-'Dry Sesame'!$E$9)*$C175 -> 660 | F175: ='Dry Sesame'!$B$9*'Dry Sesame'!$E$9*$C175 -> 0 | G175: =('Dry Sesame'!$F$40+($D175-D$174)*'Dry Sesame'!$D$24)/$D175 -> 0.2050516691 | H175: =('Dry Sesame'!$G$40+($E175-E$174)*'Dry Sesame'!$D$24)/$E175 -> 0.2050516691 | I175: =('Dry Sesame'!$F$52+($D175-D$174)*'Dry Sesame'!$D$24)/$D175 -> 0.3569456085 | J175: =('Dry Sesame'!$G$52+($E175-E$174)*'Dry Sesame'!$D$24)/$E175 -> 0.3569456085 | K175: =IF($F175=0, "N/A", ('Dry Sesame'!$H$52+($F175-F$174)*'Dry Sesame'!$D$24)/$F175) -> N/A
A176: Dryland Sesame | B176: Yes | C176: 1.25 | D176: ='Dry Sesame'!$B$9*$C176 -> 750 | E176: ='Dry Sesame'!$B$9*(1-'Dry Sesame'!$E$9)*$C176 -> 750 | F176: ='Dry Sesame'!$B$9*'Dry Sesame'!$E$9*$C176 -> 0 | G176: =('Dry Sesame'!$F$40+($D176-D$174)*'Dry Sesame'!$D$24)/$D176 -> 0.1948454688 | H176: =('Dry Sesame'!$G$40+($E176-E$174)*'Dry Sesame'!$D$24)/$E176 -> 0.1948454688 | I176: =('Dry Sesame'!$F$52+($D176-D$174)*'Dry Sesame'!$D$24)/$D176 -> 0.3285121355 | J176: =('Dry Sesame'!$G$52+($E176-E$174)*'Dry Sesame'!$D$24)/$E176 -> 0.3285121355 | K176: =IF($F176=0, "N/A", ('Dry Sesame'!$H$52+($F176-F$174)*'Dry Sesame'!$D$24)/$F176) -> N/A
A177: Dryland Sesame | B177: Yes
A178: Dryland Sorghum | B178: Yes | C178: ='Dry Sorghum'!$A$3 -> Dryland Sorghum
A179: Dryland Sorghum | B179: Yes | G179: BE Price to Cover Variable Costs | I179: BE Price to Cover Total Costs
A180: Dryland Sorghum | B180: Yes | C180: Yield | D180: ='Dry Sorghum'!C9 -> cwt | G180: Total | H180: Operator | I180: Total | J180: Operator | K180: Owner
A181: Dryland Sorghum | B181: Yes | C181: 0.75 | D181: ='Dry Sorghum'!$B$9*$C181 -> 15 | E181: ='Dry Sorghum'!$B$9*(1-'Dry Sorghum'!$E$9)*$C181 -> 15 | F181: ='Dry Sorghum'!$B$9*'Dry Sorghum'!$E$9*$C181 -> 0 | G181: =('Dry Sorghum'!$F$41+($D181-D$183)*'Dry Sorghum'!$D$25)/$D181 -> 9.293009508 | H181: =('Dry Sorghum'!$G$41+($E181-E$183)*'Dry Sorghum'!$D$25)/$E181 -> 9.293009508 | I181: =('Dry Sorghum'!$F$53+($D181-D$183)*'Dry Sorghum'!$D$25)/$D181 -> 15.97634284 | J181: =('Dry Sorghum'!$G$53+($E181-E$183)*'Dry Sorghum'!$D$25)/$E181 -> 15.97634284 | K181: =IF($F181=0, "N/A", ('Dry Sorghum'!$H$53+($F181-F$183)*'Dry Sorghum'!$D$25)/$F181) -> N/A
A182: Dryland Sorghum | B182: Yes | C182: 0.9 | D182: ='Dry Sorghum'!$B$9*$C182 -> 18 | E182: ='Dry Sorghum'!$B$9*(1-'Dry Sorghum'!$E$9)*$C182 -> 18 | F182: ='Dry Sorghum'!$B$9*'Dry Sorghum'!$E$9*$C182 -> 0 | G182: =('Dry Sorghum'!$F$41+($D182-D$183)*'Dry Sorghum'!$D$25)/$D182 -> 7.810841257 | H182: =('Dry Sorghum'!$G$41+($E182-E$183)*'Dry Sorghum'!$D$25)/$E182 -> 7.810841257 | I182: =('Dry Sorghum'!$F$53+($D182-D$183)*'Dry Sorghum'!$D$25)/$D182 -> 13.3802857 | J182: =('Dry Sorghum'!$G$53+($E182-E$183)*'Dry Sorghum'!$D$25)/$E182 -> 13.3802857 | K182: =IF($F182=0, "N/A", ('Dry Sorghum'!$H$53+($F182-F$183)*'Dry Sorghum'!$D$25)/$F182) -> N/A
A183: Dryland Sorghum | B183: Yes | C183: 1 | D183: ='Dry Sorghum'!$B$9*$C183 -> 20 | E183: ='Dry Sorghum'!$B$9*(1-'Dry Sorghum'!$E$9)*$C183 -> 20 | F183: ='Dry Sorghum'!$B$9*'Dry Sorghum'!$E$9*$C183 -> 0 | G183: =('Dry Sorghum'!$F$41+($D183-D$183)*'Dry Sorghum'!$D$25)/$D183 -> 7.069757131 | H183: =('Dry Sorghum'!$G$41+($E183-E$183)*'Dry Sorghum'!$D$25)/$E183 -> 7.069757131 | I183: =('Dry Sorghum'!$F$53+($D183-D$183)*'Dry Sorghum'!$D$25)/$D183 -> 12.08225713 | J183: =('Dry Sorghum'!$G$53+($E183-E$183)*'Dry Sorghum'!$D$25)/$E183 -> 12.08225713 | K183: =IF($F183=0, "N/A", ('Dry Sorghum'!$H$53+($F183-F$183)*'Dry Sorghum'!$D$25)/$F183) -> N/A
A184: Dryland Sorghum | B184: Yes | C184: 1.1 | D184: ='Dry Sorghum'!$B$9*$C184 -> 22 | E184: ='Dry Sorghum'!$B$9*(1-'Dry Sorghum'!$E$9)*$C184 -> 22 | F184: ='Dry Sorghum'!$B$9*'Dry Sorghum'!$E$9*$C184 -> 0 | G184: =('Dry Sorghum'!$F$41+($D184-D$183)*'Dry Sorghum'!$D$25)/$D184 -> 6.463415574 | H184: =('Dry Sorghum'!$G$41+($E184-E$183)*'Dry Sorghum'!$D$25)/$E184 -> 6.463415574 | I184: =('Dry Sorghum'!$F$53+($D184-D$183)*'Dry Sorghum'!$D$25)/$D184 -> 11.02023376 | J184: =('Dry Sorghum'!$G$53+($E184-E$183)*'Dry Sorghum'!$D$25)/$E184 -> 11.02023376 | K184: =IF($F184=0, "N/A", ('Dry Sorghum'!$H$53+($F184-F$183)*'Dry Sorghum'!$D$25)/$F184) -> N/A
A185: Dryland Sorghum | B185: Yes | C185: 1.25 | D185: ='Dry Sorghum'!$B$9*$C185 -> 25 | E185: ='Dry Sorghum'!$B$9*(1-'Dry Sorghum'!$E$9)*$C185 -> 25 | F185: ='Dry Sorghum'!$B$9*'Dry Sorghum'!$E$9*$C185 -> 0 | G185: =('Dry Sorghum'!$F$41+($D185-D$183)*'Dry Sorghum'!$D$25)/$D185 -> 5.735805705 | H185: =('Dry Sorghum'!$G$41+($E185-E$183)*'Dry Sorghum'!$D$25)/$E185 -> 5.735805705 | I185: =('Dry Sorghum'!$F$53+($D185-D$183)*'Dry Sorghum'!$D$25)/$D185 -> 9.745805705 | J185: =('Dry Sorghum'!$G$53+($E185-E$183)*'Dry Sorghum'!$D$25)/$E185 -> 9.745805705 | K185: =IF($F185=0, "N/A", ('Dry Sorghum'!$H$53+($F185-F$183)*'Dry Sorghum'!$D$25)/$F185) -> N/A
A186: Dryland Sorghum | B186: Yes
A187: Dryland Sunflowers-Oilseed | B187: Yes | C187: ='Dry Sunflowers-Oilseed'!$A$3 -> Dryland Sunflowers-Oilseed
A188: Dryland Sunflowers-Oilseed | B188: Yes | G188: BE Price to Cover Variable Costs | I188: BE Price to Cover Total Costs
A189: Dryland Sunflowers-Oilseed | B189: Yes | C189: Yield | D189: ='Dry Sunflowers-Oilseed'!C9 -> lbs | G189: Total | H189: Operator | I189: Total | J189: Operator | K189: Owner
A190: Dryland Sunflowers-Oilseed | B190: Yes | C190: 0.75 | D190: ='Dry Sunflowers-Oilseed'!$B$9*$C190 -> 750 | E190: ='Dry Sunflowers-Oilseed'!$B$9*(1-'Dry Sunflowers-Oilseed'!$E$9)*$C190 -> 750 | F190: ='Dry Sunflowers-Oilseed'!$B$9*'Dry Sunflowers-Oilseed'!$E$9*$C190 -> 0 | G190: =('Dry Sunflowers-Oilseed'!$F$40+($D190-D$192)*'Dry Sunflowers-Oilseed'!$D$24)/$D190 -> 0.1090947193 | H190: =('Dry Sunflowers-Oilseed'!$G$40+($E190-E$192)*'Dry Sunflowers-Oilseed'!$D$24)/$E190 -> 0.1090947193 | I190: =('Dry Sunflowers-Oilseed'!$F$52+($D190-D$192)*'Dry Sunflowers-Oilseed'!$D$24)/$D190 -> 0.242761386 | J190: =('Dry Sunflowers-Oilseed'!$G$52+($E190-E$192)*'Dry Sunflowers-Oilseed'!$D$24)/$E190 -> 0.242761386 | K190: =IF($F190=0, "N/A", ('Dry Sunflowers-Oilseed'!$H$52+($F190-F$192)*'Dry Sunflowers-Oilseed'!$D$24)/$F190) -> N/A
A191: Dryland Sunflowers-Oilseed | B191: Yes | C191: 0.9 | D191: ='Dry Sunflowers-Oilseed'!$B$9*$C191 -> 900 | E191: ='Dry Sunflowers-Oilseed'!$B$9*(1-'Dry Sunflowers-Oilseed'!$E$9)*$C191 -> 900 | F191: ='Dry Sunflowers-Oilseed'!$B$9*'Dry Sunflowers-Oilseed'!$E$9*$C191 -> 0 | G191: =('Dry Sunflowers-Oilseed'!$F$40+($D191-D$192)*'Dry Sunflowers-Oilseed'!$D$24)/$D191 -> 0.1409122661 | H191: =('Dry Sunflowers-Oilseed'!$G$40+($E191-E$192)*'Dry Sunflowers-Oilseed'!$D$24)/$E191 -> 0.1409122661 | I191: =('Dry Sunflowers-Oilseed'!$F$52+($D191-D$192)*'Dry Sunflowers-Oilseed'!$D$24)/$D191 -> 0.252301155 | J191: =('Dry Sunflowers-Oilseed'!$G$52+($E191-E$192)*'Dry Sunflowers-Oilseed'!$D$24)/$E191 -> 0.252301155 | K191: =IF($F191=0, "N/A", ('Dry Sunflowers-Oilseed'!$H$52+($F191-F$192)*'Dry Sunflowers-Oilseed'!$D$24)/$F191) -> N/A
A192: Dryland Sunflowers-Oilseed | B192: Yes | C192: 1 | D192: ='Dry Sunflowers-Oilseed'!$B$9*$C192 -> 1000 | E192: ='Dry Sunflowers-Oilseed'!$B$9*(1-'Dry Sunflowers-Oilseed'!$E$9)*$C192 -> 1000 | F192: ='Dry Sunflowers-Oilseed'!$B$9*'Dry Sunflowers-Oilseed'!$E$9*$C192 -> 0 | G192: =('Dry Sunflowers-Oilseed'!$F$40+($D192-D$192)*'Dry Sunflowers-Oilseed'!$D$24)/$D192 -> 0.1568210395 | H192: =('Dry Sunflowers-Oilseed'!$G$40+($E192-E$192)*'Dry Sunflowers-Oilseed'!$D$24)/$E192 -> 0.1568210395 | I192: =('Dry Sunflowers-Oilseed'!$F$52+($D192-D$192)*'Dry Sunflowers-Oilseed'!$D$24)/$D192 -> 0.2570710395 | J192: =('Dry Sunflowers-Oilseed'!$G$52+($E192-E$192)*'Dry Sunflowers-Oilseed'!$D$24)/$E192 -> 0.2570710395 | K192: =IF($F192=0, "N/A", ('Dry Sunflowers-Oilseed'!$H$52+($F192-F$192)*'Dry Sunflowers-Oilseed'!$D$24)/$F192) -> N/A
A193: Dryland Sunflowers-Oilseed | B193: Yes | C193: 1.1 | D193: ='Dry Sunflowers-Oilseed'!$B$9*$C193 -> 1100 | E193: ='Dry Sunflowers-Oilseed'!$B$9*(1-'Dry Sunflowers-Oilseed'!$E$9)*$C193 -> 1100 | F193: ='Dry Sunflowers-Oilseed'!$B$9*'Dry Sunflowers-Oilseed'!$E$9*$C193 -> 0 | G193: =('Dry Sunflowers-Oilseed'!$F$40+($D193-D$192)*'Dry Sunflowers-Oilseed'!$D$24)/$D193 -> 0.1698373086 | H193: =('Dry Sunflowers-Oilseed'!$G$40+($E193-E$192)*'Dry Sunflowers-Oilseed'!$D$24)/$E193 -> 0.1698373086 | I193: =('Dry Sunflowers-Oilseed'!$F$52+($D193-D$192)*'Dry Sunflowers-Oilseed'!$D$24)/$D193 -> 0.2609736723 | J193: =('Dry Sunflowers-Oilseed'!$G$52+($E193-E$192)*'Dry Sunflowers-Oilseed'!$D$24)/$E193 -> 0.2609736723 | K193: =IF($F193=0, "N/A", ('Dry Sunflowers-Oilseed'!$H$52+($F193-F$192)*'Dry Sunflowers-Oilseed'!$D$24)/$F193) -> N/A
A194: Dryland Sunflowers-Oilseed | B194: =_xlfn.XLOOKUP(A194,PGM_ShowHide_Lookup,PGM_ShowHide_Return,"") -> Yes | C194: 1.25 | D194: ='Dry Sunflowers-Oilseed'!$B$9*$C194 -> 1250 | E194: ='Dry Sunflowers-Oilseed'!$B$9*(1-'Dry Sunflowers-Oilseed'!$E$9)*$C194 -> 1250 | F194: ='Dry Sunflowers-Oilseed'!$B$9*'Dry Sunflowers-Oilseed'!$E$9*$C194 -> 0 | G194: =('Dry Sunflowers-Oilseed'!$F$40+($D194-D$192)*'Dry Sunflowers-Oilseed'!$D$24)/$D194 -> 0.1854568316 | H194: =('Dry Sunflowers-Oilseed'!$G$40+($E194-E$192)*'Dry Sunflowers-Oilseed'!$D$24)/$E194 -> 0.1854568316 | I194: =('Dry Sunflowers-Oilseed'!$F$52+($D194-D$192)*'Dry Sunflowers-Oilseed'!$D$24)/$D194 -> 0.2656568316 | J194: =('Dry Sunflowers-Oilseed'!$G$52+($E194-E$192)*'Dry Sunflowers-Oilseed'!$D$24)/$E194 -> 0.2656568316 | K194: =IF($F194=0, "N/A", ('Dry Sunflowers-Oilseed'!$H$52+($F194-F$192)*'Dry Sunflowers-Oilseed'!$D$24)/$F194) -> N/A
A195: Dryland Sunflowers-Oilseed | B195: =_xlfn.XLOOKUP(A195,PGM_ShowHide_Lookup,PGM_ShowHide_Return,"") -> Yes
A196: Dryland Wheat | B196: Yes | C196: ='Dry Wheat'!$A$3 -> Dryland Wheat
A197: Dryland Wheat | B197: Yes | G197: BE Price to Cover Variable Costs | I197: BE Price to Cover Total Costs
A198: Dryland Wheat | B198: Yes | C198: Yield | D198: ='Dry Wheat'!C9 -> bu | G198: Total | H198: Operator | I198: Total | J198: Operator | K198: Owner
A199: Dryland Wheat | B199: =_xlfn.XLOOKUP(A199,PGM_ShowHide_Lookup,PGM_ShowHide_Return,"") -> Yes | C199: 0.75 | D199: ='Dry Wheat'!$B$9*$C199 -> 13.5 | E199: ='Dry Wheat'!$B$9*(1-'Dry Wheat'!$E$9)*$C199 -> 13.5 | F199: ='Dry Wheat'!$B$9*'Dry Wheat'!$E$9*$C199 -> 0 | G199: =('Dry Wheat'!$F$40+($D199-D$201)*'Dry Wheat'!$D$25)/$D199 -> 10.02500753 | H199: =('Dry Wheat'!$G$40+($E199-E$201)*'Dry Wheat'!$D$25)/$E199 -> 10.02500753 | I199: =('Dry Wheat'!$F$52+($D199-D$201)*'Dry Wheat'!$D$25)/$D199 -> 17.45093345 | J199: =('Dry Wheat'!$G$52+($E199-E$201)*'Dry Wheat'!$D$25)/$E199 -> 17.45093345 | K199: =IF($F199=0, "N/A", ('Dry Wheat'!$H$52+($F199-F$201)*'Dry Wheat'!$D$25)/$F199) -> N/A
A200: Dryland Wheat | B200: Yes | C200: 0.9 | D200: ='Dry Wheat'!$B$9*$C200 -> 16.2 | E200: ='Dry Wheat'!$B$9*(1-'Dry Wheat'!$E$9)*$C200 -> 16.2 | F200: ='Dry Wheat'!$B$9*'Dry Wheat'!$E$9*$C200 -> 0 | G200: =('Dry Wheat'!$F$40+($D200-D$201)*'Dry Wheat'!$D$25)/$D200 -> 8.377506273 | H200: =('Dry Wheat'!$G$40+($E200-E$201)*'Dry Wheat'!$D$25)/$E200 -> 8.377506273 | I200: =('Dry Wheat'!$F$52+($D200-D$201)*'Dry Wheat'!$D$25)/$D200 -> 14.56577788 | J200: =('Dry Wheat'!$G$52+($E200-E$201)*'Dry Wheat'!$D$25)/$E200 -> 14.56577788 | K200: =IF($F200=0, "N/A", ('Dry Wheat'!$H$52+($F200-F$201)*'Dry Wheat'!$D$25)/$F200) -> N/A
A201: Dryland Wheat | B201: Yes | C201: 1 | D201: ='Dry Wheat'!$B$9*$C201 -> 18 | E201: ='Dry Wheat'!$B$9*(1-'Dry Wheat'!$E$9)*$C201 -> 18 | F201: ='Dry Wheat'!$B$9*'Dry Wheat'!$E$9*$C201 -> 0 | G201: =('Dry Wheat'!$F$40+($D201-D$201)*'Dry Wheat'!$D$25)/$D201 -> 7.553755646 | H201: =('Dry Wheat'!$G$40+($E201-E$201)*'Dry Wheat'!$D$25)/$E201 -> 7.553755646 | I201: =('Dry Wheat'!$F$52+($D201-D$201)*'Dry Wheat'!$D$25)/$D201 -> 13.12320009 | J201: =('Dry Wheat'!$G$52+($E201-E$201)*'Dry Wheat'!$D$25)/$E201 -> 13.12320009 | K201: =IF($F201=0, "N/A", ('Dry Wheat'!$H$52+($F201-F$201)*'Dry Wheat'!$D$25)/$F201) -> N/A
A202: Dryland Wheat | B202: Yes | C202: 1.1 | D202: ='Dry Wheat'!$B$9*$C202 -> 19.8 | E202: ='Dry Wheat'!$B$9*(1-'Dry Wheat'!$E$9)*$C202 -> 19.8 | F202: ='Dry Wheat'!$B$9*'Dry Wheat'!$E$9*$C202 -> 0 | G202: =('Dry Wheat'!$F$40+($D202-D$201)*'Dry Wheat'!$D$25)/$D202 -> 6.87977786 | H202: =('Dry Wheat'!$G$40+($E202-E$201)*'Dry Wheat'!$D$25)/$E202 -> 6.87977786 | I202: =('Dry Wheat'!$F$52+($D202-D$201)*'Dry Wheat'!$D$25)/$D202 -> 11.94290917 | J202: =('Dry Wheat'!$G$52+($E202-E$201)*'Dry Wheat'!$D$25)/$E202 -> 11.94290917 | K202: =IF($F202=0, "N/A", ('Dry Wheat'!$H$52+($F202-F$201)*'Dry Wheat'!$D$25)/$F202) -> N/A
... 1 more rows

Sheet Comparative Returns
C2: Comparative Returns
C3: Projected for 2024
A5: PARAMETER? | B5: DISPLAY? | D5: Total | E5: Operator | F5: Owner | G5: Total | H5: Operator | I5: Owner | J5: Total | K5: Operator | L5: Owner | M5: Total | N5: Operator | O5: Owner | Q5: Total | R5: Operator | S5: Owner | T5: Total | U5: Operator | V5: Owner | Y5: Total | Z5: Operator | AA5: Owner
D6: =_xlfn.XLOOKUP(D5,PGM_ShowHide_Lookup,PGM_ShowHide_Return,"") -> Yes | E6: Yes | F6: Yes | G6: Yes | H6: Yes | I6: Yes | J6: Yes | K6: Yes | L6: Yes | M6: Yes | N6: Yes | O6: Yes | Q6: =_xlfn.XLOOKUP(Q5,PGM_ShowHide_Lookup,PGM_ShowHide_Return,"") -> Yes | R6: Yes | S6: Yes | T6: Yes | U6: Yes | V6: Yes | Y6: =_xlfn.XLOOKUP(Y5,PGM_ShowHide_Lookup,PGM_ShowHide_Return,"") -> Yes | Z6: =_xlfn.XLOOKUP(Z5,PGM_ShowHide_Lookup,PGM_ShowHide_Return,"") -> Yes | AA6: =_xlfn.XLOOKUP(AA5,PGM_ShowHide_Lookup,PGM_ShowHide_Return,"") -> Yes
D7: Total Revenue | G7: Total Variable Costs | J7: Return Over Variable Costs | M7: Total Costs | Q7: Return Over Variable Costs per Acre-Inch Applied | T7: Return Over Total Costs | Y7: Break-Even Yield to Cover Total Costs
D8: Total | E8: Operator | F8: Owner | G8: Total | H8: Operator | I8: Owner | J8: Total | K8: Operator | L8: Owner | M8: Total | N8: Operator | O8: Owner | P8: ac-in | Q8: Total | R8: Operator | S8: Owner | T8: Total | U8: Operator | V8: Owner | W8: Price | X8: unit | Y8: Total | Z8: Operator | AA8: Owner
A9: Irrigated Alfalfa | B9: =_xlfn.XLOOKUP(A9,PGM_ShowHide_Lookup,PGM_ShowHide_Return,"") -> Yes | C9: ='Irr Alfalfa'!$A$3 -> Irrigated Alfalfa | D9: ='Irr Alfalfa'!F$11 -> 1440 | E9: ='Irr Alfalfa'!G$11 -> 1440 | F9: ='Irr Alfalfa'!H$11 -> 0 | G9: ='Irr Alfalfa'!F$46 -> 898.7250739 | H9: ='Irr Alfalfa'!G$46 -> 898.7250739 | I9: ='Irr Alfalfa'!H$46 -> 0 | J9: =D9-G9 -> 541.2749261 | K9: =E9-H9 -> 541.2749261 | L9: =F9-I9 -> 0 | M9: ='Irr Alfalfa'!F$61 -> 1178.975074 | N9: ='Irr Alfalfa'!G$61 -> 1178.975074 | O9: ='Irr Alfalfa'!H$61 -> 0 | P9: ='Irr Alfalfa'!B35 -> 24 | Q9: =IF($P9=0,"-",J9/$P9) -> 22.55312192 | R9: =IF($P9=0,"-",K9/$P9) -> 22.55312192 | S9: =IF($P9=0,"-",L9/$P9) -> 0 | T9: =D9-M9 -> 261.0249261 | U9: =E9-N9 -> 261.0249261 | V9: =F9-O9 -> 0 | W9: ='Irr Alfalfa'!$D$9 -> 240 | X9: ='Irr Alfalfa'!$C$9 -> tons | Y9: =IF($W9=0, 0, M9/$W9) -> 4.912396141 | Z9: =IF($W9=0, 0, IF('Irr Alfalfa'!$E$9=0,0,N9/$W9/(1-'Irr Alfalfa'!$E$9))) -> 0 | AA9: =IF($W9=0, 0, IF('Irr Alfalfa'!$E$9=0,0,O9/$W9/('Irr Alfalfa'!$E$9))) -> 0
A10: Irrigated Blackeyed Peas | B10: =_xlfn.XLOOKUP(A10,PGM_ShowHide_Lookup,PGM_ShowHide_Return,"") -> Yes | C10: ='Irr Blackeyes'!$A$3 -> Irrigated Blackeyed Peas | D10: ='Irr Blackeyes'!F$11 -> 629 | E10: ='Irr Blackeyes'!G$11 -> 629 | F10: ='Irr Blackeyes'!H$11 -> 0 | G10: ='Irr Blackeyes'!F$46 -> 289.4251895 | H10: ='Irr Blackeyes'!G$46 -> 289.4251895 | I10: ='Irr Blackeyes'!H$46 -> 0 | J10: =D10-G10 -> 339.5748105 | K10: =E10-H10 -> 339.5748105 | L10: =F10-I10 -> 0 | M10: ='Irr Blackeyes'!F$60 -> 469.6751895 | N10: ='Irr Blackeyes'!G$60 -> 469.6751895 | O10: ='Irr Blackeyes'!H$60 -> 0 | P10: ='Irr Blackeyes'!B39 -> 1 | Q10: =IF($P10=0,"-",J10/$P10) -> 339.5748105 | R10: =IF($P10=0,"-",K10/$P10) -> 339.5748105 | S10: =IF($P10=0,"-",L10/$P10) -> 0 | T10: =D10-M10 -> 159.3248105 | U10: =E10-N10 -> 159.3248105 | V10: =F10-O10 -> 0 | W10: ='Irr Blackeyes'!$D$9 -> 0.34 | X10: ='Irr Blackeyes'!$C$9 -> lbs | Y10: =IF($W10=0, 0, M10/$W10) -> 1381.397616 | Z10: =IF($W10=0, 0, IF('Irr Blackeyes'!$E$9=0,0,N10/$W10/(1-'Irr Blackeyes'!$E$9))) -> 0 | AA10: =IF($W10=0, 0, IF('Irr Blackeyes'!$E$9=0,0,O10/$W10/('Irr Blackeyes'!$E$9))) -> 0
A11: Irrigated Corn | B11: Yes | C11: ='Irr Corn'!$A$3 -> Irrigated Corn | D11: ='Irr Corn'!F$11 -> 1050 | E11: ='Irr Corn'!G$11 -> 1050 | F11: ='Irr Corn'!H$11 -> 0 | G11: ='Irr Corn'!F$45 -> 717.2948327 | H11: ='Irr Corn'!G$45 -> 717.2948327 | I11: ='Irr Corn'!H$45 -> 0 | J11: 332.7051673 | K11: 332.7051673 | L11: 0 | M11: ='Irr Corn'!F$59 -> 952.5448327 | N11: ='Irr Corn'!G$59 -> 952.5448327 | O11: ='Irr Corn'!H$59 -> 0 | P11: ='Irr Corn'!B34 -> 15 | Q11: 22.18034449 | R11: 22.18034449 | S11: 0 | T11: 97.45516734 | U11: 97.45516734 | V11: 0 | W11: ='Irr Corn'!$D$9 -> 5 | X11: ='Irr Corn'!$C$9 -> bu | Y11: =IF($W11=0, 0, M11/$W11) -> 190.5089665 | Z11: =IF($W11=0, 0, IF('Irr Corn'!$E$9=0,0,N11/$W11/(1-'Irr Corn'!$E$9))) -> 0 | AA11: =IF($W11=0, 0, IF('Irr Corn'!$E$9=0,0,O11/$W11/('Irr Corn'!$E$9))) -> 0
A12: Irrigated Corn Silage | B12: Yes | C12: ='Irr Corn Silage'!$A$3 -> Irrigated Corn Silage | D12: ='Irr Corn Silage'!F$11 -> 1350 | E12: ='Irr Corn Silage'!G$11 -> 1350 | F12: ='Irr Corn Silage'!H$11 -> 0 | G12: ='Irr Corn Silage'!F$45 -> 889.3159454 | H12: ='Irr Corn Silage'!G$45 -> 889.3159454 | I12: ='Irr Corn Silage'!H$45 -> 0 | J12: 460.6840546 | K12: 460.6840546 | L12: 0 | M12: ='Irr Corn Silage'!F$59 -> 1094.565945 | N12: ='Irr Corn Silage'!G$59 -> 1094.565945 | O12: ='Irr Corn Silage'!H$59 -> 0 | P12: ='Irr Corn Silage'!B34 -> 15 | Q12: 30.7122703 | R12: 30.7122703 | S12: 0 | T12: 255.4340546 | U12: 255.4340546 | V12: 0 | W12: ='Irr Corn Silage'!$D$9 -> 50 | X12: ='Irr Corn Silage'!$C$9 -> tons | Y12: 21.89131891 | Z12: =IF($W12=0, 0, IF('Irr Corn Silage'!$E$9=0,0,N12/$W12/(1-'Irr Corn Silage'!$E$9))) -> 0 | AA12: =IF($W12=0, 0, IF('Irr Corn Silage'!$E$9=0,0,O12/$W12/('Irr Corn Silage'!$E$9))) -> 0
A13: Irrigated Cotton - Drip | B13: Yes | C13: ='Irr Cotton Drip'!$A$3 -> Irrigated Cotton - Drip | D13: ='Irr Cotton Drip'!F$12 -> 1319.625 | E13: ='Irr Cotton Drip'!G$12 -> 1319.625 | F13: ='Irr Cotton Drip'!H$12 -> 0 | G13: ='Irr Cotton Drip'!F$52 -> 979.7454665 | H13: ='Irr Cotton Drip'!G$52 -> 979.7454665 | I13: ='Irr Cotton Drip'!H$52 -> 0 | J13: =D13-G13 -> 339.8795335 | K13: =E13-H13 -> 339.8795335 | L13: =F13-I13 -> 0 | M13: ='Irr Cotton Drip'!F$66 -> 1227.995466 | N13: ='Irr Cotton Drip'!G$66 -> 1227.995466 | O13: ='Irr Cotton Drip'!H$66 -> 0 | P13: ='Irr Cotton Drip'!B40 -> 2 | Q13: =IF($P13=0,"-",J13/$P13) -> 169.9397668 | R13: =IF($P13=0,"-",K13/$P13) -> 169.9397668 | S13: =IF($P13=0,"-",L13/$P13) -> 0 | T13: =D13-M13 -> 91.62953351 | U13: =E13-N13 -> 91.62953351 | V13: =F13-O13 -> 0 | W13: ='Irr Cotton Drip'!$D$9 -> 0.72 | X13: ='Irr Cotton Drip'!$C$9 -> lbs | Y13: =IF($W13=0, 0, M13/($W13+Cottonseed_Price/2000*'Universal Input Prices'!$C$43/500)) -> 1395.845941 | Z13: =IF($W13=0, 0, IF('Irr Cotton Drip'!$E$9=0,0,N13/($W13+Cottonseed_Price/2000*'Universal Input Prices'!$C$43/500)/(1-'Irr Cotton Drip'!$E$9))) -> 0 | AA13: =IF($W13=0, 0, IF('Irr Cotton Drip'!$E$9=0,0,O13/($W13+Cottonseed_Price/2000*'Universal Input Prices'!$C$43/500)/('Irr Cotton Drip'!$E$9))) -> 0
A14: Irrigated Cotton - Pivot | B14: Yes | C14: ='Irr Cotton Pivot'!$A$3 -> Irrigated Cotton - Pivot | D14: ='Irr Cotton Pivot'!F$12 -> 879.75 | E14: ='Irr Cotton Pivot'!G$12 -> 879.75 | F14: ='Irr Cotton Pivot'!H$12 -> 0 | G14: ='Irr Cotton Pivot'!F$51 -> 667.0305897 | H14: ='Irr Cotton Pivot'!G$51 -> 667.0305897 | I14: ='Irr Cotton Pivot'!H$51 -> 0 | J14: 212.7194103 | K14: 212.7194103 | L14: 0 | M14: ='Irr Cotton Pivot'!F$65 -> 870.2805897 | N14: ='Irr Cotton Pivot'!G$65 -> 870.2805897 | O14: ='Irr Cotton Pivot'!H$65 -> 0 | P14: ='Irr Cotton Pivot'!B40 -> 10 | Q14: 21.27194103 | R14: 21.27194103 | S14: 0 | T14: 9.469410294 | U14: 9.469410294 | V14: 0 | W14: ='Irr Cotton Pivot'!$D$9 -> 0.72 | X14: ='Irr Cotton Pivot'!$C$9 -> lbs | Y14: =IF($W14=0, 0, M14/($W14+Cottonseed_Price/2000*'Universal Input Prices'!$C$43/500)) -> 989.2362486 | Z14: =IF($W14=0, 0, IF('Irr Cotton Pivot'!$E$9=0,0,N14/($W14+Cottonseed_Price/2000*'Universal Input Prices'!$C$43/500)/(1-'Irr Cotton Pivot'!$E$9))) -> 0 | AA14: =IF($W14=0, 0, IF('Irr Cotton Pivot'!$E$9=0,0,O14/($W14+Cottonseed_Price/2000*'Universal Input Prices'!$C$43/500)/('Irr Cotton Pivot'!$E$9))) -> 0
A15: Irrigated Guar | B15: Yes | C15: ='Irr Guar'!$A$3 -> Irrigated Guar | D15: ='Irr Guar'!F$11 -> 720 | E15: ='Irr Guar'!G$11 -> 720 | F15: ='Irr Guar'!H$11 -> 0 | G15: ='Irr Guar'!F$47 -> 195.3060789 | H15: ='Irr Guar'!G$47 -> 195.3060789 | I15: ='Irr Guar'!H$47 -> 0 | J15: =D15-G15 -> 524.6939211 | K15: =E15-H15 -> 524.6939211 | L15: =F15-I15 -> 0 | M15: ='Irr Guar'!F$61 -> 375.5560789 | N15: ='Irr Guar'!G$61 -> 375.5560789 | O15: ='Irr Guar'!H$61 -> 0 | P15: ='Irr Guar'!B36 -> 4 | Q15: =IF($P15=0,"-",J15/$P15) -> 131.1734803 | R15: =IF($P15=0,"-",K15/$P15) -> 131.1734803 | S15: =IF($P15=0,"-",L15/$P15) -> 0 | T15: =D15-M15 -> 344.4439211 | U15: =E15-N15 -> 344.4439211 | V15: =F15-O15 -> 0 | W15: ='Irr Guar'!$D$9 -> 0.6 | X15: ='Irr Guar'!$C$9 -> lb | Y15: =IF($W15=0, 0, M15/$W15) -> 625.9267982 | Z15: =IF($W15=0, 0, IF('Irr Guar'!$E$9=0,0,N15/$W15/(1-'Irr Guar'!$E$9))) -> 0 | AA15: =IF($W15=0, 0, IF('Irr Guar'!$E$9=0,0,O15/$W15/('Irr Guar'!$E$9))) -> 0
A16: Irrigated Peanuts | B16: Yes | C16: ='Irr Peanuts'!$A$3 -> Irrigated Peanuts | D16: ='Irr Peanuts'!F$11 -> 1050 | E16: ='Irr Peanuts'!G$11 -> 1050 | F16: ='Irr Peanuts'!H$11 -> 0 | G16: ='Irr Peanuts'!F$50 -> 874.4849724 | H16: ='Irr Peanuts'!G$50 -> 874.4849724 | I16: ='Irr Peanuts'!H$50 -> 0 | J16: 175.5150276 | K16: 175.5150276 | L16: 0 | M16: ='Irr Peanuts'!F$64 -> 1079.734972 | N16: ='Irr Peanuts'!G$64 -> 1079.734972 | O16: ='Irr Peanuts'!H$64 -> 0 | P16: ='Irr Peanuts'!B39 -> 22 | Q16: 7.977955799 | R16: 7.977955799 | S16: 0 | T16: -29.73497241 | U16: -29.73497241 | V16: 0 | W16: ='Irr Peanuts'!$D$9 -> 600 | X16: ='Irr Peanuts'!$C$9 -> tons | Y16: 1.799558287 | Z16: =IF($W16=0, 0, IF('Irr Peanuts'!$E$9=0,0,N16/$W16/(1-'Irr Peanuts'!$E$9))) -> 0 | AA16: =IF($W16=0, 0, IF('Irr Peanuts'!$E$9=0,0,O16/$W16/('Irr Peanuts'!$E$9))) -> 0
A17: Irrigated Sesame | B17: Yes | C17: ='Irr Sesame'!$A$3 -> Irrigated Sesame | D17: ='Irr Sesame'!F$12 -> 384 | E17: ='Irr Sesame'!G$12 -> 384 | F17: ='Irr Sesame'!H$12 -> 0 | G17: ='Irr Sesame'!F$47 -> 351.8118462 | H17: ='Irr Sesame'!G$47 -> 351.8118462 | I17: ='Irr Sesame'!H$47 -> 0 | J17: =D17-G17 -> 32.18815379 | K17: =E17-H17 -> 32.18815379 | L17: =F17-I17 -> 0 | M17: ='Irr Sesame'!F$61 -> 557.0618462 | N17: ='Irr Sesame'!G$61 -> 557.0618462 | O17: ='Irr Sesame'!H$61 -> 0 | P17: ='Irr Sesame'!B36 -> 11 | Q17: =IF($P17=0,"-",J17/$P17) -> 2.926195799 | R17: =IF($P17=0,"-",K17/$P17) -> 2.926195799 | S17: =IF($P17=0,"-",L17/$P17) -> 0 | T17: =D17-M17 -> -173.0618462 | U17: =E17-N17 -> -173.0618462 | V17: =F17-O17 -> 0 | W17: ='Irr Sesame'!$D$9 -> 0.32 | X17: ='Irr Sesame'!$C$9 -> lbs | Y17: =IF($W17=0, 0, M17/$W17) -> 1740.818269 | Z17: =IF($W17=0, 0, IF('Irr Sesame'!$E$9=0,0,N17/$W17/(1-'Irr Sesame'!$E$9))) -> 0 | AA17: =IF($W17=0, 0, IF('Irr Sesame'!$E$9=0,0,O17/$W17/('Irr Sesame'!$E$9))) -> 0
A18: Irrigated Sorghum | B18: Yes | C18: ='Irr Sorghum'!$A$3 -> Irrigated Sorghum | D18: ='Irr Sorghum'!F$12 -> 387 | E18: ='Irr Sorghum'!G$12 -> 387 | F18: ='Irr Sorghum'!H$12 -> 0 | G18: ='Irr Sorghum'!F$46 -> 384.9460614 | H18: ='Irr Sorghum'!G$46 -> 384.9460614 | I18: ='Irr Sorghum'!H$46 -> 0 | J18: 2.053938596 | K18: 2.053938596 | L18: 0 | M18: ='Irr Sorghum'!F$60 -> 590.1960614 | N18: ='Irr Sorghum'!G$60 -> 590.1960614 | O18: ='Irr Sorghum'!H$60 -> 0 | P18: ='Irr Sorghum'!B35 -> 9 | Q18: 0.2282153995 | R18: 0.2282153995 | S18: 0 | T18: -203.1960614 | U18: -203.1960614 | V18: 0 | W18: ='Irr Sorghum'!$D$9 -> 8.6 | X18: ='Irr Sorghum'!$C$9 -> cwt | Y18: =IF($W18=0, 0, (M18-'Irr Sorghum'!$F$10)/$W18) -> 68.627449 | Z18: =IF($W18=0, 0, IF('Irr Sorghum'!$E$9=0,0,(N18-'Irr Sorghum'!$G$10)/$W18/(1-'Irr Sorghum'!$E$9))) -> 0 | AA18: =IF($W18=0, 0, IF('Irr Sorghum'!$E$9=0,0,(O18-'Irr Sorghum'!$H$10)/$W18/('Irr Sorghum'!$E$9))) -> 0
A19: Irrigated Sorghum Silage | B19: Yes | C19: ='Irr Sorghum Silage'!$A$3 -> Irrigated Sorghum Silage | D19: ='Irr Sorghum Silage'!F$11 -> 1152 | E19: ='Irr Sorghum Silage'!G$11 -> 1152 | F19: ='Irr Sorghum Silage'!H$11 -> 0 | G19: ='Irr Sorghum Silage'!F$45 -> 686.6687425 | H19: ='Irr Sorghum Silage'!G$45 -> 686.6687425 | I19: ='Irr Sorghum Silage'!H$45 -> 0 | J19: 465.3312575 | K19: 465.3312575 | L19: 0 | M19: ='Irr Sorghum Silage'!F$59 -> 891.9187425 | N19: ='Irr Sorghum Silage'!G$59 -> 891.9187425 | O19: ='Irr Sorghum Silage'!H$59 -> 0 | P19: ='Irr Sorghum Silage'!B34 -> 16 | Q19: 29.0832036 | R19: 29.0832036 | S19: 0 | T19: 260.0812575 | U19: 260.0812575 | V19: 0 | W19: ='Irr Sorghum Silage'!$D$9 -> 48 | X19: ='Irr Sorghum Silage'!$C$9 -> tons | Y19: 18.58164047 | Z19: =IF($W19=0, 0, IF('Irr Sorghum Silage'!$E$9=0,0,N19/$W19/(1-'Irr Sorghum Silage'!$E$9))) -> 0 | AA19: =IF($W19=0, 0, IF('Irr Sorghum Silage'!$E$9=0,0,O19/$W19/('Irr Sorghum Silage'!$E$9))) -> 0
A20: Irrigated Peanuts-Organic | B20: Yes | C20: ='Organic Peanuts'!$A$3 -> Irrigated Peanuts-Organic | D20: ='Organic Peanuts'!F$11 -> 1800 | E20: ='Organic Peanuts'!G$11 -> 1800 | F20: ='Organic Peanuts'!H$11 -> 0 | G20: ='Organic Peanuts'!F$47 -> 882.2613996 | H20: ='Organic Peanuts'!G$47 -> 882.2613996 | I20: ='Organic Peanuts'!H$47 -> 0 | J20: 917.7386004 | K20: 917.7386004 | L20: 0 | M20: ='Organic Peanuts'!F$61 -> 1087.5114 | N20: ='Organic Peanuts'!G$61 -> 1087.5114 | O20: ='Organic Peanuts'!H$61 -> 0 | P20: ='Organic Peanuts'!B36 -> 22 | Q20: 41.71539093 | R20: 41.71539093 | S20: 0 | T20: 712.4886004 | U20: 712.4886004 | V20: 0 | W20: ='Organic Peanuts'!$D$9 -> 1200 | X20: ='Organic Peanuts'!$C$9 -> ton | Y20: 0.9062594997 | Z20: =IF($W20=0, 0, IF('Organic Peanuts'!$E$9=0,0,N20/$W20/(1-'Organic Peanuts'!$E$9))) -> 0 | AA20: =IF($W20=0, 0, IF('Organic Peanuts'!$E$9=0,0,O20/$W20/('Organic Peanuts'!$E$9))) -> 0
A21: Irrigated Sunflowers-Confectionary | B21: Yes | C21: ='Irr Sunflowers-Confection'!$A$3 -> Irrigated Sunflowers-Confectionary | D21: ='Irr Sunflowers-Confection'!F$12 -> 600.04 | E21: ='Irr Sunflowers-Confection'!G$12 -> 600.04 | F21: ='Irr Sunflowers-Confection'!H$12 -> 0 | G21: ='Irr Sunflowers-Confection'!F$47 -> 348.8544112 | H21: ='Irr Sunflowers-Confection'!G$47 -> 348.8544112 | I21: ='Irr Sunflowers-Confection'!H$47 -> 0 | J21: 251.1855888 | K21: 251.1855888 | L21: 0 | M21: ='Irr Sunflowers-Confection'!F$61 -> 554.1044112 | N21: ='Irr Sunflowers-Confection'!G$61 -> 554.1044112 | O21: ='Irr Sunflowers-Confection'!H$61 -> 0 | P21: ='Irr Sunflowers-Confection'!B36 -> 8 | Q21: 31.39819859 | R21: 31.39819859 | S21: 0 | T21: 45.93558876 | U21: 45.93558876 | V21: 0 | W21: ='Irr Sunflowers-Confection'!$D$9 -> 0.30002 | X21: ='Irr Sunflowers-Confection'!$C$9 -> lbs | Y21: 1846.891578 | Z21: =IF($W21=0, 0, IF('Irr Sunflowers-Confection'!$E$9=0,0,N21/$W21/(1-'Irr Sunflowers-Confection'!$E$9))) -> 0 | AA21: =IF($W21=0, 0, IF('Irr Sunflowers-Confection'!$E$9=0,0,O21/$W21/('Irr Sunflowers-Confection'!$E$9))) -> 0
A22: Irrigated Sunflowers-Oilseed | B22: Yes | C22: ='Irr Sunflowers-Oilseed'!$A$3 -> Irrigated Sunflowers-Oilseed | D22: ='Irr Sunflowers-Oilseed'!F$11 -> 400 | E22: ='Irr Sunflowers-Oilseed'!G$11 -> 400 | F22: ='Irr Sunflowers-Oilseed'!H$11 -> 0 | G22: ='Irr Sunflowers-Oilseed'!F$46 -> 331.4865112 | H22: ='Irr Sunflowers-Oilseed'!G$46 -> 331.4865112 | I22: ='Irr Sunflowers-Oilseed'!H$46 -> 0 | J22: 68.51348876 | K22: 68.51348876 | L22: 0 | M22: ='Irr Sunflowers-Oilseed'!F$60 -> 536.7365112 | N22: ='Irr Sunflowers-Oilseed'!G$60 -> 536.7365112 | O22: ='Irr Sunflowers-Oilseed'!H$60 -> 0 | P22: ='Irr Sunflowers-Oilseed'!B35 -> 8 | Q22: 8.564186095 | R22: 8.564186095 | S22: 0 | T22: -136.7365112 | U22: -136.7365112 | V22: 0 | W22: ='Irr Sunflowers-Oilseed'!$D$9 -> 0.2 | X22: ='Irr Sunflowers-Oilseed'!$C$9 -> lbs | Y22: 2683.682556 | Z22: =IF($W22=0, 0, IF('Irr Sunflowers-Oilseed'!$E$9=0,0,N22/$W22/(1-'Irr Sunflowers-Oilseed'!$E$9))) -> 0 | AA22: =IF($W22=0, 0, IF('Irr Sunflowers-Oilseed'!$E$9=0,0,O22/$W22/('Irr Sunflowers-Oilseed'!$E$9))) -> 0
A23: Irrigated Wheat | B23: Yes | C23: ='Irr Wheat'!$A$3 -> Irrigated Wheat | D23: ='Irr Wheat'!F$12 -> 493 | E23: ='Irr Wheat'!G$12 -> 493 | F23: ='Irr Wheat'!H$12 -> 0 | G23: ='Irr Wheat'!F$45 -> 413.0665636 | H23: ='Irr Wheat'!G$45 -> 413.0665636 | I23: ='Irr Wheat'!H$45 -> 0 | J23: 79.93343642 | K23: 79.93343642 | L23: 0 | M23: ='Irr Wheat'!F$59 -> 618.3165636 | N23: ='Irr Wheat'!G$59 -> 618.3165636 | O23: ='Irr Wheat'!H$59 -> 0 | P23: ='Irr Wheat'!B34 -> 14 | Q23: 5.709531173 | R23: 5.709531173 | S23: 0 | T23: -125.3165636 | U23: -125.3165636 | V23: 0 | W23: ='Irr Wheat'!$D$9 -> 8.5 | X23: ='Irr Wheat'!$C$9 -> bu | Y23: =IF($W23=0, 0, (M23-'Irr Wheat'!$F$10)/$W23) -> 64.74312513 | Z23: =IF($W23=0, 0, IF('Irr Wheat'!$E$9=0,0,(N23-'Irr Wheat'!$G$10)/$W23/(1-'Irr Wheat'!$E$9))) -> 0 | AA23: =IF($W23=0, 0, IF('Irr Wheat'!$E$9=0,0,(O23-'Irr Wheat'!$H$10)/$W23/('Irr Wheat'!$E$9))) -> 0
A24: Dryland Cotton - Organic | B24: Yes | C24: ='Dry Cotton Organic'!$A$3 -> Dryland Cotton - Organic | D24: ='Dry Cotton Organic'!F$12 -> 824.25 | E24: ='Dry Cotton Organic'!G$12 -> 824.25 | F24: ='Dry Cotton Organic'!H$12 -> 0 | G24: ='Dry Cotton Organic'!F$45 -> 376.8788857 | H24: ='Dry Cotton Organic'!G$45 -> 376.8788857 | I24: ='Dry Cotton Organic'!H$45 -> 0 | J24: =D24-G24 -> 447.3711143 | K24: =E24-H24 -> 447.3711143 | L24: =F24-I24 -> 0 | M24: ='Dry Cotton Organic'!F$57 -> 477.1288857 | N24: ='Dry Cotton Organic'!G$57 -> 477.1288857 | O24: ='Dry Cotton Organic'!H$57 -> 0 | T24: =D24-M24 -> 347.1211143 | U24: =E24-N24 -> 347.1211143 | V24: =F24-O24 -> 0 | W24: ='Dry Cotton Organic'!$D$9 -> 2 | X24: ='Dry Cotton Organic'!$C$9 -> lbs | Y24: =IF($W24=0, 0, M24/($W24+Cottonseed_Price/2000*'Universal Input Prices'!$C$43/500)) -> 220.9185719 | Z24: =IF($W24=0, 0, IF('Dry Cotton Organic'!$E$9=0,0,N24/($W24+Cottonseed_Price/2000*'Universal Input Prices'!$C$43/500)/(1-'Dry Cotton Organic'!$E$9))) -> 0 | AA24: =IF($W24=0, 0, IF('Dry Cotton Organic'!$E$9=0,0,O24/($W24+Cottonseed_Price/2000*'Universal Input Prices'!$C$43/500)/('Dry Cotton Organic'!$E$9))) -> 0
A25: Dryland Cotton - Herbicide Tolerant | B25: Yes | C25: ='Dry Cotton HT'!$A$3 -> Dryland Cotton - Herbicide Tolerant | D25: ='Dry Cotton HT'!F$12 -> 351.9 | E25: ='Dry Cotton HT'!G$12 -> 351.9 | F25: ='Dry Cotton HT'!H$12 -> 0 | G25: ='Dry Cotton HT'!F$45 -> 274.3617903 | H25: ='Dry Cotton HT'!G$45 -> 274.3617903 | I25: ='Dry Cotton HT'!H$45 -> 0 | J25: 77.53820967 | K25: 77.53820967 | L25: 0 | M25: ='Dry Cotton HT'!F$57 -> 374.6117903 | N25: ='Dry Cotton HT'!G$57 -> 374.6117903 | O25: ='Dry Cotton HT'!H$57 -> 0 | T25: -22.71179033 | U25: -22.71179033 | V25: 0 | W25: ='Dry Cotton HT'!$D$9 -> 0.72 | X25: ='Dry Cotton HT'!$C$9 -> lbs | Y25: =IF($W25=0, 0, M25/($W25+Cottonseed_Price/2000*'Universal Input Prices'!$C$43/500)) -> 425.8161868 | Z25: =IF($W25=0, 0, IF('Dry Cotton HT'!$E$9=0,0,N25/($W25+Cottonseed_Price/2000*'Universal Input Prices'!$C$43/500)/(1-'Dry Cotton HT'!$E$9))) -> 0 | AA25: =IF($W25=0, 0, IF('Dry Cotton HT'!$E$9=0,0,O25/($W25+Cottonseed_Price/2000*'Universal Input Prices'!$C$43/500)/('Dry Cotton HT'!$E$9))) -> 0
A26: Dryland Guar | B26: Yes | C26: ='Dry Guar'!$A$3 -> Dryland Guar | D26: ='Dry Guar'!F$11 -> 360 | E26: ='Dry Guar'!G$11 -> 360 | F26: ='Dry Guar'!H$11 -> 0 | G26: ='Dry Guar'!F$41 -> 93.52234046 | H26: ='Dry Guar'!G$41 -> 93.52234046 | I26: ='Dry Guar'!H$41 -> 0 | J26: 266.4776595 | K26: 266.4776595 | L26: 0 | M26: ='Dry Guar'!F$53 -> 193.7723405 | N26: ='Dry Guar'!G$53 -> 193.7723405 | O26: ='Dry Guar'!H$53 -> 0 | T26: 166.2276595 | U26: 166.2276595 | V26: 0 | W26: ='Dry Guar'!$D$9 -> 0.6 | X26: ='Dry Guar'!$C$9 -> lbs | Y26: =IF($W26=0, 0, M26/$W26) -> 322.9539008 | Z26: =IF($W26=0, 0, IF('Dry Sesame'!$E$9=0,0,N26/$W26/(1-'Dry Sesame'!$E$9))) -> 0 | AA26: =IF($W26=0, 0, IF('Dry Sesame'!$E$9=0,0,O26/$W26/('Dry Sesame'!$E$9))) -> 0
A27: Dryland Sesame | B27: Yes | C27: ='Dry Sesame'!$A$3 -> Dryland Sesame | D27: ='Dry Sesame'!F$11 -> 168 | E27: ='Dry Sesame'!G$11 -> 168 | F27: ='Dry Sesame'!H$11 -> 0 | G27: ='Dry Sesame'!F$40 -> 128.1341016 | H27: ='Dry Sesame'!G$40 -> 128.1341016 | I27: ='Dry Sesame'!H$40 -> 0 | J27: =D27-G27 -> 39.86589838 | K27: =E27-H27 -> 39.86589838 | L27: =F27-I27 -> 0 | M27: ='Dry Sesame'!F$52 -> 228.3841016 | N27: ='Dry Sesame'!G$52 -> 228.3841016 | O27: ='Dry Sesame'!H$52 -> 0 | T27: =D27-M27 -> -60.38410162 | U27: =E27-N27 -> -60.38410162 | V27: =F27-O27 -> 0 | W27: ='Dry Guar'!$D$9 -> 0.6 | X27: ='Dry Sesame'!$C$9 -> lbs | Y27: =IF($W27=0, 0, M27/$W27) -> 380.6401694 | Z27: =IF($W27=0, 0, IF('Dry Guar'!$E$9=0,0,N27/$W27/(1-'Dry Guar'!$E$9))) -> 0 | AA27: =IF($W27=0, 0, IF('Dry Guar'!$E$9=0,0,O27/$W27/('Dry Guar'!$E$9))) -> 0
A28: Dryland Sorghum | B28: Yes | C28: ='Dry Sorghum'!$A$3 -> Dryland Sorghum | D28: ='Dry Sorghum'!F$12 -> 172 | E28: ='Dry Sorghum'!G$12 -> 172 | F28: ='Dry Sorghum'!H$12 -> 0 | G28: ='Dry Sorghum'!F$41 -> 141.3951426 | H28: ='Dry Sorghum'!G$41 -> 141.3951426 | I28: ='Dry Sorghum'!H$41 -> 0 | J28: 30.60485737 | K28: 30.60485737 | L28: 0 | M28: ='Dry Sorghum'!F$53 -> 241.6451426 | N28: ='Dry Sorghum'!G$53 -> 241.6451426 | O28: ='Dry Sorghum'!H$53 -> 0 | T28: -69.64514263 | U28: -69.64514263 | V28: 0 | W28: ='Dry Sorghum'!$D$9 -> 8.6 | X28: ='Dry Sorghum'!$C$9 -> cwt | Y28: =IF($W28=0, 0, (M28-'Dry Sorghum'!$F$10)/$W28) -> 28.0982724 | Z28: =IF($W28=0, 0, IF('Dry Sorghum'!$E$9=0,0,(N28-'Dry Sorghum'!$G$10)/$W28/(1-'Dry Sorghum'!$E$9))) -> 0 | AA28: =IF($W28=0, 0, IF('Dry Sorghum'!$E$9=0,0,(O28-'Dry Sorghum'!$H$10)/$W28/('Dry Sorghum'!$E$9))) -> 0
A29: Dryland Sunflowers-Oilseed | B29: Yes | C29: ='Dry Sunflowers-Oilseed'!$A$3 -> Dryland Sunflowers-Oilseed | D29: ='Dry Sunflowers-Oilseed'!F$11 -> 200 | E29: ='Dry Sunflowers-Oilseed'!G$11 -> 200 | F29: ='Dry Sunflowers-Oilseed'!H$11 -> 0 | G29: ='Dry Sunflowers-Oilseed'!F$40 -> 156.8210395 | H29: ='Dry Sunflowers-Oilseed'!G$40 -> 156.8210395 | I29: ='Dry Sunflowers-Oilseed'!H$40 -> 0 | J29: 43.1789605 | K29: 43.1789605 | L29: 0 | M29: ='Dry Sunflowers-Oilseed'!F$52 -> 257.0710395 | N29: ='Dry Sunflowers-Oilseed'!G$52 -> 257.0710395 | O29: ='Dry Sunflowers-Oilseed'!H$52 -> 0 | T29: -57.0710395 | U29: -57.0710395 | V29: 0 | W29: ='Dry Sunflowers-Oilseed'!$D$9 -> 0.2 | X29: ='Dry Sunflowers-Oilseed'!$C$9 -> lbs | Y29: 1285.355197 | Z29: =IF($W29=0, 0, IF('Dry Sunflowers-Oilseed'!$E$9=0,0,N29/$W29/(1-'Dry Sunflowers-Oilseed'!$E$9))) -> 0 | AA29: =IF($W29=0, 0, IF('Dry Sunflowers-Oilseed'!$E$9=0,0,O29/$W29/('Dry Sunflowers-Oilseed'!$E$9))) -> 0
A30: Dryland Wheat | B30: Yes | C30: ='Dry Wheat'!$A$3 -> Dryland Wheat | D30: ='Dry Wheat'!F$12 -> 187 | E30: ='Dry Wheat'!G$12 -> 187 | F30: ='Dry Wheat'!H$12 -> 0 | G30: ='Dry Wheat'!F$40 -> 135.9676016 | H30: ='Dry Wheat'!G$40 -> 135.9676016 | I30: ='Dry Wheat'!H$40 -> 0 | J30: 51.03239837 | K30: 51.03239837 | L30: 0 | M30: ='Dry Wheat'!F$52 -> 236.2176016 | N30: ='Dry Wheat'!G$52 -> 236.2176016 | O30: ='Dry Wheat'!H$52 -> 0 | T30: -49.21760163 | U30: -49.21760163 | V30: 0 | W30: ='Dry Wheat'!$D$9 -> 8.5 | X30: ='Dry Wheat'!$C$9 -> bu | Y30: =IF($W30=0, 0, (M30-'Dry Wheat'!$F$10)/$W30) -> 23.79030607 | Z30: =IF($W30=0, 0, IF('Dry Wheat'!$E$9=0,0,(N30-'Dry Wheat'!$G$10)/$W30/(1-'Dry Wheat'!$E$9))) -> 0 | AA30: =IF($W30=0, 0, IF('Dry Wheat'!$E$9=0,0,(O30-'Dry Wheat'!$H$10)/$W30/('Dry Wheat'!$E$9))) -> 0

Sheet Whole Farm Scenario
D2: Whole Farm Comparative Profitability, Irrigation Capacity and Risk Analysis
D4: Farm Name | E4: ABC Farm
D5: Acres covered by irrigation system | E5: 120
D6: Total cropland acres | E6: 160
D7: Irrigation capacity in GPM | E7: 350
D8: Total number of days to irrigate | E8: 100
D9: Total acre inches available | E9: =E8*24*60*E7/27154 -> 1856.080136 | G9: =-E9*0.05 -> -92.80400678 | H9: =E9*0.05 -> 92.80400678
D10: Acre-inches per irrigated acre | E10: =IF(E5>0, E9/E5, 0) -> 15.46733446
A12: PARAMETER? | B12: DISPLAY? | P12: Total | Q12: Operator | R12: Owner | S12: Total | T12: Operator | U12: Owner | V12: Total | W12: Operator | X12: Owner
P13: =_xlfn.XLOOKUP(P12,PGM_ShowHide_Lookup,PGM_ShowHide_Return,"") -> Yes | Q13: Yes | R13: Yes | S13: Yes | T13: Yes | U13: Yes | V13: Yes | W13: Yes | X13: Yes
H14: Comparative Farm Scenarios
D15: Crop | E15: APH | F15: Units | G15: Insurance Level | H15: 1 | I15: 2 | J15: 3 | K15: 4 | L15: 5 | M15: 6 | N15: Irrigation | O15: Inches | P15: Total Return | Q15: Operator Return | R15: Owner Return | S15: Total Pre-Harvest | T15: Operator Pre-Harvest | U15: Owner Pre-Harvest | V15: Insurance Price | W15: Owner Share | X15: Operator Share
D16: Irrigated Cotton - Pivot | E16: 975 | F16: =IF($D16="", "", VLOOKUP($D16, $D$62:$O$81,11)) -> lbs | G16: 0.65 | H16: 120 | N16: =IF($D16="", "", IF(VLOOKUP(D16, $D$62:$N$81,9)>0,TRUE, FALSE)) -> TRUE | O16: =IF($D16="", 0, VLOOKUP(D16, $D$62:$N$81,9)) -> 10 | P16: =IF($D16="", 0, VLOOKUP($D16, $D$62:$O$81,2)) -> 212.7194103 | Q16: =IF($D16="", 0, VLOOKUP($D16, $D$62:$O$81,4)) -> 212.7194103 | R16: =IF($D16="", 0, VLOOKUP($D16, $D$62:$O$81,5)) -> 0 | S16: =IF($D16="", 0, VLOOKUP($D16, $D$62:$O$81,6)) -> 455.1555897 | T16: =IF($D16="", 0, VLOOKUP($D16, $D$62:$O$81,7)) -> 455.1555897 | U16: =IF($D16="", 0, VLOOKUP($D16, $D$62:$O$81,8)) -> 0 | V16: =IF($D16="", 0, VLOOKUP($D16, $D$62:$O$81,10)) -> 0.94307 | W16: =IF($D16="", 0, VLOOKUP($D16, $D$62:$O$81,12)) -> 0 | X16: =1-W16 -> 1
D17: Dryland Cotton - Herbicide Tolerant | E17: 300 | F17: lbs | G17: 0.65 | H17: 40 | N17: FALSE | O17: 0 | P17: 77.53820967 | Q17: 77.53820967 | R17: 0 | S17: 187.028457 | T17: 187.028457 | U17: 0 | V17: =IF($D17="", 0, VLOOKUP($D17, $D$62:$O$81,10)) -> 0.94307 | W17: 0 | X17: =1-W17 -> 1
D18: Irrigated Sorghum | E18: 56 | F18: cwt | G18: 0.65 | I18: 120 | N18: TRUE | O18: 9 | P18: 2.053938596 | Q18: 2.053938596 | R18: 0 | S18: 357.9460614 | T18: 357.9460614 | U18: 0 | V18: 7.964285714 | W18: 0 | X18: 1
D19: Dryland Sorghum | E19: 21 | F19: cwt | G19: 0.65 | I19: 40 | N19: FALSE | O19: 0 | P19: 30.60485737 | Q19: 30.60485737 | R19: 0 | S19: 119.3951426 | T19: 119.3951426 | U19: 0 | V19: 7.964285714 | W19: 0 | X19: 1
D20: Irrigated Corn Silage | F20: tons | N20: TRUE | O20: 15 | P20: 460.6840546 | Q20: 460.6840546 | R20: 0 | S20: 700.3159454 | T20: 700.3159454 | U20: 0 | V20: 0 | W20: 0 | X20: 1
O21: 0 | P21: 0 | Q21: 0 | R21: 0 | S21: 0 | T21: 0 | U21: 0 | V21: 0 | W21: 0 | X21: 1
O22: 0 | P22: 0 | Q22: 0 | R22: 0 | S22: 0 | T22: 0 | U22: 0 | V22: 0 | W22: 0 | X22: 1
O23: 0 | P23: 0 | Q23: 0 | R23: 0 | S23: 0 | T23: 0 | U23: 0 | V23: 0 | W23: 0 | X23: 1
D25: Acreage Check
D26: Irrigated | H26: =SUMIF($N$16:$N$23, TRUE, H$16:H$23) -> 120 | I26: 120 | J26: 0 | K26: 0 | L26: 0 | M26: 0
D27: Dryland | H27: =SUMIF($N$16:$N$23, FALSE, H$16:H$23) -> 40 | I27: 40 | J27: 0 | K27: 0 | L27: 0 | M27: 0
D28: Total | H28: =SUM(H$16:H$23) -> 160 | I28: 160 | J28: 0 | K28: 0 | L28: 0 | M28: 0
D29: Irrigation Check
D30: Total acre inches used | H30: =SUM(H16:H23*$O$16:$O$23) -> 1200 | I30: =SUM(I16:I23*$O$16:$O$23) -> 1080 | J30: =SUM(J16:J23*$O$16:$O$23) -> 0 | K30: =SUM(K16:K23*$O$16:$O$23) -> 0 | L30: =SUM(L16:L23*$O$16:$O$23) -> 0 | M30: =SUM(M16:M23*$O$16:$O$23) -> 0
D31: Irrigation capacity check | H31: =$E$9-H30 -> 656.0801355 | I31: 776.0801355 | J31: 1856.080136 | K31: 1856.080136 | L31: 1856.080136 | M31: 1856.080136
D32: Percent irrigation capacity | H32: =IF($E$9=0, 0, H30/$E$9) -> 0.6465238095 | I32: 0.5818714286 | J32: 0 | K32: 0 | L32: 0 | M32: 0
D34: Profitability - Return over direct expenses
A35: Total | B35: =_xlfn.XLOOKUP(A35,PGM_ShowHide_Lookup,PGM_ShowHide_Return,"") -> Yes | D35: Total | H35: =SUM(H$16:H$23*$P$16:$P$23) -> 28627.85762 | I35: =SUM(I$16:I$23*$P$16:$P$23) -> 1470.666926 | J35: =SUM(J$16:J$23*$P$16:$P$23) -> 0 | K35: =SUM(K$16:K$23*$P$16:$P$23) -> 0 | L35: =SUM(L$16:L$23*$P$16:$P$23) -> 0 | M35: =SUM(M$16:M$23*$P$16:$P$23) -> 0
A36: Operator | B36: Yes | D36: Operator | H36: =SUM(H$16:H$23*$Q$16:$Q$23) -> 28627.85762 | I36: =SUM(I$16:I$23*$Q$16:$Q$23) -> 1470.666926 | J36: =SUM(J$16:J$23*$Q$16:$Q$23) -> 0 | K36: =SUM(K$16:K$23*$Q$16:$Q$23) -> 0 | L36: =SUM(L$16:L$23*$Q$16:$Q$23) -> 0 | M36: =SUM(M$16:M$23*$Q$16:$Q$23) -> 0
A37: Owner | B37: =_xlfn.XLOOKUP(A37,PGM_ShowHide_Lookup,PGM_ShowHide_Return,"") -> Yes | D37: Owner | H37: =SUM(H$16:H$23*$R$16:$R$23) -> 0 | I37: =SUM(I$16:I$23*$R$16:$R$23) -> 0 | J37: =SUM(J$16:J$23*$R$16:$R$23) -> 0 | K37: =SUM(K$16:K$23*$R$16:$R$23) -> 0 | L37: =SUM(L$16:L$23*$R$16:$R$23) -> 0 | M37: =SUM(M$16:M$23*$R$16:$R$23) -> 0
D39: Financial Risk
A40: Total | B40: =_xlfn.XLOOKUP(A40,PGM_ShowHide_Lookup,PGM_ShowHide_Return,"") -> Yes | D40: Total
A41: Total | B41: =_xlfn.XLOOKUP(A41,PGM_ShowHide_Lookup,PGM_ShowHide_Return,"") -> Yes | D41: Pre-Harvest Costs | H41: =SUM(H$16:H$23*$S$16:$S$23) -> 62099.80904 | I41: =SUM(I$16:I$23*$S$16:$S$23) -> 47729.33307 | J41: =SUM(J$16:J$23*$S$16:$S$23) -> 0 | K41: =SUM(K$16:K$23*$S$16:$S$23) -> 0 | L41: =SUM(L$16:L$23*$S$16:$S$23) -> 0 | M41: =SUM(M$16:M$23*$S$16:$S$23) -> 0
A42: Total | B42: Yes | D42: Insurance Guarantee | H42: =SUM($E$16:$E$23*$G$16:$G$23*H$16:H$23*$V$16:$V$23) -> 79076.4195 | I42: =SUM($E$16:$E$23*$G$16:$G$23*I$16:I$23*$V$16:$V$23) -> 39136.5 | J42: =SUM($E$16:$E$23*$G$16:$G$23*J$16:J$23*$V$16:$V$23) -> 0 | K42: =SUM($E$16:$E$23*$G$16:$G$23*K$16:K$23*$V$16:$V$23) -> 0 | L42: =SUM($E$16:$E$23*$G$16:$G$23*L$16:L$23*$V$16:$V$23) -> 0 | M42: =SUM($E$16:$E$23*$G$16:$G$23*M$16:M$23*$V$16:$V$23) -> 0
A43: Total | B43: Yes | D43: Insurance Coverage Ratio | H43: =IF(H41>0, H42/H41, 0) -> 1.27337621 | I43: 0.8199674598 | J43: 0 | K43: 0 | L43: 0 | M43: 0
A44: Operator | B44: Yes | D44: Operator
A45: Operator | B45: Yes | D45: Pre-Harvest Costs | H45: =SUM(H$16:H$23*$T$16:$T$23) -> 62099.80904 | I45: =SUM(I$16:I$23*$T$16:$T$23) -> 47729.33307 | J45: =SUM(J$16:J$23*$T$16:$T$23) -> 0 | K45: =SUM(K$16:K$23*$T$16:$T$23) -> 0 | L45: =SUM(L$16:L$23*$T$16:$T$23) -> 0 | M45: =SUM(M$16:M$23*$T$16:$T$23) -> 0
A46: Operator | B46: Yes | D46: Insurance Guarantee | H46: =SUM($E$16:$E$23*$G$16:$G$23*H$16:H$23*$V$16:$V$23*$X$16:$X$23) -> 79076.4195 | I46: =SUM($E$16:$E$23*$G$16:$G$23*I$16:I$23*$V$16:$V$23*$X$16:$X$23) -> 39136.5 | J46: =SUM($E$16:$E$23*$G$16:$G$23*J$16:J$23*$V$16:$V$23*$X$16:$X$23) -> 0 | K46: =SUM($E$16:$E$23*$G$16:$G$23*K$16:K$23*$V$16:$V$23*$X$16:$X$23) -> 0 | L46: =SUM($E$16:$E$23*$G$16:$G$23*L$16:L$23*$V$16:$V$23*$X$16:$X$23) -> 0 | M46: =SUM($E$16:$E$23*$G$16:$G$23*M$16:M$23*$V$16:$V$23*$X$16:$X$23) -> 0
A47: Operator | B47: Yes | D47: Insurance Coverage Ratio | H47: =IF(H45>0, H46/H45, 0) -> 1.27337621 | I47: 0.8199674598 | J47: 0 | K47: 0 | L47: 0 | M47: 0
A48: Owner | B48: =_xlfn.XLOOKUP(A48,PGM_ShowHide_Lookup,PGM_ShowHide_Return,"") -> Yes | D48: Owner
A49: Owner | B49: =_xlfn.XLOOKUP(A49,PGM_ShowHide_Lookup,PGM_ShowHide_Return,"") -> Yes | D49: Pre-Harvest Costs | H49: =SUM(H$16:H$23*$U$16:$U$23) -> 0 | I49: =SUM(I$16:I$23*$U$16:$U$23) -> 0 | J49: =SUM(J$16:J$23*$U$16:$U$23) -> 0 | K49: =SUM(K$16:K$23*$U$16:$U$23) -> 0 | L49: =SUM(L$16:L$23*$U$16:$U$23) -> 0 | M49: =SUM(M$16:M$23*$U$16:$U$23) -> 0
A50: Owner | B50: Yes | D50: Insurance Guarantee | H50: =SUM($E$16:$E$23*$G$16:$G$23*H$16:H$23*$V$16:$V$23*$W$16:$W$23) -> 0 | I50: =SUM($E$16:$E$23*$G$16:$G$23*I$16:I$23*$V$16:$V$23*$W$16:$W$23) -> 0 | J50: =SUM($E$16:$E$23*$G$16:$G$23*J$16:J$23*$V$16:$V$23*$W$16:$W$23) -> 0 | K50: =SUM($E$16:$E$23*$G$16:$G$23*K$16:K$23*$V$16:$V$23*$W$16:$W$23) -> 0 | L50: =SUM($E$16:$E$23*$G$16:$G$23*L$16:L$23*$V$16:$V$23*$W$16:$W$23) -> 0 | M50: =SUM($E$16:$E$23*$G$16:$G$23*M$16:M$23*$V$16:$V$23*$W$16:$W$23) -> 0
A51: Owner | B51: Yes | D51: Insurance Coverage Ratio | H51: =IF(H49>0, H50/H49, 0) -> 0 | I51: 0 | J51: 0 | K51: 0 | L51: 0 | M51: 0
G53: 0.5
G54: 0.55
G55: 0.6
G56: 0.65
G57: 0.7
G58: 0.75
G59: 0.8
G60: 0.85
E61: Total Return Over Direct | G61: Operator Return Over Direct | H61: Owner Return Over Direct | I61: Total Pre-Harvest Expense | J61: Operator Pre-Harvest Expense | K61: Owner Pre-Harvest Expense | L61: Inches of Water | M61: Insurance Price | N61: Unit | O61: Owner Share of Production
A62: Dryland Cotton - Organic | B62: =_xlfn.XLOOKUP(A62,PGM_ShowHide_Lookup,PGM_ShowHide_Return,"") -> Yes | D62: ='Dry Cotton Organic'!$A$3 -> Dryland Cotton - Organic | E62: ='Comparative Returns'!J24 -> 447.3711143 | G62: ='Comparative Returns'!K24 -> 447.3711143 | H62: ='Comparative Returns'!L24 -> 0 | I62: ='Dry Cotton Organic'!F45-'Dry Cotton Organic'!F27-'Dry Cotton Organic'!F28-'Dry Cotton Organic'!F29 -> 304.0558857 | J62: ='Dry Cotton Organic'!G45-'Dry Cotton Organic'!G27-'Dry Cotton Organic'!G28-'Dry Cotton Organic'!G29 -> 304.0558857 | K62: ='Dry Cotton Organic'!H45-'Dry Cotton Organic'!H27-'Dry Cotton Organic'!H28-'Dry Cotton Organic'!H29 -> 0 | L62: 0 | M62: =0.78+(0.115*1.418) -> 0.94307 | N62: ='Dry Cotton Organic'!$C$9 -> lbs | O62: ='Dry Cotton Organic'!E9 -> 0
A63: Dryland Cotton - Herbicide Tolerant | B63: =_xlfn.XLOOKUP(A63,PGM_ShowHide_Lookup,PGM_ShowHide_Return,"") -> Yes | D63: ='Dry Cotton HT'!$A$3 -> Dryland Cotton - Herbicide Tolerant | E63: ='Comparative Returns'!J25 -> 77.53820967 | G63: ='Comparative Returns'!K25 -> 77.53820967 | H63: ='Comparative Returns'!L25 -> 0 | I63: ='Dry Cotton HT'!F45-'Dry Cotton HT'!F27-'Dry Cotton HT'!F28-'Dry Cotton HT'!F29 -> 187.028457 | J63: ='Dry Cotton HT'!G45-'Dry Cotton HT'!G27-'Dry Cotton HT'!G28-'Dry Cotton HT'!G29 -> 187.028457 | K63: ='Dry Cotton HT'!H45-'Dry Cotton HT'!H27-'Dry Cotton HT'!H28-'Dry Cotton HT'!H29 -> 0 | L63: 0 | M63: =0.78+(0.115*1.418) -> 0.94307 | N63: ='Dry Cotton HT'!$C$9 -> lbs | O63: ='Dry Cotton HT'!E9 -> 0
A64: Dryland Sesame | B64: Yes | D64: ='Dry Sesame'!$A$3 -> Dryland Sesame | E64: ='Comparative Returns'!J27 -> 39.86589838 | G64: ='Comparative Returns'!K27 -> 39.86589838 | H64: ='Comparative Returns'!L27 -> 0 | I64: ='Dry Sesame'!F40-'Dry Sesame'!F23-'Dry Sesame'!F24 -> 102.4141016 | J64: ='Dry Sesame'!G40-'Dry Sesame'!G23-'Dry Sesame'!G24 -> 102.4141016 | K64: ='Dry Sesame'!H40-'Dry Sesame'!H23-'Dry Sesame'!H24 -> 0 | L64: 0 | M64: =Sesame_NI_Price -> 0.28 | N64: ='Dry Sesame'!$C$9 -> lbs | O64: ='Dry Sesame'!E9 -> 0
A65: Dryland Sorghum | B65: Yes | D65: ='Dry Sorghum'!$A$3 -> Dryland Sorghum | E65: ='Comparative Returns'!J28 -> 30.60485737 | G65: ='Comparative Returns'!K28 -> 30.60485737 | H65: ='Comparative Returns'!L28 -> 0 | I65: ='Dry Sorghum'!F41-'Dry Sorghum'!F24-'Dry Sorghum'!F25 -> 119.3951426 | J65: ='Dry Sorghum'!G41-'Dry Sorghum'!G24-'Dry Sorghum'!G25 -> 119.3951426 | K65: ='Dry Sorghum'!H41-'Dry Sorghum'!H24-'Dry Sorghum'!H25 -> 0 | L65: 0 | M65: =4.46/56*100 -> 7.964285714 | N65: ='Dry Sorghum'!$C$9 -> cwt | O65: ='Dry Sorghum'!E9 -> 0
A66: Dryland Sunflowers-Oilseed | B66: Yes | D66: ='Dry Sunflowers-Oilseed'!$A$3 -> Dryland Sunflowers-Oilseed | E66: ='Comparative Returns'!J29 -> 43.1789605 | G66: ='Comparative Returns'!K29 -> 43.1789605 | H66: ='Comparative Returns'!L29 -> 0 | I66: ='Dry Sunflowers-Oilseed'!F40-'Dry Sunflowers-Oilseed'!F23-'Dry Sunflowers-Oilseed'!F24 -> 138.8210395 | J66: ='Dry Sunflowers-Oilseed'!G40-'Dry Sunflowers-Oilseed'!G23-'Dry Sunflowers-Oilseed'!G24 -> 138.8210395 | K66: ='Dry Sunflowers-Oilseed'!H40-'Dry Sunflowers-Oilseed'!H23-'Dry Sunflowers-Oilseed'!H24 -> 0 | L66: 0 | M66: 0.209 | N66: ='Dry Sunflowers-Oilseed'!$C$9 -> lbs | O66: ='Dry Sunflowers-Oilseed'!E9 -> 0
A67: Dryland Wheat | B67: Yes | D67: ='Dry Wheat'!$A$3 -> Dryland Wheat | E67: ='Comparative Returns'!J30 -> 51.03239837 | G67: ='Comparative Returns'!K30 -> 51.03239837 | H67: ='Comparative Returns'!L30 -> 0 | I67: ='Dry Wheat'!F40-'Dry Wheat'!F24-'Dry Wheat'!F25 -> 119.4476016 | J67: ='Dry Wheat'!G42-'Dry Wheat'!G23 -> -5.5 | K67: ='Dry Wheat'!H42-'Dry Wheat'!H23 -> 0 | L67: 0 | M67: 7.02 | N67: ='Dry Wheat'!$C$9 -> bu | O67: ='Dry Wheat'!E9 -> 0
A68: Irrigated Alfalfa | B68: Yes | D68: ='Irr Alfalfa'!$A$3 -> Irrigated Alfalfa | E68: ='Comparative Returns'!J9 -> 541.2749261 | G68: ='Comparative Returns'!K9 -> 541.2749261 | H68: ='Comparative Returns'!L9 -> 0 | I68: ='Irr Alfalfa'!F$46-'Irr Alfalfa'!F$24 -> 598.7250739 | J68: ='Irr Alfalfa'!G$46-'Irr Alfalfa'!G$24 -> 598.7250739 | K68: ='Irr Alfalfa'!H$46-'Irr Alfalfa'!H$24 -> 0 | L68: =Alfalfa_Inches -> 24 | M68: 0 | N68: ='Irr Alfalfa'!$C$9 -> tons | O68: ='Irr Alfalfa'!E9 -> 0
A69: Irrigated Blackeyed Peas | B69: Yes | D69: ='Irr Blackeyes'!$A$3 -> Irrigated Blackeyed Peas | E69: ='Comparative Returns'!J10 -> 339.5748105 | G69: ='Comparative Returns'!K10 -> 339.5748105 | H69: ='Comparative Returns'!L10 -> 0 | I69: ='Irr Blackeyes'!F46-'Irr Blackeyes'!F23-'Irr Blackeyes'!F24 -> 255.7251895 | J69: ='Irr Blackeyes'!G46-'Irr Blackeyes'!G23-'Irr Blackeyes'!G24 -> 255.7251895 | K69: ='Irr Blackeyes'!H46-'Irr Blackeyes'!H23-'Irr Blackeyes'!H24 -> 0 | L69: =Blackeyes_Inches -> 8 | M69: 0.43 | N69: ='Irr Blackeyes'!$C$9 -> lbs | O69: ='Irr Blackeyes'!E9 -> 0
A70: Irrigated Corn | B70: Yes | D70: ='Irr Corn'!$A$3 -> Irrigated Corn | E70: ='Comparative Returns'!J11 -> 332.7051673 | G70: ='Comparative Returns'!K11 -> 332.7051673 | H70: ='Comparative Returns'!L11 -> 0 | I70: ='Irr Corn'!F45-'Irr Corn'!F23 -> 643.7948327 | J70: ='Irr Corn'!G45-'Irr Corn'!G23 -> 643.7948327 | K70: ='Irr Corn'!H45-'Irr Corn'!H23 -> 0 | L70: =Corn_Inches -> 15 | M70: 4.62 | N70: ='Irr Corn'!$C$9 -> bu | O70: ='Irr Corn'!E9 -> 0
A71: Irrigated Corn Silage | B71: Yes | D71: ='Irr Corn Silage'!$A$3 -> Irrigated Corn Silage | E71: ='Comparative Returns'!J12 -> 460.6840546 | G71: ='Comparative Returns'!K12 -> 460.6840546 | H71: ='Comparative Returns'!L12 -> 0 | I71: ='Irr Corn Silage'!F45-'Irr Corn Silage'!F23 -> 700.3159454 | J71: ='Irr Corn Silage'!G45-'Irr Corn Silage'!G23 -> 700.3159454 | K71: ='Irr Corn Silage'!H45-'Irr Corn Silage'!H23 -> 0 | L71: =Corn_Silage_Inches -> 15 | M71: 0 | N71: ='Irr Corn Silage'!$C$9 -> tons | O71: ='Irr Corn Silage'!E9 -> 0
A72: Irrigated Cotton - Drip | B72: Yes | D72: ='Irr Cotton Drip'!$A$3 -> Irrigated Cotton - Drip | E72: ='Comparative Returns'!J13 -> 339.8795335 | G72: ='Comparative Returns'!K13 -> 339.8795335 | H72: ='Comparative Returns'!L13 -> 0 | I72: ='Irr Cotton Drip'!F52-'Irr Cotton Drip'!F28-'Irr Cotton Drip'!F29-'Irr Cotton Drip'!F30 -> 669.4329665 | J72: ='Irr Cotton Drip'!G52-'Irr Cotton Drip'!G28-'Irr Cotton Drip'!G29-'Irr Cotton Drip'!G30 -> 669.4329665 | K72: ='Irr Cotton Drip'!H52-'Irr Cotton Drip'!H28-'Irr Cotton Drip'!H29-'Irr Cotton Drip'!H30 -> 0 | L72: =Cotton_Drip_Inches -> 14 | M72: =0.78+(0.115*1.418) -> 0.94307 | N72: ='Irr Cotton Drip'!$C$9 -> lbs | O72: ='Irr Cotton Drip'!E9 -> 0
A73: Irrigated Cotton - Pivot | B73: Yes | D73: ='Irr Cotton Pivot'!$A$3 -> Irrigated Cotton - Pivot | E73: ='Comparative Returns'!J14 -> 212.7194103 | G73: ='Comparative Returns'!K14 -> 212.7194103 | H73: ='Comparative Returns'!L14 -> 0 | I73: ='Irr Cotton Pivot'!F51-'Irr Cotton Pivot'!F27-'Irr Cotton Pivot'!F28-'Irr Cotton Pivot'!F29 -> 455.1555897 | J73: ='Irr Cotton Pivot'!G51-'Irr Cotton Pivot'!G27-'Irr Cotton Pivot'!G28-'Irr Cotton Pivot'!G29 -> 455.1555897 | K73: ='Irr Cotton Pivot'!H51-'Irr Cotton Pivot'!H27-'Irr Cotton Pivot'!H28-'Irr Cotton Pivot'!H29 -> 0 | L73: =Cotton_Inches -> 10 | M73: =0.78+(0.115*1.418) -> 0.94307 | N73: ='Irr Cotton Pivot'!$C$9 -> lbs | O73: ='Irr Cotton Pivot'!E9 -> 0
A74: Irrigated Peanuts | B74: Yes | D74: ='Irr Peanuts'!$A$3 -> Irrigated Peanuts | E74: ='Comparative Returns'!J16 -> 175.5150276 | G74: ='Comparative Returns'!K16 -> 175.5150276 | H74: ='Comparative Returns'!L16 -> 0 | I74: ='Irr Peanuts'!F50-'Irr Peanuts'!F25-'Irr Peanuts'!F26-'Irr Peanuts'!F27 -> 691.9849724 | J74: ='Irr Peanuts'!G50-'Irr Peanuts'!G25-'Irr Peanuts'!G26-'Irr Peanuts'!G27 -> 691.9849724 | K74: ='Irr Peanuts'!H50-'Irr Peanuts'!H25-'Irr Peanuts'!H26-'Irr Peanuts'!H27 -> 0 | L74: =Peanuts_Inches -> 22 | M74: =Peanut_Price -> 600 | N74: ='Irr Peanuts'!$C$9 -> tons | O74: ='Irr Peanuts'!E9 -> 0
A75: Irrigated Sesame | B75: Yes | D75: ='Irr Sesame'!$A$3 -> Irrigated Sesame | E75: ='Comparative Returns'!J17 -> 32.18815379 | G75: ='Comparative Returns'!K17 -> 32.18815379 | H75: ='Comparative Returns'!L17 -> 0 | I75: ='Irr Sesame'!F47-'Irr Sesame'!F24-'Irr Sesame'!F25 -> 325.3718462 | J75: ='Irr Sesame'!G47-'Irr Sesame'!G24-'Irr Sesame'!G25 -> 325.3718462 | K75: ='Irr Sesame'!H47-'Irr Sesame'!H24-'Irr Sesame'!H25 -> 0 | L75: =Sesame_Inches -> 11 | M75: =Sesame_Price -> 0.32 | N75: ='Irr Sesame'!$C$9 -> lbs | O75: ='Irr Sesame'!E9 -> 0
A76: Irrigated Sorghum | B76: Yes | D76: ='Irr Sorghum'!$A$3 -> Irrigated Sorghum | E76: ='Comparative Returns'!J18 -> 2.053938596 | G76: ='Comparative Returns'!K18 -> 2.053938596 | H76: ='Comparative Returns'!L18 -> 0 | I76: ='Irr Sorghum'!F46-'Irr Sorghum'!F24 -> 357.9460614 | J76: ='Irr Sorghum'!G46-'Irr Sorghum'!G24 -> 357.9460614 | K76: ='Irr Sorghum'!H46-'Irr Sorghum'!H24 -> 0 | L76: =Sorghum_Inches -> 9 | M76: =4.46/56*100 -> 7.964285714 | N76: ='Irr Sorghum'!$C$9 -> cwt | O76: ='Irr Sorghum'!E9 -> 0
A77: Irrigated Sorghum Silage | B77: Yes | D77: ='Irr Sorghum Silage'!$A$3 -> Irrigated Sorghum Silage | E77: ='Comparative Returns'!J19 -> 465.3312575 | G77: ='Comparative Returns'!K19 -> 465.3312575 | H77: ='Comparative Returns'!L19 -> 0 | I77: ='Irr Sorghum Silage'!F45-'Irr Sorghum Silage'!F23 -> 518.6687425 | J77: ='Irr Sorghum Silage'!G45-'Irr Sorghum Silage'!G23 -> 518.6687425 | K77: ='Irr Sorghum Silage'!H45-'Irr Sorghum Silage'!H23 -> 0 | L77: =Sorghum_Silage_Inches -> 16 | M77: 0 | N77: ='Irr Sorghum Silage'!$C$9 -> tons | O77: ='Irr Sorghum Silage'!E9 -> 0
A78: Irrigated Peanuts-Organic | B78: Yes | D78: ='Organic Peanuts'!$A$3 -> Irrigated Peanuts-Organic | E78: ='Comparative Returns'!J20 -> 917.7386004 | G78: ='Comparative Returns'!K20 -> 917.7386004 | H78: ='Comparative Returns'!L20 -> 0 | I78: ='Organic Peanuts'!F47-'Organic Peanuts'!F25 -> 792.2613996 | J78: ='Organic Peanuts'!G47-'Organic Peanuts'!G25 -> 792.2613996 | K78: ='Organic Peanuts'!H47-'Organic Peanuts'!H25 -> 0 | L78: =Soybeans_Inches -> 22 | M78: 11.36 | N78: ='Organic Peanuts'!$C$9 -> ton | O78: ='Organic Peanuts'!E9 -> 0
A79: Irrigated Sunflowers-Confectionary | B79: Yes | D79: ='Irr Sunflowers-Confection'!$A$3 -> Irrigated Sunflowers-Confectionary | E79: ='Comparative Returns'!J21 -> 251.1855888 | G79: ='Comparative Returns'!K21 -> 251.1855888 | H79: ='Comparative Returns'!L21 -> 0 | I79: ='Irr Sunflowers-Confection'!F47-'Irr Sunflowers-Confection'!F23-'Irr Sunflowers-Confection'!F24 -> 322.8544112 | J79: ='Irr Sunflowers-Confection'!G43-'Irr Sunflowers-Confection'!G22-'Irr Sunflowers-Confection'!G23 -> -39 | K79: ='Irr Sunflowers-Confection'!H43-'Irr Sunflowers-Confection'!H22-'Irr Sunflowers-Confection'!H23 -> 0 | L79: =Sunflowers_Conf_Inches -> 8 | M79: 0.274 | N79: ='Irr Sunflowers-Confection'!$C$9 -> lbs | O79: ='Irr Sunflowers-Confection'!E9 -> 0
A80: Irrigated Sunflowers-Oilseed | B80: Yes | D80: ='Irr Sunflowers-Oilseed'!$A$3 -> Irrigated Sunflowers-Oilseed | E80: ='Comparative Returns'!J22 -> 68.51348876 | G80: ='Comparative Returns'!K22 -> 68.51348876 | H80: ='Comparative Returns'!L22 -> 0 | I80: ='Irr Sunflowers-Oilseed'!F46-'Irr Sunflowers-Oilseed'!F22-'Irr Sunflowers-Oilseed'!F23 -> 305.4865112 | J80: ='Irr Sunflowers-Oilseed'!G46-'Irr Sunflowers-Oilseed'!G22-'Irr Sunflowers-Oilseed'!G23 -> 305.4865112 | K80: ='Irr Sunflowers-Oilseed'!H46-'Irr Sunflowers-Oilseed'!H22-'Irr Sunflowers-Oilseed'!H23 -> 0 | L80: =Sunflowers_Oil_Inches -> 8 | M80: 0.209 | N80: ='Irr Sunflowers-Oilseed'!$C$9 -> lbs | O80: ='Irr Sunflowers-Oilseed'!E9 -> 0
A81: Irrigated Wheat | B81: Yes | D81: ='Irr Wheat'!$A$3 -> Irrigated Wheat | E81: ='Comparative Returns'!J23 -> 79.93343642 | G81: ='Comparative Returns'!K23 -> 79.93343642 | H81: ='Comparative Returns'!L23 -> 0 | I81: ='Irr Wheat'!F45-'Irr Wheat'!F24 -> 388.0665636 | J81: ='Irr Wheat'!G45-'Irr Wheat'!G24 -> 388.0665636 | K81: ='Irr Wheat'!H45-'Irr Wheat'!H24 -> 0 | L81: =Wheat_Inches -> 14 | M81: 7.02 | N81: ='Irr Wheat'!$C$9 -> bu | O81: ='Irr Wheat'!E9 -> 0

Sheet PROGRAMMER (hidden)
A1: This table is used to drive the show/hide mechanics for worksheets.
A4: Parameter | B4: Hides Worksheet | C4: Defined Name to Inspect | D4: Display
A5: =Menu!B5 -> Irrigated Alfalfa | B5: Irr Alfalfa | C5: =IF(T_ShowHideMechanics[[#This Row],[Hides Worksheet]]<>"",SUBSTITUTE(SUBSTITUTE(T_ShowHideMechanics[[#This Row],[Hides Worksheet]], " ",""),"-",""),"") -> IrrAlfalfa | D5: =IF(T_ShowHideMechanics[[#This Row],[Hides Worksheet]]<>"",INDIRECT(T_ShowHideMechanics[[#This Row],[Defined Name to Inspect]]),"") -> Yes
A6: =Menu!B6 -> Irrigated Blackeyed Peas | B6: Irr Blackeyes | C6: IrrBlackeyedPeas | D6: =IF(T_ShowHideMechanics[[#This Row],[Hides Worksheet]]<>"",INDIRECT(T_ShowHideMechanics[[#This Row],[Defined Name to Inspect]]),"") -> Yes
A7: =Menu!B7 -> Irrigated Corn | B7: Irr Corn | C7: =IF(T_ShowHideMechanics[[#This Row],[Hides Worksheet]]<>"",SUBSTITUTE(SUBSTITUTE(T_ShowHideMechanics[[#This Row],[Hides Worksheet]], " ",""),"-",""),"") -> IrrCorn | D7: =IF(T_ShowHideMechanics[[#This Row],[Hides Worksheet]]<>"",INDIRECT(T_ShowHideMechanics[[#This Row],[Defined Name to Inspect]]),"") -> Yes
A8: =Menu!B8 -> Irrigated Corn Silage | B8: Irr Corn Silage | C8: =IF(T_ShowHideMechanics[[#This Row],[Hides Worksheet]]<>"",SUBSTITUTE(SUBSTITUTE(T_ShowHideMechanics[[#This Row],[Hides Worksheet]], " ",""),"-",""),"") -> IrrCornSilage | D8: =IF(T_ShowHideMechanics[[#This Row],[Hides Worksheet]]<>"",INDIRECT(T_ShowHideMechanics[[#This Row],[Defined Name to Inspect]]),"") -> Yes
A9: =Menu!B9 -> Irrigated Cotton - Drip | B9: Irr Cotton Drip | C9: =IF(T_ShowHideMechanics[[#This Row],[Hides Worksheet]]<>"",SUBSTITUTE(SUBSTITUTE(T_ShowHideMechanics[[#This Row],[Hides Worksheet]], " ",""),"-",""),"") -> IrrCottonDrip | D9: =IF(T_ShowHideMechanics[[#This Row],[Hides Worksheet]]<>"",INDIRECT(T_ShowHideMechanics[[#This Row],[Defined Name to Inspect]]),"") -> Yes
A10: =Menu!B10 -> Irrigated Cotton - Pivot | B10: Irr Cotton Pivot | C10: =IF(T_ShowHideMechanics[[#This Row],[Hides Worksheet]]<>"",SUBSTITUTE(SUBSTITUTE(T_ShowHideMechanics[[#This Row],[Hides Worksheet]], " ",""),"-",""),"") -> IrrCottonPivot | D10: =IF(T_ShowHideMechanics[[#This Row],[Hides Worksheet]]<>"",INDIRECT(T_ShowHideMechanics[[#This Row],[Defined Name to Inspect]]),"") -> Yes
A11: =Menu!B11 -> Irrigated Guar | B11: Irr Guar | C11: =IF(T_ShowHideMechanics[[#This Row],[Hides Worksheet]]<>"",SUBSTITUTE(SUBSTITUTE(T_ShowHideMechanics[[#This Row],[Hides Worksheet]], " ",""),"-",""),"") -> IrrGuar | D11: =IF(T_ShowHideMechanics[[#This Row],[Hides Worksheet]]<>"",INDIRECT(T_ShowHideMechanics[[#This Row],[Defined Name to Inspect]]),"") -> Yes
A12: =Menu!B12 -> Irrigated Peanuts | B12: Irr Peanuts | C12: =IF(T_ShowHideMechanics[[#This Row],[Hides Worksheet]]<>"",SUBSTITUTE(SUBSTITUTE(T_ShowHideMechanics[[#This Row],[Hides Worksheet]], " ",""),"-",""),"") -> IrrPeanuts | D12: =IF(T_ShowHideMechanics[[#This Row],[Hides Worksheet]]<>"",INDIRECT(T_ShowHideMechanics[[#This Row],[Defined Name to Inspect]]),"") -> Yes
A13: =Menu!B13 -> Irrigated Sesame | B13: Irr Sesame | C13: =IF(T_ShowHideMechanics[[#This Row],[Hides Worksheet]]<>"",SUBSTITUTE(SUBSTITUTE(T_ShowHideMechanics[[#This Row],[Hides Worksheet]], " ",""),"-",""),"") -> IrrSesame | D13: =IF(T_ShowHideMechanics[[#This Row],[Hides Worksheet]]<>"",INDIRECT(T_ShowHideMechanics[[#This Row],[Defined Name to Inspect]]),"") -> Yes
A14: =Menu!B14 -> Irrigated Sorghum | B14: Irr Sorghum | C14: =IF(T_ShowHideMechanics[[#This Row],[Hides Worksheet]]<>"",SUBSTITUTE(SUBSTITUTE(T_ShowHideMechanics[[#This Row],[Hides Worksheet]], " ",""),"-",""),"") -> IrrSorghum | D14: =IF(T_ShowHideMechanics[[#This Row],[Hides Worksheet]]<>"",INDIRECT(T_ShowHideMechanics[[#This Row],[Defined Name to Inspect]]),"") -> Yes
A15: =Menu!B15 -> Irrigated Sorghum Silage | B15: Irr Sorghum Silage | C15: =IF(T_ShowHideMechanics[[#This Row],[Hides Worksheet]]<>"",SUBSTITUTE(SUBSTITUTE(T_ShowHideMechanics[[#This Row],[Hides Worksheet]], " ",""),"-",""),"") -> IrrSorghumSilage | D15: =IF(T_ShowHideMechanics[[#This Row],[Hides Worksheet]]<>"",INDIRECT(T_ShowHideMechanics[[#This Row],[Defined Name to Inspect]]),"") -> Yes
A16: =Menu!B16 -> Irrigated Peanuts-Organic | B16: Organic Peanuts | C16: IrrPeanutsOrganic | D16: =IF(T_ShowHideMechanics[[#This Row],[Hides Worksheet]]<>"",INDIRECT(T_ShowHideMechanics[[#This Row],[Defined Name to Inspect]]),"") -> Yes
A17: =Menu!B17 -> Irrigated Sunflowers-Confectionary | B17: Irr Sunflowers-Confection | C17: IrrSunflowersConfectionary | D17: =IF(T_ShowHideMechanics[[#This Row],[Hides Worksheet]]<>"",INDIRECT(T_ShowHideMechanics[[#This Row],[Defined Name to Inspect]]),"") -> Yes
A18: =Menu!B18 -> Irrigated Sunflowers-Oilseed | B18: Irr Sunflowers-Oilseed | C18: =IF(T_ShowHideMechanics[[#This Row],[Hides Worksheet]]<>"",SUBSTITUTE(SUBSTITUTE(T_ShowHideMechanics[[#This Row],[Hides Worksheet]], " ",""),"-",""),"") -> IrrSunflowersOilseed | D18: =IF(T_ShowHideMechanics[[#This Row],[Hides Worksheet]]<>"",INDIRECT(T_ShowHideMechanics[[#This Row],[Defined Name to Inspect]]),"") -> Yes
A19: =Menu!B19 -> Irrigated Wheat | B19: Irr Wheat | C19: =IF(T_ShowHideMechanics[[#This Row],[Hides Worksheet]]<>"",SUBSTITUTE(SUBSTITUTE(T_ShowHideMechanics[[#This Row],[Hides Worksheet]], " ",""),"-",""),"") -> IrrWheat | D19: =IF(T_ShowHideMechanics[[#This Row],[Hides Worksheet]]<>"",INDIRECT(T_ShowHideMechanics[[#This Row],[Defined Name to Inspect]]),"") -> Yes
A20: =Menu!B21 -> Dryland Cotton - Organic | B20: Dry Cotton Organic | C20: =IF(T_ShowHideMechanics[[#This Row],[Hides Worksheet]]<>"",SUBSTITUTE(SUBSTITUTE(T_ShowHideMechanics[[#This Row],[Hides Worksheet]], " ",""),"-",""),"") -> DryCottonOrganic | D20: =IF(T_ShowHideMechanics[[#This Row],[Hides Worksheet]]<>"",INDIRECT(T_ShowHideMechanics[[#This Row],[Defined Name to Inspect]]),"") -> Yes
A21: =Menu!B22 -> Dryland Cotton - Herbicide Tolerant | B21: Dry Cotton HT | C21: DryCottonHerbicideTolerant | D21: =IF(T_ShowHideMechanics[[#This Row],[Hides Worksheet]]<>"",INDIRECT(T_ShowHideMechanics[[#This Row],[Defined Name to Inspect]]),"") -> Yes
A22: =Menu!B23 -> Dryland Guar | B22: Dry Guar | C22: =IF(T_ShowHideMechanics[[#This Row],[Hides Worksheet]]<>"",SUBSTITUTE(SUBSTITUTE(T_ShowHideMechanics[[#This Row],[Hides Worksheet]], " ",""),"-",""),"") -> DryGuar | D22: =IF(T_ShowHideMechanics[[#This Row],[Hides Worksheet]]<>"",INDIRECT(T_ShowHideMechanics[[#This Row],[Defined Name to Inspect]]),"") -> Yes
A23: =Menu!B24 -> Dryland Sesame | B23: Dry Sesame | C23: =IF(T_ShowHideMechanics[[#This Row],[Hides Worksheet]]<>"",SUBSTITUTE(SUBSTITUTE(T_ShowHideMechanics[[#This Row],[Hides Worksheet]], " ",""),"-",""),"") -> DrySesame | D23: =IF(T_ShowHideMechanics[[#This Row],[Hides Worksheet]]<>"",INDIRECT(T_ShowHideMechanics[[#This Row],[Defined Name to Inspect]]),"") -> Yes
A24: =Menu!B25 -> Dryland Sorghum | B24: Dry Sorghum | C24: =IF(T_ShowHideMechanics[[#This Row],[Hides Worksheet]]<>"",SUBSTITUTE(SUBSTITUTE(T_ShowHideMechanics[[#This Row],[Hides Worksheet]], " ",""),"-",""),"") -> DrySorghum | D24: =IF(T_ShowHideMechanics[[#This Row],[Hides Worksheet]]<>"",INDIRECT(T_ShowHideMechanics[[#This Row],[Defined Name to Inspect]]),"") -> Yes
A25: =Menu!B26 -> Dryland Sunflowers-Oilseed | B25: Dry Sunflowers-Oilseed | C25: =IF(T_ShowHideMechanics[[#This Row],[Hides Worksheet]]<>"",SUBSTITUTE(SUBSTITUTE(T_ShowHideMechanics[[#This Row],[Hides Worksheet]], " ",""),"-",""),"") -> DrySunflowersOilseed | D25: =IF(T_ShowHideMechanics[[#This Row],[Hides Worksheet]]<>"",INDIRECT(T_ShowHideMechanics[[#This Row],[Defined Name to Inspect]]),"") -> Yes
A26: =Menu!B27 -> Dryland Wheat | B26: Dry Wheat | C26: =IF(T_ShowHideMechanics[[#This Row],[Hides Worksheet]]<>"",SUBSTITUTE(SUBSTITUTE(T_ShowHideMechanics[[#This Row],[Hides Worksheet]], " ",""),"-",""),"") -> DryWheat | D26: =IF(T_ShowHideMechanics[[#This Row],[Hides Worksheet]]<>"",INDIRECT(T_ShowHideMechanics[[#This Row],[Defined Name to Inspect]]),"") -> Yes
A27: =Menu!B30 -> Total | C27: =IF(T_ShowHideMechanics[[#This Row],[Hides Worksheet]]<>"",SUBSTITUTE(SUBSTITUTE(T_ShowHideMechanics[[#This Row],[Hides Worksheet]], " ",""),"-",""),"") ->  | D27: =IF(T_ShowHideMechanics[[#This Row],[Hides Worksheet]]<>"",INDIRECT(T_ShowHideMechanics[[#This Row],[Defined Name to Inspect]]),"") -> 
A28: =Menu!B31 -> Operator | C28: =IF(T_ShowHideMechanics[[#This Row],[Hides Worksheet]]<>"",SUBSTITUTE(SUBSTITUTE(T_ShowHideMechanics[[#This Row],[Hides Worksheet]], " ",""),"-",""),"") ->  | D28: =IF(T_ShowHideMechanics[[#This Row],[Hides Worksheet]]<>"",INDIRECT(T_ShowHideMechanics[[#This Row],[Defined Name to Inspect]]),"") -> 
A29: =Menu!B32 -> Owner | C29: =IF(T_ShowHideMechanics[[#This Row],[Hides Worksheet]]<>"",SUBSTITUTE(SUBSTITUTE(T_ShowHideMechanics[[#This Row],[Hides Worksheet]], " ",""),"-",""),"") ->  | D29: =IF(T_ShowHideMechanics[[#This Row],[Hides Worksheet]]<>"",INDIRECT(T_ShowHideMechanics[[#This Row],[Defined Name to Inspect]]),"") -> 
